Workbook

Sheet PRESENTACION
A17: Autoridades: | E17: Esta publicación ha sido elaborada por los Integrantes del Departamento de Estadística Educativa y de las Secciones de Reportes Internacionales e Investigación Educativa de la División de Investigación y Estadística de la Dirección de Educación:
A18: Dr. Tabaré Vázquez
A19: Presidente de la República | E19: Mag. Gabriel Gómez (Director)
A20: Dra. María Julia Muñoz | E20: Departamento de Investigación Educativa | G20: Departamento de Estadística Educativa
A21: Ministra de Educación y Cultura | E21: Mag. Leandro Pereira (Encargado) | G21: Lic. Daniel Zoppis (Encargado)
A22: Mag. Edith Moraes | E22: Lic. Paola Cazulo | G22: Lic. Mariana Yozzi
A23: Subsecretaria de Educación y Cultura | E23: Lic. Daniel Velázquez | G23: Departamento de Reportes Internacionales
A24: Dra. Ana Gabriela González Gargano | E24: Mag. Richard Ferreira | G24: Lic. Carla Orós (Encargada)
A25: Directora General de Secretaría | E25: Departamento de Comunicación y Publicaciones: | G25: Lic. Daniel Manber
A26: Mag. Rosita Inés Angelo | E26: Nathalia Ascué (Encargada)
A27: Directora de Educación | E27: Corrección : | G27: Pilar Barreiro
G29: Departamento de Comunicación
G30: y Publicaciones
G31: Nathalia Ascué (Encargada)

Sheet ESTADÍSTICAS BÁSICAS
B3: ESTADÍSTICAS BÁSICAS
C10: PRIMERA INFANCIA E INICIAL | F10: TERCIARIA NO UNIVERSITARIA
C12: PRIMARIA | F12: FORMACIÓN EN EDUCACIÓN
C14: MEDIA BÁSICA | F14: EDUCACIÓN UNIVERSITARIA
C16: MEDIA SUPERIOR | F16: EDUCACIÓN DE JÓVENES Y ADULTOS

Sheet PRIMERA INFANCIA E INICIAL
B7: ESTABLECIMIENTOS
A8: Cuadro Nº II-1.1.1 | B8: CANTIDAD DE ESTABLECIMIENTOS DE EDUCACIÓN EN LA PRIMERA INFANCIA E INICIAL DEL CEIP POR FORMA DE ADMINISTRACIÓN Y MODALIDAD SEGÚN DEPARTAMENTO. AÑO 2015
A10: Cuadro Nº II-1.1.2 | B10: CANTIDAD DE ESTABLECIMIENTOS DE PRIMERA INFANCIA E INICIAL DEL MEC E INAU POR FORMA DE ADMINISTRACIÓN SEGÚN DEPARTAMENTO. AÑO 2015.
A13: Cuadro Nº II-1.2.1 | B13: ALUMNOS MATRICULADOS EN EDUCACIÓN EN LA PRIMERA INFANCIA E INICIAL POR FORMA DE ADMINISTRACIÓN, MODALIDAD Y SEXO SEGÚN DEPARTAMENTO. AÑO 2015.
A15: Cuadro Nº II-1.2.2 | B15: ALUMNOS MATRICULADOS EN EDUCACIÓN PÚBLICA EN LA PRIMERA INFANCIA E INICIAL DEL CEIP POR MODALIDAD Y EDAD SEGÚN DEPARTAMENTO. AÑO 2015.
A17: Cuadro Nº II-1.2.3 | B17: ALUMNOS MATRICULADOS EN EDUCACIÓN EN LA PRIMERA INFANCIA E INICIAL PRIVADA POR MODALIDAD Y NIVEL SEGÚN DEPARTAMENTO. AÑO 2015.
A19: Cuadro Nº II-1.2.4 | B19: ALUMNOS MATRICULADOS EN EDUCACIÓN EN LA PRIMERA INFANCIA E INICIAL POR FORMA DE ADMINISTRACIÓN Y SEXO SEGÚN DEPARTAMENTO. AÑO 2015.
A21: Cuadro Nº II-1.2.5 | B21: ALUMNOS MATRICULADOS EN EDUCACIÓN EN LA PRIMERA INFANCIA E INICIAL POR FORMA DE ADMINISTRACIÓN SEGÚN EDAD. AÑO 2015.
A23: Cuadro Nº II-1.2.6 | B23: ALUMNOS MATRICULADOS EN EDUCACIÓN EN LA PRIMERA INFANCIA E INICIAL PÚBLICA DEL CEIP POR ÁREA DEMOGRÁFICA SEGÚN DEPARTAMENTO. AÑO 2015.
A25: Cuadro Nº II-1.2.7 | B25: ALUMNOS MATRICULADOS EN EDUCACIÓN EN LA PRIMERA INFANCIA E INICIAL EN CENTROS PRIVADOS HABILITADOS POR EL MEC POR EDAD SEGÚN DEPARTAMENTO. AÑO 2015.
A28: Cuadro Nº II-1.3.1 | B28: PERSONAL DOCENTE DE EDUCACIÓN EN LA PRIMERA INFANCIA E INICIAL PÚBLICA DEL CEIP SEGÚN DEPARTAMENTO. AÑO 2015.
A30: Cuadro Nº II-1.3.2 | B30: PERSONAL DOCENTE DE EDUCACIÓN EN LA PRIMERA INFANCIA E INICIAL PRIVADA SEGÚN DEPARTAMENTO. AÑO 2015.
A32: Cuadro Nº II-1.3.3 | B32: PERSONAL DOCENTE EN EDUCACIÓN EN LA PRIMERA INFANCIA PRIVADA SUPERVISADA POR EL MEC SEGÚN FUNCIÓN Y DEPARTAMENTO. AÑO 2015.

Sheet II-1.1.1
A1: CONSEJO DE EDUCACIÓN INICIAL Y PRIMARIA | G1: ESTABLECIMIENTOS
A3: Cuadro Nº II-1.1.1 | I3: VOLVER
A5: CANTIDAD DE ESTABLECIMIENTOS DE EDUCACIÓN EN LA PRIMERA INFANCIA E INICIAL DEL CEIP POR FORMA DE ADMINISTRACIÓN Y MODALIDAD SEGÚN DEPARTAMENTO. AÑO 2015.
A6: DEPARTAMENTO | B6: TOTAL | C6: FORMA DE ADMINISTRACIÓN
C7: PÚBLICA | I7: PRIVADA
C8: Total Público | D8: Jardines de Infantes | E8: Aprender | F8: JICI | G8: CEPI* | H8: Jardines de Tiempo Completo | I8: Jardines de Infantes
A11: TOTAL | B11: =+B12+B13 -> 243 | C11: =+C12+C13 -> 191 | D11: =SUM(D12:D13) -> 121 | E11: =E12+E13 -> 10 | F11: =SUM(F12:F13) -> 6 | G11: =SUM(G12:G13) -> 1 | H11: =SUM(H12:H13) -> 53 | I11: =SUM(I12:I13) -> 52
A12: MONTEVIDEO | B12: =+C12+I12 -> 94 | C12: =+D12++E12+F12+G12+H12 -> 64 | D12: 37 | E12: 5 | F12: 3 | G12: 1 | H12: 18 | I12: 30
A13: RESTO DEL PAÍS | B13: =+C13+I13 -> 149 | C13: =+D13+E13+F13+G13+H13 -> 127 | D13: =SUM(D15:D32) -> 84 | E13: 5 | F13: 3 | G13: 0 | H13: 35 | I13: 22
A15: Artigas | B15: =+C15+I15 -> 3 | C15: =+D15+E15+F15+G15+H15 -> 3 | D15: 2 | E15: 1 | F15: 0 | G15: 0 | H15: 0 | I15: 0
A16: Canelones | B16: =+C16+I16 -> 39 | C16: =+D16+E16+F16+G16+H16 -> 33 | D16: 25 | E16: 2 | F16: 1 | G16: 0 | H16: 5 | I16: 6
A17: Cerro Largo | B17: 8 | C17: 7 | D17: 2 | E17: 1 | F17: 1 | G17: 0 | H17: 3 | I17: 1
A18: Colonia | B18: 7 | C18: 6 | D18: 6 | E18: 0 | F18: 0 | G18: 0 | H18: 0 | I18: 1
A19: Durazno | B19: 5 | C19: 5 | D19: 3 | E19: 0 | F19: 0 | G19: 0 | H19: 2 | I19: 0
A20: Flores | B20: 2 | C20: 2 | D20: 1 | E20: 0 | F20: 0 | G20: 0 | H20: 1 | I20: 0
A21: Florida | B21: 5 | C21: 4 | D21: 2 | E21: 0 | F21: 0 | G21: 0 | H21: 2 | I21: 1
A22: Lavalleja | B22: 7 | C22: 7 | D22: 5 | E22: 0 | F22: 0 | G22: 0 | H22: 2 | I22: 0
A23: Maldonado | B23: 10 | C23: 7 | D23: 7 | E23: 0 | F23: 0 | G23: 0 | H23: 0 | I23: 3
A24: Paysandú | B24: 5 | C24: 4 | D24: 2 | E24: 0 | F24: 0 | G24: 0 | H24: 2 | I24: 1
A25: Río Negro | B25: 6 | C25: 6 | D25: 3 | E25: 0 | F25: 0 | G25: 0 | H25: 3 | I25: 0
A26: Rivera | B26: 7 | C26: 7 | D26: 3 | E26: 0 | F26: 0 | G26: 0 | H26: 4 | I26: 0
A27: Rocha | B27: 7 | C27: 7 | D27: 5 | E27: 0 | F27: 0 | G27: 0 | H27: 2 | I27: 0
A28: Salto | B28: 9 | C28: 4 | D28: 3 | E28: 0 | F28: 0 | G28: 0 | H28: 1 | I28: 5
A29: San José | B29: 7 | C29: 6 | D29: 4 | E29: 1 | F29: 0 | G29: 0 | H29: 1 | I29: 1
A30: Soriano | B30: 6 | C30: 5 | D30: 4 | E30: 0 | F30: 0 | G30: 0 | H30: 1 | I30: 1
A31: Tacuarembó | B31: =+C31+I31 -> 11 | C31: 9 | D31: 6 | E31: 0 | F31: 0 | G31: 0 | H31: 3 | I31: 2
A32: Treinta y Tres | B32: =+C32+I32 -> 5 | C32: 5 | D32: 1 | E32: 0 | F32: 1 | G32: 0 | H32: 3 | I32: 0
A33: Fuente: Procesamiento propio en base a datos proporcionados por el D.E.E. — C.E.I.P.
A34: Nota: * Centro Educativo de Primera Infancia. Refiere a Guarderias en Anuarios Anteriores.
A35: Privados habilitados y supervisados por ANEP

Sheet II-1.1.2
A1: MINISTERIO DE EDUCACIÓN Y CULTURA | E1: Establecimientos
A2: Dirección de Educación
A4: Cuadro Nº II-1.1.2
A6: CANTIDAD DE ESTABLECIMIENTOS DE PRIMERA INFANCIA E INICIAL DEL MEC E INAU POR FORMA DE ADMINISTRACIÓN SEGÚN DEPARTAMENTO. AÑO 2015.
A7: DEPARTAMENTO
B8: TOTAL | C8: CAIF | D8: DIURNOS-INAU | E8: PRIVADOS
A11: TOTAL | B11: =C11+D11+E11 -> 829 | C11: =C12+C13 -> 390 | D11: =D12+D13 -> 37 | E11: =E12+E13 -> 402
A12: MONTEVIDEO | B12: 330 | C12: 80 | D12: 9 | E12: 241
A13: RESTO DEL PAÍS | B13: =C13+D13+E13 -> 499 | C13: =SUM(C15:C32) -> 310 | D13: =SUM(D15:D32) -> 28 | E13: =SUM(E15:E32) -> 161
A15: Artigas | B15: =C15+D15+E15 -> 20 | C15: 16 | D15: 2 | E15: 2
A16: Canelones | B16: 129 | C16: 62 | D16: 2 | E16: 65
A17: Cerro Largo | B17: 22 | C17: 19 | D17: 1 | E17: 2
A18: Colonia | B18: 29 | C18: 13 | D18: 2 | E18: 14
A19: Durazno | B19: 19 | C19: 15 | D19: 2 | E19: 2
A20: Flores | B20: 7 | C20: 5 | D20: 1 | E20: 1
A21: Florida | B21: 30 | C21: 20 | D21: 2 | E21: 8
A22: Lavalleja | B22: 13 | C22: 6 | D22: 2 | E22: 5
A23: Maldonado | B23: 31 | C23: 12 | D23: 2 | E23: 17
A24: Paysandú | B24: 32 | C24: 24 | D24: 1 | E24: 7
A25: Río Negro | B25: 15 | C25: 12 | D25: 1 | E25: 2
A26: Rivera | B26: 23 | C26: 15 | D26: 1 | E26: 7
A27: Rocha | B27: 20 | C27: 14 | D27: 1 | E27: 5
A28: Salto | B28: 30 | C28: 22 | D28: 1 | E28: 7
A29: San José | B29: 21 | C29: 13 | D29: 2 | E29: 6
A30: Soriano | B30: 25 | C30: 14 | D30: 2 | E30: 9
A31: Tacuarembó | B31: 20 | C31: 16 | D31: 2 | E31: 2
A32: Treinta y Tres | B32: 13 | C32: 12 | D32: 1 | E32: 0
A33: Fuente: Procesamiento propio en base a datos proporcionados por:
A34: Registro Nacional de Centros Educativos en la Primera Infancia. MEC
A35: Nota: Privados supervisados por el MEC
A36: Para CAIF Y CENTROS DIURNOS: SIPI de INAU.

Sheet II-1.2.1
A1: CONSEJO DE EDUCACIÓN INICIAL Y PRIMARIA | Q1: ALUMNOS MATRICULADOS
A3: Cuadro Nº II-1.2.1
A5: ALUMNOS MATRICULADOS EN EDUCACIÓN EN LA PRIMERA INFANCIA E INICIAL POR FORMA DE ADMINISTRACIÓN, MODALIDAD Y SEXO SEGÚN DEPARTAMENTO. AÑO 2015.
A6: DEPARTAMENTO | B6: FORMA DE ADMINISTRACIÓN
B7: TOTAL | E7: PÚBLICA | P7: PRIVADA
E8: Total Público | F8: Inicial en Escuelas* | H8: Jardines de Infantes | J8: Jardín Aprender | L8: JICI** | N8: CEPI*** | P8: Total Privada | Q8: Jardines de Infantes | S8: Inicial en Colegios
B9: TOTAL | C9: SEXO | F9: SEXO | H9: SEXO | L9: SEXO | N9: SEXO | Q9: SEXO | S9: SEXO
C10: M | D10: F | F10: M | G10: F | H10: M | I10: F | J10: M | K10: F | L10: M | M10: F | N10: M | O10: F | Q10: M | R10: F | S10: M | T10: F
A11: TOTAL | B11: =+B12+B13 -> 112917 | C11: =+C12+C13 -> 50884 | D11: =+D12+D13 -> 48992 | E11: =+E12+E13 -> 82982 | F11: =F12+F13 -> 24140 | G11: =G12+G13 -> 23168 | H11: =+H12+H13 -> 16197 | I11: =I12+I13 -> 15454 | J11: =J13+J12 -> 1144 | K11: =K12+K13 -> 1158 | L11: =L12+L13 -> 760 | M11: =M12+M13 -> 773 | N11: =+N12+N13 -> 94 | O11: =O12+O13 -> 94 | P11: =+P12+P13 -> 29935 | Q11: =+Q12+Q13 -> 2462 | R11: =+R12+R13 -> 2450 | S11: =+S12+S13 -> 12602 | T11: =+T12+T13 -> 12421
A12: MONTEVIDEO | B12: =E12+P12 -> 43691 | C12: =+F12+H12+L12+N12+Q12+S12 -> 21661 | D12: =+G12+I12+M12+O12+R12+T12 -> 20769 | E12: =SUM(F12:O12) -> 25536 | F12: 6028 | G12: 5744 | H12: 5936 | I12: 5524 | J12: 620 | K12: 641 | L12: 434 | M12: 421 | N12: 94 | O12: 94 | P12: =+Q12+R12+S12+T12 -> 18155 | Q12: 1592 | R12: 1527 | S12: 7577 | T12: 7459
A13: RESTO DEL PAÍS | B13: =SUM(B15:B32) -> 69226 | C13: 29223 | D13: 28223 | E13: =SUM(F13:O13) -> 57446 | F13: =SUM(F15:F32) -> 18112 | G13: 17424 | H13: 10261 | I13: 9930 | J13: 524 | K13: 517 | L13: 326 | M13: =SUM(M15:M32) -> 352 | N13: 0 | O13: 0 | P13: 11780 | Q13: =SUM(Q15:Q32) -> 870 | R13: =SUM(R15:R32) -> 923 | S13: 5025 | T13: 4962
A15: Artigas | B15: =E15+P15 -> 2628 | C15: =F15+H15+J15+L15+N15 -> 1255 | D15: =G15+I15+K15+M15+O15 -> 1185 | E15: =SUM(F15:O15) -> 2440 | F15: 938 | G15: 881 | H15: 239 | I15: 225 | J15: 78 | K15: 79 | L15: 0 | M15: 0 | N15: 0 | O15: 0 | P15: =+Q15+R15+S15+T15 -> 188 | Q15: 0 | R15: 0 | S15: 81 | T15: 107
A16: Canelones | B16: =E16+P16 -> 17360 | C16: =F16+H16+J16+L16+N16 -> 6921 | D16: =G16+I16+K16+M16 -> 6724 | E16: =SUM(F16:O16) -> 13645 | F16: 3549 | G16: 3440 | H16: 3068 | I16: 2955 | J16: 215 | K16: 206 | L16: 89 | M16: 123 | N16: 0 | O16: 0 | P16: 3715 | Q16: 296 | R16: 302 | S16: 1619 | T16: 1498
A17: Cerro Largo | B17: 2909 | C17: 1382 | D17: =G17+I17+K17+M17+O17 -> 1209 | E17: =SUM(F17:O17) -> 2591 | F17: 837 | G17: 726 | H17: 296 | I17: 238 | J17: 140 | K17: 134 | L17: 109 | M17: 111 | N17: 0 | O17: 0 | P17: 318 | Q17: 40 | R17: 43 | S17: 110 | T17: 125
A18: Colonia | B18: 4370 | C18: 1866 | D18: =G18+I18+K18+M18 -> 1861 | E18: =SUM(F18:O18) -> 3727 | F18: 1285 | G18: 1324 | H18: 581 | I18: 537 | J18: 0 | K18: 0 | L18: 0 | M18: 0 | N18: 0 | O18: 0 | P18: 643 | Q18: 75 | R18: 67 | S18: 242 | T18: 259
A19: Durazno | B19: 1892 | C19: 847 | D19: 809 | E19: 1656 | F19: 556 | G19: 526 | H19: 291 | I19: 283 | J19: 0 | K19: 0 | L19: 0 | M19: 0 | N19: 0 | O19: 0 | P19: 236 | Q19: 0 | R19: 0 | S19: 125 | T19: 111
A20: Flores | B20: 820 | C20: 339 | D20: =G20+I20+K20+M20 -> 340 | E20: 679 | F20: 226 | G20: 248 | H20: 113 | I20: 92 | J20: 0 | K20: 0 | L20: 0 | M20: 0 | N20: 0 | O20: 0 | P20: 141 | Q20: 0 | R20: 0 | S20: 68 | T20: 73
A21: Florida | B21: 1960 | C21: 941 | D21: 877 | E21: 1818 | F21: 629 | G21: 592 | H21: 312 | I21: 285 | J21: 0 | K21: 0 | L21: 0 | M21: 0 | N21: 0 | O21: 0 | P21: 142 | Q21: 10 | R21: 11 | S21: 62 | T21: 59
A22: Lavalleja | B22: 1919 | C22: 775 | D22: =G22+I22+K22+M22 -> 806 | E22: 1581 | F22: 360 | G22: 371 | H22: 415 | I22: 435 | J22: 0 | K22: 0 | L22: 0 | M22: 0 | N22: 0 | O22: 0 | P22: 338 | Q22: 0 | R22: 0 | S22: 171 | T22: 167
A23: Maldonado | B23: 6101 | C23: 2066 | D23: 2101 | E23: 4167 | F23: 1289 | G23: 1309 | H23: 777 | I23: 792 | J23: 0 | K23: 0 | L23: 0 | M23: 0 | N23: 0 | O23: 0 | P23: 1934 | Q23: 98 | R23: 100 | S23: 863 | T23: 873
A24: Paysandú | B24: 3945 | C24: 1692 | D24: =G24+I24+K24+M24 -> 1680 | E24: 3372 | F24: 1312 | G24: 1298 | H24: 380 | I24: 382 | J24: 0 | K24: 0 | L24: 0 | M24: 0 | N24: 0 | O24: 0 | P24: 573 | Q24: 59 | R24: 67 | S24: 239 | T24: 208
A25: Río Negro | B25: 2227 | C25: 972 | D25: 953 | E25: 1925 | F25: 472 | G25: 481 | H25: 500 | I25: 472 | J25: 0 | K25: 0 | L25: 0 | M25: 0 | N25: 0 | O25: 0 | P25: 302 | Q25: 0 | R25: 0 | S25: 170 | T25: 132
A26: Rivera | B26: 3829 | C26: 1720 | D26: =G26+I26+K26+M26 -> 1721 | E26: 3441 | F26: 1148 | G26: 1119 | H26: 572 | I26: 602 | J26: 0 | K26: 0 | L26: 0 | M26: 0 | N26: 0 | O26: 0 | P26: 388 | Q26: 0 | R26: 0 | S26: 193 | T26: 195
A27: Rocha | B27: 2551 | C27: 1167 | D27: 1084 | E27: 2251 | F27: 653 | G27: 603 | H27: 514 | I27: 481 | J27: 0 | K27: 0 | L27: 0 | M27: 0 | N27: 0 | O27: 0 | P27: 300 | Q27: 0 | R27: 0 | S27: 158 | T27: 142
A28: Salto | B28: 5280 | C28: 2188 | D28: =G28+I28+K28+M28 -> 2051 | E28: 4239 | F28: 1639 | G28: 1520 | H28: 549 | I28: 531 | J28: 0 | K28: 0 | L28: 0 | M28: 0 | N28: 0 | O28: 0 | P28: 1041 | Q28: 154 | R28: 146 | S28: 367 | T28: 374
A29: San José | B29: 3761 | C29: 1636 | D29: 1537 | E29: 3173 | F29: 1089 | G29: 1003 | H29: 456 | I29: 436 | J29: 91 | K29: 98 | L29: 0 | M29: 0 | N29: 0 | O29: 0 | P29: 588 | Q29: 69 | R29: 85 | S29: 211 | T29: 223
A30: Soriano | B30: 2738 | C30: 1286 | D30: =G30+I30+K30+M30 -> 1171 | E30: 2457 | F30: 913 | G30: 793 | H30: 373 | I30: 378 | J30: 0 | K30: 0 | L30: 0 | M30: 0 | N30: 0 | O30: 0 | P30: 281 | Q30: 17 | R30: 22 | S30: 99 | T30: 143
A31: Tacuarembó | B31: 3310 | C31: 1378 | D31: 1389 | E31: 2767 | F31: 794 | G31: 826 | H31: 584 | I31: 563 | J31: 0 | K31: 0 | L31: 0 | M31: 0 | N31: 0 | O31: 0 | P31: 543 | Q31: 52 | R31: 80 | S31: 190 | T31: 221
A32: Treinta y Tres | B32: 1626 | C32: 792 | D32: =G32+I32+K32+M32 -> 725 | E32: 1517 | F32: 423 | G32: 364 | H32: 241 | I32: 243 | J32: 0 | K32: 0 | L32: 128 | M32: 118 | N32: 0 | O32: 0 | P32: 109 | Q32: 0 | R32: 0 | S32: 57 | T32: 52
A33: Fuente: Procesamiento propio en base a datos proporcionados por el D.E.E. — C.E.I.P.
A34: Privados habilitados o autorizados por ANEP
A35: * Refiere a Clases Jardineras en Anuarios Anteriores.
A36: ** Jardines de Infantes con Ciclo Inicial.
A37: *** Centro Educativo de Primera Infancia. Refiere a Guarderías en Anuarios Anteriores.

Sheet II-1.2.2
A1: CONSEJO DE EDUCACIÓN INICIAL Y PRIMARIA | P1: ALUMNOS MATRICULADOS
A3: Cuadro Nº II-1.2.2
S4: VOLVER
A5: ALUMNOS MATRICULADOS EN EDUCACIÓN PÚBLICA EN LA PRIMERA INFANCIA E INICIAL DEL CEIP POR MODALIDAD Y EDAD SEGÚN DEPARTAMENTO. AÑO 2015.
A6: DEPARTAMENTO | B6: PÚBLICA
B7: Total Público | C7: Inicial en Escuelas* | G7: Jardines de Infantes** | L7: Jardín Aprender | P7: JICI*** | U7: CEPI****
C8: AÑOS | G8: AÑOS | L8: AÑOS | P8: AÑOS | U8: AÑOS
C9: 3 | D9: 4 | E9: 5 | G9: <= 2 | H9: 3 | I9: 4 | J9: 5 | L9: <= 2 | M9: 3 | N9: 4 | O9: 5 | P9: <= 2 | Q9: 3 | R9: 4 | S9: 5 | U9: <= 2 | V9: 3 | W9: 4 | X9: 5
A10: TOTAL | B10: =+B11+B12 -> 82982 | C10: =C11+C12 -> 1159 | D10: =D11+D12 -> 21639 | E10: =E11+E12 -> 24510 | G10: =+G11+G12 -> 70 | H10: =H11+H12 -> 8591 | I10: =I11+I12 -> 12097 | J10: =J11+J12 -> 10893 | L10: =L12+L11 -> 0 | M10: =M12+M11 -> 347 | N10: =N12+N11 -> 993 | O10: =O12+O11 -> 962 | P10: =P11+P12 -> 0 | Q10: =Q11+Q12 -> 370 | R10: =R11+R12 -> 594 | S10: =S11+S12 -> 569 | U10: =+U11+U12 -> 61 | V10: =+V11+V12 -> 66 | W10: =+W11+W12 -> 61 | X10: =+X11+X12 -> 0
A11: MONTEVIDEO | B11: =SUM(C11:X11) -> 25536 | C11: 137 | D11: 5262 | E11: 6373 | G11: 70 | H11: 2966 | I11: 4262 | J11: 4162 | L11: 0 | M11: 203 | N11: 542 | O11: 516 | P11: 0 | Q11: 200 | R11: 334 | S11: 321 | U11: 61 | V11: 66 | W11: 61 | X11: 0
A12: RESTO DEL PAÍS | B12: =SUM(B14:B31) -> 57446 | C12: =SUM(C14:C31) -> 1022 | D12: =SUM(D14:D31) -> 16377 | E12: =SUM(E14:E31) -> 18137 | G12: =SUM(G14:G31) -> 0 | H12: =SUM(H14:H31) -> 5625 | I12: 7835 | J12: 6731 | L12: =SUM(L14:L31) -> 0 | M12: =SUM(M14:M31) -> 144 | N12: 451 | O12: 446 | P12: 0 | Q12: 170 | R12: =SUM(R14:R31) -> 260 | S12: =SUM(S14:S31) -> 248 | U12: 0 | V12: 0 | W12: 0 | X12: 0
A14: Artigas | B14: =SUM(C14:X14) -> 2440 | C14: 18 | D14: 861 | E14: 940 | G14: 0 | H14: 145 | I14: 164 | J14: 155 | L14: 0 | M14: 23 | N14: 54 | O14: 80 | P14: 0 | Q14: 0 | R14: 0 | S14: 0 | U14: 0 | V14: 0 | W14: 0 | X14: 0
A15: Canelones | B15: =SUM(C15:X15) -> 13645 | C15: 118 | D15: 3287 | E15: 3584 | G15: 0 | H15: 1415 | I15: 2386 | J15: 2222 | L15: 0 | M15: 73 | N15: 172 | O15: 176 | P15: 0 | Q15: 45 | R15: 89 | S15: 78 | U15: 0 | V15: 0 | W15: 0 | X15: 0
A16: Cerro Largo | B16: 2591 | C16: 81 | D16: 739 | E16: 743 | G16: 0 | H16: 105 | I16: 225 | J16: 204 | L16: 0 | M16: 48 | N16: 125 | O16: 101 | P16: 0 | Q16: 65 | R16: 76 | S16: 79 | U16: 0 | V16: 0 | W16: 0 | X16: 0
A17: Colonia | B17: 3727 | C17: 150 | D17: 1213 | E17: 1246 | G17: 0 | H17: 388 | I17: 400 | J17: 330 | L17: 0 | M17: 0 | N17: 0 | O17: 0 | P17: 0 | Q17: 0 | R17: 0 | S17: 0 | U17: 0 | V17: 0 | W17: 0 | X17: 0
A18: Durazno | B18: =SUM(C18:X18) -> 1656 | C18: 53 | D18: 470 | E18: 559 | G18: 0 | H18: 134 | I18: 231 | J18: 209 | L18: 0 | M18: 0 | N18: 0 | O18: 0 | P18: 0 | Q18: 0 | R18: 0 | S18: 0 | U18: 0 | V18: 0 | W18: 0 | X18: 0
A19: Flores | B19: 679 | C19: 27 | D19: 209 | E19: 238 | G19: 0 | H19: 50 | I19: 81 | J19: 74 | L19: 0 | M19: 0 | N19: 0 | O19: 0 | P19: 0 | Q19: 0 | R19: 0 | S19: 0 | U19: 0 | V19: 0 | W19: 0 | X19: 0
A20: Florida | B20: 1818 | C20: 3 | D20: 572 | E20: 646 | G20: 0 | H20: 183 | I20: 260 | J20: 154 | L20: 0 | M20: 0 | N20: 0 | O20: 0 | P20: 0 | Q20: 0 | R20: 0 | S20: 0 | U20: 0 | V20: 0 | W20: 0 | X20: 0
A21: Lavalleja | B21: 1581 | C21: 43 | D21: 317 | E21: 371 | G21: 0 | H21: 252 | I21: 301 | J21: 297 | L21: 0 | M21: 0 | N21: 0 | O21: 0 | P21: 0 | Q21: 0 | R21: 0 | S21: 0 | U21: 0 | V21: 0 | W21: 0 | X21: 0
A22: Maldonado | B22: 4167 | C22: 6 | D22: 1183 | E22: 1409 | G22: 0 | H22: 503 | I22: 580 | J22: 486 | L22: 0 | M22: 0 | N22: 0 | O22: 0 | P22: 0 | Q22: 0 | R22: 0 | S22: 0 | U22: 0 | V22: 0 | W22: 0 | X22: 0
A23: Paysandú | B23: 3372 | C23: 188 | D23: 1216 | E23: 1206 | G23: 0 | H23: 209 | I23: 280 | J23: 273 | L23: 0 | M23: 0 | N23: 0 | O23: 0 | P23: 0 | Q23: 0 | R23: 0 | S23: 0 | U23: 0 | V23: 0 | W23: 0 | X23: 0
A24: Río Negro | B24: 1925 | C24: 9 | D24: 432 | E24: 512 | G24: 0 | H24: 273 | I24: 368 | J24: 331 | L24: 0 | M24: 0 | N24: 0 | O24: 0 | P24: 0 | Q24: 0 | R24: 0 | S24: 0 | U24: 0 | V24: 0 | W24: 0 | X24: 0
A25: Rivera | B25: 3441 | C25: 35 | D25: 1017 | E25: 1215 | G25: 0 | H25: 324 | I25: 467 | J25: 383 | L25: 0 | M25: 0 | N25: 0 | O25: 0 | P25: 0 | Q25: 0 | R25: 0 | S25: 0 | U25: 0 | V25: 0 | W25: 0 | X25: 0
A26: Rocha | B26: 2251 | C26: 7 | D26: 490 | E26: 759 | G26: 0 | H26: 278 | I26: 443 | J26: 274 | L26: 0 | M26: 0 | N26: 0 | O26: 0 | P26: 0 | Q26: 0 | R26: 0 | S26: 0 | U26: 0 | V26: 0 | W26: 0 | X26: 0
A27: Salto | B27: 4239 | C27: 117 | D27: 1496 | E27: 1546 | G27: 0 | H27: 360 | I27: 420 | J27: 300 | L27: 0 | M27: 0 | N27: 0 | O27: 0 | P27: 0 | Q27: 0 | R27: 0 | S27: 0 | U27: 0 | V27: 0 | W27: 0 | X27: 0
A28: San José | B28: 3173 | C28: 91 | D28: 1021 | E28: 980 | G28: 0 | H28: 250 | I28: 303 | J28: 339 | L28: 0 | M28: 0 | N28: 100 | O28: 89 | P28: 0 | Q28: 0 | R28: 0 | S28: 0 | U28: 0 | V28: 0 | W28: 0 | X28: 0
A29: Soriano | B29: 2457 | C29: 34 | D29: 772 | E29: 900 | G29: 0 | H29: 260 | I29: 282 | J29: 209 | L29: 0 | M29: 0 | N29: 0 | O29: 0 | P29: 0 | Q29: 0 | R29: 0 | S29: 0 | U29: 0 | V29: 0 | W29: 0 | X29: 0
A30: Tacuarembó | B30: 2767 | C30: 24 | D30: 700 | E30: 896 | G30: 0 | H30: 370 | I30: 483 | J30: 294 | L30: 0 | M30: 0 | N30: 0 | O30: 0 | P30: 0 | Q30: 0 | R30: 0 | S30: 0 | U30: 0 | V30: 0 | W30: 0 | X30: 0
A31: Treinta y Tres | B31: 1517 | C31: 18 | D31: 382 | E31: 387 | G31: 0 | H31: 126 | I31: 161 | J31: 197 | L31: 0 | M31: 0 | N31: 0 | O31: 0 | P31: 0 | Q31: 60 | R31: 95 | S31: 91 | U31: 0 | V31: 0 | W31: 0 | X31: 0
A32: Fuente: Procesamiento propio en base a datos proporcionados por el D.E.E. — C.E.I.P.
A33: * Refiere a Clases Jardineras en Anuarios Anteriores.
A34: ** Jardines de Infantes incluye Jardines de Infantes comunes y Tiempo Completo.
A35: *** Jardines de Infantes con Ciclo Inicial.
A36: **** Centro Educativo de Primera Infancia. Refiere a Guarderías en Anuarios Anteriores.

Sheet II-1.2.3
A1: CONSEJO DE EDUCACIÓN INICIAL Y PRIMARIA | L1: ALUMNOS MATRICULADOS
A3: Cuadro Nº II-1.2.3
A5: ALUMNOS MATRICULADOS EN EDUCACIÓN EN LA PRIMERA INFANCIA E INICIAL PRIVADA POR MODALIDAD Y NIVEL SEGÚN DEPARTAMENTO. AÑO 2015.
A6: DEPARTAMENTO | D6: MODALIDAD
D7: JARDINES PRIVADOS | J7: INICIAL EN COLEGIOS
B8: TOTAL | D8: NIVEL | J8: NIVEL
C9: Total | D9: Nursery | E9: 2 años | F9: 3 años | G9: 4 años | H9: 5 años | I9: Total | J9: Nursery | K9: 2 años | L9: 3 años | M9: 4 años | N9: 5 años
A11: TOTAL | B11: =+B12+B13 -> 29935 | C11: =+C12+C13 -> 4912 | D11: =SUM(D12:D13) -> 806 | E11: 1242 | F11: 1194 | G11: 973 | H11: 697 | I11: =+I12+I13 -> 25023 | J11: =SUM(J12:J13) -> 1450 | K11: =SUM(K12:K13) -> 3634 | L11: =SUM(L12:L13) -> 5077 | M11: =SUM(M12:M13) -> 6959 | N11: =SUM(N12:N13) -> 7903
A12: MONTEVIDEO | B12: =+C12+I12 -> 18155 | C12: =SUM(D12:H12) -> 3119 | D12: 565 | E12: 798 | F12: 770 | G12: 566 | H12: 420 | I12: =SUM(J12:N12) -> 15036 | J12: 898 | K12: 2014 | L12: 2970 | M12: 4237 | N12: 4917
A13: RESTO DEL PAÍS | B13: =SUM(B15:B32) -> 11780 | C13: =SUM(C15:C32) -> 1793 | D13: 241 | E13: 444 | F13: 424 | G13: 407 | H13: 277 | I13: 9987 | J13: 552 | K13: 1620 | L13: 2107 | M13: 2722 | N13: 2986
A15: Artigas | B15: =+C15+I15 -> 188 | C15: =SUM(D15:H15) -> 0 | D15: 0 | E15: 0 | F15: 0 | G15: 0 | H15: 0 | I15: =+J15+K15+L15+M15+N15 -> 188 | J15: 26 | K15: 48 | L15: 53 | M15: 34 | N15: 27
A16: Canelones | B16: 3715 | C16: 598 | D16: 59 | E16: 114 | F16: 138 | G16: 166 | H16: 121 | I16: 3117 | J16: 142 | K16: 427 | L16: 676 | M16: 866 | N16: 1006
A17: Cerro Largo | B17: 318 | C17: 83 | D17: 0 | E17: 38 | F17: 24 | G17: 21 | H17: 0 | I17: 235 | J17: 0 | K17: 16 | L17: 51 | M17: 86 | N17: 82
A18: Colonia | B18: 643 | C18: 142 | D18: 28 | E18: 35 | F18: 33 | G18: 25 | H18: 21 | I18: 501 | J18: 56 | K18: 116 | L18: 107 | M18: 104 | N18: 118
A19: Durazno | B19: 236 | C19: 0 | D19: 0 | E19: 0 | F19: 0 | G19: 0 | H19: 0 | I19: 236 | J19: 17 | K19: 30 | L19: 62 | M19: 59 | N19: 68
A20: Flores | B20: 141 | C20: 0 | D20: 0 | E20: 0 | F20: 0 | G20: 0 | H20: 0 | I20: 141 | J20: 5 | K20: 27 | L20: 32 | M20: 44 | N20: 33
A21: Florida | B21: 142 | C21: 21 | D21: 10 | E21: 5 | F21: 5 | G21: 1 | H21: 0 | I21: 121 | J21: 0 | K21: 19 | L21: 14 | M21: 33 | N21: 55
A22: Lavalleja | B22: 338 | C22: 0 | D22: 0 | E22: 0 | F22: 0 | G22: 0 | H22: 0 | I22: 338 | J22: 31 | K22: 55 | L22: 86 | M22: 92 | N22: 74
A23: Maldonado | B23: 1934 | C23: 198 | D23: 15 | E23: 46 | F23: 44 | G23: 50 | H23: 43 | I23: 1736 | J23: 69 | K23: 326 | L23: 382 | M23: 448 | N23: 511
A24: Paysandú | B24: 573 | C24: 126 | D24: 32 | E24: 22 | F24: 22 | G24: 29 | H24: 21 | I24: 447 | J24: 10 | K24: 13 | L24: 23 | M24: 206 | N24: 195
A25: Río Negro | B25: 302 | C25: 0 | D25: 0 | E25: 0 | F25: 0 | G25: 0 | H25: 0 | I25: 302 | J25: 9 | K25: 56 | L25: 55 | M25: 86 | N25: 96
A26: Rivera | B26: 388 | C26: 0 | D26: 0 | E26: 0 | F26: 0 | G26: 0 | H26: 0 | I26: 388 | J26: 18 | K26: 75 | L26: 83 | M26: 100 | N26: 112
A27: Rocha | B27: 300 | C27: 0 | D27: 0 | E27: 0 | F27: 0 | G27: 0 | H27: 0 | I27: 300 | J27: 31 | K27: 65 | L27: 73 | M27: 71 | N27: 60
A28: Salto | B28: 1041 | C28: 300 | D28: 43 | E28: 112 | F28: 82 | G28: 39 | H28: 24 | I28: 741 | J28: 80 | K28: 127 | L28: 137 | M28: 183 | N28: 214
A29: San José | B29: 588 | C29: 154 | D29: 30 | E29: 27 | F29: 33 | G29: 39 | H29: 25 | I29: 434 | J29: 12 | K29: 72 | L29: 113 | M29: 116 | N29: 121
A30: Soriano | B30: 281 | C30: 39 | D30: 11 | E30: 14 | F30: 13 | G30: 1 | H30: 0 | I30: 242 | J30: 0 | K30: 42 | L30: 51 | M30: 66 | N30: 83
A31: Tacuarembó | B31: 543 | C31: 132 | D31: 13 | E31: 31 | F31: 30 | G31: 36 | H31: 22 | I31: 411 | J31: 46 | K31: 81 | L31: 79 | M31: 99 | N31: 106
A32: Treinta y Tres | B32: 109 | C32: 0 | D32: 0 | E32: 0 | F32: 0 | G32: 0 | H32: 0 | I32: 109 | J32: 0 | K32: 25 | L32: 30 | M32: 29 | N32: 25
A33: Fuente: Procesamiento propio en base a datos proporcionados por el D.E.E. — C.E.I.P.
A34: Nota: Se refiere a centros privados habilitados o autorizados por ANEP

Sheet II-1.2.4
A1: MINISTERIO DE EDUCACIÓN Y CULTURA | I1: Alumnos Matriculados
A2: Dirección de Educación – Área de Educación en la Primera Infancia
A3: INAU-CAIF
A6: Cuadro Nº II-1.2.4
A8: ALUMNOS MATRICULADOS EN EDUCACIÓN EN LA PRIMERA INFANCIA E INICIAL POR FORMA DE ADMINISTRACIÓN Y SEXO SEGÚN DEPARTAMENTO. AÑO 2015.
A9: DEPARTAMENTO | E9: FORMA DE ADMINISTRACIÓN
B10: TOTAL | E10: CAIF Y CENTROS DIURNOS | G10: Centros Privados
B12: TOTAL | C12: SEXO | E12: SEXO
C13: M | D13: F | E13: M | F13: F | G13: M | H13: F
A14: TOTAL | B14: =+B15+B16 -> 72580 | C14: =E14+G14 -> 36989 | D14: 35591 | E14: =E15+E16 -> 26647 | F14: =F15+F16 -> 25808 | G14: =G15+G16 -> 10342 | H14: =H15+H16 -> 9783
A15: MONTEVIDEO | B15: =+C15+D15 -> 24802 | C15: 12831 | D15: 11971 | E15: 6234 | F15: 5806 | G15: 6597 | H15: 6165
A16: RESTO DEL PAÍS | B16: =+C16+D16 -> 47778 | C16: 24158 | D16: 23620 | E16: =SUM(E17:E35) -> 20413 | F16: =SUM(F17:F35) -> 20002 | G16: =SUM(G17:G35) -> 3745 | H16: =SUM(H17:H35) -> 3618
A18: Artigas | B18: =+C18+D18 -> 2521 | C18: =E18+G18 -> 1252 | D18: =F18+H18 -> 1269 | E18: 1195 | F18: 1192 | G18: 57 | H18: 77
A19: Canelones | B19: 10728 | C19: =E19+G19 -> 5429 | D19: 5299 | E19: 4033 | F19: 3897 | G19: 1396 | H19: 1402
A20: Cerro Largo | B20: 2871 | C20: 1412 | D20: 1459 | E20: 1366 | F20: 1410 | G20: 46 | H20: 49
A21: Colonia | B21: 2359 | C21: 1207 | D21: 1152 | E21: 927 | F21: 907 | G21: 280 | H21: 245
A22: Durazno | B22: 2213 | C22: 1126 | D22: 1087 | E22: 985 | F22: 987 | G22: 141 | H22: 100
A23: Flores | B23: 817 | C23: 406 | D23: 411 | E23: 370 | F23: 364 | G23: 36 | H23: 47
A24: Florida | B24: 1795 | C24: 891 | D24: 904 | E24: 676 | F24: 670 | G24: 215 | H24: 234
A25: Lavalleja | B25: 1063 | C25: 521 | D25: 542 | E25: 436 | F25: 465 | G25: 85 | H25: 77
A26: Maldonado | B26: 2358 | C26: 1176 | D26: 1182 | E26: 776 | F26: 800 | G26: 400 | H26: 382
A27: Paysandú | B27: 3683 | C27: 1886 | D27: 1797 | E27: 1678 | F27: 1594 | G27: 208 | H27: 203
A28: Río Negro | B28: 1491 | C28: 772 | D28: 719 | E28: 719 | F28: 669 | G28: 53 | H28: 50
A29: Rivera | B29: 3038 | C29: 1497 | D29: 1541 | E29: 1246 | F29: 1333 | G29: 251 | H29: 208
A30: Rocha | B30: 2055 | C30: 1037 | D30: 1018 | E30: 969 | F30: 951 | G30: 68 | H30: 67
A31: Salto | B31: 3445 | C31: 1776 | D31: 1669 | E31: 1591 | F31: 1508 | G31: 185 | H31: 161
A32: San José | B32: 2041 | C32: 1048 | D32: 993 | E32: 898 | F32: 850 | G32: 150 | H32: 143
A33: Soriano | B33: 1810 | C33: 926 | D33: 884 | E33: 776 | F33: 733 | G33: 150 | H33: 151
A34: Tacuarembó | B34: 2255 | C34: 1139 | D34: 1116 | E34: 1115 | F34: 1094 | G34: 24 | H34: 22
A35: Treinta y Tres | B35: 1235 | C35: 657 | D35: 578 | E35: 657 | F35: 578 | G35: 0 | H35: 0
A36: Fuente: Procesamiento propio en base a datos proporcionados por:
A37: Registro Nacional de Centros de Educación Infantil Privados. MEC
A38: Para CAIF Y CENTROS DIURNOS: SIPI de INAU.
A39: Nota: Privados supervisados por el MEC
A40: Los centros pertenecientes al Proyecto Nuestros Niños de la Intendencia Municipal de Montevideo, se encuentran incluidos en la matrícula de Centros Privados, en tanto los mismos son supervisados por el MEC.
A41: CAIF y Centros Diurnos incluyen para este año la matrícula de Experiencia Oportuna.
A42: (0 a 1 año) que en el anuario 2012 solo se incluía en el cuadro II

Sheet II-1.2.5
A1: MINISTERIO DE EDUCACIÓN Y CULTURA | G1: ALUMNOS MATRICULADOS
A2: Dirección de Educación – Área de Educación en la Primera Infancia
A4: Cuadro Nº II-1.2.5
A5: ALUMNOS MATRICULADOS EN EDUCACIÓN EN LA PRIMERA INFANCIA E INICIAL POR FORMA DE ADMINISTRACIÓN SEGÚN EDAD. AÑO 2015.
C6: FORMA DE ADMINISTRACIÓN
A7: EDAD | C7: CEIP- PÚBLICOS | D7: CEIP-PRIVADOS (Habilitados y Autorizados) | E7: CAIF | F7: DIURNOS | G7: PRIVADOS MEC
A10: TOTAL | B10: =C10+D10+E10+F10+G10 -> 185497 | C10: =C11+C14+C15+C16+C17 -> 82982 | D10: =SUM(D11:D17) -> 29935 | E10: =SUM(E11:E17) -> 50477 | F10: 1978 | G10: 20125
A11: 0 a 11 meses | B11: =C11+D11+D13+E11+E12+E13+F11+F12+F13+G11+G12+G13 -> 54231 | C11: 131 | D11: 2256 | E11: 7252 | F11: 110 | G11: 690
A12: 1 año | E12: 13945 | F12: 490 | G12: 3757
A13: 2 años | D13: 4876 | E13: 13975 | F13: 662 | G13: 6087
A14: 3 años | B14: =C14+D14+E14+F14+G14 -> 35574 | C14: 10533 | D14: 6271 | E14: 12668 | F14: 499 | G14: 5603
A15: 4 años | B15: =C15+D15+E15+F15+G15 -> 48575 | C15: 35384 | D15: 7932 | E15: 2516 | F15: 111 | G15: 2632
A16: 5 años | B16: =C16+D16+E16+F16+G16 -> 46936 | C16: 36934 | D16: 8600 | E16: 106 | F16: 21 | G16: 1275
A17: 6 años | B17: =C17+D17+E17+F17+G17 -> 181 | C17: 0 | D17: 0 | E17: 15 | F17: 85 | G17: 81
A18: Fuente: Procesamiento propio en base a datos proporcionados por:
A19: Registro Nacional de Centros de Educación Infantil Privados. MEC
A20: Para CAIF Y CENTROS DIURNOS: SIPI de INAU.
A21: Programa Nuestros Niños: IMM. Se encuentran incluidos dentro de la matricula privada.
A22: Nota: En los Centros de Educación Infantil Privados MEC se incluyen 364 niñas y niños que tienen más de 5 años.
A23: Para CAIF las edades de 0 y 1 año corresponden a la modalidad Experiencia Oportuna.

Sheet II-1.2.6
A1: CONSEJO DE EDUCACIÓN INICIAL Y PRIMARIA | D1: ALUMNOS MATRICULADOS
A3: Cuadro Nº II-1.2.6
A5: ALUMNOS MATRICULADOS EN EDUCACIÓN EN LA PRIMERA INFANCIA E INICIAL PÚBLICA DEL CEIP POR ÁREA DEMOGRÁFICA SEGÚN DEPARTAMENTO. AÑO 2015.
A6: DEPARTAMENTO | B6: TOTAL | C6: ÁREA DEMOGRÁFICA
C7: URBANA | D7: RURAL
A8: TOTAL | B8: =SUM(C8+D8) -> 82982 | C8: =SUM(C9:C10) -> 79227 | D8: =SUM(D9:D10) -> 3755
A9: MONTEVIDEO | B9: =+C9+D9 -> 25536 | C9: 25536 | D9: 0
A10: RESTO DEL PAÍS | B10: =+C10+D10 -> 57446 | C10: =SUM(C12:C29) -> 53691 | D10: =SUM(D12:D29) -> 3755
A12: Artigas | B12: 2440 | C12: 2266 | D12: 174
A13: Canelones | B13: 13645 | C13: 13009 | D13: 636
A14: Cerro Largo | B14: 2591 | C14: 2373 | D14: 218
A15: Colonia | B15: 3727 | C15: 3437 | D15: 290
A16: Durazno | B16: 1656 | C16: 1536 | D16: 120
A17: Flores | B17: 679 | C17: 607 | D17: 72
A18: Florida | B18: 1818 | C18: 1629 | D18: 189
A19: Lavalleja | B19: 1581 | C19: 1459 | D19: 122
A20: Maldonado | B20: 4167 | C20: 4030 | D20: 137
A21: Paysandú | B21: 3372 | C21: 3161 | D21: 211
A22: Río Negro | B22: 1925 | C22: 1776 | D22: 149
A23: Rivera | B23: 3441 | C23: 3183 | D23: 258
A24: Rocha | B24: 2251 | C24: 2152 | D24: 99
A25: Salto | B25: 4239 | C25: 3944 | D25: 295
A26: San José | B26: 3173 | C26: 2875 | D26: 298
A27: Soriano | B27: 2457 | C27: 2304 | D27: 153
A28: Tacuarembó | B28: 2767 | C28: 2528 | D28: 239
A29: Treinta y Tres | B29: 1517 | C29: 1422 | D29: 95
A30: Fuente: Procesamiento propio en base a datos proporcionados
A31: por el D.E.E. — C.E.I.P.
A32: Nota: En los años 2012 y 2013 el presente cuadro considera la matrícula total de Educación en la Primera Infancia e Inicial Pública.
A33: Años anteriores solo consideraban la matrícula de Educación Inicial en Escuelas.

Sheet II-1.2.7
A1: MINISTERIO DE EDUCACIÓN Y CULTURA | J1: ALUMNOS MATRICULADOS
A2: Dirección de Educación – Área de Educación en la Primera Infancia
A4: Cuadro Nº II-1.2.7
A6: ALUMNOS MATRICULADOS EN EDUCACIÓN EN LA PRIMERA INFANCIA E INICIAL EN CENTROS PRIVADOS HABILITADOS POR EL MEC POR EDAD SEGÚN DEPARTAMENTO. AÑO 2015.
A7: DEPARTAMENTO | C7: E D A D
B8: TOTAL | C8: 0 a 11 meses | D8: 1 año | E8: 2 años | F8: 3 años | G8: 4 años | H8: 5 años | I8: 6 años
A10: TOTAL | B10: =+B11+B12 -> 20125 | C10: 690 | D10: 3757 | E10: 6087 | F10: 5603 | G10: 2632 | H10: 1275 | I10: 50
A11: MONTEVIDEO | B11: =+C11+D11+E11+F11+G11+H11+I11 -> 12762 | C11: 566 | D11: 2377 | E11: 3818 | F11: 3577 | G11: 1663 | H11: 711 | I11: 50
A12: RESTO DEL PAÍS | B12: =SUM(B14:B31) -> 7363 | C12: 124 | D12: 1380 | E12: 2269 | F12: 2026 | G12: 969 | H12: 564
A14: Artigas | B14: =+C14+D14+E14+F14+G14+H14+I14 -> 134 | C14: 1 | D14: 16 | E14: 41 | F14: 33 | G14: 29 | H14: 10 | I14: 4
A15: Canelones | B15: =+C15+D15+E15+F15+G15+H15+I15 -> 2798 | C15: 62 | D15: 485 | E15: 816 | F15: 764 | G15: 408 | H15: 256 | I15: 7
A16: Cerro Largo | B16: 95 | C16: 0 | D16: 27 | E16: 37 | F16: 31 | G16: 0 | H16: 0 | I16: 0
A17: Colonia | B17: 525 | C17: 4 | D17: 114 | E17: 251 | F17: 155 | G17: 1 | H17: 0 | I17: 0
A18: Durazno | B18: 241 | C18: 0 | D18: 40 | E18: 49 | F18: 63 | G18: 42 | H18: 47 | I18: 0
A19: Flores | B19: 83 | C19: 0 | D19: 1 | E19: 15 | F19: 28 | G19: 24 | H19: 11 | I19: 4
A20: Florida | B20: 449 | C20: 9 | D20: 96 | E20: 157 | F20: 115 | G20: 56 | H20: 15 | I20: 1
A21: Lavalleja | B21: 162 | C21: 6 | D21: 41 | E21: 51 | F21: 53 | G21: 11 | H21: 0 | I21: 0
A22: Maldonado | B22: 782 | C22: 9 | D22: 111 | E22: 177 | F22: 233 | G22: 154 | H22: 87 | I22: 11
A23: Paysandú | B23: 411 | C23: 17 | D23: 107 | E23: 116 | F23: 98 | G23: 37 | H23: 36 | I23: 0
A24: Río Negro | B24: 103 | C24: 0 | D24: 28 | E24: 46 | F24: 14 | G24: 9 | H24: 6 | I24: 0
A25: Rivera | B25: 459 | C25: 2 | D25: 108 | E25: 131 | F25: 109 | G25: 77 | H25: 32 | I25: 0
A26: Rocha | B26: 135 | C26: 4 | D26: 23 | E26: 43 | F26: 31 | G26: 13 | H26: 17 | I26: 4
A27: Salto | B27: 346 | C27: 4 | D27: 85 | E27: 111 | F27: 102 | G27: 29 | H27: 15 | I27: 0
A28: San José | B28: 293 | C28: 4 | D28: 29 | E28: 103 | F28: 104 | G28: 36 | H28: 17 | I28: 0
A29: Soriano | B29: 301 | C29: 2 | D29: 64 | E29: 110 | F29: 75 | G29: 40 | H29: 10 | I29: 0
A30: Tacuarembó | B30: 46 | C30: 0 | D30: 5 | E30: 15 | F30: 18 | G30: 3 | H30: 5 | I30: 0
A31: Treinta y Tres | B31: 0 | C31: 0 | D31: 0 | E31: 0 | F31: 0 | G31: 0 | H31: 0 | I31: 0
A32: Fuente: Procesamiento propio en base a datos proporcionados por:
A33: Registro Nacional de Centros de Educación Infantil Privados. MEC

Sheet II-1.3.1
A1: CONSEJO DE EDUCACIÓN INICIAL Y PRIMARIA | D1: PERSONAL DOCENTE
A3: Cuadro Nº II-1.3.1
A5: PERSONAL DOCENTE DE EDUCACIÓN EN LA PRIMERA INFANCIA E INICIAL PÚBLICA DEL CEIP SEGÚN DEPARTAMENTO. AÑO 2015.
A6: DEPARTAMENTO | B6: DOCENTES
A8: TOTAL | B8: =SUM(B9:B10) -> 2947
A9: MONTEVIDEO | B9: 1007
A10: RESTO DEL PAÍS | B10: 1940
A12: Artigas | B12: 81
A13: Canelones | B13: 466
A14: Cerro Largo | B14: 89
A15: Colonia | B15: 107
A16: Durazno | B16: 53
A17: Flores | B17: 27
A18: Florida | B18: 73
A19: Lavalleja | B19: 62
A20: Maldonado | B20: 155
A21: Paysandú | B21: 100
A22: Río Negro | B22: 70
A23: Rivera | B23: 112
A24: Rocha | B24: 77
A25: Salto | B25: 129
A26: San José | B26: 103
A27: Soriano | B27: 84
A28: Tacuarembó | B28: 97
A29: Treinta y Tres | B29: 59
A30: Fuente: D.E.E. - C.E.I.P
A31: Nota: Personal docente solo considera maestro/a de clase.

Sheet II-1.3.2
A1: CONSEJO DE EDUCACIÓN INICIAL Y PRIMARIA | E1: PERSONAL DOCENTE
A3: Cuadro Nº II-1.3.2.
A5: PERSONAL DOCENTE DE EDUCACIÓN EN LA PRIMERA INFANCIA E INICIAL PRIVADA SEGÚN DEPARTAMENTO. AÑO 2015.
A6: DEPARTAMENTO | C6: DOCENTES
B8: TOTAL | C8: Colegios Habilitados | D8: Colegios Autorizados | E8: Jardines de Infantes Autorizados
A10: TOTAL | B10: =SUM(B11:B12) -> 1793 | C10: =SUM(C11:C12) -> 1435 | D10: =SUM(D11:D12) -> 73 | E10: =SUM(E11:E12) -> 285
A11: MONTEVIDEO | B11: =+C11+D11+E11 -> 1058 | C11: 804 | D11: 58 | E11: 196
A12: RESTO DEL PAÍS | B12: =+C12+D12+E12 -> 735 | C12: =SUM(C14:C31) -> 631 | D12: =SUM(D14:D31) -> 15 | E12: =SUM(E14:E31) -> 89
A14: Artigas | B14: =+C14+D14 -> 4 | C14: 4 | D14: 0 | E14: 0
A15: Canelones | B15: 203 | C15: 191 | D15: 12 | E15: 29
A16: Cerro Largo | B16: 15 | C16: 15 | D16: 0 | E16: 5
A17: Colonia | B17: 39 | C17: 39 | D17: 0 | E17: 0
A18: Durazno | B18: 13 | C18: 13 | D18: 0 | E18: 0
A19: Flores | B19: 12 | C19: 12 | D19: 0 | E19: 0
A20: Florida | B20: 10 | C20: 10 | D20: 0 | E20: 3
A21: Lavalleja | B21: 22 | C21: 22 | D21: 0 | E21: 0
A22: Maldonado | B22: 107 | C22: 107 | D22: 0 | E22: 14
A23: Paysandú | B23: 42 | C23: 42 | D23: 0 | E23: 7
A24: Río Negro | B24: 25 | C24: 23 | D24: 2 | E24: 0
A25: Rivera | B25: 18 | C25: 18 | D25: 0 | E25: 0
A26: Rocha | B26: 21 | C26: 21 | D26: 0 | E26: 0
A27: Salto | B27: 38 | C27: 38 | D27: 0 | E27: 16
A28: San José | B28: 27 | C28: 26 | D28: 1 | E28: 4
A29: Soriano | B29: 14 | C29: 14 | D29: 0 | E29: 4
A30: Tacuarembó | B30: 30 | C30: 30 | D30: 0 | E30: 7
A31: Treinta y Tres | B31: 6 | C31: 6 | D31: 0 | E31: 0
A32: Fuente: D.E.E. — C.E.P. | B32: C.E.I.P
A33: Nota: Personal docente solo considera maestro/a de clase.
A34: Centros privados habilitados o autorizados por ANEP

Sheet II-1.3.3
A1: CONSEJO DE EDUCACIÓN INICIAL Y PRIMARIA | E1: PERSONAL DOCENTE
A3: Cuadro Nº II-1.3.3.
A5: PERSONAL DOCENTE EN EDUCACIÓN EN LA PRIMERA INFANCIA PRIVADA SUPERVISADA POR EL MEC SEGÚN FUNCIÓN Y DEPARTAMENTO. AÑO 2015.
C7: FUNCIÓN
A8: DEPATAMENTO | B8: TOTAL | C8: Director responsable técnico | D8: Educadores | E8: Otros especialistas | F8: Profesores especiales | G8: Responsable legal
A10: TOTAL | B10: =SUM(C10:G10) -> 4197 | C10: =C12+C11 -> 437 | D10: =D11+D12 -> 2634 | E10: 237 | F10: 456 | G10: =G11+G12 -> 433
A11: MONTEVIDEO | B11: =SUM(C11:G11) -> 2453 | C11: 274 | D11: 1739 | E11: 172 | F11: 8 | G11: 260
A12: RESTO DEL PAIS | B12: =SUM(C12:G12) -> 1744 | C12: =SUM(C14:C31) -> 163 | D12: =SUM(D14:D31) -> 895 | E12: =SUM(E14:E31) -> 65 | F12: =SUM(F14:F31) -> 448 | G12: =SUM(G14:G31) -> 173
A14: Artigas | B14: =SUM(C14:G14) -> 87 | C14: 2 | D14: 20 | E14: 0 | F14: 63 | G14: 2
A15: Canelones | B15: =SUM(C15:G15) -> 500 | C15: 65 | D15: 345 | E15: 22 | F15: 1 | G15: 67
A16: Cerro Largo | B16: 24 | C16: 2 | D16: 12 | E16: 4 | F16: 4 | G16: 2
A17: Colonia | B17: 97 | C17: 14 | D17: 61 | E17: 3 | F17: 4 | G17: 15
A18: Durazno | B18: 38 | C18: 3 | D18: 30 | E18: 2 | F18: 1 | G18: 2
A19: Flores | B19: 22 | C19: 1 | D19: 8 | E19: 1 | F19: 11 | G19: 1
A20: Florida | B20: 83 | C20: 8 | D20: 53 | E20: 11 | F20: 2 | G20: 9
A21: Lavalleja | B21: 77 | C21: 5 | D21: 24 | E21: 1 | F21: 41 | G21: 6
A22: Maldonado | B22: 431 | C22: 18 | D22: 102 | E22: 9 | F22: 281 | G22: 21
A23: Paysandú | B23: 69 | C23: 7 | D23: 49 | E23: 3 | F23: 2 | G23: 8
A24: Rio Negro | B24: 28 | C24: 2 | D24: 7 | E24: 2 | F24: 14 | G24: 3
A25: Rivera | B25: 75 | C25: 7 | D25: 58 | E25: 1 | F25: 2 | G25: 7
A26: Rocha | B26: 31 | C26: 5 | D26: 17 | E26: 0 | F26: 4 | G26: 5
A27: Salto | B27: 60 | C27: 7 | D27: 42 | E27: 1 | F27: 3 | G27: 7
A28: San José | B28: 53 | C28: 6 | D28: 27 | E28: 1 | F28: 12 | G28: 7
A29: Soriano | B29: 59 | C29: 9 | D29: 34 | E29: 4 | F29: 3 | G29: 9
A30: Tacuarembó | B30: 10 | C30: 2 | D30: 6 | E30: 0 | F30: 0 | G30: 2
A31: Treinta y Tres | B31: 0 | C31: 0 | D31: 0 | E31: 0 | F31: 0 | G31: 0
A32: Fuente: Procesamiento propio en base a datos proporcionados por: Registro Nacional de Centros de Educación Infantil Privados. MEC
A33: Nota:
A34: Director responsable técnico: art 4. 268/014
A35: Educadores: Son aquellos que la tarea de docencia directa, ya sea de carácter de docente propiamente dicho o de auxiliar. Informe Primer censo nacional de centros de Educaciòn Infanti Privados.
A36: Otros especialistas: Se refiere a profesionales que apoyan la tarea de los educadores sin ejercer educaciòn directa. En esta categorìa entran psicologo, psicomotrisistas, trabajadores sociales, nutricionistas, medico pediatra y otros especialistas.
A37: Profesores especiales: Son docentes que se especializan en un área en particular. Esta categoría incluye profesores de computación, inglés, plastica, eduaciòn musical u artistica.

Sheet PRIMARIA
A7: Cuadro Nº II-2.1.1 | B7: ESTABLECIMIENTOS DE EDUCACIÓN PRIMARIA POR FORMA DE ADMINISTRACIÓN Y TIPO DE EDUCACIÓN SEGÚN DEPARTAMENTO. AÑO 2015.
A9: Cuadro Nº II-2.1.2 | B9: ESTABLECIMIENTOS DE EDUCACIÓN PRIMARIA PÚBLICA COMÚN POR ÁREA DEMOGRÁFICA Y CATEGORÍA SEGÚN DEPARTAMENTO. AÑO 2015.
A11: Cuadro Nº II-2.1.3 | B11: ESTABLECIMIENTOS DE EDUCACIÓN PRIMARIA PÚBLICA ESPECIAL POR TIPO DE DISCAPACIDAD SEGÚN DEPARTAMENTO. AÑO 2015.
A13: Cuadro Nº II-2.1.4 | B13: ESTABLECIMIENTOS DE EDUCACIÓN PRIMARIA PRIVADA POR TIPO DE EDUCACIÓN SEGÚN DEPARTAMENTO. AÑO 2015.
A16: Cuadro Nº II-2.2.1 | B16: ALUMNOS MATRICULADOS EN EDUCACIÓN PRIMARIA COMÚN POR FORMA DE ADMINISTRACIÓN Y SEXO SEGÚN DEPARTAMENTO. AÑO 2015.
A18: Cuadro Nº II-2.2.2 | B18: ALUMNOS MATRICULADOS EN EDUCACIÓN PRIMARIA PÚBLICA POR TIPO DE EDUCACIÓN Y SEXO SEGÚN DEPARTAMENTO. AÑO 2015.
A20: Cuadro Nº II-2.2.3 | B20: ALUMNOS MATRICULADOS EN EDUCACIÓN PRIMARIA PÚBLICA COMÚN POR ÁREA DEMOGRÁFICA Y CATEGORÍA SEGÚN DEPARTAMENTO. AÑO 2015.
A22: Cuadro Nº II-2.2.4 | B22: ALUMNOS MATRICULADOS EN EDUCACIÓN PRIMARIA PÚBLICA ESPECIAL POR TIPO DE DISCAPACIDAD SEGÚN DEPARTAMENTO. AÑO 2015.
A24: Cuadro Nº II-2.2.5 | B24: ALUMNOS MATRICULADOS EN EDUCACIÓN ESPECIAL PÚBLICA POR EDADES SIMPLES Y SEXO SEGÚN DEPARTAMENTO. AÑO 2015.
A26: Cuadro Nº II-2.2.6 | B26: ALUMNOS MATRICULADOS EN EDUCACIÓN PRIMARIA PRIVADA POR TIPO DE EDUCACIÓN SEGÚN DEPARTAMENTO. AÑO 2015.
A28: Cuadro Nº II-2.2.7 | B28: ALUMNOS MATRICULADOS EN EDUCACIÓN ESPECIAL PRIVADA POR EDADES SIMPLES Y SEXO SEGÚN DEPARTAMENTO. AÑO 2015.
A30: Cuadro Nº II-2.2.8 | B30: ALUMNOS MATRICULADOS EN EDUCACIÓN PRIMARIA COMÚN POR GRADO Y FORMA DE ADMINISTRACIÓN SEGÚN EDAD. AÑO 2015.
A32: Cuadro Nº II-2.2.9 | B32: ALUMNOS MATRICULADOS EN EDUCACIÓN PRIMARIA COMÚN PÚBLICA POR GRADO Y SEXO SEGÚN EDAD. AÑO 2015.
A34: Cuadro Nº II-2.2.10 | B34: ALUMNOS MATRICULADOS EN EDUCACIÓN PRIMARIA COMÚN PRIVADA POR GRADO Y SEXO SEGÚN EDAD. AÑO 2015.
A36: Cuadro Nº II-2.2.11 | B36: ALUMNOS MATRICULADOS EN EDUCACIÓN PRIMARIA COMÚN POR GRADO Y FORMA DE ADMINISTRACIÓN SEGÚN DEPARTAMENTO. AÑO 2015.
A38: Cuadro Nº II-2.2.12 | B38: RENDIMIENTO ESCOLAR EDUCACIÓN PRIMARIA COMÚN PÚBLICA POR ÁREA DEMOGRÁFICA SEGÚN GRADO. AÑO 2015.
A40: Cuadro Nº II-2.2.13 | B40: RENDIMIENTO ESCOLAR EN EDUCACIÓN PRIMARIA COMÚN PÚBLICA POR ÁREA DEMOGRÁFICA SEGÚN DEPARTAMENTO. AÑO 2015.
A42: Cuadro Nº II-2.2.14 | B42: RENDIMIENTO ESCOLAR EN EDUCACIÓN PRIMARIA COMÚN PÚBLICA POR SEXO SEGÚN DEPARTAMENTO. AÑO 2015.
A44: Cuadro Nº II-2.2.15 | B44: RENDIMIENTO ESCOLAR EN EDUCACIÓN PRIMARIA COMÚN PRIVADA POR SEXO SEGÚN DEPARTAMENTO. AÑO 2015.
A46: Cuadro Nº II-2.2.16 | B46: RENDIMIENTO ESCOLAR DE EDUCACIÓN PRIMARIA COMÚN PÚBLICA POR ÁREA DEMOGRÁFICA SEGÚN DEPARTAMENTO. AÑO 2015.
A48: Cuadro Nº II-2.2.17 | B48: RENDIMIENTO ESCOLAR DE EDUCACIÓN PRIMARIA COMÚN POR FORMA DE ADMINISTRACIÓN SEGÚN DEPARTAMENTO. AÑO 2015.
A50: Cuadro Nº II-2.2.18 | B50: ASISTENCIA INSUFICIENTE Y ABANDONO INTERMITENTE DE 1º GRADO Y 1º A 6º GRADO EN EDUCACIÓN COMÚN PÚBLICA SEGÚN DEPARTAMENTO. AÑO 2015.
A53: Cuadro Nº II-2.3.1 | B53: PERSONAL DOCENTE DE EDUCACIÓN PRIMARIA PÚBLICA POR TIPO DE DESEMPEÑO DOCENTE SEGÚN DEPARTAMENTO. AÑO 2015.
A55: Cuadro Nº II-2.3.2 | B55: PERSONAL DOCENTE DE EDUCACIÓN PRIMARIA PRIVADA POR TIPO DE ESTABLECIMIENTO Y TIPO DE DESEMPEÑO DOCENTE SEGÚN DEPARTAMENTO. AÑO 2015.
A151: =MID(B101, 1,20) -> 
A186: =MID(B136, 1,20) -> 

Sheet II-2.1.1
A1: CONSEJO DE EDUCACIÓN PRIMARIA | E1: ESTABLECIMIENTOS
A3: Cuadro Nº II-2.1.1
A4: ESTABLECIMIENTOS DE EDUCACIÓN PRIMARIA POR FORMA DE ADMINISTRACIÓN Y TIPO DE EDUCACIÓN SEGÚN DEPARTAMENTO. AÑO 2015.
A5: DEPARTAMENTO | C5: FORMA DE ADMINISTRACIÓN
B6: TOTAL | C6: TIPO DE EDUCACIÓN
C7: PÚBLICA | E7: PRIVADA
C8: Común | D8: Especial | E8: Común | F8: Especial
A10: TOTAL | B10: =+C10+D10+E10+F10 -> 2535 | C10: =SUM(C11:C12) -> 2038 | D10: =SUM(D11:D12) -> 79 | E10: =SUM(E11,E12) -> 345 | F10: =SUM(F11:F12) -> 73
A11: MONTEVIDEO | B11: =+C11+D11+E11+F11 -> 490 | C11: 250 | D11: 26 | E11: 173 | F11: 41
A12: RESTO DEL PAÍS | B12: 2045 | C12: =SUM(C13:C30) -> 1788 | D12: =SUM(D13:D30) -> 53 | E12: =SUM(E13:E30) -> 172 | F12: =SUM(F13:F30) -> 32
A13: Artigas | B13: 84 | C13: 78 | D13: 2 | E13: 2 | F13: 2
A14: Canelones | B14: 305 | C14: 230 | D14: 10 | E14: 59 | F14: 6
A15: Cerro Largo | B15: 124 | C15: 115 | D15: 3 | E15: 6 | F15: 0
A16: Colonia | B16: 141 | C16: 126 | D16: 4 | E16: 9 | F16: 2
A17: Durazno | B17: 86 | C17: 80 | D17: 2 | E17: 4 | F17: 0
A18: Flores | B18: 38 | C18: 34 | D18: 1 | E18: 3 | F18: 0
A19: Florida | B19: 103 | C19: 97 | D19: 2 | E19: 3 | F19: 1
A20: Lavalleja | B20: 92 | C20: 83 | D20: 2 | E20: 7 | F20: 0
A21: Maldonado | B21: 111 | C21: 79 | D21: 4 | E21: 25 | F21: 3
A22: Paysandú | B22: 122 | C22: 105 | D22: 2 | E22: 10 | F22: 5
A23: Río Negro | B23: 70 | C23: 60 | D23: 2 | E23: 7 | F23: 1
A24: Rivera | B24: 135 | C24: 121 | D24: 4 | E24: 8 | F24: 2
A25: Rocha | B25: 80 | C25: 71 | D25: 3 | E25: 4 | F25: 2
A26: Salto | B26: 114 | C26: 100 | D26: 3 | E26: 7 | F26: 4
A27: San José | B27: 117 | C27: 107 | D27: 3 | E27: 7 | F27: 0
A28: Soriano | B28: 110 | C28: 99 | D28: 3 | E28: 4 | F28: 4
A29: Tacuarembó | B29: 141 | C29: 133 | D29: 2 | E29: 6 | F29: 0
A30: Treinta y Tres | B30: 72 | C30: 70 | D30: 1 | E30: 1 | F30: 0
A31: Fuente: Procesamiento propio en base a datos proporcionados por el D.E.E. — C.E.I.P.
A32: Nota: Pública no incluye JICI

Sheet II-2.1.2
A1: CONSEJO DE EDUCACIÓN PRIMARIA | L1: ESTABLECIMIENTOS
A3: Cuadro Nº II-2.1.2
A5: ESTABLECIMIENTOS DE EDUCACIÓN PRIMARIA PÚBLICA COMÚN POR ÁREA DEMOGRÁFICA Y CATEGORÍA SEGÚN DEPARTAMENTO. AÑO 2015.
A6: DEPARTAMENTO | B6: TOTAL | C6: ÁREA DEMOGRÁFICA
D7: URBANA | L7: RURAL
C8: Total Urbana | D8: CATEGORÍA | K8: Total Rural | L8: CATEGORÍA
D9: Común | E9: De Práctica | F9: Tiempo Completo | G9: Aprender | H9: Tiempo Extendido | I9: Habilitada de Práctica | J9: JICI | L9: Común | M9: Internado Rural
A11: TOTAL | B11: =+C11+K11 -> 2044 | C11: =SUM(D11:J11) -> 945 | D11: =SUM(D12:D13) -> 306 | E11: =SUM(E12:E13) -> 62 | F11: 204 | G11: 257 | H11: =H12+H13 -> 37 | I11: 73 | J11: 6 | K11: =SUM(K12:K13) -> 1099 | L11: 1094 | M11: 5
A12: MONTEVIDEO | B12: 253 | C12: =SUM(D12:J12) -> 253 | D12: 86 | E12: 18 | F12: 47 | G12: 86 | H12: 7 | I12: 6 | J12: 3 | K12: 0 | L12: 0 | M12: 0
A13: RESTO DEL PAÍS | B13: 1791 | C13: =SUM(D13:J13) -> 692 | D13: =SUM(D14:D31) -> 220 | E13: 44 | F13: 157 | G13: 171 | H13: =SUM(H14:H31) -> 30 | I13: 67 | J13: 3 | K13: 1099 | L13: 1094 | M13: 5
A14: Artigas | B14: 78 | C14: =SUM(D14:J14) -> 31 | D14: 5 | E14: 2 | F14: 9 | G14: 10 | H14: 1 | I14: 4 | J14: 0 | K14: =+L14+M14 -> 47 | L14: 46 | M14: 1
A15: Canelones | B15: 231 | C15: =SUM(D15:J15) -> 136 | D15: 38 | E15: 6 | F15: 28 | G15: 44 | H15: 6 | I15: 13 | J15: 1 | K15: =+L15+M15 -> 95 | L15: 95 | M15: 0
A16: Cerro Largo | B16: 116 | C16: 30 | D16: 3 | E16: 2 | F16: 9 | G16: 8 | H16: 3 | I16: 4 | J16: 1 | K16: 86 | L16: 86 | M16: 0
A17: Colonia | B17: 126 | C17: 43 | D17: 20 | E17: 4 | F17: 6 | G17: 6 | H17: 3 | I17: 4 | J17: 0 | K17: 83 | L17: 83 | M17: 0
A18: Durazno | B18: 80 | C18: 25 | D18: 6 | E18: 2 | F18: 7 | G18: 6 | H18: 0 | I18: 4 | J18: 0 | K18: 55 | L18: 55 | M18: 0
A19: Flores | B19: 34 | C19: 10 | D19: 3 | E19: 1 | F19: 4 | G19: 0 | H19: 1 | I19: 1 | J19: 0 | K19: 24 | L19: 23 | M19: 1
A20: Florida | B20: 97 | C20: 29 | D20: 11 | E20: 2 | F20: 8 | G20: 1 | H20: 4 | I20: 3 | J20: 0 | K20: 68 | L20: 68 | M20: 0
A21: Lavalleja | B21: 83 | C21: 24 | D21: 11 | E21: 2 | F21: 6 | G21: 3 | H21: 1 | I21: 1 | J21: 0 | K21: 59 | L21: 59 | M21: 0
A22: Maldonado | B22: 79 | C22: 43 | D22: 18 | E22: 2 | F22: 12 | G22: 5 | H22: 1 | I22: 5 | J22: 0 | K22: 36 | L22: 35 | M22: 1
A23: Paysandú | B23: 105 | C23: 47 | D23: 16 | E23: 3 | F23: 9 | G23: 15 | H23: 0 | I23: 4 | J23: 0 | K23: 58 | L23: 56 | M23: 2
A24: Río Negro | B24: 60 | C24: 22 | D24: 11 | E24: 2 | F24: 5 | G24: 2 | H24: 0 | I24: 2 | J24: 0 | K24: 38 | L24: 38 | M24: 0
A25: Rivera | B25: 121 | C25: 41 | D25: 9 | E25: 3 | F25: 8 | G25: 17 | H25: 0 | I25: 4 | J25: 0 | K25: 80 | L25: 80 | M25: 0
A26: Rocha | B26: 71 | C26: 32 | D26: 12 | E26: 2 | F26: 9 | G26: 7 | H26: 0 | I26: 2 | J26: 0 | K26: 39 | L26: 39 | M26: 0
A27: Salto | B27: 100 | C27: 40 | D27: 6 | E27: 3 | F27: 12 | G27: 13 | H27: 2 | I27: 4 | J27: 0 | K27: 60 | L27: 60 | M27: 0
A28: San José | B28: 107 | C28: 38 | D28: 19 | E28: 2 | F28: 6 | G28: 5 | H28: 3 | I28: 3 | J28: 0 | K28: 69 | L28: 69 | M28: 0
A29: Soriano | B29: 99 | C29: 36 | D29: 15 | E29: 2 | F29: 7 | G29: 10 | H29: 0 | I29: 2 | J29: 0 | K29: 63 | L29: 63 | M29: 0
A30: Tacuarembó | B30: 133 | C30: 42 | D30: 9 | E30: 2 | F30: 7 | G30: 16 | H30: 4 | I30: 4 | J30: 0 | K30: 91 | L30: 91 | M30: 0
A31: Treinta y Tres | B31: 71 | C31: 23 | D31: 8 | E31: 2 | F31: 5 | G31: 3 | H31: 1 | I31: 3 | J31: 1 | K31: 48 | L31: 48 | M31: 0
A32: Fuente: Procesamiento propio en base a datos proporcionados por el DEE — CEIP | F32: D.E.E.-C.E.I.P.

Sheet II-2.1.3
A1: CONSEJO DE EDUCACIÓN PRIMARIA | D1: Establecimientos
A3: Cuadro Nº II-2.1.3
A5: ESTABLECIMIENTOS DE EDUCACIÓN PRIMARIA PÚBLICA ESPECIAL POR TIPO DE DISCAPACIDAD SEGÚN DEPARTAMENTO. AÑO 2015.
A6: DEPARTAMENTO | B6: TOTAL | C6: DISCAPACIDAD
C7: Intelectual | D7: Auditiva | E7: Visual
A9: TOTAL | B9: =+B10+B11 -> 79 | C9: =SUM(C10:C11) -> 73 | D9: =SUM(D10:D11) -> 4 | E9: =SUM(E10:E11) -> 2
A10: MONTEVIDEO | B10: =+C10+D10+E10 -> 26 | C10: 23 | D10: 1 | E10: 2
A11: RESTO DEL PAÍS | B11: =SUM(B12:B29) -> 53 | C11: =SUM(C12:C29) -> 50 | D11: =SUM(D12:D29) -> 3 | E11: =SUM(E12:E29) -> 0
A12: Artigas | B12: =+C12+D12+E12 -> 2 | C12: 2 | D12: 0 | E12: 0
A13: Canelones | B13: 10 | C13: 10 | D13: 0 | E13: 0
A14: Cerro Largo | B14: 3 | C14: 3 | D14: 0 | E14: 0
A15: Colonia | B15: 4 | C15: 4 | D15: 0 | E15: 0
A16: Durazno | B16: 2 | C16: 2 | D16: 0 | E16: 0
A17: Flores | B17: 1 | C17: 1 | D17: 0 | E17: 0
A18: Florida | B18: 2 | C18: 2 | D18: 0 | E18: 0
A19: Lavalleja | B19: 2 | C19: 2 | D19: 0 | E19: 0
A20: Maldonado | B20: 4 | C20: 3 | D20: 1 | E20: 0
A21: Paysandú | B21: 2 | C21: 2 | D21: 0 | E21: 0
A22: Río Negro | B22: 2 | C22: 2 | D22: 0 | E22: 0
A23: Rivera | B23: 4 | C23: 3 | D23: 1 | E23: 0
A24: Rocha | B24: 3 | C24: 3 | D24: 0 | E24: 0
A25: Salto | B25: 3 | C25: 2 | D25: 1 | E25: 0
A26: San José | B26: 3 | C26: 3 | D26: 0 | E26: 0
A27: Soriano | B27: 3 | C27: 3 | D27: 0 | E27: 0
A28: Tacuarembó | B28: 2 | C28: 2 | D28: 0 | E28: 0
A29: Treinta y Tres | B29: 1 | C29: 1 | D29: 0 | E29: 0
A30: Fuente: DEE — CEIP
A31: Nota: Los establecimientos que atienden discapacidades intelectuales, además de atender niños con disfunciones clásicamente tipificadas como “Intelectuales”, atienden a los niños con discapacidades de orden motriz o de carácter, lo que implica que la matrícula correspondiente los agrupa.

Sheet II-2.1.4
A1: CONSEJO DE EDUCACIÓN PRIMARIA | E1: ESTABLECIMIENTOS
A3: Cuadro Nº II-2.1.4
A5: ESTABLECIMIENTOS DE EDUCACIÓN PRIMARIA PRIVADA POR TIPO DE EDUCACIÓN SEGÚN DEPARTAMENTO. AÑO 2015.
A6: DEPARTAMENTO | B6: TOTAL | D6: TIPO DE EDUCACIÓN
C7: Total | D7: EDUCACIÓN COMÚN | F7: EDUCACIÓN ESPECIAL
D8: Habilitados | E8: Autorizados
A10: TOTAL DEL PAÍS | B10: =+C10+F10 -> 418 | C10: =+D10+E10 -> 345 | D10: =SUM(D11:D12) -> 327 | E10: =SUM(E11:E12) -> 18 | F10: =SUM(F11:F12) -> 73
A11: MONTEVIDEO | B11: =+C11+F11 -> 214 | C11: =+D11+E11 -> 173 | D11: 163 | E11: 10 | F11: 41
A12: RESTO DEL PAÍS | B12: 204 | C12: 172 | D12: =SUM(D13:D30) -> 164 | E12: =SUM(E13:E30) -> 8 | F12: =SUM(F13:F30) -> 32
A13: Artigas | B13: 4 | C13: 2 | D13: 2 | E13: 0 | F13: 2
A14: Canelones | B14: 65 | C14: 59 | D14: 55 | E14: 4 | F14: 6
A15: Cerro Largo | B15: 6 | C15: 6 | D15: 6 | E15: 0 | F15: 0
A16: Colonia | B16: 11 | C16: 9 | D16: 9 | E16: 0 | F16: 2
A17: Durazno | B17: 4 | C17: 4 | D17: 4 | E17: 0 | F17: 0
A18: Flores | B18: 3 | C18: 3 | D18: 3 | E18: 0 | F18: 0
A19: Florida | B19: 4 | C19: 3 | D19: 3 | E19: 0 | F19: 1
A20: Lavalleja | B20: 7 | C20: 7 | D20: 7 | E20: 0 | F20: 0
A21: Maldonado | B21: 28 | C21: 25 | D21: 25 | E21: 0 | F21: 3
A22: Paysandú | B22: 15 | C22: 10 | D22: 9 | E22: 1 | F22: 5
A23: Río Negro | B23: 8 | C23: 7 | D23: 5 | E23: 2 | F23: 1
A24: Rivera | B24: 10 | C24: 8 | D24: 8 | E24: 0 | F24: 2
A25: Rocha | B25: 6 | C25: 4 | D25: 4 | E25: 0 | F25: 2
A26: Salto | B26: 11 | C26: 7 | D26: 7 | E26: 0 | F26: 4
A27: San José | B27: 7 | C27: 7 | D27: 6 | E27: 1 | F27: 0
A28: Soriano | B28: 8 | C28: 4 | D28: 4 | E28: 0 | F28: 4
A29: Tacuarembó | B29: 6 | C29: 6 | D29: 6 | E29: 0 | F29: 0
A30: Treinta y Tres | B30: 1 | C30: 1 | D30: 1 | E30: 0 | F30: 0
A31: Fuente: Procesamiento propio en base a datos proporcionados por el D.E.E. — C.E.I.P.

Sheet II-2.2.1
A1: CONSEJO DE EDUCACIÓN PRIMARIA | H1: ALUMNOS MATRICULADOS
A3: Cuadro Nº II-2.2.1
A4: ALUMNOS MATRICULADOS EN EDUCACIÓN PRIMARIA COMÚN POR FORMA DE ADMINISTRACIÓN Y SEXO SEGÚN DEPARTAMENTO. AÑO 2015
A5: DEPARTAMENTO | B5: TOTAL | C5: FORMA DE ADMINISTRACIÓN
C6: TOTAL | E6: PÚBLICA | H6: PRIVADA
E7: TOTAL | F7: SEXO | H7: TOTAL | I7: SEXO
C8: M | D8: F | F8: M | G8: F | I8: M | J8: F
A9: TOTAL | B9: =E9+H9 -> 303737 | C9: =+F9+I9 -> 156234 | D9: =+G9+J9 -> 147503 | E9: =+F9+G9 -> 250160 | F9: =SUM(F10:F11) -> 129042 | G9: =SUM(G10:G11) -> 121118 | H9: =+I9+J9 -> 53577 | I9: =SUM(I10:I11) -> 27192 | J9: =SUM(J10:J11) -> 26385
A10: MONTEVIDEO | B10: =E10+H10 -> 110310 | C10: =+F10+I10 -> 56755 | D10: 53555 | E10: =+F10+G10 -> 77371 | F10: 40024 | G10: 37347 | H10: =+I10+J10 -> 32939 | I10: 16731 | J10: 16208
A11: RESTO DEL PAÍS | B11: 193427 | C11: 99479 | D11: 93948 | E11: =SUM(E12:E29) -> 172789 | F11: =SUM(F12:F29) -> 89018 | G11: =SUM(G12:G29) -> 83771 | H11: =+I11+J11 -> 20638 | I11: =SUM(I12:I29) -> 10461 | J11: =SUM(J12:J29) -> 10177
A12: Artigas | B12: 7655 | C12: 4044 | D12: 3611 | E12: =+F12+G12 -> 7471 | F12: 3938 | G12: 3533 | H12: =+I12+J12 -> 184 | I12: 106 | J12: 78
A13: Canelones | B13: 49805 | C13: 25688 | D13: 24117 | E13: =+F13+G13 -> 42321 | F13: 21857 | G13: 20464 | H13: 7484 | I13: 3831 | J13: 3653
A14: Cerro Largo | B14: 8731 | C14: 4399 | D14: 4332 | E14: 8104 | F14: 4094 | G14: 4010 | H14: 627 | I14: 305 | J14: 322
A15: Colonia | B15: 11147 | C15: 5680 | D15: 5467 | E15: 10385 | F15: 5292 | G15: 5093 | H15: 762 | I15: 388 | J15: 374
A16: Durazno | B16: 5518 | C16: 2799 | D16: 2719 | E16: 4902 | F16: 2513 | G16: 2389 | H16: 616 | I16: 286 | J16: 330
A17: Flores | B17: 2257 | C17: 1097 | D17: 1160 | E17: 1982 | F17: 963 | G17: 1019 | H17: 275 | I17: 134 | J17: 141
A18: Florida | B18: 6033 | C18: 3132 | D18: 2901 | E18: 5777 | F18: 2995 | G18: 2782 | H18: 256 | I18: 137 | J18: 119
A19: Lavalleja | B19: 5075 | C19: 2589 | D19: 2486 | E19: 4430 | F19: 2262 | G19: 2168 | H19: 645 | I19: 327 | J19: 318
A20: Maldonado | B20: 16697 | C20: 8443 | D20: 8254 | E20: 12853 | F20: 6491 | G20: 6362 | H20: 3844 | I20: 1952 | J20: 1892
A21: Paysandú | B21: 11914 | C21: 6137 | D21: 5777 | E21: 10693 | F21: 5510 | G21: 5183 | H21: 1221 | I21: 627 | J21: 594
A22: Río Negro | B22: 5900 | C22: 3051 | D22: 2849 | E22: 5362 | F22: 2768 | G22: 2594 | H22: 538 | I22: 283 | J22: 255
A23: Rivera | B23: 10801 | C23: 5628 | D23: 5173 | E23: 10206 | F23: 5320 | G23: 4886 | H23: 595 | I23: 308 | J23: 287
A24: Rocha | B24: 6635 | C24: 3363 | D24: 3272 | E24: 6283 | F24: 3198 | G24: 3085 | H24: 352 | I24: 165 | J24: 187
A25: Salto | B25: 13536 | C25: 7014 | D25: 6522 | E25: 12340 | F25: 6442 | G25: 5898 | H25: 1196 | I25: 572 | J25: 624
A26: San José | B26: 10348 | C26: 5320 | D26: 5028 | E26: 9587 | F26: 4967 | G26: 4620 | H26: 761 | I26: 353 | J26: 408
A27: Soriano | B27: 8248 | C27: 4280 | D27: 3968 | E27: 7787 | F27: 4028 | G27: 3759 | H27: 461 | I27: 252 | J27: 209
A28: Tacuarembó | B28: 8829 | C28: 4579 | D28: 4250 | E28: 8172 | F28: 4236 | G28: 3936 | H28: 657 | I28: 343 | J28: 314
A29: Treinta y Tres | B29: 4298 | C29: 2236 | D29: 2062 | E29: 4134 | F29: 2144 | G29: 1990 | H29: 164 | I29: 92 | J29: 72
A30: Fuente: Procesamiento propio en base a datos proporcionados por el DEE — CEIP.
A31: Nota: Pública no incluye JICI.

Sheet II-2.2.2
A1: CONSEJO DE EDUCACIÓN PRIMARIA | H1: ALUMNOS MATRICULADOS
A3: Cuadro Nº II-2.2.2
A5: ALUMNOS MATRICULADOS EN EDUCACIÓN PRIMARIA PÚBLICA POR TIPO DE EDUCACIÓN Y SEXO SEGÚN DEPARTAMENTO. AÑO 2015.
A6: DEPARTAMENTO | B6: TOTAL | C6: TOTAL SEXO | E6: TIPO DE EDUCACIÓN
E7: COMÚN | H7: ESPECIAL
H8: Total | I8: ESCUELAS ESPECIALES | K8: CLASES ESPECIALES EN ESCUELAS COMUNES
E9: Total | F9: SEXO | I9: SEXO | K9: SEXO
C10: M | D10: F | F10: M | G10: F | I10: M | J10: F | K10: M | L10: F
A11: TOTAL | B11: =+C11+D11 -> 256746 | C11: =+F11+I11+K11 -> 133106 | D11: =+G11+J11+L11 -> 123640 | E11: =+F11+G11 -> 250160 | F11: =SUM(F12:F13) -> 129042 | G11: =SUM(G12:G13) -> 121118 | H11: =+I11+J11+K11+L11 -> 6586 | I11: =SUM(I12:I13) -> 3988 | J11: =SUM(J12:J13) -> 2474 | K11: =SUM(K12:K13) -> 76 | L11: =SUM(L12:L13) -> 48
A12: MONTEVIDEO | B12: =+C12+D12 -> 79986 | C12: =+F12+I12+K12 -> 41623 | D12: 38363 | E12: =+F12+G12 -> 77371 | F12: 40024 | G12: 37347 | H12: =+I12+J12+K12+L12 -> 2615 | I12: 1599 | J12: 1016 | K12: 0 | L12: 0
A13: RESTO DEL PAÍS | B13: 176760 | C13: 91483 | D13: 85277 | E13: =+F13+G13 -> 172789 | F13: =SUM(F14:F31) -> 89018 | G13: 83771 | H13: 3971 | I13: 2389 | J13: 1458 | K13: 76 | L13: 48
A14: Artigas | B14: 7650 | C14: 4051 | D14: 3599 | E14: =+F14+G14 -> 7471 | F14: 3938 | G14: 3533 | H14: 179 | I14: 109 | J14: 62 | K14: 4 | L14: 4
A15: Canelones | B15: 43032 | C15: 22305 | D15: 20727 | E15: 42321 | F15: 21857 | G15: 20464 | H15: 711 | I15: 425 | J15: 252 | K15: 23 | L15: 11
A16: Cerro Largo | B16: 8341 | C16: 4239 | D16: 4102 | E16: 8104 | F16: 4094 | G16: 4010 | H16: 237 | I16: 136 | J16: 89 | K16: 9 | L16: 3
A17: Colonia | B17: 10596 | C17: 5424 | D17: 5172 | E17: 10385 | F17: 5292 | G17: 5093 | H17: 211 | I17: 128 | J17: 76 | K17: 4 | L17: 3
A18: Durazno | B18: 5032 | C18: 2597 | D18: 2435 | E18: 4902 | F18: 2513 | G18: 2389 | H18: 130 | I18: 80 | J18: 42 | K18: 4 | L18: 4
A19: Flores | B19: 2025 | C19: 992 | D19: 1033 | E19: 1982 | F19: 963 | G19: 1019 | H19: 43 | I19: 29 | J19: 13 | K19: 0 | L19: 1
A20: Florida | B20: 5922 | C20: 3083 | D20: 2839 | E20: 5777 | F20: 2995 | G20: 2782 | H20: 145 | I20: 85 | J20: 55 | K20: 3 | L20: 2
A21: Lavalleja | B21: 4585 | C21: 2361 | D21: 2224 | E21: 4430 | F21: 2262 | G21: 2168 | H21: 155 | I21: 99 | J21: 54 | K21: 0 | L21: 2
A22: Maldonado | B22: 13146 | C22: 6661 | D22: 6485 | E22: 12853 | F22: 6491 | G22: 6362 | H22: 293 | I22: 170 | J22: 123 | K22: 0 | L22: 0
A23: Paysandú | B23: 10937 | C23: 5665 | D23: 5272 | E23: 10693 | F23: 5510 | G23: 5183 | H23: 244 | I23: 142 | J23: 81 | K23: 13 | L23: 8
A24: Río Negro | B24: 5526 | C24: 2873 | D24: 2653 | E24: 5362 | F24: 2768 | G24: 2594 | H24: 164 | I24: 103 | J24: 57 | K24: 2 | L24: 2
A25: Rivera | B25: 10397 | C25: 5436 | D25: 4961 | E25: 10206 | F25: 5320 | G25: 4886 | H25: 191 | I25: 116 | J25: 75 | K25: 0 | L25: 0
A26: Rocha | B26: 6526 | C26: 3350 | D26: 3176 | E26: 6283 | F26: 3198 | G26: 3085 | H26: 243 | I26: 151 | J26: 89 | K26: 1 | L26: 2
A27: Salto | B27: 12684 | C27: 6654 | D27: 6030 | E27: 12340 | F27: 6442 | G27: 5898 | H27: 344 | I27: 211 | J27: 129 | K27: 1 | L27: 3
A28: San José | B28: 9791 | C28: 5098 | D28: 4693 | E28: 9587 | F28: 4967 | G28: 4620 | H28: 204 | I28: 125 | J28: 73 | K28: 6 | L28: 0
A29: Soriano | B29: 7986 | C29: 4150 | D29: 3836 | E29: 7787 | F29: 4028 | G29: 3759 | H29: 199 | I29: 120 | J29: 77 | K29: 2 | L29: 0
A30: Tacuarembó | B30: 8352 | C30: 4349 | D30: 4003 | E30: 8172 | F30: 4236 | G30: 3936 | H30: 180 | I30: 110 | J30: 65 | K30: 3 | L30: 2
A31: Treinta y Tres | B31: 4232 | C31: 2195 | D31: 2037 | E31: 4134 | F31: 2144 | G31: 1990 | H31: 98 | I31: 50 | J31: 46 | K31: 1 | L31: 1
A32: Fuente: Procesamiento propio en base a datos proporcionados por el D.E.E. — C.E.I.P.

Sheet II-2.2.3
A1: CONSEJO DE EDUCACIÓN PRIMARIA | K1: ALUMNOS MATRICULADOS
A3: Cuadro Nº II-2.2.3
A5: ALUMNOS MATRICULADOS EN EDUCACIÓN PRIMARIA PÚBLICA COMÚN POR ÁREA DEMOGRÁFICA Y CATEGORÍA SEGÚN DEPARTAMENTO. AÑO 2015. | P5: VOLVER
A6: DEPARTAMENTO | B6: TOTAL | C6: ÁREA DEMOGRÁFICA
C7: URBANA | L7: RURAL
C8: Total Urbana | D8: CATEGORÍA | K8: Total Rural | L8: CATEGORÍA
D9: Común | E9: De Práctica | F9: Tiempo Completo | G9: Aprender | H9: Tiempo Extendido | I9: Unidocente | J9: JICI | L9: con Maestro a cargo | M9: Unidocente | N9: Internado Rural
A11: TOTAL | B11: =+C11+K11 -> 250483 | C11: =+D11+E11+F11+G11+H11+I11+J11 -> 236014 | D11: =SUM(D12:D13) -> 81164 | E11: 45227 | F11: 35786 | G11: 67893 | H11: 5583 | I11: 38 | J11: 323 | K11: =L11+M11+N11 -> 14469 | L11: =SUM(L12:L13) -> 9757 | M11: =SUM(M12:M13) -> 4562 | N11: =SUM(N12:N13) -> 150
A12: MONTEVIDEO | B12: =+C12+K12 -> 77552 | C12: =+D12+E12+F12+G12+H12+I12+J12 -> 77552 | D12: 28393 | E12: 6947 | F12: 10758 | G12: 29519 | H12: 1754 | I12: 0 | J12: 181 | K12: =+L12+N12 -> 0 | L12: 0 | M12: 0 | N12: 0
A13: RESTO DEL PAÍS | B13: =+C13+K13 -> 172931 | C13: 158462 | D13: =SUM(D14:D31) -> 52771 | E13: 38280 | F13: 25028 | G13: 38374 | H13: 3829 | I13: 38 | J13: 142 | K13: =L13+M13+N13 -> 14469 | L13: =SUM(L14:L31) -> 9757 | M13: =SUM(M14:M31) -> 4562 | N13: =SUM(N14:N31) -> 150
A14: Artigas | B14: =C14+K14 -> 7471 | C14: =SUM(D14:J14) -> 6869 | D14: 1403 | E14: 1803 | F14: 1377 | G14: 2182 | H14: 104 | I14: 0 | J14: 0 | K14: =SUM(L14:N14) -> 602 | L14: 448 | M14: 116 | N14: 38
A15: Canelones | B15: =C15+K15 -> 42366 | C15: =SUM(D15:J15) -> 39901 | D15: 12826 | E15: 7731 | F15: 5246 | G15: 13507 | H15: 546 | I15: 0 | J15: 45 | K15: =SUM(L15:N15) -> 2465 | L15: 2130 | M15: 335 | N15: 0
A16: Cerro Largo | B16: 8153 | C16: 7312 | D16: 1005 | E16: 2298 | F16: 1559 | G16: 1831 | H16: 570 | I16: 0 | J16: 49 | K16: 841 | L16: 499 | M16: 342 | N16: 0
A17: Colonia | B17: 10385 | C17: 9324 | D17: 4678 | E17: 2626 | F17: 1157 | G17: 334 | H17: 529 | I17: 0 | J17: 0 | K17: 1061 | L17: 659 | M17: 402 | N17: 0
A18: Durazno | B18: 4902 | C18: 4468 | D18: 649 | E18: 1819 | F18: 903 | G18: 1097 | H18: 0 | I18: 0 | J18: 0 | K18: 434 | L18: 116 | M18: 318 | N18: 0
A19: Flores | B19: 1982 | C19: 1793 | D19: 683 | E19: 515 | F19: 493 | G19: 0 | H19: 102 | I19: 0 | J19: 0 | K19: 189 | L19: 69 | M19: 101 | N19: 19
A20: Florida | B20: 5777 | C20: 4939 | D20: 1809 | E20: 1484 | F20: 921 | G20: 330 | H20: 395 | I20: 0 | J20: 0 | K20: 838 | L20: 536 | M20: 302 | N20: 0
A21: Lavalleja | B21: 4430 | C21: 4034 | D21: 1746 | E21: 1274 | F21: 851 | G21: 0 | H21: 144 | I21: 19 | J21: 0 | K21: 396 | L21: 197 | M21: 199 | N21: 0
A22: Maldonado | B22: 12853 | C22: 12370 | D22: 5849 | E22: 2899 | F22: 1517 | G22: 1838 | H22: 267 | I22: 0 | J22: 0 | K22: 483 | L22: 337 | M22: 131 | N22: 15
A23: Paysandú | B23: 10693 | C23: 9746 | D23: 3010 | E23: 2682 | F23: 1521 | G23: 2533 | H23: 0 | I23: 0 | J23: 0 | K23: 947 | L23: 628 | M23: 280 | N23: 39
A24: Río Negro | B24: 5362 | C24: 4852 | D24: 2789 | E24: 1160 | F24: 684 | G24: 219 | H24: 0 | I24: 0 | J24: 0 | K24: 510 | L24: 334 | M24: 137 | N24: 39
A25: Rivera | B25: 10206 | C25: 9303 | D25: 2333 | E25: 2163 | F25: 1357 | G25: 3450 | H25: 0 | I25: 0 | J25: 0 | K25: 903 | L25: 601 | M25: 302 | N25: 0
A26: Rocha | B26: 6283 | C26: 5980 | D26: 2617 | E26: 1033 | F26: 1161 | G26: 1169 | H26: 0 | I26: 0 | J26: 0 | K26: 303 | L26: 102 | M26: 201 | N26: 0
A27: Salto | B27: 12340 | C27: 11068 | D27: 1802 | E27: 3088 | F27: 2442 | G27: 3529 | H27: 207 | I27: 0 | J27: 0 | K27: 1272 | L27: 1057 | M27: 215 | N27: 0
A28: San José | B28: 9587 | C28: 8442 | D28: 4052 | E28: 1194 | F28: 1269 | G28: 1602 | H28: 306 | I28: 19 | J28: 0 | K28: 1145 | L28: 804 | M28: 341 | N28: 0
A29: Soriano | B29: 7787 | C29: 7136 | D29: 2639 | E29: 1575 | F29: 1004 | G29: 1918 | H29: 0 | I29: 0 | J29: 0 | K29: 651 | L29: 344 | M29: 307 | N29: 0
A30: Tacuarembó | B30: 8172 | C30: 7066 | D30: 1580 | E30: 1433 | F30: 974 | G30: 2593 | H30: 486 | I30: 0 | J30: 0 | K30: 1106 | L30: 744 | M30: 362 | N30: 0
A31: Treinta y Tres | B31: 4182 | C31: 3859 | D31: 1301 | E31: 1503 | F31: 592 | G31: 242 | H31: 173 | I31: 0 | J31: 48 | K31: 323 | L31: 152 | M31: 171 | N31: 0
A32: Fuente: Procesamiento propio en base a datos proporcionados por el D.E.E .— C.E.I.P.

Sheet II-2.2.4
A1: CONSEJO DE EDUCACIÓN PRIMARIA | E1: Alumnos matriculados
A3: Cuadro Nº II-2.2.4
A5: ALUMNOS MATRICULADOS EN EDUCACIÓN PRIMARIA PÚBLICA ESPECIAL POR TIPO DE DISCAPACIDAD SEGÚN DEPARTAMENTO. AÑO 2015.
A6: DEPARTAMENTO | C6: TOTAL | D6: DISCAPACIDAD
D7: Intelectual | E7: Auditiva | F7: Visual
A9: TOTAL | C9: =+C11+C12 -> 6586 | D9: =SUM(D11:D12) -> 6174 | E9: =SUM(E11:E12) -> 296 | F9: =SUM(F11:F12) -> 116
A11: MONTEVIDEO | C11: =+D11+E11+F11 -> 2615 | D11: 2420 | E11: 106 | F11: 89
A12: RESTO DEL PAÍS | C12: =SUM(C13:C30) -> 3971 | D12: =SUM(D13:D30) -> 3754 | E12: =SUM(E13:E30) -> 190 | F12: =SUM(F13:F30) -> 27
A13: Artigas | C13: =+D13+E13+F13 -> 179 | D13: 171 | E13: 8 | F13: 0
A14: Canelones | C14: 711 | D14: 677 | E14: 25 | F14: 9
A15: Cerro Largo | C15: 237 | D15: 225 | E15: 12 | F15: 0
A16: Colonia | C16: 211 | D16: 204 | E16: 7 | F16: 0
A17: Durazno | C17: 130 | D17: 122 | E17: 6 | F17: 2
A18: Flores | C18: 43 | D18: 42 | E18: 1 | F18: 0
A19: Florida | C19: 145 | D19: 140 | E19: 5 | F19: 0
A20: Lavalleja | C20: 155 | D20: 153 | E20: 2 | F20: 0
A21: Maldonado | C21: 293 | D21: 265 | E21: 28 | F21: 0
A22: Paysandú | C22: 244 | D22: 223 | E22: 15 | F22: 6
A23: Río Negro | C23: 164 | D23: 160 | E23: 4 | F23: 0
A24: Rivera | C24: 191 | D24: 176 | E24: 15 | F24: 0
A25: Rocha | C25: 293 | D25: 240 | E25: 50 | F25: 3
A26: Salto | C26: 294 | D26: 290 | E26: 0 | F26: 4
A27: San José | C27: 204 | D27: 198 | E27: 6 | F27: 0
A28: Soriano | C28: 199 | D28: 197 | E28: 2 | F28: 0
A29: Tacuarembó | C29: 180 | D29: 175 | E29: 2 | F29: 3
A30: Treinta y Tres | C30: 98 | D30: 96 | E30: 2 | F30: 0
A31: Fuente: D.E.E. — C.E.P.
A32: Nota: Incluyen Escuelas Especiales y Clases Especiales en Escuelas Comunes.
A33: Para el interior del país las clases orientadas a discapacitados visuales y para Personas sordas y con alteraciones del lenguaje se realizan en Escuelas Comunes, excepto en Maldonado, Rivera y Salto donde funcionan Escuelas para personas sordas y con alteraciones del lenguaje.

Sheet II-2.2.5
A1: CONSEJO DE EDUCACIÓN PRIMARIA | N1: ALUMNOS MATRICULADOS
A3: Cuadro Nº II-2.2.5
A5: ALUMNOS MATRICULADOS EN EDUCACIÓN ESPECIAL PÚBLICA POR EDADES SIMPLES Y SEXO SEGÚN DEPARTAMENTO. AÑO 2015.
A6: DEPARTAMENTO | B6: TOTAL GENERAL | C6: TOTAL MASCULINO | D6: TOTAL FEMENINO | E6: EDAD
E7: Menos de 3 años | G7: 3 años | I7: 4 años | K7: 5 años | M7: 6 años | O7: 7 años | Q7: 8 años | S7: 9 años | U7: 10 años | W7: 11 años | Y7: 12 años | AA7: 13 años | AC7: 14 años | AE7: 15 años | AG7: 16 años | AI7: 17 años | AK7: 18 años | AM7: 19 años | AO7: 20 años | AQ7: 21 años
E8: SEXO
E9: M | F9: F | G9: M | H9: F | I9: M | J9: F | K9: M | L9: F | M9: M | N9: F | O9: M | P9: F | Q9: M | R9: F | S9: M | T9: F | U9: M | V9: F | W9: M | X9: F | Y9: M | Z9: F | AA9: M | AB9: F | AC9: M | AD9: F | AE9: M | AF9: F | AG9: M | AH9: F | AI9: M | AJ9: F | AK9: M | AL9: F | AM9: M | AN9: F | AO9: M | AP9: F | AQ9: M | AR9: F
A11: TOTAL | B11: =C11+D11 -> 6586 | C11: =E11+G11+I11+K11+M11+O11+Q11+S11+U11+W11+Y11+AA11+AC11+AE11+AG11+AI11+AK11+AM11+AO11+AQ11 -> 4064 | D11: =F11+H11+J11+L11+N11+P11+R11+T11+V11+X11+Z11+AB11+AD11+AF11+AH11+AJ11+AL11+AN11+AP11+AR11 -> 2522 | E11: =SUM(E12:E13) -> 6 | F11: 3 | G11: 15 | H11: 9 | I11: 43 | J11: 16 | K11: 56 | L11: 43 | M11: 133 | N11: 88 | O11: 257 | P11: 141 | Q11: =SUM(Q12:Q13) -> 329 | R11: 209 | S11: 375 | T11: 215 | U11: 465 | V11: 271 | W11: 427 | X11: 299 | Y11: 494 | Z11: 292 | AA11: 474 | AB11: 283 | AC11: 400 | AD11: 241 | AE11: 231 | AF11: 161 | AG11: 161 | AH11: 114 | AI11: 99 | AJ11: 58 | AK11: 40 | AL11: 33 | AM11: 34 | AN11: 24 | AO11: 18 | AP11: 8 | AQ11: 7 | AR11: 14
A12: MONTEVIDEO | B12: =C12+D12 -> 2615 | C12: =E12+G12+I12+K12+M12+O12+Q12+S12+U12+W12+Y12+AA12+AC12+AE12+AG12+AI12+AK12+AM12+AO12+AQ12 -> 1599 | D12: 1016 | E12: 3 | F12: 2 | G12: 8 | H12: 7 | I12: 17 | J12: 6 | K12: 21 | L12: 24 | M12: 47 | N12: 32 | O12: 83 | P12: 41 | Q12: 118 | R12: 89 | S12: 123 | T12: 79 | U12: 184 | V12: 100 | W12: 155 | X12: 119 | Y12: 197 | Z12: 126 | AA12: 190 | AB12: 96 | AC12: 144 | AD12: 97 | AE12: 105 | AF12: 62 | AG12: 80 | AH12: 54 | AI12: 53 | AJ12: 28 | AK12: 28 | AL12: 24 | AM12: 26 | AN12: 15 | AO12: 12 | AP12: 5 | AQ12: 5 | AR12: 10
A13: RESTO DEL PAÍS | B13: 3971 | C13: 2465 | D13: 1506 | E13: =SUM(E14:E31) -> 3 | F13: 1 | G13: 7 | H13: 2 | I13: 26 | J13: 10 | K13: 35 | L13: 19 | M13: 86 | N13: 56 | O13: 174 | P13: 100 | Q13: 211 | R13: 120 | S13: 252 | T13: 136 | U13: 281 | V13: 171 | W13: 272 | X13: 180 | Y13: 297 | Z13: 166 | AA13: 284 | AB13: 187 | AC13: 256 | AD13: 144 | AE13: 126 | AF13: 99 | AG13: 81 | AH13: 60 | AI13: 46 | AJ13: 30 | AK13: 12 | AL13: 9 | AM13: 8 | AN13: 9 | AO13: 6 | AP13: 3 | AQ13: 2 | AR13: 4
A14: Artigas | B14: 179 | C14: 113 | D14: 66 | E14: 0 | F14: 0 | G14: 0 | H14: 0 | I14: 1 | J14: 1 | K14: 1 | L14: 0 | M14: 2 | N14: 2 | O14: 3 | P14: 6 | Q14: 14 | R14: 1 | S14: 6 | T14: 5 | U14: 16 | V14: 11 | W14: 13 | X14: 7 | Y14: 16 | Z14: 2 | AA14: 9 | AB14: 13 | AC14: 16 | AD14: 7 | AE14: 5 | AF14: 6 | AG14: 10 | AH14: 5 | AI14: 1 | AJ14: 0 | AK14: 0 | AL14: 0 | AM14: 0 | AN14: 0 | AO14: 0 | AP14: 0 | AQ14: 0 | AR14: 0
A15: Canelones | B15: 711 | C15: 448 | D15: 263 | E15: 0 | F15: 0 | G15: 2 | H15: 0 | I15: 5 | J15: 2 | K15: 5 | L15: 5 | M15: 19 | N15: 9 | O15: 33 | P15: 24 | Q15: 34 | R15: 22 | S15: 45 | T15: 22 | U15: 65 | V15: 35 | W15: 58 | X15: 35 | Y15: 47 | Z15: 36 | AA15: 57 | AB15: 28 | AC15: 41 | AD15: 14 | AE15: 15 | AF15: 12 | AG15: 11 | AH15: 12 | AI15: 7 | AJ15: 5 | AK15: 0 | AL15: 0 | AM15: 0 | AN15: 1 | AO15: 2 | AP15: 1 | AQ15: 2 | AR15: 0
A16: Cerro Largo | B16: 237 | C16: 145 | D16: 92 | E16: 0 | F16: 0 | G16: 1 | H16: 0 | I16: 0 | J16: 0 | K16: 4 | L16: 1 | M16: 6 | N16: 4 | O16: 13 | P16: 5 | Q16: 8 | R16: 7 | S16: 15 | T16: 8 | U16: 19 | V16: 8 | W16: 14 | X16: 9 | Y16: 23 | Z16: 8 | AA16: 14 | AB16: 18 | AC16: 11 | AD16: 7 | AE16: 5 | AF16: 4 | AG16: 8 | AH16: 5 | AI16: 0 | AJ16: 4 | AK16: 2 | AL16: 1 | AM16: 2 | AN16: 3 | AO16: 0 | AP16: 0 | AQ16: 0 | AR16: 0
A17: Colonia | B17: 211 | C17: 132 | D17: 79 | E17: 0 | F17: 1 | G17: 0 | H17: 0 | I17: 2 | J17: 1 | K17: 4 | L17: 1 | M17: 5 | N17: 9 | O17: 4 | P17: 5 | Q17: 5 | R17: 6 | S17: 14 | T17: 5 | U17: 10 | V17: 8 | W17: 17 | X17: 5 | Y17: 12 | Z17: 11 | AA17: 21 | AB17: 8 | AC17: 19 | AD17: 7 | AE17: 11 | AF17: 4 | AG17: 5 | AH17: 5 | AI17: 2 | AJ17: 1 | AK17: 0 | AL17: 1 | AM17: 1 | AN17: 0 | AO17: 0 | AP17: 0 | AQ17: 0 | AR17: 1
A18: Durazno | B18: 130 | C18: 84 | D18: 46 | E18: 0 | F18: 0 | G18: 0 | H18: 0 | I18: 0 | J18: 0 | K18: 0 | L18: 0 | M18: 1 | N18: 1 | O18: 9 | P18: 3 | Q18: 6 | R18: 3 | S18: 3 | T18: 4 | U18: 9 | V18: 3 | W18: 9 | X18: 4 | Y18: 8 | Z18: 10 | AA18: 13 | AB18: 3 | AC18: 11 | AD18: 10 | AE18: 2 | AF18: 1 | AG18: 4 | AH18: 0 | AI18: 5 | AJ18: 2 | AK18: 0 | AL18: 0 | AM18: 1 | AN18: 0 | AO18: 3 | AP18: 2 | AQ18: 0 | AR18: 0
A19: Flores | B19: 43 | C19: 29 | D19: 14 | E19: 0 | F19: 0 | G19: 0 | H19: 0 | I19: 0 | J19: 0 | K19: 0 | L19: 0 | M19: 1 | N19: 0 | O19: 2 | P19: 0 | Q19: 2 | R19: 2 | S19: 5 | T19: 2 | U19: 1 | V19: 2 | W19: 4 | X19: 2 | Y19: 1 | Z19: 0 | AA19: 2 | AB19: 1 | AC19: 5 | AD19: 1 | AE19: 3 | AF19: 4 | AG19: 1 | AH19: 0 | AI19: 1 | AJ19: 0 | AK19: 1 | AL19: 0 | AM19: 0 | AN19: 0 | AO19: 0 | AP19: 0 | AQ19: 0 | AR19: 0
A20: Florida | B20: 145 | C20: 88 | D20: 57 | E20: 0 | F20: 0 | G20: 0 | H20: 0 | I20: 0 | J20: 0 | K20: 2 | L20: 0 | M20: 3 | N20: 1 | O20: 8 | P20: 5 | Q20: 6 | R20: 2 | S20: 5 | T20: 6 | U20: 14 | V20: 10 | W20: 16 | X20: 7 | Y20: 10 | Z20: 9 | AA20: 14 | AB20: 9 | AC20: 7 | AD20: 3 | AE20: 2 | AF20: 1 | AG20: 0 | AH20: 1 | AI20: 0 | AJ20: 2 | AK20: 1 | AL20: 0 | AM20: 0 | AN20: 0 | AO20: 0 | AP20: 0 | AQ20: 0 | AR20: 1
A21: Lavalleja | B21: 155 | C21: 99 | D21: 56 | E21: 0 | F21: 0 | G21: 0 | H21: 0 | I21: 1 | J21: 0 | K21: 3 | L21: 2 | M21: 1 | N21: 2 | O21: 3 | P21: 2 | Q21: 9 | R21: 1 | S21: 7 | T21: 7 | U21: 12 | V21: 5 | W21: 3 | X21: 7 | Y21: 8 | Z21: 4 | AA21: 11 | AB21: 5 | AC21: 10 | AD21: 7 | AE21: 11 | AF21: 3 | AG21: 8 | AH21: 5 | AI21: 10 | AJ21: 4 | AK21: 1 | AL21: 2 | AM21: 1 | AN21: 0 | AO21: 0 | AP21: 0 | AQ21: 0 | AR21: 0
A22: Maldonado | B22: 293 | C22: 170 | D22: 123 | E22: 2 | F22: 0 | G22: 3 | H22: 0 | I22: 6 | J22: 1 | K22: 2 | L22: 2 | M22: 7 | N22: 2 | O22: 13 | P22: 7 | Q22: 15 | R22: 7 | S22: 24 | T22: 16 | U22: 16 | V22: 21 | W22: 14 | X22: 16 | Y22: 22 | Z22: 14 | AA22: 18 | AB22: 13 | AC22: 12 | AD22: 10 | AE22: 8 | AF22: 8 | AG22: 3 | AH22: 2 | AI22: 3 | AJ22: 1 | AK22: 2 | AL22: 1 | AM22: 0 | AN22: 1 | AO22: 0 | AP22: 0 | AQ22: 0 | AR22: 1
A23: Paysandú | B23: 244 | C23: 155 | D23: 89 | E23: 0 | F23: 0 | G23: 1 | H23: 0 | I23: 1 | J23: 1 | K23: 2 | L23: 2 | M23: 10 | N23: 3 | O23: 9 | P23: 4 | Q23: 21 | R23: 13 | S23: 30 | T23: 8 | U23: 18 | V23: 7 | W23: 14 | X23: 11 | Y23: 17 | Z23: 11 | AA23: 12 | AB23: 6 | AC23: 9 | AD23: 11 | AE23: 9 | AF23: 8 | AG23: 1 | AH23: 1 | AI23: 1 | AJ23: 2 | AK23: 0 | AL23: 0 | AM23: 0 | AN23: 1 | AO23: 0 | AP23: 0 | AQ23: 0 | AR23: 0
A24: Río Negro | B24: 164 | C24: 105 | D24: 59 | E24: 0 | F24: 0 | G24: 0 | H24: 0 | I24: 0 | J24: 0 | K24: 0 | L24: 0 | M24: 4 | N24: 3 | O24: 12 | P24: 5 | Q24: 16 | R24: 5 | S24: 13 | T24: 6 | U24: 16 | V24: 3 | W24: 6 | X24: 9 | Y24: 12 | Z24: 6 | AA24: 10 | AB24: 8 | AC24: 7 | AD24: 5 | AE24: 7 | AF24: 5 | AG24: 2 | AH24: 2 | AI24: 0 | AJ24: 1 | AK24: 0 | AL24: 1 | AM24: 0 | AN24: 0 | AO24: 0 | AP24: 0 | AQ24: 0 | AR24: 0
A25: Rivera | B25: 191 | C25: 116 | D25: 75 | E25: 0 | F25: 0 | G25: 0 | H25: 0 | I25: 0 | J25: 1 | K25: 1 | L25: 0 | M25: 2 | N25: 2 | O25: 6 | P25: 5 | Q25: 6 | R25: 9 | S25: 12 | T25: 8 | U25: 9 | V25: 10 | W25: 18 | X25: 9 | Y25: 22 | Z25: 9 | AA25: 15 | AB25: 13 | AC25: 14 | AD25: 5 | AE25: 3 | AF25: 3 | AG25: 4 | AH25: 1 | AI25: 2 | AJ25: 0 | AK25: 1 | AL25: 0 | AM25: 1 | AN25: 0 | AO25: 0 | AP25: 0 | AQ25: 0 | AR25: 0
A26: Rocha | B26: 243 | C26: 152 | D26: 91 | E26: 0 | F26: 0 | G26: 0 | H26: 0 | I26: 1 | J26: 1 | K26: 3 | L26: 0 | M26: 8 | N26: 4 | O26: 17 | P26: 5 | Q26: 16 | R26: 11 | S26: 14 | T26: 8 | U26: 14 | V26: 14 | W26: 20 | X26: 17 | Y26: 22 | Z26: 5 | AA26: 10 | AB26: 7 | AC26: 10 | AD26: 6 | AE26: 5 | AF26: 3 | AG26: 3 | AH26: 3 | AI26: 3 | AJ26: 2 | AK26: 3 | AL26: 3 | AM26: 2 | AN26: 2 | AO26: 1 | AP26: 0 | AQ26: 0 | AR26: 0
A27: Salto | B27: 344 | C27: 212 | D27: 132 | E27: 1 | F27: 0 | G27: 0 | H27: 2 | I27: 7 | J27: 1 | K27: 5 | L27: 5 | M27: 5 | N27: 5 | O27: 16 | P27: 11 | Q27: 20 | R27: 10 | S27: 19 | T27: 8 | U27: 17 | V27: 8 | W27: 18 | X27: 12 | Y27: 22 | Z27: 11 | AA27: 23 | AB27: 14 | AC27: 37 | AD27: 20 | AE27: 17 | AF27: 19 | AG27: 4 | AH27: 4 | AI27: 1 | AJ27: 2 | AK27: 0 | AL27: 0 | AM27: 0 | AN27: 0 | AO27: 0 | AP27: 0 | AQ27: 0 | AR27: 0
A28: San José | B28: 204 | C28: 131 | D28: 73 | E28: 0 | F28: 0 | G28: 0 | H28: 0 | I28: 0 | J28: 0 | K28: 0 | L28: 0 | M28: 2 | N28: 2 | O28: 6 | P28: 2 | Q28: 6 | R28: 6 | S28: 15 | T28: 8 | U28: 16 | V28: 7 | W28: 17 | X28: 7 | Y28: 20 | Z28: 9 | AA28: 24 | AB28: 17 | AC28: 17 | AD28: 9 | AE28: 4 | AF28: 5 | AG28: 2 | AH28: 1 | AI28: 2 | AJ28: 0 | AK28: 0 | AL28: 0 | AM28: 0 | AN28: 0 | AO28: 0 | AP28: 0 | AQ28: 0 | AR28: 0
A29: Soriano | B29: 199 | C29: 122 | D29: 77 | E29: 0 | F29: 0 | G29: 0 | H29: 0 | I29: 1 | J29: 1 | K29: 2 | L29: 1 | M29: 5 | N29: 2 | O29: 8 | P29: 4 | Q29: 12 | R29: 5 | S29: 12 | T29: 5 | U29: 12 | V29: 5 | W29: 13 | X29: 13 | Y29: 16 | Z29: 13 | AA29: 10 | AB29: 8 | AC29: 17 | AD29: 11 | AE29: 7 | AF29: 7 | AG29: 3 | AH29: 0 | AI29: 3 | AJ29: 1 | AK29: 1 | AL29: 0 | AM29: 0 | AN29: 0 | AO29: 0 | AP29: 0 | AQ29: 0 | AR29: 1
A30: Tacuarembó | B30: 180 | C30: 113 | D30: 67 | E30: 0 | F30: 0 | G30: 0 | H30: 0 | I30: 1 | J30: 0 | K30: 1 | L30: 0 | M30: 3 | N30: 4 | O30: 10 | P30: 3 | Q30: 11 | R30: 6 | S30: 10 | T30: 9 | U30: 11 | V30: 5 | W30: 12 | X30: 4 | Y30: 14 | Z30: 8 | AA30: 10 | AB30: 12 | AC30: 8 | AD30: 8 | AE30: 11 | AF30: 0 | AG30: 7 | AH30: 5 | AI30: 4 | AJ30: 3 | AK30: 0 | AL30: 0 | AM30: 0 | AN30: 0 | AO30: 0 | AP30: 0 | AQ30: 0 | AR30: 0
A31: Treinta y Tres | B31: 98 | C31: 51 | D31: 47 | E31: 0 | F31: 0 | G31: 0 | H31: 0 | I31: 0 | J31: 0 | K31: 0 | L31: 0 | M31: 2 | N31: 1 | O31: 2 | P31: 4 | Q31: 4 | R31: 4 | S31: 3 | T31: 1 | U31: 6 | V31: 9 | W31: 6 | X31: 6 | Y31: 5 | Z31: 0 | AA31: 11 | AB31: 4 | AC31: 5 | AD31: 3 | AE31: 1 | AF31: 6 | AG31: 5 | AH31: 8 | AI31: 1 | AJ31: 0 | AK31: 0 | AL31: 0 | AM31: 0 | AN31: 1 | AO31: 0 | AP31: 0 | AQ31: 0 | AR31: 0
A32: Fuente: Procesamiento propio en base a datos proporcionados por el DEE — CEIP

Sheet II-2.2.6
A1: CONSEJO DE EDUCACIÓN PRIMARIA | E1: ALUMNOS MATRICULADOS
A3: Cuadro Nº II-2.2.6
A5: ALUMNOS MATRICULADOS EN EDUCACIÓN PRIMARIA PRIVADA POR TIPO DE EDUCACIÓN SEGÚN DEPARTAMENTO. AÑO 2015.
A6: DEPARTAMENTO | B6: TIPO DE EDUCACIÓN
B7: TOTAL | C7: EDUCACIÓN COMÚN | F7: EDUCACIÓN ESPECIAL
C8: Total | D8: Habilitados | E8: Autorizados
A10: TOTAL DEL PAÍS | B10: =SUM(B11:B12) -> 56982 | C10: =+D10+E10 -> 53577 | D10: =D11+D12 -> 50969 | E10: =E11+E12 -> 2608 | F10: =F11+F12 -> 3405
A11: MONTEVIDEO | B11: =+C11+F11 -> 35214 | C11: =+D11+E11 -> 32939 | D11: 30776 | E11: 2163 | F11: 2275 | AT11: MONTEVIDEO
A12: RESTO DEL PAÍS | B12: =+C12+F12 -> 21768 | C12: =+D12+E12 -> 20638 | D12: =SUM(D13:D30) -> 20193 | E12: =SUM(E13:E30) -> 445 | F12: =SUM(F13:F30) -> 1130 | AT12: RESTO DEL PAÍS
A13: Artigas | B13: =+C13+F13 -> 314 | C13: =+D13+E13 -> 184 | D13: 184 | E13: 0 | F13: 130 | AT13: Artigas
A14: Canelones | B14: 7591 | C14: =+D14+E14 -> 7484 | D14: 7072 | E14: 412 | F14: 107 | AT14: Canelones
A15: Cerro Largo | B15: 627 | C15: 627 | D15: 627 | E15: 0 | F15: 0 | AT15: Cerro Largo
A16: Colonia | B16: 772 | C16: 762 | D16: 762 | E16: 0 | F16: 10 | AT16: Colonia
A17: Durazno | B17: 616 | C17: 616 | D17: 616 | E17: 0 | F17: 0 | AT17: Durazno
A18: Flores | B18: 275 | C18: 275 | D18: 275 | E18: 0 | F18: 0 | AT18: Flores
A19: Florida | B19: 347 | C19: 256 | D19: 256 | E19: 0 | F19: 91 | AT19: Florida
A20: Lavalleja | B20: 645 | C20: 645 | D20: 645 | E20: 0 | F20: 0 | AT20: Lavalleja
A21: Maldonado | B21: 3939 | C21: 3844 | D21: 3844 | E21: 0 | F21: 95 | AT21: Maldonado
A22: Paysandú | B22: 1310 | C22: 1221 | D22: 1221 | E22: 0 | F22: 89 | AT22: Paysandú
A23: Río Negro | B23: 679 | C23: 538 | D23: 518 | E23: 20 | F23: 141 | AT23: Río Negro
A24: Rivera | B24: 595 | C24: 595 | D24: 595 | E24: 0 | F24: 0 | AT24: Rivera
A25: Rocha | B25: 352 | C25: 352 | D25: 352 | E25: 0 | F25: 0 | AT25: Rocha
A26: Salto | B26: 1450 | C26: 1196 | D26: 1196 | E26: 0 | F26: 254 | AT26: Salto
A27: San José | B27: 761 | C27: 761 | D27: 748 | E27: 13 | F27: 0 | AT27: San José
A28: Soriano | B28: 674 | C28: 461 | D28: 461 | E28: 0 | F28: 213 | AT28: Soriano
A29: Tacuarembó | B29: 657 | C29: 657 | D29: 657 | E29: 0 | F29: 0 | AT29: Tacuarembó
A30: Treinta y Tres | B30: 164 | C30: 164 | D30: 164 | E30: 0 | F30: 0 | AT30: Treinta y Tres
A31: Fuente: Procesamiento propio en base a datos proporcionados por el D.E.E. — C.E.I.P.
A32: Nota: Especial incluye la matrícula de clases especiales en escuelas comunes,
A33: Instrucción Temprana, Educación Inicial, Preparatorio y Talleres
A107: 30025 | B107: 2163 | C107: 2209
A108: 19484 | B108: 397 | C108: 1758
A109: 92 | B109: 0 | C109: 162
A110: 6669 | B110: 344 | C110: 0
A111: 615 | B111: 0 | C111: 0
A112: 724 | B112: 0 | C112: 0
A113: 634 | B113: 0 | C113: 0
A114: 361 | B114: 0 | C114: 7
A115: 296 | B115: 0 | C115: 62
A116: 615 | B116: 0 | C116: 0
A117: 3879 | B117: 0 | C117: 141
A118: 1175 | B118: 0 | C118: 276
A119: 428 | B119: 33 | C119: 149
A120: 673 | B120: 0 | C120: 7
A121: 413 | B121: 0 | C121: 87
A122: 1089 | B122: 0 | C122: 208
A123: 556 | B123: 20 | C123: 0
A124: 435 | B124: 0 | C124: 659
A125: 643 | B125: 0 | C125: 0
A126: 187 | B126: 0 | C126: 0

Sheet II-2.2.7
A1: CONSEJO DE EDUCACIÓN PRIMARIA | N1: ALUMNOS MATRICULADOS
A3: Cuadro Nº II-2.2.7
A5: ALUMNOS MATRICULADOS EN EDUCACIÓN ESPECIAL PRIVADA POR EDADES SIMPLES Y SEXO SEGÚN DEPARTAMENTO. AÑO 2015.
A6: DEPARTAMENTO | B6: TOTAL GENERAL | C6: TOTAL MASCULINO | D6: TOTAL FEMENINO | E6: EDAD
E7: Menos de 3 años | G7: 3 años | I7: 4 años | K7: 5 años | M7: 6 años | O7: 7 años | Q7: 8 años | S7: 9 años | U7: 10 años | W7: 11 años | Y7: 12 años | AA7: 13 años | AC7: 14 años | AE7: 15 años | AG7: 16 años | AI7: 17 años | AK7: 18 años | AM7: 19 años | AO7: 20 años | AQ7: 21 años
E8: SEXO
E9: M | F9: F | G9: M | H9: F | I9: M | J9: F | K9: M | L9: F | M9: M | N9: F | O9: M | P9: F | Q9: M | R9: F | S9: M | T9: F | U9: M | V9: F | W9: M | X9: F | Y9: M | Z9: F | AA9: M | AB9: F | AC9: M | AD9: F | AE9: M | AF9: F | AG9: M | AH9: F | AI9: M | AJ9: F | AK9: M | AL9: F | AM9: M | AN9: F | AO9: M | AP9: F | AQ9: M | AR9: F
A11: TOTAL | B11: =C11+D11 -> 3405 | C11: =E11+G11+I11+K11+M11+O11+Q11+S11+U11+W11+Y11+AA11+AC11+AE11+AG11+AI11+AK11+AM11+AO11+AQ11 -> 1854 | D11: =F11+H11+J11+L11+N11+P11+R11+T11+V11+X11+Z11+AB11+AD11+AF11+AH11+AJ11+AL11+AN11+AP11+AR11 -> 1551 | E11: =SUM(E12:E13) -> 16 | F11: 13 | G11: 29 | H11: 7 | I11: 21 | J11: 25 | K11: 43 | L11: 22 | M11: 96 | N11: 30 | O11: 110 | P11: 64 | Q11: 114 | R11: 56 | S11: 111 | T11: 62 | U11: 101 | V11: 68 | W11: 123 | X11: 68 | Y11: 75 | Z11: 55 | AA11: 65 | AB11: 43 | AC11: 67 | AD11: 57 | AE11: 68 | AF11: 42 | AG11: 68 | AH11: 50 | AI11: 65 | AJ11: 46 | AK11: 51 | AL11: 42 | AM11: 48 | AN11: 93 | AO11: 34 | AP11: 159 | AQ11: 549 | AR11: 549
A12: MONTEVIDEO | B12: =C12+D12 -> 2275 | C12: =E12+G12+I12+K12+M12+O12+Q12+S12+U12+W12+Y12+AA12+AC12+AE12+AG12+AI12+AK12+AM12+AO12+AQ12 -> 1238 | D12: =F12+H12+J12+L12+N12+P12+R12+T12+V12+X12+Z12+AB12+AD12+AF12+AH12+AJ12+AL12+AN12+AP12+AR12 -> 1037 | E12: 1 | F12: 3 | G12: 11 | H12: 3 | I12: 16 | J12: 17 | K12: 30 | L12: 18 | M12: 75 | N12: 21 | O12: 89 | P12: 46 | Q12: 87 | R12: 33 | S12: 88 | T12: 41 | U12: 74 | V12: 44 | W12: 94 | X12: 51 | Y12: 54 | Z12: 32 | AA12: 36 | AB12: 24 | AC12: 33 | AD12: 30 | AE12: 28 | AF12: 18 | AG12: 27 | AH12: 15 | AI12: 31 | AJ12: 26 | AK12: 36 | AL12: 24 | AM12: 20 | AN12: 64 | AO12: 10 | AP12: 137 | AQ12: 398 | AR12: 390
A13: RESTO DEL PAÍS | B13: 1130 | C13: 616 | D13: 514 | E13: =SUM(E14:E31) -> 15 | F13: =SUM(F14:F31) -> 10 | G13: 18 | H13: 4 | I13: 5 | J13: 8 | K13: 13 | L13: =SUM(L14:L31) -> 4 | M13: 21 | N13: 9 | O13: 21 | P13: 18 | Q13: 27 | R13: 23 | S13: 23 | T13: 21 | U13: 27 | V13: 24 | W13: 29 | X13: 17 | Y13: 21 | Z13: 23 | AA13: 29 | AB13: 19 | AC13: 34 | AD13: 27 | AE13: 40 | AF13: 24 | AG13: 41 | AH13: 35 | AI13: 34 | AJ13: 20 | AK13: 15 | AL13: 18 | AM13: 28 | AN13: 29 | AO13: 24 | AP13: 22 | AQ13: 151 | AR13: 159
A14: Artigas | B14: 130 | C14: 71 | D14: 59 | E14: 0 | F14: 0 | G14: 0 | H14: 0 | I14: 0 | J14: 0 | K14: 0 | L14: 0 | M14: 0 | N14: 0 | O14: 1 | P14: 0 | Q14: 0 | R14: 0 | S14: 1 | T14: 0 | U14: 2 | V14: 1 | W14: 1 | X14: 1 | Y14: 0 | Z14: 0 | AA14: 2 | AB14: 2 | AC14: 3 | AD14: 3 | AE14: 3 | AF14: 1 | AG14: 12 | AH14: 3 | AI14: 7 | AJ14: 2 | AK14: 4 | AL14: 2 | AM14: 4 | AN14: 3 | AO14: 2 | AP14: 2 | AQ14: 29 | AR14: 39
A15: Canelones | B15: 107 | C15: 61 | D15: 46 | E15: 3 | F15: 2 | G15: 3 | H15: 2 | I15: 0 | J15: 0 | K15: 3 | L15: 2 | M15: 0 | N15: 0 | O15: 1 | P15: 0 | Q15: 1 | R15: 1 | S15: 0 | T15: 0 | U15: 0 | V15: 1 | W15: 0 | X15: 0 | Y15: 0 | Z15: 0 | AA15: 1 | AB15: 0 | AC15: 2 | AD15: 1 | AE15: 4 | AF15: 5 | AG15: 3 | AH15: 5 | AI15: 5 | AJ15: 2 | AK15: 2 | AL15: 1 | AM15: 4 | AN15: 3 | AO15: 5 | AP15: 3 | AQ15: 24 | AR15: 18
A16: Cerro Largo | B16: 0 | C16: 0 | D16: 0 | E16: 0 | F16: 0 | G16: 0 | H16: 0 | I16: 0 | J16: 0 | K16: 0 | L16: 0 | M16: 0 | N16: 0 | O16: 0 | P16: 0 | Q16: 0 | R16: 0 | S16: 0 | T16: 0 | U16: 0 | V16: 0 | W16: 0 | X16: 0 | Y16: 0 | Z16: 0 | AA16: 0 | AB16: 0 | AC16: 0 | AD16: 0 | AE16: 0 | AF16: 0 | AG16: 0 | AH16: 0 | AI16: 0 | AJ16: 0 | AK16: 0 | AL16: 0 | AM16: 0 | AN16: 0 | AO16: 0 | AP16: 0 | AQ16: 0 | AR16: 0
A17: Colonia | B17: 10 | C17: 5 | D17: 5 | E17: 0 | F17: 0 | G17: 0 | H17: 0 | I17: 0 | J17: 0 | K17: 0 | L17: 0 | M17: 0 | N17: 0 | O17: 0 | P17: 0 | Q17: 0 | R17: 0 | S17: 0 | T17: 0 | U17: 0 | V17: 0 | W17: 0 | X17: 0 | Y17: 0 | Z17: 0 | AA17: 0 | AB17: 0 | AC17: 0 | AD17: 0 | AE17: 1 | AF17: 1 | AG17: 0 | AH17: 0 | AI17: 1 | AJ17: 0 | AK17: 0 | AL17: 1 | AM17: 1 | AN17: 0 | AO17: 0 | AP17: 0 | AQ17: 2 | AR17: 3
A18: Durazno | B18: 0 | C18: 0 | D18: 0 | E18: 0 | F18: 0 | G18: 0 | H18: 0 | I18: 0 | J18: 0 | K18: 0 | L18: 0 | M18: 0 | N18: 0 | O18: 0 | P18: 0 | Q18: 0 | R18: 0 | S18: 0 | T18: 0 | U18: 0 | V18: 0 | W18: 0 | X18: 0 | Y18: 0 | Z18: 0 | AA18: 0 | AB18: 0 | AC18: 0 | AD18: 0 | AE18: 0 | AF18: 0 | AG18: 0 | AH18: 0 | AI18: 0 | AJ18: 0 | AK18: 0 | AL18: 0 | AM18: 0 | AN18: 0 | AO18: 0 | AP18: 0 | AQ18: 0 | AR18: 0
A19: Flores | B19: 0 | C19: 0 | D19: 0 | E19: 0 | F19: 0 | G19: 0 | H19: 0 | I19: 0 | J19: 0 | K19: 0 | L19: 0 | M19: 0 | N19: 0 | O19: 0 | P19: 0 | Q19: 0 | R19: 0 | S19: 0 | T19: 0 | U19: 0 | V19: 0 | W19: 0 | X19: 0 | Y19: 0 | Z19: 0 | AA19: 0 | AB19: 0 | AC19: 0 | AD19: 0 | AE19: 0 | AF19: 0 | AG19: 0 | AH19: 0 | AI19: 0 | AJ19: 0 | AK19: 0 | AL19: 0 | AM19: 0 | AN19: 0 | AO19: 0 | AP19: 0 | AQ19: 0 | AR19: 0
A20: Florida | B20: 91 | C20: 48 | D20: 43 | E20: 3 | F20: 4 | G20: 6 | H20: 0 | I20: 0 | J20: 2 | K20: 3 | L20: 0 | M20: 3 | N20: 1 | O20: 4 | P20: 1 | Q20: 2 | R20: 1 | S20: 3 | T20: 1 | U20: 3 | V20: 4 | W20: 1 | X20: 2 | Y20: 1 | Z20: 2 | AA20: 2 | AB20: 2 | AC20: 0 | AD20: 1 | AE20: 2 | AF20: 3 | AG20: 1 | AH20: 1 | AI20: 2 | AJ20: 1 | AK20: 0 | AL20: 0 | AM20: 0 | AN20: 2 | AO20: 1 | AP20: 0 | AQ20: 11 | AR20: 15
A21: Lavalleja | B21: 0 | C21: 0 | D21: 0 | E21: 0 | F21: 0 | G21: 0 | H21: 0 | I21: 0 | J21: 0 | K21: 0 | L21: 0 | M21: 0 | N21: 0 | O21: 0 | P21: 0 | Q21: 0 | R21: 0 | S21: 0 | T21: 0 | U21: 0 | V21: 0 | W21: 0 | X21: 0 | Y21: 0 | Z21: 0 | AA21: 0 | AB21: 0 | AC21: 0 | AD21: 0 | AE21: 0 | AF21: 0 | AG21: 0 | AH21: 0 | AI21: 0 | AJ21: 0 | AK21: 0 | AL21: 0 | AM21: 0 | AN21: 0 | AO21: 0 | AP21: 0 | AQ21: 0 | AR21: 0
A22: Maldonado | B22: 95 | C22: 51 | D22: 44 | E22: 1 | F22: 1 | G22: 0 | H22: 0 | I22: 0 | J22: 1 | K22: 1 | L22: 0 | M22: 0 | N22: 1 | O22: 0 | P22: 2 | Q22: 2 | R22: 2 | S22: 1 | T22: 2 | U22: 0 | V22: 0 | W22: 2 | X22: 1 | Y22: 2 | Z22: 4 | AA22: 2 | AB22: 2 | AC22: 6 | AD22: 2 | AE22: 4 | AF22: 2 | AG22: 4 | AH22: 3 | AI22: 3 | AJ22: 2 | AK22: 2 | AL22: 2 | AM22: 4 | AN22: 5 | AO22: 4 | AP22: 3 | AQ22: 13 | AR22: 9
A23: Paysandú | B23: 89 | C23: 55 | D23: 34 | E23: 0 | F23: 0 | G23: 0 | H23: 0 | I23: 0 | J23: 0 | K23: 0 | L23: 0 | M23: 0 | N23: 0 | O23: 0 | P23: 0 | Q23: 2 | R23: 1 | S23: 0 | T23: 0 | U23: 2 | V23: 1 | W23: 4 | X23: 2 | Y23: 6 | Z23: 1 | AA23: 7 | AB23: 2 | AC23: 5 | AD23: 1 | AE23: 8 | AF23: 2 | AG23: 6 | AH23: 6 | AI23: 1 | AJ23: 1 | AK23: 0 | AL23: 2 | AM23: 0 | AN23: 3 | AO23: 0 | AP23: 3 | AQ23: 14 | AR23: 9
A24: Río Negro | B24: 141 | C24: 83 | D24: 58 | E24: 8 | F24: 3 | G24: 9 | H24: 2 | I24: 3 | J24: 3 | K24: 2 | L24: 1 | M24: 10 | N24: 5 | O24: 7 | P24: 11 | Q24: 8 | R24: 7 | S24: 11 | T24: 8 | U24: 12 | V24: 10 | W24: 9 | X24: 5 | Y24: 4 | Z24: 3 | AA24: 0 | AB24: 0 | AC24: 0 | AD24: 0 | AE24: 0 | AF24: 0 | AG24: 0 | AH24: 0 | AI24: 0 | AJ24: 0 | AK24: 0 | AL24: 0 | AM24: 0 | AN24: 0 | AO24: 0 | AP24: 0 | AQ24: 0 | AR24: 0
A25: Rivera | B25: 0 | C25: 0 | D25: 0 | E25: 0 | F25: 0 | G25: 0 | H25: 0 | I25: 0 | J25: 0 | K25: 0 | L25: 0 | M25: 0 | N25: 0 | O25: 0 | P25: 0 | Q25: 0 | R25: 0 | S25: 0 | T25: 0 | U25: 0 | V25: 0 | W25: 0 | X25: 0 | Y25: 0 | Z25: 0 | AA25: 0 | AB25: 0 | AC25: 0 | AD25: 0 | AE25: 0 | AF25: 0 | AG25: 0 | AH25: 0 | AI25: 0 | AJ25: 0 | AK25: 0 | AL25: 0 | AM25: 0 | AN25: 0 | AO25: 0 | AP25: 0 | AQ25: 0 | AR25: 0
A26: Rocha | B26: 0 | C26: 0 | D26: 0 | E26: 0 | F26: 0 | G26: 0 | H26: 0 | I26: 0 | J26: 0 | K26: 0 | L26: 0 | M26: 0 | N26: 0 | O26: 0 | P26: 0 | Q26: 0 | R26: 0 | S26: 0 | T26: 0 | U26: 0 | V26: 0 | W26: 0 | X26: 0 | Y26: 0 | Z26: 0 | AA26: 0 | AB26: 0 | AC26: 0 | AD26: 0 | AE26: 0 | AF26: 0 | AG26: 0 | AH26: 0 | AI26: 0 | AJ26: 0 | AK26: 0 | AL26: 0 | AM26: 0 | AN26: 0 | AO26: 0 | AP26: 0 | AQ26: 0 | AR26: 0
A27: Salto | B27: 254 | C27: 135 | D27: 119 | E27: 0 | F27: 0 | G27: 0 | H27: 0 | I27: 2 | J27: 2 | K27: 4 | L27: 1 | M27: 8 | N27: 2 | O27: 8 | P27: 4 | Q27: 12 | R27: 11 | S27: 7 | T27: 10 | U27: 8 | V27: 7 | W27: 12 | X27: 6 | Y27: 8 | Z27: 12 | AA27: 12 | AB27: 9 | AC27: 14 | AD27: 13 | AE27: 10 | AF27: 7 | AG27: 4 | AH27: 6 | AI27: 8 | AJ27: 7 | AK27: 4 | AL27: 5 | AM27: 4 | AN27: 6 | AO27: 3 | AP27: 2 | AQ27: 7 | AR27: 9
A28: San José | B28: 0 | C28: 0 | D28: 0 | E28: 0 | F28: 0 | G28: 0 | H28: 0 | I28: 0 | J28: 0 | K28: 0 | L28: 0 | M28: 0 | N28: 0 | O28: 0 | P28: 0 | Q28: 0 | R28: 0 | S28: 0 | T28: 0 | U28: 0 | V28: 0 | W28: 0 | X28: 0 | Y28: 0 | Z28: 0 | AA28: 0 | AB28: 0 | AC28: 0 | AD28: 0 | AE28: 0 | AF28: 0 | AG28: 0 | AH28: 0 | AI28: 0 | AJ28: 0 | AK28: 0 | AL28: 0 | AM28: 0 | AN28: 0 | AO28: 0 | AP28: 0 | AQ28: 0 | AR28: 0
A29: Soriano | B29: 213 | C29: 107 | D29: 106 | E29: 0 | F29: 0 | G29: 0 | H29: 0 | I29: 0 | J29: 0 | K29: 0 | L29: 0 | M29: 0 | N29: 0 | O29: 0 | P29: 0 | Q29: 0 | R29: 0 | S29: 0 | T29: 0 | U29: 0 | V29: 0 | W29: 0 | X29: 0 | Y29: 0 | Z29: 1 | AA29: 3 | AB29: 2 | AC29: 4 | AD29: 6 | AE29: 8 | AF29: 3 | AG29: 11 | AH29: 11 | AI29: 7 | AJ29: 5 | AK29: 3 | AL29: 5 | AM29: 11 | AN29: 7 | AO29: 9 | AP29: 9 | AQ29: 51 | AR29: 57
A30: Tacuarembó | B30: 0 | C30: 0 | D30: 0 | E30: 0 | F30: 0 | G30: 0 | H30: 0 | I30: 0 | J30: 0 | K30: 0 | L30: 0 | M30: 0 | N30: 0 | O30: 0 | P30: 0 | Q30: 0 | R30: 0 | S30: 0 | T30: 0 | U30: 0 | V30: 0 | W30: 0 | X30: 0 | Y30: 0 | Z30: 0 | AA30: 0 | AB30: 0 | AC30: 0 | AD30: 0 | AE30: 0 | AF30: 0 | AG30: 0 | AH30: 0 | AI30: 0 | AJ30: 0 | AK30: 0 | AL30: 0 | AM30: 0 | AN30: 0 | AO30: 0 | AP30: 0 | AQ30: 0 | AR30: 0
A31: Treinta y Tres | B31: 0 | C31: 0 | D31: 0 | E31: 0 | F31: 0 | G31: 0 | H31: 0 | I31: 0 | J31: 0 | K31: 0 | L31: 0 | M31: 0 | N31: 0 | O31: 0 | P31: 0 | Q31: 0 | R31: 0 | S31: 0 | T31: 0 | U31: 0 | V31: 0 | W31: 0 | X31: 0 | Y31: 0 | Z31: 0 | AA31: 0 | AB31: 0 | AC31: 0 | AD31: 0 | AE31: 0 | AF31: 0 | AG31: 0 | AH31: 0 | AI31: 0 | AJ31: 0 | AK31: 0 | AL31: 0 | AM31: 0 | AN31: 0 | AO31: 0 | AP31: 0 | AQ31: 0 | AR31: 0
A32: Fuente: Procesamiento propio en base a datos proporcionados por el DEE — CEIP

Sheet II-2.2.8
A1: CONSEJO DE EDUCACIÓN PRIMARIA | M1: ALUMNOS MATRICULADOS
A3: Cuadro Nº II-2.2.8
A5: ALUMNOS MATRICULADOS EN EDUCACIÓN PRIMARIA COMÚN POR GRADO Y FORMA DE ADMINISTRACIÓN SEGÚN EDAD. AÑO 2015.
A6: EDAD | D6: GRADO
B7: TOTAL | D7: Primero | F7: Segundo | H7: Tercero | J7: Cuarto | L7: Quinto | N7: Sexto
D9: FORMA DE ADMINISTRACIÓN
B10: Pública | C10: Privada | D10: Pública | E10: Privada | F10: Pública | G10: Privada | H10: Pública | I10: Privada | J10: Pública | K10: Privada | L10: Pública | M10: Privada | N10: Pública | O10: Privada
A11: TOTAL | B11: =SUM(B12:B20) -> 250160 | C11: =SUM(C12:C20) -> 53577 | D11: =SUM(D12:D20) -> 43216 | E11: =SUM(E12:E20) -> 9352 | F11: =SUM(F12:F20) -> 40912 | G11: =SUM(G12:G20) -> 8845 | H11: =SUM(H12:H20) -> 40936 | I11: 9105 | J11: =SUM(J12:J20) -> 40202 | K11: 8745 | L11: =SUM(L12:L20) -> 42421 | M11: 8824 | N11: =SUM(N12:N20) -> 42473 | O11: 8706
A12: 6 años | B12: =+D12+F12+H12+J12+L12+N12 -> 37061 | C12: =+E12 -> 8004 | D12: 37061 | E12: 8004 | F12: 0 | G12: 0 | H12: 0 | I12: 0 | J12: 0 | K12: 0 | L12: 0 | M12: 0 | N12: 0 | O12: 0
A13: 7 años | B13: 37082 | C13: =+E13+G13 -> 8734 | D13: 5608 | E13: 1299 | F13: 31474 | G13: 7435 | H13: 0 | I13: 0 | J13: 0 | K13: 0 | L13: 0 | M13: 0 | N13: 0 | O13: 0
A14: 8 años | B14: 37285 | C14: =+E14+G14+I14 -> 8987 | D14: 444 | E14: 42 | F14: 7641 | G14: 1344 | H14: 29200 | I14: 7601 | J14: 0 | K14: 0 | L14: 0 | M14: 0 | N14: 0 | O14: 0
A15: 9 años | B15: 39177 | C15: =+E15+G15+I15+K15 -> 8754 | D15: 59 | E15: 4 | F15: 1527 | G15: 53 | H15: 9045 | I15: 1410 | J15: 28546 | K15: 7287 | L15: 0 | M15: 0 | N15: 0 | O15: 0
A16: 10 años | B16: 40035 | C16: =+E16+G16+I16+K16+M16 -> 8758 | D16: 9 | E16: 2 | F16: 172 | G16: 7 | H16: 2100 | I16: 84 | J16: 7807 | K16: 1350 | L16: 29947 | M16: 7315 | N16: 0 | O16: 0
A17: 11 años | B17: 40196 | C17: =+E17+G17+I17+K17+M17+O17 -> 8538 | D17: 18 | E17: 0 | F17: 50 | G17: 6 | H17: 397 | I17: 7 | J17: 2597 | K17: 88 | L17: 7685 | M17: 1409 | N17: 29449 | O17: 7028
A18: 12 años | B18: 11591 | C18: =+E18+G18+I18+K18+M18+O18 -> 1637 | D18: 2 | E18: 0 | F18: 22 | G18: 0 | H18: 121 | I18: 2 | J18: 748 | K18: 11 | L18: 2728 | M18: 77 | N18: 7970 | O18: 1547
A19: 13 años | B19: 4474 | C19: =+E19+G19+I19+K19+M19+O19 -> 117 | D19: 2 | E19: 0 | F19: 20 | G19: 0 | H19: 52 | I19: 0 | J19: 308 | K19: 1 | L19: 1263 | M19: 19 | N19: 2829 | O19: 97
A20: 14 años y más | B20: 3259 | C20: =+E20+G20+I20+K20+M20+O20 -> 48 | D20: 13 | E20: 1 | F20: 6 | G20: 0 | H20: 21 | I20: 1 | J20: 196 | K20: 8 | L20: 798 | M20: 4 | N20: 2225 | O20: 34
A21: Fuente: Procesamiento propio en base a datos proporcionados por el D.E.E .— C.E.I.P.
A22: Nota: Primaria Pública no incluye la matrícula correspondiente a JICI

Sheet II-2.2.9
A1: CONSEJO DE EDUCACIÓN PRIMARIA | M1: ALUMNOS MATRICULADOS
A3: Cuadro Nº II-2.2.9
A4: ALUMNOS MATRICULADOS EN EDUCACIÓN PRIMARIA COMÚN PÚBLICA POR GRADO Y SEXO SEGÚN EDAD. AÑO 2015.
A5: EDAD | E5: GRADO
C6: TOTAL SEXO | E6: Primero | G6: Segundo | I6: Tercero | K6: Cuarto | M6: Quinto | O6: Sexto
E7: SEXO
B8: TOTAL | C8: M | D8: F | E8: M | F8: F | G8: M | H8: F | I8: M | J8: F | K8: M | L8: F | M8: M | N8: F | O8: M | P8: F
A9: TOTAL | B9: =+C9+D9 -> 250160 | C9: =SUM(E9+G9+I9+K9+M9+O9) -> 129042 | D9: =+F9+H9+J9+L9+N9+P9 -> 121118 | E9: =SUM(E10:E18) -> 22765 | F9: 20451 | G9: 20903 | H9: 20009 | I9: 21001 | J9: 19935 | K9: 20691 | L9: 19511 | M9: =SUM(M10:M18) -> 21979 | N9: =SUM(N10:N18) -> 20442 | O9: 21703 | P9: 20770
A10: 6 años | B10: =+C10+D10 -> 37061 | C10: =SUM(E10+G10+I10+K10+M10+O10) -> 18950 | D10: =+F10+H10+J10+L10+N10+P10 -> 18111 | E10: 18950 | F10: 18111 | G10: 0 | H10: 0 | I10: 0 | J10: 0 | K10: 0 | L10: 0 | M10: 0 | N10: 0 | O10: 0 | P10: 0
A11: 7 años | B11: =+C11+D11 -> 37082 | C11: =SUM(E11+G11+I11+K11+M11+O11) -> 18813 | D11: =+F11+H11+J11+L11+N11+P11 -> 18269 | E11: 3474 | F11: 2134 | G11: 15339 | H11: 16135 | I11: 0 | J11: 0 | K11: 0 | L11: 0 | M11: 0 | N11: 0 | O11: 0 | P11: 0
A12: 8 años | B12: 37285 | C12: 18964 | D12: 18321 | E12: 286 | F12: 158 | G12: 4488 | H12: 3153 | I12: 14190 | J12: 15010 | K12: 0 | L12: 0 | M12: 0 | N12: 0 | O12: 0 | P12: 0
A13: 9 años | B13: =+C13+D13 -> 39177 | C13: =SUM(E13+G13+I13+M13+K13+O13) -> 19959 | D13: =+F13+H13+J13+N13+L13+P13 -> 19218 | E13: 31 | F13: 28 | G13: 923 | H13: 604 | I13: 5157 | J13: 3888 | K13: 13848 | L13: 14698 | M13: 0 | N13: 0 | O13: 0 | P13: 0
A14: 10 años | B14: 40035 | C14: =SUM(E14+G14+I14+M14+K14+O14) -> 20657 | D14: =+F14+H14+J14+N14+L14+P14 -> 19378 | E14: 6 | F14: 3 | G14: 94 | H14: 78 | I14: 1284 | J14: 816 | K14: 4572 | L14: 3235 | M14: 14701 | N14: 15246 | O14: 0 | P14: 0
A15: 11 años | B15: 40196 | C15: 20543 | D15: =+F15+H15+J15+N15+L15+P15 -> 19653 | E15: 10 | F15: 8 | G15: 32 | H15: 18 | I15: 261 | J15: 136 | K15: 1541 | L15: 1056 | M15: 4504 | N15: 3181 | O15: 14195 | P15: 15254
A16: 12 años | B16: 11591 | C16: 6758 | D16: 4833 | E16: 1 | F16: 1 | G16: 15 | H16: 7 | I16: 70 | J16: 51 | K16: 425 | L16: 323 | M16: 1633 | N16: 1095 | O16: 4614 | P16: 3356
A17: 13 años | B17: 4474 | C17: 2661 | D17: 1813 | E17: 1 | F17: 1 | G17: 9 | H17: 11 | I17: 32 | J17: 20 | K17: 184 | L17: 124 | M17: 716 | N17: 547 | O17: 1719 | P17: 1110
A18: 14 años y más | B18: 3259 | C18: 1737 | D18: 1522 | E18: 6 | F18: 7 | G18: 3 | H18: 3 | I18: 7 | J18: 14 | K18: 121 | L18: 75 | M18: 425 | N18: 373 | O18: 1175 | P18: 1050
A19: Fuente: Procesamiento propio en base a datos proporcionados por el D.E.E. — C.E.I.P.
A20: Nota: Primaria Pública no incluye la matrícula correspondiente a JICI

Sheet II-2.2.10
A1: CONSEJO DE EDUCACIÓN PRIMARIA | M1: ALUMNOS MATRICULADOS
A3: Cuadro Nº II-2.2.10
A4: ALUMNOS MATRICULADOS EN EDUCACIÓN PRIMARIA COMÚN PRIVADA POR GRADO Y SEXO SEGÚN EDAD. AÑO 2015.
A5: EDAD | E5: GRADO
B6: TOTAL SEXO | E6: Primero | G6: Segundo | I6: Tercero | K6: Cuarto | M6: Quinto | O6: Sexto
E7: SEXO
B8: TOTAL | C8: M | D8: F | E8: M | F8: F | G8: M | H8: F | I8: M | J8: F | K8: M | L8: F | M8: M | N8: F | O8: M | P8: F
A9: TOTAL | B9: =C9+D9 -> 53577 | C9: =SUM(C10:C18) -> 27192 | D9: =SUM(D10:D18) -> 26385 | E9: 4865 | F9: 4487 | G9: 4464 | H9: 4381 | I9: 4614 | J9: 4491 | K9: 4437 | L9: 4308 | M9: 4406 | N9: 4418 | O9: 4406 | P9: 4300
A10: 6 años | B10: =C10+D10 -> 8004 | C10: =E10+G10+I10+K10+M10+O10 -> 4106 | D10: =F10+H10+J10+L10+N10+P10 -> 3898 | E10: 4106 | F10: 3898 | G10: 0 | H10: 0 | I10: 0 | J10: 0 | K10: 0 | L10: 0 | M10: 0 | N10: 0 | O10: 0 | P10: 0
A11: 7 años | B11: 8734 | C11: =E11+G11+I11+K11+M11+O11 -> 4430 | D11: 4304 | E11: 725 | F11: 574 | G11: 3705 | H11: 3730 | I11: 0 | J11: 0 | K11: 0 | L11: 0 | M11: 0 | N11: 0 | O11: 0 | P11: 0
A12: 8 años | B12: 8987 | C12: 4582 | D12: 4405 | E12: 28 | F12: 14 | G12: 722 | H12: 622 | I12: 3832 | J12: 3769 | K12: 0 | L12: 0 | M12: 0 | N12: 0 | O12: 0 | P12: 0
A13: 9 años | B13: 8754 | C13: 4426 | D13: 4328 | E13: 4 | F13: 0 | G13: 30 | H13: 23 | I13: 729 | J13: 681 | K13: 3663 | L13: 3624 | M13: 0 | N13: 0 | O13: 0 | P13: 0
A14: 10 años | B14: 8758 | C14: 4353 | D14: 4405 | E14: 2 | F14: 0 | G14: 4 | H14: 3 | I14: 47 | J14: 37 | K14: 705 | L14: 645 | M14: 3595 | N14: 3720 | O14: 0 | P14: 0
A15: 11 años | B15: 8538 | C15: 4309 | D15: 4229 | E15: 0 | F15: 0 | G15: 3 | H15: 3 | I15: 4 | J15: 3 | K15: 57 | L15: 31 | M15: 744 | N15: 665 | O15: 3501 | P15: 3527
A16: 12 años | B16: 1637 | C16: 890 | D16: 747 | E16: 0 | F16: 0 | G16: 0 | H16: 0 | I16: 2 | J16: 0 | K16: 7 | L16: 4 | M16: 49 | N16: 28 | O16: 832 | P16: 715
A17: 13 años | B17: 117 | C17: 73 | D17: 44 | E17: 0 | F17: 0 | G17: 0 | H17: 0 | I17: 0 | J17: 0 | K17: 1 | L17: 0 | M17: 17 | N17: 2 | O17: 55 | P17: 42
A18: 14 años y más | B18: 48 | C18: 23 | D18: 25 | E18: 0 | F18: 1 | G18: 0 | H18: 0 | I18: 0 | J18: 1 | K18: 4 | L18: 4 | M18: 1 | N18: 3 | O18: 18 | P18: 16
A19: Fuente: Procesamiento propio en base a datos proporcionados por el D.E.E. — C.E.I.P.

Sheet II-2.2.11
A1: CONSEJO DE EDUCACIÓN PRIMARIA | M1: ALUMNOS MATRICULADOS
A3: Cuadro Nº II-2.2.11
A5: ALUMNOS MATRICULADOS EN EDUCACIÓN PRIMARIA COMÚN POR GRADO Y FORMA DE ADMINISTRACIÓN SEGÚN DEPARTAMENTO. AÑO 2015.
A6: DEPARTAMENTO | B6: GRADO
B7: TOTAL | D7: Primero | F7: Segundo | H7: Tercero | J7: Cuarto | L7: Quinto | N7: Sexto
D8: FORMA DE ADMINISTRACIÓN
B9: Pública | C9: Privada | D9: Pública | E9: Privada | F9: Pública | G9: Privada | H9: Pública | I9: Privada | J9: Pública | K9: Privada | L9: Pública | M9: Privada | N9: Pública | O9: Privada
A11: TOTAL | B11: =SUM(B12:B13) -> 250160 | C11: 53577 | D11: 43216 | E11: 9352 | F11: 40912 | G11: 8845 | H11: 40936 | I11: 9105 | J11: 40202 | K11: 8745 | L11: 42421 | M11: 8824 | N11: 42473 | O11: 8706
A12: MONTEVIDEO | B12: =+D12+F12+H12+J12+L12+N12 -> 77371 | C12: =+E12+G12+I12+K12+M12+O12 -> 32939 | D12: 14148 | E12: 5768 | F12: 13034 | G12: 5461 | H12: 12798 | I12: 5597 | J12: 12342 | K12: 5375 | L12: 12472 | M12: 5418 | N12: 12577 | O12: 5320
A13: RESTO DEL PAÍS | B13: =SUM(B14:B31) -> 172789 | C13: =SUM(C14:C31) -> 20638 | D13: 29068 | E13: 3584 | F13: 27878 | G13: 3384 | H13: 28138 | I13: 3508 | J13: 27860 | K13: 3370 | L13: 29949 | M13: 3406 | N13: 29896 | O13: 3386
A14: Artigas | B14: =+D14+F14+H14+J14+L14+N14 -> 7471 | C14: =+E14+G14+I14+K14+M14+O14 -> 184 | D14: 1269 | E14: 34 | F14: 1236 | G14: 42 | H14: 1120 | I14: 29 | J14: 1221 | K14: 27 | L14: 1276 | M14: 30 | N14: 1349 | O14: 22
A15: Canelones | B15: =+D15+F15+H15+J15+L15+N15 -> 42321 | C15: =+E15+G15+I15+K15+M15+O15 -> 7484 | D15: 7226 | E15: 1327 | F15: 6872 | G15: 1262 | H15: 7044 | I15: 1266 | J15: 6838 | K15: 1223 | L15: 7186 | M15: 1198 | N15: 7155 | O15: 1208
A16: Cerro Largo | B16: =+D16+F16+H16+J16+L16+N16 -> 8104 | C16: 627 | D16: 1360 | E16: 118 | F16: 1237 | G16: 81 | H16: 1303 | I16: 132 | J16: 1314 | K16: 98 | L16: 1467 | M16: 107 | N16: 1423 | O16: 91
A17: Colonia | B17: =+D17+F17+H17+J17+L17+N17 -> 10385 | C17: 762 | D17: 1763 | E17: 142 | F17: 1660 | G17: 119 | H17: 1685 | I17: 138 | J17: 1717 | K17: 136 | L17: 1775 | M17: 116 | N17: 1785 | O17: 111
A18: Durazno | B18: 4902 | C18: 616 | D18: 769 | E18: 86 | F18: 779 | G18: 97 | H18: 758 | I18: 115 | J18: 777 | K18: 91 | L18: 925 | M18: 116 | N18: 894 | O18: 111
A19: Flores | B19: 1982 | C19: 275 | D19: 300 | E19: 40 | F19: 324 | G19: 41 | H19: 305 | I19: 39 | J19: 303 | K19: 56 | L19: 374 | M19: 44 | N19: 376 | O19: 55
A20: Florida | B20: 5777 | C20: 256 | D20: 963 | E20: 44 | F20: 941 | G20: 33 | H20: 939 | I20: 44 | J20: 919 | K20: 38 | L20: 1034 | M20: 56 | N20: 981 | O20: 41
A21: Lavalleja | B21: 4430 | C21: 645 | D21: 653 | E21: 112 | F21: 691 | G21: 99 | H21: 766 | I21: 97 | J21: 750 | K21: 115 | L21: 777 | M21: 110 | N21: 793 | O21: 112
A22: Maldonado | B22: 12853 | C22: 3844 | D22: 2133 | E22: 659 | F22: 2067 | G22: 609 | H22: 2126 | I22: 624 | J22: 2055 | K22: 632 | L22: 2225 | M22: 679 | N22: 2247 | O22: 641
A23: Paysandú | B23: 10693 | C23: 1221 | D23: 1708 | E23: 212 | F23: 1777 | G23: 212 | H23: 1769 | I23: 198 | J23: 1739 | K23: 180 | L23: 1860 | M23: 204 | N23: 1840 | O23: 215
A24: Río Negro | B24: 5362 | C24: 538 | D24: 958 | E24: 104 | F24: 863 | G24: 86 | H24: 897 | I24: 88 | J24: 830 | K24: 80 | L24: 913 | M24: 87 | N24: 901 | O24: 93
A25: Rivera | B25: 10206 | C25: 595 | D25: 1783 | E25: 98 | F25: 1570 | G25: 100 | H25: 1655 | I25: 101 | J25: 1623 | K25: 115 | L25: 1747 | M25: 96 | N25: 1828 | O25: 85
A26: Rocha | B26: 6283 | C26: 352 | D26: 1094 | E26: 59 | F26: 1031 | G26: 48 | H26: 975 | I26: 54 | J26: 996 | K26: 49 | L26: 1090 | M26: 72 | N26: 1097 | O26: 70
A27: Salto | B27: 12340 | C27: 1196 | D27: 2179 | E27: 220 | F27: 2019 | G27: 197 | H27: 2064 | I27: 188 | J27: 2022 | K27: 214 | L27: 2065 | M27: 192 | N27: 1991 | O27: 185
A28: San José | B28: 9587 | C28: 761 | D28: 1629 | E28: 129 | F28: 1622 | G28: 130 | H28: 1554 | I28: 145 | J28: 1536 | K28: 119 | L28: 1601 | M28: 114 | N28: 1645 | O28: 124
A29: Soriano | B29: 7787 | C29: 461 | D29: 1279 | E29: 75 | F29: 1294 | G29: 68 | H29: 1254 | I29: 89 | J29: 1248 | K29: 76 | L29: 1367 | M29: 68 | N29: 1345 | O29: 85
A30: Tacuarembó | B30: 8172 | C30: 657 | D30: 1332 | E30: 105 | F30: 1288 | G30: 138 | H30: 1253 | I30: 118 | J30: 1297 | K30: 92 | L30: 1514 | M30: 94 | N30: 1488 | O30: 110
A31: Treinta y Tres | B31: 4134 | C31: 164 | D31: 670 | E31: 20 | F31: 607 | G31: 22 | H31: 671 | I31: 43 | J31: 675 | K31: 29 | L31: 753 | M31: 23 | N31: 758 | O31: 27
A32: Fuente: Procesamiento propio en base a datos proporcionados por el DEE — CEIP
A33: Nota: Primaria Pública no incluye la matrícula correspondiente a JICI

Sheet II-2.2.12
A1: CONSEJO DE EDUCACIÓN PRIMARIA | F1: RENDIMIENTO ESCOLAR
A3: Cuadro Nº II-2.2.12
A5: RENDIMIENTO ESCOLAR EN EDUCACIÓN PRIMARIA COMÚN PÚBLICA POR ÁREA DEMOGRÁFICA SEGÚN GRADO. AÑO 2015.
A6: GRADO | B6: RENDIMIENTO ESCOLAR
B7: PROMOVIDOS | E7: NO PROMOVIDOS
B8: TOTAL | C8: ÁREA DEMOGRÁFICA | E8: TOTAL | F8: ÁREA DEMOGRÁFICA
C9: Urbana | D9: Rural | F9: Urbana | G9: Rural
A11: TOTAL | B11: =+C11+D11 -> 237611 | C11: =SUM(C12:C17) -> 224666 | D11: =SUM(D12:D17) -> 12945 | E11: =+F11+G11 -> 12549 | F11: =SUM(F12:F17) -> 12108 | G11: =SUM(G12:G17) -> 441
A12: Primero | B12: =+C12+D12 -> 37620 | C12: 35640 | D12: 1980 | E12: =+F12+G12 -> 5596 | F12: 5415 | G12: 181
A13: Segundo | B13: 38264 | C13: 36279 | D13: 1985 | E13: 2648 | F13: 2563 | G13: 85
A14: Tercero | B14: 39112 | C14: 36973 | D14: 2139 | E14: 1824 | F14: 1747 | G14: 77
A15: Cuarto | B15: 39097 | C15: 36936 | D15: 2161 | E15: 1105 | F15: 1061 | G15: 44
A16: Quinto | B16: 41525 | C16: 39156 | D16: 2369 | E16: 896 | F16: 866 | G16: 30
A17: Sexto | B17: 41993 | C17: 39682 | D17: 2311 | E17: 480 | F17: 456 | G17: 24
A19: Fuente: Procesamiento propio en base a datos proporcionados por el D.E.E .— C.E.I.P.
A20: Notas: - No incluye datos correspondientes a JICI - No se presenta información para la Educación Primaria Privada porque no existen establecimientos privados en el área demográfica rural

Sheet II-2.2.13
A1: CONSEJO DE EDUCACIÓN PRIMARIA | F1: RENDIMIENTO ESCOLAR
A3: Cuadro Nº II-2.2.13
A5: RENDIMIENTO ESCOLAR EN EDUCACIÓN PRIMARIA COMÚN PÚBLICA POR ÁREA DEMOGRÁFICA SEGÚN DEPARTAMENTO. AÑO 2015.
A6: DEPARTAMENTO | B6: RENDIMIENTO ESCOLAR
B7: PROMOVIDOS | F7: NO PROMOVIDOS
B8: TOTAL | C8: ÁREA DEMOGRÁFICA | E8: TOTAL | F8: ÁREA DEMOGRÁFICA
C9: Urbana | D9: Rural | F9: Urbana | G9: Rural
A11: TOTAL | B11: =+C11+D11 -> 237611 | C11: =SUM(C12:C13) -> 224666 | D11: =SUM(D12:D13) -> 12945 | E11: =+F11+G11 -> 12549 | F11: =SUM(F12:F13) -> 12108 | G11: =SUM(G12:G13) -> 441
A12: MONTEVIDEO | B12: =+C12+D12 -> 71620 | C12: 71620 | D12: 0 | E12: =+F12+G12 -> 5751 | F12: 5751 | G12: 0
A13: RESTO DEL PAÍS | B13: =+C13+D13 -> 165991 | C13: =SUM(C14:C31) -> 153046 | D13: =SUM(D14:D31) -> 12945 | E13: =+F13+G13 -> 6798 | F13: =SUM(F14:F31) -> 6357 | G13: =SUM(G14:G31) -> 441
A14: Artigas | B14: =+C14+D14 -> 7344 | C14: 6784 | D14: 560 | E14: =+F14+G14 -> 127 | F14: 123 | G14: 4
A15: Canelones | B15: 39836 | C15: 37555 | D15: 2281 | E15: 2485 | F15: 2405 | G15: 80
A16: Cerro Largo | B16: 7744 | C16: 6950 | D16: 794 | E16: 360 | F16: 313 | G16: 47
A17: Colonia | B17: 10062 | C17: 9065 | D17: 997 | E17: 323 | F17: 289 | G17: 34
A18: Durazno | B18: 4849 | C18: 4437 | D18: 412 | E18: 53 | F18: 51 | G18: 2
A19: Flores | B19: 1963 | C19: 1778 | D19: 185 | E19: 19 | F19: 15 | G19: 4
A20: Florida | B20: 5613 | C20: 4923 | D20: 690 | E20: 164 | F20: 140 | G20: 24
A21: Lavalleja | B21: 4332 | C21: 3947 | D21: 385 | E21: 98 | F21: 87 | G21: 11
A22: Maldonado | B22: 12401 | C22: 11948 | D22: 453 | E22: 452 | F22: 437 | G22: 15
A23: Paysandú | B23: 10243 | C23: 9518 | D23: 725 | E23: 450 | F23: 431 | G23: 19
A24: Río Negro | B24: 5133 | C24: 4648 | D24: 485 | E24: 229 | F24: 204 | G24: 25
A25: Rivera | B25: 9973 | C25: 9081 | D25: 892 | E25: 233 | F25: 222 | G25: 11
A26: Rocha | B26: 6085 | C26: 5790 | D26: 295 | E26: 198 | F26: 190 | G26: 8
A27: Salto | B27: 11780 | C27: 10768 | D27: 1012 | E27: 560 | F27: 500 | G27: 60
A28: San José | B28: 9109 | C28: 8133 | D28: 976 | E28: 478 | F28: 444 | G28: 34
A29: Soriano | B29: 7511 | C29: 6888 | D29: 623 | E29: 276 | F29: 248 | G29: 28
A30: Tacuarembó | B30: 7970 | C30: 7095 | D30: 875 | E30: 202 | F30: 176 | G30: 26
A31: Treinta y Tres | B31: 4043 | C31: 3738 | D31: 305 | E31: 91 | F31: 82 | G31: 9
A32: Fuente: Procesamiento propio en base a datos proporcionados por el D.E.E .— C.E.I.P.
A33: Notas: No incluye datos correspondientes a JICI
A34: No se presenta información para la Educación Primaria Privada porque no existen establecimientos privados en el área demográfica rural

Sheet II-2.2.14
A1: CONSEJO DE EDUCACIÓN PRIMARIA | F1: RENDIMIENTOS ESCOLAR
A3: Cuadro Nº II-2.2.14
A5: RENDIMIENTO ESCOLAR EN EDUCACIÓN PRIMARIA COMÚN PÚBLICA POR SEXO SEGÚN DEPARTAMENTO. AÑO 2015.
A6: DEPARTAMENTO | B6: RENDIMIENTO ESCOLAR
B7: PROMOVIDOS | E7: NO PROMOVIDOS
B8: TOTAL | C8: SEXO | E8: TOTAL | F8: SEXO
C9: M | D9: F | F9: M | G9: F
A10: TOTAL | B10: =+C10+D10 -> 237611 | C10: =SUM(C11:C12) -> 121364 | D10: =SUM(D11:D12) -> 116247 | E10: =+F10+G10 -> 12549 | F10: =SUM(F11:F12) -> 7678 | G10: =SUM(G11:G12) -> 4871
A11: MONTEVIDEO | B11: =+C11+D11 -> 71620 | C11: 36595 | D11: 35025 | E11: =+F11+G11 -> 5751 | F11: 3429 | G11: 2322
A12: RESTO DEL PAÍS | B12: 165991 | C12: =SUM(C13:C30) -> 84769 | D12: =SUM(D13:D30) -> 81222 | E12: 6798 | F12: =SUM(F13:F30) -> 4249 | G12: =SUM(G13:G30) -> 2549
A13: Artigas | B13: 7344 | C13: 3854 | D13: 3490 | E13: 127 | F13: 84 | G13: 43
A14: Canelones | B14: 39836 | C14: 20333 | D14: 19503 | E14: 2485 | F14: 1524 | G14: 961
A15: Cerro Largo | B15: 7744 | C15: 3851 | D15: 3893 | E15: 360 | F15: 243 | G15: 117
A16: Colonia | B16: 10062 | C16: 5082 | D16: 4980 | E16: 323 | F16: 210 | G16: 113
A17: Durazno | B17: 4849 | C17: 2482 | D17: 2367 | E17: 53 | F17: 31 | G17: 22
A18: Flores | B18: 1963 | C18: 951 | D18: 1012 | E18: 19 | F18: 12 | G18: 7
A19: Florida | B19: 5613 | C19: 2885 | D19: 2728 | E19: 164 | F19: 110 | G19: 54
A20: Lavalleja | B20: 4332 | C20: 2200 | D20: 2132 | E20: 98 | F20: 62 | G20: 36
A21: Maldonado | B21: 12401 | C21: 6221 | D21: 6180 | E21: 452 | F21: 270 | G21: 182
A22: Paysandú | B22: 10243 | C22: 5229 | D22: 5014 | E22: 450 | F22: 281 | G22: 169
A23: Río Negro | B23: 5133 | C23: 2626 | D23: 2507 | E23: 229 | F23: 142 | G23: 87
A24: Rivera | B24: 9973 | C24: 5161 | D24: 4812 | E24: 233 | F24: 159 | G24: 74
A25: Rocha | B25: 6085 | C25: 3081 | D25: 3004 | E25: 198 | F25: 117 | G25: 81
A26: Salto | B26: 11780 | C26: 6090 | D26: 5690 | E26: 560 | F26: 352 | G26: 208
A27: San José | B27: 9109 | C27: 4671 | D27: 4438 | E27: 478 | F27: 296 | G27: 182
A28: Soriano | B28: 7511 | C28: 3859 | D28: 3652 | E28: 276 | F28: 169 | G28: 107
A29: Tacuarembó | B29: 7970 | C29: 4106 | D29: 3864 | E29: 202 | F29: 130 | G29: 72
A30: Treinta y Tres | B30: 4043 | C30: 2087 | D30: 1956 | E30: 91 | F30: 57 | G30: 34
A31: Fuente: Procesamiento propio en base a datos proporcionados por el D.E.E. — C.E.I.P.
A32: Nota: No incluye datos correspondientes a JICI .

Sheet II-2.2.15
A1: CONSEJO DE EDUCACIÓN PRIMARIA | F1: RENDIMIENTO ESCOLAR
A3: Cuadro Nº II-2.2.15
A5: RENDIMIENTO ESCOLAR EN EDUCACIÓN PRIMARIA COMÚN PRIVADA POR SEXO SEGÚN DEPARTAMENTO. AÑO 2015.
A6: DEPARTAMENTO | B6: RENDIMIENTO ESCOLAR
B7: PROMOVIDOS | E7: NO PROMOVIDOS
B8: TOTAL | C8: SEXO | E8: TOTAL | F8: SEXO
C9: M | D9: F | F9: M | G9: F
A10: TOTAL | B10: =+C10+D10 -> 53004 | C10: =SUM(C11:C12) -> 26831 | D10: =SUM(D11:D12) -> 26173 | E10: =+F10+G10 -> 573 | F10: =SUM(F11:F12) -> 361 | G10: =SUM(G11:G12) -> 212
A11: MONTEVIDEO | B11: =+C11+D11 -> 32552 | C11: 16496 | D11: 16056 | E11: =+F11+G11 -> 387 | F11: 235 | G11: 152
A12: RESTO DEL PAÍS | B12: 20452 | C12: =SUM(C13:C30) -> 10335 | D12: =SUM(D13:D30) -> 10117 | E12: 186 | F12: =SUM(F13:F30) -> 126 | G12: =SUM(G13:G30) -> 60
A13: Artigas | B13: 184 | C13: 106 | D13: 78 | E13: 0 | F13: 0 | G13: 0
A14: Canelones | B14: 7397 | C14: 3768 | D14: 3629 | E14: 87 | F14: 63 | G14: 24
A15: Cerro Largo | B15: 622 | C15: 303 | D15: 319 | E15: 5 | F15: 2 | G15: 3
A16: Colonia | B16: 757 | C16: 385 | D16: 372 | E16: 5 | F16: 3 | G16: 2
A17: Durazno | B17: 613 | C17: 284 | D17: 329 | E17: 3 | F17: 2 | G17: 1
A18: Flores | B18: 272 | C18: 134 | D18: 138 | E18: 3 | F18: 0 | G18: 3
A19: Florida | B19: 251 | C19: 134 | D19: 117 | E19: 5 | F19: 3 | G19: 2
A20: Lavalleja | B20: 643 | C20: 326 | D20: 317 | E20: 2 | F20: 1 | G20: 1
A21: Maldonado | B21: 3817 | C21: 1933 | D21: 1884 | E21: 27 | F21: 19 | G21: 8
A22: Paysandú | B22: 1213 | C22: 626 | D22: 587 | E22: 8 | F22: 1 | G22: 7
A23: Río Negro | B23: 535 | C23: 280 | D23: 255 | E23: 3 | F23: 3 | G23: 0
A24: Rivera | B24: 588 | C24: 302 | D24: 286 | E24: 7 | F24: 6 | G24: 1
A25: Rocha | B25: 351 | C25: 164 | D25: 187 | E25: 1 | F25: 1 | G25: 0
A26: Salto | B26: 1183 | C26: 562 | D26: 621 | E26: 13 | F26: 10 | G26: 3
A27: San José | B27: 752 | C27: 347 | D27: 405 | E27: 9 | F27: 6 | G27: 3
A28: Soriano | B28: 459 | C28: 250 | D28: 209 | E28: 2 | F28: 2 | G28: 0
A29: Tacuarembó | B29: 651 | C29: 339 | D29: 312 | E29: 6 | F29: 4 | G29: 2
A30: Treinta y Tres | B30: 164 | C30: 92 | D30: 72 | E30: 0 | F30: 0 | G30: 0
A31: Fuente: Procesamiento propio en base a datos proporcionados por el D.E.E. — C.E.I.P.

Sheet II-2.2.16
A1: CONSEJO DE EDUCACIÓN PRIMARIA | E1: RENDIMIENTO ESCOLAR
A3: Cuadro Nº II-2.2.16
A5: ESTUDIANTES MATRICULADOS EGRESADOS DE EDUCACIÓN PRIMARIA COMÚN PÚBLICA POR ÁREA DEMOGRÁFICA SEGÚN DEPARTAMENTO. AÑO 2015.
A6: DEPARTAMENTO | C6: ÁREA DEMOGRÁFICA
B7: TOTAL
C8: Urbana | D8: Rural
A10: TOTAL | B10: =+C10+D10 -> 41993 | C10: =SUM(C11:C12) -> 39682 | D10: =SUM(D11:D12) -> 2311
A11: MONTEVIDEO | B11: =C11+D11 -> 12399 | C11: 12399 | D11: 0
A12: RESTO DEL PAÍS | B12: =+C12+D12 -> 29594 | C12: =SUM(C13:C30) -> 27283 | D12: =SUM(D13:D30) -> 2311
A13: Artigas | B13: =+C13+D13 -> 1342 | C13: 1253 | D13: 89
A14: Canelones | B14: 7048 | C14: 6627 | D14: 421
A15: Cerro Largo | B15: 1403 | C15: 1267 | D15: 136
A16: Colonia | B16: 1773 | C16: 1600 | D16: 173
A17: Durazno | B17: 892 | C17: 815 | D17: 77
A18: Flores | B18: 376 | C18: 342 | D18: 34
A19: Florida | B19: 977 | C19: 871 | D19: 106
A20: Lavalleja | B20: 789 | C20: 713 | D20: 76
A21: Maldonado | B21: 2229 | C21: 2146 | D21: 83
A22: Paysandú | B22: 1821 | C22: 1686 | D22: 135
A23: Río Negro | B23: 899 | C23: 818 | D23: 81
A24: Rivera | B24: 1817 | C24: 1644 | D24: 173
A25: Rocha | B25: 1091 | C25: 1049 | D25: 42
A26: Salto | B26: 1950 | C26: 1764 | D26: 186
A27: San José | B27: 1628 | C27: 1449 | D27: 179
A28: Soriano | B28: 1332 | C28: 1220 | D28: 112
A29: Tacuarembó | B29: 1476 | C29: 1314 | D29: 162
A30: Treinta y Tres | B30: 751 | C30: 705 | D30: 46
A31: Fuente: Procesamiento propio en base a datos proporcionados por el D.E.E .— C.E.I.P.
A32: Nota: No se presenta información para Montevideo Rural por que no existen establecimientos en el área demográfica rural.

Sheet II-2.2.17
A1: CONSEJO DE EDUCACIÓN PRIMARIA | G1: RENDIMIENTO ESCOLAR
A3: Cuadro Nº II-2.2.17
A5: ESTUDIANTES MATRICULADOS EGRESADOS DE EDUCACIÓN PRIMARIA COMÚN POR FORMA DE ADMINISTRACIÓN SEGÚN DEPARTAMENTO. AÑO 2015.
A6: DEPARTAMENTO | B6: TOTAL | C6: PÚBLICA | G6: PRIVADA
C7: TOTAL | D7: SEXO | G7: TOTAL | H7: SEXO
D8: M | E8: M | F8: F | H8: M | I8: F
A9: TOTAL | B9: =+C9+G9 -> 50678 | C9: =+E9+F9 -> 41993 | E9: =SUM(E10:E11) -> 21437 | F9: =SUM(F10:F11) -> 20556 | G9: =+H9+I9 -> 8685 | H9: =SUM(H10,H11) -> 4393 | I9: =SUM(I10,I11) -> 4292
A10: MONTEVIDEO | B10: =+C10+G10 -> 17705 | C10: =+E10+F10 -> 12399 | D10: 6560 | E10: 6259 | F10: 6140 | G10: =+H10+I10 -> 5306 | H10: 2695 | I10: 2611
A11: RESTO DEL PAÍS | B11: =+C11+G11 -> 32973 | C11: 29594 | E11: =SUM(E12:E29) -> 15178 | F11: =SUM(F12:F29) -> 14416 | G11: 3379 | H11: =SUM(H12:H29) -> 1698 | I11: =SUM(I12:I29) -> 1681
A12: Artigas | B12: =+C12+G12 -> 1364 | C12: 1342 | D12: 765 | E12: 722 | F12: 620 | G12: 22 | H12: 9 | I12: 13
A13: Canelones | B13: 8253 | C13: 7048 | D13: 3826 | E13: 3618 | F13: 3430 | G13: 1205 | H13: 611 | I13: 594
A14: Cerro Largo | B14: 1494 | C14: 1403 | D14: 802 | E14: 718 | F14: 685 | G14: 91 | H14: 50 | I14: 41
A15: Colonia | B15: 1884 | C15: 1773 | D15: 891 | E15: 880 | F15: 893 | G15: 111 | H15: 60 | I15: 51
A16: Durazno | B16: 1003 | C16: 892 | D16: 502 | E16: 471 | F16: 421 | G16: 111 | H16: 49 | I16: 62
A17: Flores | B17: 430 | C17: 376 | D17: 192 | E17: 175 | F17: 201 | G17: 54 | H17: 30 | I17: 24
A18: Florida | B18: 1018 | C18: 977 | D18: 502 | E18: 504 | F18: 473 | G18: 41 | H18: 23 | I18: 18
A19: Lavalleja | B19: 901 | C19: 789 | D19: 426 | E19: 412 | F19: 377 | G19: 112 | H19: 54 | I19: 58
A20: Maldonado | B20: 2870 | C20: 2229 | D20: 1183 | E20: 1077 | F20: 1152 | G20: 641 | H20: 318 | I20: 323
A21: Paysandú | B21: 2036 | C21: 1821 | D21: 976 | E21: 949 | F21: 872 | G21: 215 | H21: 113 | I21: 102
A22: Río Negro | B22: 992 | C22: 899 | D22: 501 | E22: 466 | F22: 433 | G22: 93 | H22: 58 | I22: 35
A23: Rivera | B23: 1901 | C23: 1817 | D23: 995 | E23: 949 | F23: 868 | G23: 84 | H23: 42 | I23: 42
A24: Rocha | B24: 1160 | C24: 1091 | D24: 603 | E24: 548 | F24: 543 | G24: 69 | H24: 31 | I24: 38
A25: Salto | B25: 2135 | C25: 1950 | D25: 1191 | E25: 1021 | F25: 929 | G25: 185 | H25: 76 | I25: 109
A26: San José | B26: 1752 | C26: 1628 | D26: 824 | E26: 835 | F26: 793 | G26: 124 | H26: 59 | I26: 65
A27: Soriano | B27: 1417 | C27: 1332 | D27: 717 | E27: 693 | F27: 639 | G27: 85 | H27: 42 | I27: 43
A28: Tacuarembó | B28: 1585 | C28: 1476 | D28: 845 | E28: 751 | F28: 725 | G28: 109 | H28: 56 | I28: 53
A29: Treinta y Tres | B29: 778 | C29: 751 | D29: 443 | E29: 389 | F29: 362 | G29: 27 | H29: 17 | I29: 10
A30: Fuente: Procesamiento propio en base a datos proporcionados por el D.E.E. — C.E.I.P.

Sheet II-2.2.18
A1: CONSEJO DE EDUCACIÓN PRIMARIA | D1: RENDIMIENTO ESCOLAR
A3: Cuadro Nº II-2.2.18
A5: ASISTENCIA INSUFICIENTE Y ABANDONO INTERMITENTE DE 1º GRADO Y 1º A 6º GRADO EN EDUCACIÓN COMÚN PÚBLICA SEGÚN DEPARTAMENTO. AÑO 2015.
A6: DEPARTAMENTO | B6: ASISTENCIA INSUFICIENTE | D6: ABANDONO INTERMITENTE
B7: Sólo 1.er año | C7: 1.º a 6.º años | D7: Sólo 1.er año | E7: 1.º a 6.º años
A8: TOTAL | B8: =SUM(B9:B10) -> 4961 | C8: =SUM(C9:C10) -> 21146 | D8: =SUM(D9:D10) -> 209 | E8: =SUM(E9:E10) -> 974
A9: MONTEVIDEO | B9: 2920 | C9: 12408 | D9: 125 | E9: 543
A10: RESTO DEL PAÍS | B10: =SUM(B11:B28) -> 2041 | C10: =SUM(C11:C28) -> 8738 | D10: =SUM(D11:D28) -> 84 | E10: =SUM(E11:E28) -> 431
A11: Artigas | B11: 138 | C11: 640 | D11: 1 | E11: 16
A12: Canelones | B12: 759 | C12: 3239 | D12: 42 | E12: 161
A13: Cerro Largo | B13: 100 | C13: 363 | D13: 0 | E13: 12
A14: Colonia | B14: 57 | C14: 204 | D14: 6 | E14: 19
A15: Durazno | B15: 54 | C15: 317 | D15: 2 | E15: 12
A16: Flores | B16: 10 | C16: 44 | D16: 2 | E16: 4
A17: Florida | B17: 36 | C17: 159 | D17: 0 | E17: 12
A18: Lavalleja | B18: 32 | C18: 137 | D18: 1 | E18: 10
A19: Maldonado | B19: 140 | C19: 506 | D19: 13 | E19: 34
A20: Paysandú | B20: 86 | C20: 395 | D20: 1 | E20: 17
A21: Río Negro | B21: 51 | C21: 209 | D21: 0 | E21: 8
A22: Rivera | B22: 121 | C22: 542 | D22: 5 | E22: 22
A23: Rocha | B23: 50 | C23: 194 | D23: 1 | E23: 11
A24: Salto | B24: 193 | C24: 868 | D24: 4 | E24: 39
A25: San José | B25: 69 | C25: 307 | D25: 2 | E25: 19
A26: Soriano | B26: 68 | C26: 311 | D26: 1 | E26: 11
A27: Tacuarembó | B27: 54 | C27: 183 | D27: 1 | E27: 12
A28: Treinta y Tres | B28: 23 | C28: 120 | D28: 2 | E28: 12
A29: Fuente: Procesamiento propio en base a datos proporcionados por el D.E.E. — C.E.I.P.
A30: Nota: No incluye datos correspondientes a JICI .

Sheet II-2.3.1
A1: CONSEJO DE EDUCACIÓN PRIMARIA | G1: PERSONAL DOCENTE
A3: Cuadro Nº II-2.3.1
A5: PERSONAL DOCENTE DE EDUCACIÓN PRIMARIA PÚBLICA POR TIPO DE DESEMPEÑO DOCENTE SEGÚN DEPARTAMENTO. AÑO 2015.
A6: DEPARTAMENTO | C6: TIPO DE DESEMPEÑO DOCENTE
B7: TOTAL | C7: Inspección | D7: Educación Común | E7: Educación en Colonias | F7: Educación Especial | G7: Servicios Docentes Especiales | H7: Profesores Especiales | I7: Coordinación Apoyo
A9: TOTAL | B9: =SUM(B11:B12) -> 19776 | C9: 279 | D9: 15249 | E9: 39 | F9: 982 | G9: 124 | H9: 3010 | I9: 93
A11: MONTEVIDEO | B11: =SUM(C11:I11) -> 5761 | C11: 110 | D11: 4188 | E11: 14 | F11: 401 | G11: 74 | H11: 961 | I11: 13
A12: RESTO DEL PAÍS | B12: =SUM(B14:B31) -> 14015 | C12: 169 | D12: 11061 | E12: 25 | F12: 581 | G12: =SUM(G14:G31) -> 50 | H12: 2049 | I12: 80
A14: Artigas | B14: =SUM(C14:I14) -> 674 | C14: 7 | D14: 517 | E14: 0 | F14: 24 | G14: 0 | H14: 122 | I14: 4
A15: Canelones | B15: 2801 | C15: 31 | D15: 2278 | E15: 0 | F15: 113 | G15: 11 | H15: 355 | I15: 13
A16: Cerro Largo | B16: 734 | C16: 9 | D16: 565 | E16: 0 | F16: 34 | G16: 4 | H16: 118 | I16: 4
A17: Colonia | B17: 834 | C17: 9 | D17: 661 | E17: 0 | F17: 39 | G17: 3 | H17: 118 | I17: 4
A18: Durazno | B18: 475 | C18: 7 | D18: 381 | E18: 0 | F18: 22 | G18: 0 | H18: 61 | I18: 4
A19: Flores | B19: 213 | C19: 3 | D19: 159 | E19: 0 | F19: 9 | G19: 0 | H19: 39 | I19: 3
A20: Florida | B20: 542 | C20: 7 | D20: 408 | E20: 0 | F20: 26 | G20: 4 | H20: 93 | I20: 4
A21: Lavalleja | B21: 444 | C21: 6 | D21: 349 | E21: 0 | F21: 20 | G21: 4 | H21: 61 | I21: 4
A22: Maldonado | B22: 864 | C22: 11 | D22: 664 | E22: 15 | F22: 41 | G22: 7 | H22: 122 | I22: 4
A23: Paysandú | B23: 867 | C23: 10 | D23: 707 | E23: 0 | F23: 38 | G23: 4 | H23: 104 | I23: 4
A24: Río Negro | B24: 464 | C24: 5 | D24: 369 | E24: 0 | F24: 21 | G24: 0 | H24: 65 | I24: 4
A25: Rivera | B25: 898 | C25: 11 | D25: 680 | E25: 0 | F25: 31 | G25: 1 | H25: 171 | I25: 4
A26: Rocha | B26: 553 | C26: 7 | D26: 421 | E26: 0 | F26: 29 | G26: 2 | H26: 90 | I26: 4
A27: Salto | B27: 962 | C27: 12 | D27: 751 | E27: 9 | F27: 38 | G27: 2 | H27: 145 | I27: 5
A28: San José | B28: 768 | C28: 9 | D28: 631 | E28: 0 | F28: 30 | G28: 0 | H28: 94 | I28: 4
A29: Soriano | B29: 664 | C29: 9 | D29: 532 | E29: 0 | F29: 28 | G29: 2 | H29: 89 | I29: 4
A30: Tacuarembó | B30: 834 | C30: 10 | D30: 663 | E30: 1 | F30: 23 | G30: 6 | H30: 128 | I30: 3
A31: Treinta y Tres | B31: 424 | C31: 6 | D31: 325 | E31: 0 | F31: 15 | G31: 0 | H31: 74 | I31: 4
A32: Fuente: DEE — CEIP Listado de cargos de la División Hacienda a Julio 2013
A74: =SUM(A76:A77) -> 147
A76: 92
A77: =SUM(A79:A96) -> 55
A79: 0
A80: 14
A81: 4
A82: 3
A83: 0
A84: 0
A85: 5
A86: 4
A87: 7
A88: 5
A89: 0
A90: 1
A91: 3
A92: 2
A93: 0
A94: 2
A95: 5
A96: 0

Sheet II-2.3.2
A1: CONSEJO DE EDUCACIÓN PRIMARIA | J1: PERSONAL DOCENTE
A3: Cuadro Nº II-2.3.2
A5: PERSONAL DOCENTE DE EDUCACIÓN PRIMARIA PRIVADA POR TIPO DE ESTABLECIMIENTO Y TIPO DE DESEMPEÑO DOCENTE SEGÚN DEPARTAMENTO. AÑO 2015.
A6: DEPARTAMENTO | C6: TOTAL | D6: MAESTROS | E6: PROFESORES | F6: ESTABLECIMIENTOS
F7: HABILITADOS | I7: AUTORIZADOS
F8: Total | G8: Maestros | H8: Profesores | I8: Total | J8: Maestros | K8: Profesores
A10: TOTAL | C10: =+D10+E10 -> 7167 | D10: =+G10+J10 -> 2599 | E10: =+H10+K10 -> 4568 | F10: =+G10+H10 -> 6741 | G10: =SUM(G11:G12) -> 2475 | H10: =SUM(H11:H12) -> 4266 | I10: =+J10+K10 -> 426 | J10: =SUM(J11:J12) -> 124 | K10: =SUM(K11:K12) -> 302
A11: MONTEVIDEO | C11: =+D11+E11 -> 4202 | D11: =G11+J11 -> 1500 | E11: =H11+K11 -> 2702 | F11: =+G11+H11 -> 3837 | G11: 1403 | H11: 2434 | I11: =+J11+K11 -> 365 | J11: 97 | K11: 268
A12: RESTO DEL PAÍS | C12: =+D12+E12 -> 2965 | D12: =G12+J12 -> 1099 | E12: =H12+K12 -> 1866 | F12: =+G11+H11 -> 3837 | G12: =SUM(G13:G30) -> 1072 | H12: =SUM(H13:H30) -> 1832 | I12: =+J12+K12 -> 61 | J12: =SUM(J13:J30) -> 27 | K12: =SUM(K13:K30) -> 34
A13: Artigas | C13: =+F13+I13 -> 18 | D13: 5 | E13: 13 | F13: =+G13+H13 -> 18 | G13: 5 | H13: 13 | I13: 0 | J13: 0 | K13: 0
A14: Canelones | C14: 1051 | D14: 403 | E14: 648 | F14: 994 | G14: 378 | H14: 616 | I14: 57 | J14: 25 | K14: 32
A15: Cerro Largo | C15: 76 | D15: 28 | E15: 48 | F15: 76 | G15: 28 | H15: 48 | I15: 0 | J15: 0 | K15: 0
A16: Colonia | C16: 168 | D16: 48 | E16: 120 | F16: 168 | G16: 48 | H16: 120 | I16: 0 | J16: 0 | K16: 0
A17: Durazno | C17: 67 | D17: 34 | E17: 33 | F17: 67 | G17: 34 | H17: 33 | I17: 0 | J17: 0 | K17: 0
A18: Flores | C18: 54 | D18: 20 | E18: 34 | F18: 54 | G18: 20 | H18: 34 | I18: 0 | J18: 0 | K18: 0
A19: Florida | C19: 45 | D19: 18 | E19: 27 | F19: 45 | G19: 18 | H19: 27 | I19: 0 | J19: 0 | K19: 0
A20: Lavalleja | C20: 98 | D20: 38 | E20: 60 | F20: 98 | G20: 38 | H20: 60 | I20: 0 | J20: 0 | K20: 0
A21: Maldonado | C21: 503 | D21: 187 | E21: 316 | F21: 503 | G21: 187 | H21: 316 | I21: 0 | J21: 0 | K21: 0
A22: Paysandú | C22: 153 | D22: 71 | E22: 82 | F22: 153 | G22: 71 | H22: 82 | I22: 0 | J22: 0 | K22: 0
A23: Río Negro | C23: 120 | D23: 34 | E23: 86 | F23: 118 | G23: 33 | H23: 85 | I23: 2 | J23: 1 | K23: 1
A24: Rivera | C24: 42 | D24: 27 | E24: 15 | F24: 42 | G24: 27 | H24: 15 | I24: 0 | J24: 0 | K24: 0
A25: Rocha | C25: 67 | D25: 22 | E25: 45 | F25: 67 | G25: 22 | H25: 45 | I25: 0 | J25: 0 | K25: 0
A26: Salto | C26: 154 | D26: 52 | E26: 102 | F26: 154 | G26: 52 | H26: 102 | I26: 0 | J26: 0 | K26: 0
A27: San José | C27: 129 | D27: 41 | E27: 88 | F27: 127 | G27: 40 | H27: 87 | I27: 2 | J27: 1 | K27: 1
A28: Soriano | C28: 73 | D28: 23 | E28: 50 | F28: 73 | G28: 23 | H28: 50 | I28: 0 | J28: 0 | K28: 0
A29: Tacuarembó | C29: 129 | D29: 40 | E29: 89 | F29: 129 | G29: 40 | H29: 89 | I29: 0 | J29: 0 | K29: 0
A30: Treinta y Tres | C30: 18 | D30: 8 | E30: 10 | F30: 18 | G30: 8 | H30: 10 | I30: 0 | J30: 0 | K30: 0
A31: Fuente: DEE — CEIP Planillas enviadas por las Inspecciones Departamentales a abril de 2011.
A32: NOTA: El personal docente incluye exclusivamente docencia directa

Sheet MEDIA BASICA
A6: Cuadro Nº II-3.1.1 | B6: ESTABLECIMIENTOS DE EDUCACIÓN MEDIA BÁSICA POR MODALIDAD Y FORMA DE ADMINISTRACIÓN SEGÚN DEPARTAMENTO. AÑO 2015.
A8: Cuadro Nº II-3.1.2 | B8: ESTABLECIMIENTOS FÍSICOS DE EDUCACIÓN MEDIA POR FORMA DE ADMINISTRACIÓN SEGÚN DEPARTAMENTO. AÑO 2015.
A11: Cuadro Nº II-3.2.1 | B11: ALUMNOS MATRICULADOS EN EDUCACION MEDIA BÁSICA GENERAL POR GRADO SEGÚN GRANDES ÁREAS Y FORMA DE ADMINISTRACIÓN. AÑO 2015.
A13: Cuadro Nº II-3.2.2 | B13: ALUMNOS MATRICULADOS EN EL CETP EN EDUCACIÓN MEDIA BÁSICA TECNOLÓGICA POR TIPO DE CURSO SEGÚN GRANDES ÁREAS, DEPARTAMENTO Y SEXO. AÑO 2015.
A15: Cuadro Nº II-3.2.3 | B15: ALUMNOS MATRICULADOS EN SÉPTIMO, OCTAVO Y NOVENO GRADO DE CICLO BÁSICO RURAL POR SEXO SEGÚN DEPARTAMENTO. AÑO 2015.
A17: Cuadro Nº II-3.2.4 | B17: ALUMNOS MATRICULADOS DE EDUCACIÓN MEDIA BÁSICA GENERAL POR GRADO Y FORMA DE ADMINISTRACIÓN SEGÚN DEPARTAMENTO AÑO 2015.
A19: Cuadro Nº II-3.2.5 | B19: ALUMNOS MATRICULADOS DE EDUCACIÓN MEDIA BÁSICA PRIVADA POR GRADO Y SEXO SEGÚN DEPARTAMENTO. AÑO 2015.
A21: Cuadro Nº II-3.2.6 | B21: ALUMNOS MATRICULADOS DE EDUCACIÓN MEDIA BÁSICA PÚBLICA POR GRADO Y SEXO SEGÚN DEPARTAMENTO. AÑO 2015.
A23: Cuadro Nº II-3.2.7 | B23: ALUMNOS MATRICULADOS EN EDUCACIÓN TÉCNICA MEDIA BÁSICA POR TIPO DE CURSO SEGÚN EDAD. AÑO 2015.
A25: Cuadro Nº II-3.2.8 | B25: ALUMNOS MATRICULADOS EN EL CETP EN EDUCACIÓN MEDIA BÁSICA POR TIPO DE CURSO SEGÚN SECTORES DE ESTUDIO. AÑO 2015.
A28: Cuadro Nº II-3.3.1 | B28: PERSONAL DOCENTE Y HORAS DOCENTES DEL CES EN EDUACIÓN MEDIA BÁSICA GENERAL POR TITULACIÓN SEGÚN ASIGNATURAS. AÑO 2015.
A30: Cuadro Nº II-3.3.2 | B30: PERSONAL DOCENTE DEL CETP EN EDUCACIÓN MEDIA BÁSICA TECNOLÓGICA POR TIPO DE CURSO. AÑO 2015.
A33: Cuadro Nº II-3.4.1 | B33: GRUPOS DEL CES EN EDUCACIÓN MEDIA BÁSICA GENERAL COMPARADOS CON EL TOTAL DE GRUPOS EN EDUCACIÓN MEDIA GENERAL SEGÚN GRANDES ÁREAS Y FORMA DE ADMINISTRACIÓN. AÑO 2015.
A91: =MID(B63,1,20) -> 
A100: =MID(B72,1,20) -> 

Sheet II-3.1.1
A1: CONSEJO DE EDUCACIÓN INICIAL Y PRIMARIA (CEIP), | J1: ESTABLECIMIENTOS
A2: CONSEJO DE EDUCACIÓN SECUNDARIA (CES) Y CONSEJO DE EDUCACIÓN TÉCNICO PROFESIONAL (UTU)
A4: Cuadro Nº II-3.1.1
A6: ESTABLECIMIENTOS DE EDUCACIÓN MEDIA BÁSICA POR MODALIDAD Y FORMA DE ADMINISTRACIÓN SEGÚN DEPARTAMENTO. AÑO 2015.
A7: DEPARTAMENTO | D7: MODALIDAD
B8: TOTAL GENERAL | C8: TOTAL LICEOS PÚBLICOS | D8: CES | K8: CEIP | M8: CETP
D9: FORMA DE ADMINISTRACIÓN
D10: LICEOS PÚBLICOS | H10: TOTAL LICEOS PRIVADOS | I10: Liceos Privados | K10: Escuelas con Ciclo Básico Rural | L10: TOTAL ESCUELAS DE CBT Y TÈCNICA
M11: Escuelas de CBT y Técnica.
D12: Diurnos Oficiales | F12: Extra Edad Oficiales (Nocturno Y Diurno)
D15: Ciclo Básico | E15: C.Básico y Bachillerato | F15: Ciclo Básico | G15: C.Básico y Bachillerato | I15: Ciclo Básico | J15: C.Básico y Bachillerato | M15: Escuelas de CBT y Técnica | N15: Reparticiones
A16: TOTAL | B16: =C16+H16+L16 -> 757 | C16: =SUM(C17,C18) -> 322 | D16: =D17+D18 -> 109 | E16: =E17+E18 -> 144 | F16: =F17+F18 -> 6 | G16: =G17+G18 -> 63 | H16: =SUM(I16:K16) -> 242 | I16: =I17+I18 -> 21 | J16: =J17+J18 -> 161 | K16: =K17+K18 -> 60 | L16: =M16+N16 -> 193 | M16: =M17+M18 -> 102 | N16: =N17+N18 -> 91
A17: MONTEVIDEO | B17: =C17+H17+L17 -> 205 | C17: =SUM(D17:G17) -> 72 | D17: 50 | E17: 5 | F17: 1 | G17: 16 | H17: =SUM(I17:K17) -> 102 | I17: 9 | J17: 93 | K17: 0 | L17: =M17+N17 -> 31 | M17: 16 | N17: 15
A18: RESTO DEL PAÍS | B18: 552 | C18: =SUM(C19:C36) -> 250 | D18: =SUM(D19:D36) -> 59 | E18: =SUM(E19:E36) -> 139 | F18: =SUM(F19:F36) -> 5 | G18: =SUM(G19:G36) -> 47 | H18: =SUM(I18:K18) -> 140 | I18: =SUM(I19:I36) -> 12 | J18: =SUM(J19:J36) -> 68 | K18: =SUM(K19:K36) -> 60 | L18: 162 | M18: =SUM(M19:M36) -> 86 | N18: =SUM(N19:N36) -> 76
A19: Artigas | B19: 23 | C19: =SUM(D19:G19) -> 11 | D19: 3 | E19: 7 | F19: 0 | G19: 1 | H19: =SUM(I19:K19) -> 4 | I19: 0 | J19: 1 | K19: 3 | L19: 8 | M19: 4 | N19: 4
A20: Canelones | B20: 120 | C20: 60 | D20: 14 | E20: 29 | F20: 3 | G20: 14 | H20: =SUM(I20:K20) -> 25 | I20: 4 | J20: 21 | K20: 0 | L20: 35 | M20: 16 | N20: 19
A21: Cerro Largo | B21: 26 | C21: 10 | D21: 2 | E21: 6 | F21: 0 | G21: 2 | H21: 7 | I21: 0 | J21: 3 | K21: 4 | L21: 9 | M21: 5 | N21: 4
A22: Colonia* | B22: 35 | C22: 17 | D22: 2 | E22: 10 | F22: 0 | G22: 5 | H22: 8 | I22: 1 | J22: 1 | K22: 6 | L22: 10 | M22: 9 | N22: 1
A23: Durazno | B23: 19 | C23: 8 | D23: 2 | E23: 5 | F23: 0 | G23: 1 | H23: 3 | I23: 0 | J23: 2 | K23: 1 | L23: 8 | M23: 3 | N23: 5
A24: Flores | B24: 11 | C24: 4 | D24: 1 | E24: 2 | F24: 0 | G24: 1 | H24: 3 | I24: 0 | J24: 2 | K24: 1 | L24: 4 | M24: 2 | N24: 2
A25: Florida | B25: 24 | C25: 12 | D25: 2 | E25: 9 | F25: 0 | G25: 1 | H25: 4 | I25: 0 | J25: 2 | K25: 2 | L25: 8 | M25: 2 | N25: 6
A26: Lavalleja | B26: 19 | C26: 9 | D26: 2 | E26: 6 | F26: 1 | G26: 0 | H26: 4 | I26: 1 | J26: 1 | K26: 2 | L26: 6 | M26: 2 | N26: 4
A27: Maldonado | B27: 39 | C27: 15 | D27: 5 | E27: 6 | F27: 0 | G27: 4 | H27: 16 | I27: 1 | J27: 11 | K27: 4 | L27: 8 | M27: 5 | N27: 3
A28: Paysandú | B28: 33 | C28: 13 | D28: 5 | E28: 7 | F28: 0 | G28: 1 | H28: 14 | I28: 1 | J28: 3 | K28: 10 | L28: 6 | M28: 4 | N28: 2
A29: Río Negro | B29: 20 | C29: 9 | D29: 3 | E29: 4 | F29: 0 | G29: 2 | H29: 7 | I29: 0 | J29: 2 | K29: 5 | L29: 4 | M29: 3 | N29: 1
A30: Rivera | B30: 34 | C30: 13 | D30: 4 | E30: 7 | F30: 1 | G30: 1 | H30: 10 | I30: 4 | J30: 2 | K30: 4 | L30: 11 | M30: 5 | N30: 6
A31: Rocha | B31: 24 | C31: 13 | D31: 3 | E31: 7 | F31: 0 | G31: 3 | H31: 5 | I31: 0 | J31: 2 | K31: 3 | L31: 6 | M31: 5 | N31: 1
A32: Salto | B32: 29 | C32: 11 | D32: 1 | E32: 9 | F32: 0 | G32: 1 | H32: 6 | I32: 0 | J32: 5 | K32: 1 | L32: 12 | M32: 4 | N32: 8
A33: San José | B33: 29 | C33: 13 | D33: 3 | E33: 5 | F33: 0 | G33: 5 | H33: 10 | I33: 0 | J33: 3 | K33: 7 | L33: 6 | M33: 5 | N33: 1
A34: Soriano | B34: 19 | C34: 11 | D34: 3 | E34: 5 | F34: 0 | G34: 3 | H34: 2 | I34: 0 | J34: 1 | K34: 1 | L34: 6 | M34: 6 | N34: 0
A35: Tacuarembó | B35: 29 | C35: 13 | D35: 3 | E35: 9 | F35: 0 | G35: 1 | H35: 8 | I35: 0 | J35: 4 | K35: 4 | L35: 8 | M35: 2 | N35: 6
A36: Treinta y Tres | B36: 19 | C36: 8 | D36: 1 | E36: 6 | F36: 0 | G36: 1 | H36: 4 | I36: 0 | J36: 2 | K36: 2 | L36: 7 | M36: 4 | N36: 3
A37: Fuente: D.E.- C.E.S .
A38: Notas: 1- Los establecimientos considerados en el Tipo de Educación Escuelas con Ciclo Básico Rural ya fueron considerados en los totales de establecimientos de Educación Primaria por lo cual, si bien se presentan en la columna correspondiente, no participan en el “Total” del presente cuadro. 2- En un mismo establecimiento de UTU coexisten ofertas educativas de diferentes niveles. Los establecimientos que se consideraron en este cuadro son aquellos en los que se dictan cursos clasificados como de EDUCACIÓN MEDIA BÁSICA.

Sheet II-3.1.2
A1: CONSEJO DE EDUCACIÓN INICIAL Y PRIMARIA (CEIP), | G1: ESTABLECIMIENTOS
A2: CONSEJO DE EDUCACIÓN SECUNDARIA (CES) Y CONSEJO DE EDUCACIÓN TÉCNICO PROFESIONAL (UTU)
A3: Cuadro Nº II-3.1.2
A5: ESTABLECIMIENTOS FÍSICOS DE EDUCACIÓN MEDIA POR FORMA DE ADMINISTRACIÓN SEGÚN DEPARTAMENTO. AÑO 2015.
A6: DEPARTAMENTO | C6: MODALIDAD
B7: TOTAL GENERAL | C7: CES | E7: CEIP | F7: CETP
C9: LICEOS PÚBLICOS | D9: LICEOS PRIVADOS | E9: Escuelas con Ciclo Básico Rural | F9: Escuelas de CBT y Técnica.
A10: TOTAL | B10: =B11+B12 -> 832 | C10: =C11+C12 -> 298 | D10: =D11+D12 -> 191 | E10: =E11+E12 -> 61 | F10: =F11+F12 -> 282
A11: MONTEVIDEO | B11: =SUM(C11:F11) -> 243 | C11: 75 | D11: 107 | E11: 1 | F11: 60
A12: RESTO DEL PAÍS | B12: =SUM(C12:F12) -> 589 | C12: =SUM(C13:C30) -> 223 | D12: =SUM(D13:D30) -> 84 | E12: =SUM(E13:E30) -> 60 | F12: 222
A13: Artigas | B13: =C13+D13+E13+F13 -> 32 | C13: 12 | D13: 1 | E13: 3 | F13: 16
A14: Canelones | B14: 126 | C14: 51 | D14: 26 | E14: 0 | F14: 49
A15: Cerro Largo | B15: 26 | C15: 8 | D15: 2 | E15: 4 | F15: 12
A16: Colonia | B16: 39 | C16: 14 | D16: 2 | E16: 6 | F16: 17
A17: Durazno | B17: 20 | C17: 8 | D17: 2 | E17: 1 | F17: 9
A18: Flores | B18: 10 | C18: 3 | D18: 2 | E18: 1 | F18: 4
A19: Florida | B19: 24 | C19: 12 | D19: 2 | E19: 2 | F19: 8
A20: Lavalleja | B20: 21 | C20: 8 | D20: 3 | E20: 2 | F20: 8
A21: Maldonado | B21: 39 | C21: 12 | D21: 14 | E21: 4 | F21: 9
A22: Paysandú | B22: 41 | C22: 14 | D22: 4 | E22: 10 | F22: 13
A23: Río Negro | B23: 22 | C23: 8 | D23: 2 | E23: 5 | F23: 7
A24: Rivera | B24: 35 | C24: 13 | D24: 7 | E24: 4 | F24: 11
A25: Rocha | B25: 22 | C25: 11 | D25: 2 | E25: 3 | F25: 6
A26: Salto | B26: 30 | C26: 11 | D26: 5 | E26: 1 | F26: 13
A27: San José | B27: 32 | C27: 9 | D27: 3 | E27: 7 | F27: 13
A28: Soriano | B28: 19 | C28: 9 | D28: 1 | E28: 1 | F28: 8
A29: Tacuarembó | B29: 34 | C29: 13 | D29: 4 | E29: 4 | F29: 13
A30: Treinta y Tres | B30: 17 | C30: 7 | D30: 2 | E30: 2 | F30: 6
A31: Fuente: C.E.S - CETP- CEIP
A32: Nota: 1- A diferencia del cuadro anterior II-3.1.1, el presente consolida la cantidad de establecimientos físicos con independencia del nivel educativo al cual son dirigidos los programas de estudios impartidos. En el caso del CETP debe considerarse que además de Educación Media se dictan programas dirigidos a Educación Terciaria No Universitaria y Educación de Jóvenes y Adultos.
A33: 2- Dentro de la cantidad de establecimientos declarados por UTU en este apartado se encuentran 156 reparticiones (Montevideo=33; Interior del País=123). Son localizaciones en las cuales se imparten cursos administrados por el CETP-UTU. Estos locales no forman parte de los activos de ANEP.

Sheet II-3.2.1
A1: CONSEJO DE EDUCACIÓN SECUNDARIA | D1: ALUMNOS MATRICULADOS
A3: Cuadro Nº II-3.2.1
A5: ALUMNOS MATRICULADOS EN EDUCACION MEDIA BÁSICA GENERAL POR GRADO SEGÚN GRANDES ÁREAS Y FORMA DE ADMINISTRACIÓN. AÑO 2015.
A6: GRANDES ÁREAS Y FORMA DE ADMINISTRACIÓN | C6: GRADO
B7: TOTAL
C8: PRIMERO | D8: SEGUNDO | E8: TERCERO
A9: TOTAL DEL PAÍS | B9: =C9+D9+E9 -> 147165 | C9: =C14+C19 -> 52415 | D9: 47137 | E9: 47613
A10: MEDIA BÁSICA PÚBLICA | B10: 120749 | C10: 43834 | D10: 38178 | E10: 38737
A11: Diurna | B11: 107392 | C11: =C16+C21 -> 41067 | D11: 34447 | E11: =E16+E21 -> 31878
A12: Nocturna | B12: 13357 | C12: =C17+C22 -> 2767 | D12: =D17+D22 -> 3731 | E12: =E17+E22 -> 6859
A13: MEDIA BÁSICA PRIVADA | B13: 26416 | C13: 8581 | D13: 8959 | E13: 8876
A14: TOTAL MONTEVIDEO | B14: 54183 | C14: =C15+C18 -> 19360 | D14: =D15+D18 -> 17403 | E14: =E15+E18 -> 17420
A15: MEDIA BÁSICA PÚBLICA | B15: 37356 | C15: =C16+C17 -> 13874 | D15: =D16+D17 -> 11757 | E15: 11725
A16: Diurna | B16: =C16+D16+E16 -> 32462 | C16: 12895 | D16: 10370 | E16: 9197
A17: Nocturna | B17: =C17+D17+E17 -> 4894 | C17: 979 | D17: 1387 | E17: 2528
A18: MEDIA BÁSICA PRIVADA | B18: =C18+D18+E18 -> 16827 | C18: 5486 | D18: 5646 | E18: 5695
A19: TOTAL RESTO DEL PAÍS | B19: 92982 | C19: =C20+C23 -> 33055 | D19: =D20+D23 -> 29734 | E19: =E20+E23 -> 30193
A20: MEDIA BÁSICA PÚBLICA | B20: 83393 | C20: =C21+C22 -> 29960 | D20: =D21+D22 -> 26421 | E20: =E21+E22 -> 27012
A21: Diurna | B21: 74930 | C21: 28172 | D21: 24077 | E21: 22681
A22: Nocturna | B22: =C22+D22+E22 -> 8463 | C22: 1788 | D22: 2344 | E22: 4331
A23: MEDIA BÁSICA PRIVADA | B23: 9589 | C23: 3095 | D23: 3313 | E23: 3181
A24: Fuente: D.E. — C.E.S.
A25: Nota: La referencia "Privada", (incluye los Habilitados "Liceo Naval" y "Liceo Militar"), se corresponde con la de "Liceos Habilitados" presente en ediciones anteriores del Anuario Estadístico del MEC.

Sheet II-3.2.2
A1: CONSEJO DE EDUCACIÓN TÉCNICO PROFESIONAL (U.T.U.) | H1: ALUMNOS MATRICULADOS
A5: Cuadro II-3.2.2.
A6: ALUMNOS MATRICULADOS EN EL CETP EN EDUCACIÓN MEDIA BÁSICA TECNOLÓGICA POR TIPO DE CURSO SEGÚN GRANDES ÁREAS, DEPARTAMENTO Y SEXO. AÑO 2015.
A9: GRANDES ÁREAS,DEPARTAMENTO Y SEXO | B9: TOTAL | D9: EDUCACIÓN MEDIA BÁSICA TECNOLÓGICA
C10: TOTAL | D10: Articulación Ed.Media Básica | F10: TOTAL | G10: C. B. T. Agrario | I10: TOTAL | J10: Ciclo Básico Tecnológico | L10: TOTAL | M10: Formación Profesional Básica 2007
D11: Sexo | G11: Sexo | J11: Sexo | M11: Sexo
D12: M | E12: F | G12: M | H12: F | J12: M | K12: F | M12: M | N12: F
A14: TOTAL | B14: =+C14+F14+I14+L14 -> 31687 | C14: =SUM(C15:C16) -> 1542 | D14: 585 | E14: 957 | F14: 1746 | G14: =G15+G16 -> 1251 | H14: =H15+H16 -> 495 | I14: 16987 | J14: 9943 | K14: 7044 | L14: 11412 | M14: 7006 | N14: 4406
A15: Montevideo | B15: =C15+F15+I15+L15 -> 6389 | C15: =+D15+E15 -> 390 | D15: 166 | E15: 224 | F15: =+G15+H15 -> 114 | G15: 77 | H15: 37 | I15: =+J15+K15 -> 2575 | J15: 1586 | K15: 989 | L15: =+M15+N15 -> 3310 | M15: 1980 | N15: 1330
A16: Resto del País | B16: =+C16+F16+I16+L16 -> 25298 | C16: =SUM(C17:C34) -> 1152 | D16: 419 | E16: 733 | F16: 1632 | G16: 1174 | H16: 458 | I16: 14412 | J16: 8357 | K16: 6055 | L16: 8102 | M16: 5026 | N16: 3076
A17: Artigas | B17: 1238 | C17: =+D17+E17 -> 75 | D17: 28 | E17: 47 | F17: =+G17+H17 -> 34 | G17: 26 | H17: 8 | I17: =+J17+K17 -> 794 | J17: 475 | K17: 319 | L17: =+M17+N17 -> 335 | M17: 173 | N17: 162
A18: Canelones | B18: 5810 | C18: 335 | D18: 127 | E18: 208 | F18: 92 | G18: 56 | H18: 36 | I18: 2758 | J18: 1574 | K18: 1184 | L18: 2625 | M18: 1611 | N18: 1014
A19: Cerro Largo | B19: 1584 | C19: 73 | D19: 22 | E19: 51 | F19: 109 | G19: 75 | H19: 34 | I19: 992 | J19: 567 | K19: 425 | L19: 410 | M19: 274 | N19: 136
A20: Colonia | B20: 1609 | C20: 57 | D20: 21 | E20: 36 | F20: 97 | G20: 77 | H20: 20 | I20: 1183 | J20: 737 | K20: 446 | L20: 272 | M20: 177 | N20: 95
A21: Durazno | B21: 1303 | C21: 0 | D21: 0 | E21: 0 | F21: 155 | G21: 109 | H21: 46 | I21: 838 | J21: 473 | K21: 365 | L21: 310 | M21: 191 | N21: 119
A22: Flores | B22: 272 | C22: 0 | D22: 0 | E22: 0 | F22: 0 | G22: 0 | H22: 0 | I22: 150 | J22: 86 | K22: 64 | L22: 122 | M22: 81 | N22: 41
A23: Florida | B23: 746 | C23: 79 | D23: 29 | E23: 50 | F23: 20 | G23: 13 | H23: 7 | I23: 299 | J23: 156 | K23: 143 | L23: 348 | M23: 202 | N23: 146
A24: Lavalleja | B24: 487 | C24: 0 | D24: 0 | E24: 0 | F24: 98 | G24: 68 | H24: 30 | I24: 161 | J24: 94 | K24: 67 | L24: 228 | M24: 134 | N24: 94
A25: Maldonado | B25: 1496 | C25: 0 | D25: 0 | E25: 0 | F25: 52 | G25: 38 | H25: 14 | I25: 1073 | J25: 649 | K25: 424 | L25: 371 | M25: 229 | N25: 142
A26: Paysandú | B26: 1766 | C26: 23 | D26: 11 | E26: 12 | F26: 300 | G26: 214 | H26: 86 | I26: 830 | J26: 523 | K26: 307 | L26: 613 | M26: 395 | N26: 218
A27: Rio Negro | B27: 732 | C27: 18 | D27: 11 | E27: 7 | F27: 22 | G27: 19 | H27: 3 | I27: 454 | J27: 274 | K27: 180 | L27: 238 | M27: 164 | N27: 74
A28: Rivera | B28: 1158 | C28: 50 | D28: 19 | E28: 31 | F28: 174 | G28: 140 | H28: 34 | I28: 551 | J28: 338 | K28: 213 | L28: 383 | M28: 276 | N28: 107
A29: Rocha | B29: 798 | C29: 48 | D29: 18 | E29: 30 | F29: 55 | G29: 39 | H29: 16 | I29: 447 | J29: 242 | K29: 205 | L29: 248 | M29: 136 | N29: 112
A30: Salto | B30: 1449 | C30: 182 | D30: 55 | E30: 127 | F30: 158 | G30: 97 | H30: 61 | I30: 772 | J30: 418 | K30: 354 | L30: 337 | M30: 206 | N30: 131
A31: San José | B31: 1617 | C31: 120 | D31: 45 | E31: 75 | F31: 64 | G31: 49 | H31: 15 | I31: 1178 | J31: 653 | K31: 525 | L31: 255 | M31: 154 | N31: 101
A32: Soriano | B32: 1570 | C32: 50 | D32: 13 | E32: 37 | F32: 96 | G32: 79 | H32: 17 | I32: 1010 | J32: 552 | K32: 458 | L32: 414 | M32: 259 | N32: 155
A33: Tacuarembó | B33: 1075 | C33: 29 | D33: 13 | E33: 16 | F33: 26 | G33: 16 | H33: 10 | I33: 588 | J33: 343 | K33: 245 | L33: 432 | M33: 249 | N33: 183
A34: Treinta y Tres | B34: 588 | C34: 13 | D34: 7 | E34: 6 | F34: 80 | G34: 59 | H34: 21 | I34: 334 | J34: 203 | K34: 131 | L34: 161 | M34: 115 | N34: 46
A35: Fuente: Procesamiento propio en base a datos proporcionados por el D.E. - CETP (U.T.U) .

Sheet II-3.2.3
A1: CONSEJO DE EDUCACIÓN PRIMARIA | I1: ALUMNOS MATRICULADOS
A3: Cuadro Nº II-3.2.3
A6: ALUMNOS MATRICULADOS EN SÉPTIMO, OCTAVO Y NOVENO GRADO DE CICLO BÁSICO RURAL POR SEXO SEGÚN DEPARTAMENTO. AÑO 2015.
A7: DEPARTAMENTO | B7: TOTAL | E7: CICLO BÁSICO RURAL
E8: GRADO
E9: SÉPTIMO | H9: OCTAVO | K9: NOVENO
E10: SEXO | H10: SEXO | K10: SEXO
B11: T | C11: M | D11: F | E11: T | F11: M | G11: F | H11: T | I11: M | J11: F | K11: T | L11: M | M11: F
A13: TOTAL | B13: =B14+B15 -> 1730 | C13: =F13+I13+L13 -> 0 | D13: 0 | E13: =F13+G13 -> 0 | F13: =F14+F15 -> 0 | G13: =G14+G15 -> 0 | H13: =I13+J13 -> 0 | I13: =I14+I15 -> 0 | J13: =J14+J15 -> 0 | K13: =L13+M13 -> 0 | L13: =L14+L15 -> 0 | M13: =M14+M15 -> 0
A14: MONTEVIDEO | B14: 0 | C14: 0 | D14: 0
A15: RESTO DEL PAÍS | B15: 1730 | C15: 0 | D15: 0 | E15: =SUM(E16:E33) -> 623 | F15: 0 | G15: 0 | H15: 576 | I15: 0 | J15: 0 | K15: 531 | L15: 0 | M15: 0
A16: Artigas | B16: 132 | C16: 0 | D16: 0 | E16: 38 | F16: s/d | G16: s/d | H16: 62 | I16: s/d | J16: s/d | K16: 32 | L16: s/d | M16: s/d
A17: Canelones | B17: =E17+H17+K17 -> 0 | C17: =F17+I17+L17 -> 0 | D17: =G17+J17+M17 -> 0 | E17: 0 | F17: s/d | G17: s/d | H17: 0 | I17: s/d | J17: s/d | K17: 0 | L17: s/d | M17: s/d
A18: Cerro Largo | B18: 92 | C18: 0 | D18: 0 | E18: 35 | F18: s/d | G18: s/d | H18: 25 | I18: s/d | J18: s/d | K18: 32 | L18: s/d | M18: s/d
A19: Colonia | B19: 168 | C19: 0 | D19: 0 | E19: 58 | F19: s/d | G19: s/d | H19: 62 | I19: s/d | J19: s/d | K19: 48 | L19: s/d | M19: s/d
A20: Durazno | B20: 28 | C20: 0 | D20: 0 | E20: 9 | F20: s/d | G20: s/d | H20: 9 | I20: s/d | J20: s/d | K20: 10 | L20: s/d | M20: s/d
A21: Flores | B21: 11 | C21: 0 | D21: 0 | E21: 3 | F21: s/d | G21: s/d | H21: 4 | I21: s/d | J21: s/d | K21: 4 | L21: s/d | M21: s/d
A22: Florida | B22: 64 | C22: 0 | D22: 0 | E22: 20 | F22: s/d | G22: s/d | H22: 23 | I22: s/d | J22: s/d | K22: 21 | L22: s/d | M22: s/d
A23: Lavalleja | B23: 66 | C23: 0 | D23: 0 | E23: 22 | F23: s/d | G23: s/d | H23: 23 | I23: s/d | J23: s/d | K23: 21 | L23: s/d | M23: s/d
A24: Maldonado | B24: 97 | C24: 0 | D24: 0 | E24: 27 | F24: s/d | G24: s/d | H24: 30 | I24: s/d | J24: s/d | K24: 40 | L24: s/d | M24: s/d
A25: Paysandú | B25: 328 | C25: 0 | D25: 0 | E25: 132 | F25: s/d | G25: s/d | H25: 99 | I25: s/d | J25: s/d | K25: 97 | L25: s/d | M25: s/d
A26: Río Negro | B26: 107 | C26: 0 | D26: 0 | E26: 33 | F26: s/d | G26: s/d | H26: 35 | I26: s/d | J26: s/d | K26: 39 | L26: s/d | M26: s/d
A27: Rivera | B27: 121 | C27: 0 | D27: 0 | E27: 38 | F27: s/d | G27: s/d | H27: 45 | I27: s/d | J27: s/d | K27: 38 | L27: s/d | M27: s/d
A28: Rocha | B28: 68 | C28: 0 | D28: 0 | E28: 33 | F28: s/d | G28: s/d | H28: 16 | I28: s/d | J28: s/d | K28: 19 | L28: s/d | M28: s/d
A29: Salto | B29: 19 | C29: 0 | D29: 0 | E29: 9 | F29: s/d | G29: s/d | H29: 6 | I29: s/d | J29: s/d | K29: 4 | L29: s/d | M29: s/d
A30: San José | B30: 192 | C30: 0 | D30: 0 | E30: 65 | F30: s/d | G30: s/d | H30: 63 | I30: s/d | J30: s/d | K30: 64 | L30: s/d | M30: s/d
A31: Soriano | B31: 56 | C31: 0 | D31: 0 | E31: 27 | F31: s/d | G31: s/d | H31: 13 | I31: s/d | J31: s/d | K31: 16 | L31: s/d | M31: s/d
A32: Tacuarembó | B32: 118 | C32: 0 | D32: 0 | E32: 52 | F32: s/d | G32: s/d | H32: 37 | I32: s/d | J32: s/d | K32: 29 | L32: s/d | M32: s/d
A33: Treinta y Tres | B33: 63 | C33: 0 | D33: 0 | E33: 22 | F33: s/d | G33: s/d | H33: 24 | I33: s/d | J33: s/d | K33: 17 | L33: s/d | M33: s/d
A34: Fuente: DE — CES
A36: Nota: No se tienen datos por sexo

Sheet II-3.2.4
A1: CONSEJO DE EDUCACIÓN SECUNDARIA | E1: ALUMNOS MATRICULADOS
A3: Cuadro Nº II-3.2.4
A5: ALUMNOS MATRICULADOS DE EDUCACIÓN MEDIA BÁSICA GENERAL POR GRADO Y FORMA DE ADMINISTRACIÓN SEGÚN DEPARTAMENTO. AÑO 2015.
A7: DEPARTAMENTO | B7: GRADO
B8: PRIMERO | D8: SEGUNDO | F8: TERCERO
B9: FORMA DE ADMINISTRACIÓN
B10: Públicos | C10: Privados | D10: Públicos | E10: Privados | F10: Públicos | G10: Privados
A11: TOTAL | B11: =B12+B13 -> 43834 | C11: 8581 | D11: 38178 | E11: 8959 | F11: 38737 | G11: 8876
A12: MONTEVIDEO | B12: 13874 | C12: 5486 | D12: 11757 | E12: 5646 | F12: 11725 | G12: 5695
A13: RESTO DEL PAÍS | B13: =SUM(B14:B31) -> 29960 | C13: 3095 | D13: 26421 | E13: 3313 | F13: 27012 | G13: 3181
A14: Artigas | B14: 1208 | C14: 15 | D14: 1165 | E14: 20 | F14: 1174 | G14: 17
A15: Canelones | B15: 7766 | C15: 1069 | D15: 6803 | E15: 1186 | F15: 7008 | G15: 1202
A16: Cerro Largo | B16: 1174 | C16: 107 | D16: 1131 | E16: 120 | F16: 1198 | G16: 107
A17: Colonia | B17: 1529 | C17: 41 | D17: 1465 | E17: 31 | F17: 1531 | G17: 26
A18: Durazno | B18: 869 | C18: 101 | D18: 749 | E18: 104 | F18: 690 | G18: 73
A19: Flores | B19: 378 | C19: 59 | D19: 318 | E19: 44 | F19: 334 | G19: 42
A20: Florida | B20: 949 | C20: 67 | D20: 797 | E20: 86 | F20: 797 | G20: 102
A21: Lavalleja | B21: 876 | C21: 56 | D21: 748 | E21: 47 | F21: 806 | G21: 53
A22: Maldonado | B22: 2415 | C22: 450 | D22: 2166 | E22: 485 | F22: 2089 | G22: 482
A23: Paysandú | B23: 1494 | C23: 220 | D23: 1353 | E23: 262 | F23: 1431 | G23: 220
A24: Río Negro | B24: 787 | C24: 44 | D24: 736 | E24: 53 | F24: 822 | G24: 51
A25: Rivera | B25: 2095 | C25: 113 | D25: 1744 | E25: 136 | F25: 1794 | G25: 113
A26: Rocha | B26: 1124 | C26: 69 | D26: 1009 | E26: 66 | F26: 1001 | G26: 74
A27: Salto | B27: 2070 | C27: 263 | D27: 1772 | E27: 241 | F27: 1790 | G27: 214
A28: San José | B28: 1455 | C28: 161 | D28: 1205 | E28: 144 | F28: 1277 | G28: 137
A29: Soriano | B29: 1267 | C29: 68 | D29: 1082 | E29: 68 | F29: 1079 | G29: 71
A30: Tacuarembó | B30: 1655 | C30: 109 | D30: 1469 | E30: 128 | F30: 1441 | G30: 118
A31: Treinta y Tres | B31: 849 | C31: 83 | D31: 709 | E31: 92 | F31: 750 | G31: 79
A32: Fuente: DE — CES
A33: Nota: Incluye la matrícula correspondiente a los liceos de cuarto turno (nocturnos).

Sheet II-3.2.5
A1: CONSEJO DE EDUCACIÓN SECUNDARIA
A2: Cuadro Nº II-3.2.5
A4: ALUMNOS MATRICULADOS DE EDUCACIÓN MEDIA BÁSICA PRIVADA POR GRADO Y SEXO SEGÚN DEPARTAMENTO. AÑO 2015.
A6: DEPARTAMENTO | B6: GRADO
B7: PRIMERO | D7: SEGUNDO | F7: TERCERO
B8: SEXO
B9: Mujeres | C9: Varones | D9: Mujeres | E9: Varones | F9: Mujeres | G9: Varones
A10: TOTAL | B10: =B11+B12 -> 4328 | C10: 4253 | D10: 4530 | E10: 4429 | F10: 4498 | G10: 4378
A11: MONTEVIDEO | B11: 2738 | C11: 2748 | D11: 2824 | E11: 2822 | F11: 2886 | G11: 2809
A12: RESTO DEL PAÍS | B12: =SUM(B13:B30) -> 1590 | C12: 1505 | D12: 1706 | E12: 1607 | F12: 1612 | G12: 1569
A13: Artigas | B13: 8 | C13: 7 | D13: 13 | E13: 7 | F13: 9 | G13: 8
A14: Canelones | B14: 533 | C14: 536 | D14: 610 | E14: 576 | F14: 602 | G14: 600
A15: Cerro Largo | B15: 58 | C15: 49 | D15: 59 | E15: 61 | F15: 47 | G15: 60
A16: Colonia | B16: 26 | C16: 15 | D16: 15 | E16: 16 | F16: 21 | G16: 5
A17: Durazno | B17: 52 | C17: 49 | D17: 51 | E17: 53 | F17: 38 | G17: 35
A18: Flores | B18: 39 | C18: 20 | D18: 22 | E18: 22 | F18: 17 | G18: 25
A19: Florida | B19: 41 | C19: 26 | D19: 49 | E19: 37 | F19: 53 | G19: 49
A20: Lavalleja | B20: 24 | C20: 32 | D20: 22 | E20: 25 | F20: 27 | G20: 26
A21: Maldonado | B21: 217 | C21: 233 | D21: 237 | E21: 248 | F21: 231 | G21: 251
A22: Paysandú | B22: 115 | C22: 105 | D22: 125 | E22: 137 | F22: 129 | G22: 91
A23: Río Negro | B23: 21 | C23: 23 | D23: 31 | E23: 22 | F23: 30 | G23: 21
A24: Rivera | B24: 54 | C24: 59 | D24: 69 | E24: 67 | F24: 59 | G24: 54
A25: Rocha | B25: 40 | C25: 29 | D25: 35 | E25: 31 | F25: 36 | G25: 38
A26: Salto | B26: 139 | C26: 124 | D26: 136 | E26: 105 | F26: 109 | G26: 105
A27: San José | B27: 86 | C27: 75 | D27: 77 | E27: 67 | F27: 74 | G27: 63
A28: Soriano | B28: 39 | C28: 29 | D28: 42 | E28: 26 | F28: 38 | G28: 33
A29: Tacuarembó | B29: 50 | C29: 59 | D29: 69 | E29: 59 | F29: 53 | G29: 65
A30: Treinta y Tres | B30: 48 | C30: 35 | D30: 44 | E30: 48 | F30: 39 | G30: 40
A31: Fuente: DE — CES

Sheet II-3.2.6
A1: CONSEJO DE EDUCACIÓN SECUNDARIA
A2: Cuadro Nº II-3.2.6
A4: ALUMNOS MATRICULADOS DE EDUCACIÓN MEDIA BÁSICA PÚBLICA POR GRADO Y SEXO SEGÚN DEPARTAMENTO. AÑO 2015.
A6: DEPARTAMENTO | B6: GRADO
B7: PRIMERO | D7: SEGUNDO | F7: TERCERO
B8: SEXO
B9: Mujeres | C9: Varones | D9: Mujeres | E9: Varones | F9: Mujeres | G9: Varones
A10: TOTAL | B10: =B11+B12 -> 20650 | C10: 20153 | D10: 18097 | E10: 16116 | F10: 16709 | G10: 14933
A11: MONTEVIDEO | B11: 6537 | C11: 6303 | D11: 5477 | E11: 4872 | F11: 4806 | G11: 4376
A12: RESTO DEL PAÍS | B12: =SUM(B13:B30) -> 14113 | C12: 13850 | D12: 12620 | E12: 11244 | F12: 11903 | G12: 10557
A13: Artigas | B13: 613 | C13: 571 | D13: 588 | E13: 535 | F13: 573 | G13: 508
A14: Canelones | B14: 3560 | C14: 3638 | D14: 3161 | E14: 2876 | F14: 2974 | G14: 2646
A15: Cerro Largo | B15: 579 | C15: 525 | D15: 542 | E15: 462 | F15: 529 | G15: 462
A16: Colonia | B16: 732 | C16: 691 | D16: 706 | E16: 585 | F16: 634 | G16: 601
A17: Durazno | B17: 402 | C17: 386 | D17: 377 | E17: 271 | F17: 291 | G17: 258
A18: Flores | B18: 198 | C18: 180 | D18: 164 | E18: 128 | F18: 139 | G18: 124
A19: Florida | B19: 471 | C19: 461 | D19: 387 | E19: 385 | F19: 391 | G19: 330
A20: Lavalleja | B20: 415 | C20: 422 | D20: 356 | E20: 342 | F20: 383 | G20: 325
A21: Maldonado | B21: 1076 | C21: 1102 | D21: 1005 | E21: 946 | F21: 863 | G21: 902
A22: Paysandú | B22: 748 | C22: 688 | D22: 727 | E22: 550 | F22: 704 | G22: 553
A23: Río Negro | B23: 394 | C23: 363 | D23: 371 | E23: 297 | F23: 322 | G23: 338
A24: Rivera | B24: 915 | C24: 980 | D24: 792 | E24: 736 | F24: 768 | G24: 724
A25: Rocha | B25: 532 | C25: 517 | D25: 468 | E25: 482 | F25: 435 | G25: 432
A26: Salto | B26: 983 | C26: 999 | D26: 849 | E26: 834 | F26: 853 | G26: 744
A27: San José | B27: 700 | C27: 648 | D27: 533 | E27: 486 | F27: 514 | G27: 407
A28: Soriano | B28: 605 | C28: 529 | D28: 554 | E28: 399 | F28: 488 | G28: 393
A29: Tacuarembó | B29: 797 | C29: 774 | D29: 717 | E29: 654 | F29: 710 | G29: 562
A30: Treinta y Tres | B30: 393 | C30: 376 | D30: 323 | E30: 276 | F30: 332 | G30: 248
A31: Fuente: DE — CES
A32: Nota: No incluye la matrícula correspondiente a los liceos de cuarto turno (nocturnos)
A33: No incluye 734 estudiantes que no hay datos sobre sexo

Sheet II-3.2.7
A1: CONSEJO DE EDUCACIÓN TÉCNICO PROFESIONAL (U.T.U.) | E1: ALUMNOS MATRICULADOS
A3: Cuadro Nº II-3.2.7
A5: ALUMNOS MATRICULADOS EN EDUCACIÓN TÉCNICA MEDIA BÁSICA POR TIPO DE CURSO SEGÚN EDAD. AÑO 2015.
A7: EDAD | B7: TOTAL | C7: TIPO DE CURSO
C8: C.T.B Agrario | D8: Ciclo Básico Tecnológico | E8: Formación Profesional Básica Plan 2007 | F8: Articulación Educación Media Básica
A9: TOTAL | B9: =SUM(B10:B20) -> 31687 | C9: =SUM(C10:C20) -> 1542 | D9: =SUM(D10:D20) -> 1746 | E9: =SUM(E10:E20) -> 16987 | F9: =SUM(F10:F20) -> 11412
A10: 11 y 12 años | B10: =SUM(C10:F10) -> 4508 | C10: 0 | D10: 521 | E10: 3983 | F10: 4
A11: 13 años | B11: =SUM(C11:F11) -> 6217 | C11: 22 | D11: 419 | E11: 4766 | F11: 1010
A12: 14 años | B12: 5659 | C12: 0 | D12: 554 | E12: 5068 | F12: 37
A13: 15 años | B13: 5047 | C13: 67 | D13: 174 | E13: 2049 | F13: 2757
A14: 16 años | B14: 4112 | C14: 66 | D14: 54 | E14: 814 | F14: 3178
A15: 17 años | B15: 2753 | C15: 79 | D15: 17 | E15: 259 | F15: 2398
A16: 18 años | B16: 1117 | C16: 103 | D16: 5 | E16: 28 | F16: 981
A17: 19 años | B17: 420 | C17: 65 | D17: 1 | E17: 8 | F17: 346
A18: 20 a 24 años | B18: 715 | C18: 316 | D18: 1 | E18: 8 | F18: 390
A19: 25 a 29 años | B19: 297 | C19: 177 | D19: 0 | E19: 2 | F19: 118
A20: 30 años y más | B20: 842 | C20: 647 | D20: 0 | E20: 2 | F20: 193
A21: Fuente : Procesamiento propio en base a datos proporcionados por el D.E.-CETP (U.T.U.)

Sheet II-3.2.8
A1: CONSEJO DE EDUCACIÓN TÉCNICO PROFESIONAL (U.T.U.) | C1: ALUMNOS MATRICULADOS
A4: Cuadro Nº II-3.2.8.
A6: ALUMNOS MATRICULADOS EN EL CETP EN EDUCACIÓN MEDIA BÁSICA POR TIPO DE CURSO SEGÚN SECTORES DE ESTUDIO. AÑO 2015.
A7: SECTORES DE ESTUDIO | B7: TOTAL | C7: TIPO DE CURSO
C8: Ciclo Básico Tecnológico | D8: Formación Profesional Básica Plan 2007 | E8: CTB AGRARIO | F8: Articulación Educación Media
A10: Prog. Ciclo Básico. Educación Media | B10: =+C10+D10+E10+F10 -> 31687 | C10: =SUM(C11:C31) -> 1542 | D10: =SUM(D11:D31) -> 1746 | E10: =SUM(E11:E31) -> 16987 | F10: =SUM(F11:F31) -> 11412
A11: Agropecuario | B11: =+C11+D11+E11+F11 -> 225 | C11: 0 | D11: 0 | E11: 0 | F11: 225
A12: Comunicación | B12: 29 | C12: 0 | D12: 0 | E12: 0 | F12: 29
A13: Construcción y Arquitectura | B13: 245 | C13: 0 | D13: 0 | E13: 0 | F13: 245
A14: Deportes y afines | B14: 381 | C14: 0 | D14: 0 | E14: 0 | F14: 381
A15: Electricidad y Electrónica | B15: 1138 | C15: 0 | D15: 0 | E15: 0 | F15: 1138
A16: Gastronomía | B16: 1390 | C16: 3 | D16: 0 | E16: 0 | F16: 1387
A17: Gráficos | B17: 1854 | C17: 9 | D17: 0 | E17: 0 | F17: 1845
A18: Hípica | B18: 54 | C18: 0 | D18: 0 | E18: 0 | F18: 54
A19: Hortifruticultura y Jardinería | B19: 114 | C19: 0 | D19: 0 | E19: 0 | F19: 114
A20: Informática | B20: 117 | C20: 0 | D20: 0 | E20: 0 | F20: 117
A21: Madera y Muebles | B21: 1282 | C21: 0 | D21: 0 | E21: 0 | F21: 1282
A22: Mantenimiento y Rep. de Vehículos | B22: 1013 | C22: 3 | D22: 0 | E22: 0 | F22: 1010
A23: Metal - Mecánica | B23: 1189 | C23: 0 | D23: 0 | E23: 0 | F23: 1189
A24: Producción de Alimentos | B24: 507 | C24: 0 | D24: 0 | E24: 0 | F24: 507
A25: Programa Articulación Rumbo y Otras | B25: 57 | C25: 0 | D25: 0 | E25: 0 | F25: 57
A26: Programa Ciclo Básico Agrario | B26: 1523 | C26: 1523 | D26: 0 | E26: 0 | F26: 0
A27: Programa Educación Media Básica | B27: 1746 | C27: 0 | D27: 1746 | E27: 0 | F27: 0
A28: Química, Termodinámica y Agroener. | B28: 16987 | C28: 0 | D28: 0 | E28: 16987 | F28: 0
A29: Robótica | B29: 116 | C29: 0 | D29: 0 | E29: 0 | F29: 116
A30: Servicios Personales | B30: 1426 | C30: 0 | D30: 0 | E30: 0 | F30: 1426
A31: Textil y Confección de Vestimenta | B31: 294 | C31: 4 | D31: 0 | E31: 0 | F31: 290

Sheet II-3.3.1
A1: CONSEJO DE EDUCACIÓN SECUNDARIA | F1: PERSONAL DOCENTE
A3: Cuadro Nº II-3.3.1.
A5: PERSONAL DOCENTE Y HORAS DOCENTES DEL CES EN EDUACIÓN MEDIA BÁSICA GENERAL POR TITULACIÓN SEGÚN ASIGNATURAS. AÑO 2015.
A7: ASIGNATURAS | B7: TOTAL DOCENTES | C7: PERSONAL DOCENTE | E7: TOTAL HORAS | F7: HORAS DOCENTES
C8: Titulados | D8: No Titulados | F8: Titulados | G8: No Titulados
A9: TOTAL | B9: =SUM(C9:D9) -> 19477 | C9: =SUM(C10:C75) -> 11367 | D9: =SUM(D10:D75) -> 8110 | E9: =SUM(F9:G9) -> 257559 | F9: =SUM(F10:F75) -> 156580 | G9: =SUM(G10:G75) -> 100979
A10: ASTRONOMÍA | B10: =SUM(C10:D10) -> 197 | C10: 60 | D10: 137 | E10: =SUM(F10:G10) -> 2370 | F10: 574 | G10: 1796
A11: BIOLOGÍA | B11: 1373 | C11: 1096 | D11: 277 | E11: 17465 | F11: 14987 | G11: 2478
A12: CONTABILIDAD | B12: 2 | C12: 0 | D12: 2 | E12: 9 | F12: 0 | G12: 9
A13: DIBUJO | B13: 816 | C13: 490 | D13: 326 | E13: 12616 | F13: 8796 | G13: 3820
A14: EDUCACIÓN FÍSICA | B14: 1097 | C14: 936 | D14: 161 | E14: 16114 | F14: 14325 | G14: 1789
A15: EDUCACIÓN MUSICAL | B15: 591 | C15: 158 | D15: 433 | E15: 8802 | F15: 2628 | G15: 6174
A16: ED.SOCIAL Y CÍVICA DERECHO | B16: 531 | C16: 437 | D16: 94 | E16: 4462 | F16: 3881 | G16: 581
A17: FILOSOFÍA | B17: 435 | C17: 321 | D17: 114 | E17: 4701 | F17: 3580 | G17: 1121
A18: FÍSICA | B18: 649 | C18: 303 | D18: 346 | E18: 8135 | F18: 4096 | G18: 4039
A19: FRANCÉS | B19: 53 | C19: 13 | D19: 40 | E19: 1152 | F19: 330 | G19: 822
A20: GEOGRAFÍA | B20: 879 | C20: 667 | D20: 212 | E20: 12975 | F20: 10714 | G20: 2261
A21: HISTORIA | B21: 1540 | C21: 1277 | D21: 263 | E21: 19749 | F21: 17305 | G21: 2444
A22: IDIOMA ESPAÑOL | B22: 1133 | C22: 810 | D22: 323 | E22: 19193 | F22: 14328 | G22: 4865
A23: INGLÉS | B23: 1354 | C23: 528 | D23: 826 | E23: 23201 | F23: 10163 | G23: 13038
A24: ITALIANO | B24: 66 | C24: 23 | D24: 43 | E24: 1207 | F24: 432 | G24: 775
A25: LITERATURA | B25: 835 | C25: 679 | D25: 156 | E25: 10606 | F25: 9050 | G25: 1556
A26: CIENCIAS FÍSICO - QUÍMICAS | B26: 863 | C26: 481 | D26: 382 | E26: 9805 | F26: 5709 | G26: 4096
A27: MATEMÁTICA | B27: 1575 | C27: 628 | D27: 947 | E27: 28145 | F27: 12770 | G27: 15375
A28: QUÍMICA | B28: 776 | C28: 511 | D28: 265 | E28: 8340 | F28: 6025 | G28: 2315
A29: REC.NATUR.Y PAISAJE AGRARIO | B29: 0 | C29: 0 | D29: 0 | E29: 0 | F29: 0 | G29: 0
A30: GEOLOGÍA | B30: 1 | C30: 0 | D30: 1 | E30: 1 | F30: 0 | G30: 1
A31: DIRECTOR DE COROS | B31: 143 | C31: 72 | D31: 71 | E31: 1620 | F31: 864 | G31: 756
A32: PIANISTA ACOMPAÑANTE | B32: 111 | C32: 48 | D32: 63 | E32: 1091 | F32: 472 | G32: 619
A33: COORDINADOR PLAN 96 EXTRAEDAD | B33: 311 | C33: 208 | D33: 103 | E33: 666 | F33: 489 | G33: 177
A34: COORDINADOR HIPOACUSICOS | B34: 18 | C34: 2 | D34: 16 | E34: 51 | F34: 7 | G34: 44
A35: AP.AL LABORATORIO (curricular) | B35: 4 | C35: 3 | D35: 1 | E35: 37 | F35: 25 | G35: 12
A36: COORDINADOR INFOART | B36: 1 | C36: 0 | D36: 1 | E36: 4 | F36: 0 | G36: 4
A37: INFORMÁTICA | B37: 990 | C37: 170 | D37: 820 | E37: 15613 | F37: 2279 | G37: 13334
A38: COORDINADOR ECE | B38: 229 | C38: 107 | D38: 122 | E38: 468 | F38: 214 | G38: 254
A39: COORDINADOR INAU | B39: 0 | C39: 0 | D39: 0 | E39: 0 | F39: 0 | G39: 0
A40: COORDINADOR PAC | B40: 231 | C40: 75 | D40: 156 | E40: 568 | F40: 190 | G40: 378
A41: COORDINADOR CECAP | B41: 39 | C41: 25 | D41: 14 | E41: 77 | F41: 49 | G41: 28
A42: LENG.COM.Y MED.AUDIOVISUALES | B42: 9 | C42: 1 | D42: 8 | E42: 83 | F42: 20 | G42: 63
A43: COORDINADOR PEDAGOGICO | B43: 173 | C43: 163 | D43: 10 | E43: 3619 | F43: 3424 | G43: 195
A44: ESTUDIOS ECONÓMICOS Y SOCIALES | B44: 0 | C44: 0 | D44: 0 | E44: 0 | F44: 0 | G44: 0
A45: LABORATORIO DE INFORMÁTICA | B45: =SUM(C45:D45) -> 410 | C45: 63 | D45: 347 | E45: 7136 | F45: 1040 | G45: 6096
A46: TUTORES | B46: =SUM(C46:D46) -> 824 | C46: 587 | D46: 237 | E46: 4299 | F46: 3039 | G46: 1260
A47: ALEMÁN | B47: 7 | C47: 0 | D47: 7 | E47: 122 | F47: 0 | G47: 122
A48: A.P.T.E. | B48: 18 | C48: 15 | D48: 3 | E48: 265 | F48: 215 | G48: 50
A49: REFERENTE TUTOR | B49: 0 | C49: 0 | D49: 0 | E49: 0 | F49: 0 | G49: 0
A50: JUNTA MÉDICA | B50: 57 | C50: 44 | D50: 13 | E50: 1288 | F50: 991 | G50: 297
A51: TEATRO | B51: 0 | C51: 0 | D51: 0 | E51: 0 | F51: 0 | G51: 0
A52: PORTUGUÉS | B52: 79 | C52: 30 | D52: 49 | E52: 1245 | F52: 500 | G52: 745
A53: EXPRESIÓN CORPORAL Y TEATRO | B53: 0 | C53: 0 | D53: 0 | E53: 0 | F53: 0 | G53: 0
A54: EXPRESIÓN CORPORAL Y DANZA | B54: 0 | C54: 0 | D54: 0 | E54: 0 | F54: 0 | G54: 0
A55: ACTIVIDAD DOCENTE RURAL | B55: 55 | C55: 15 | D55: 40 | E55: 845 | F55: 197 | G55: 648
A56: REFERENTE PAC | B56: 30 | C56: 14 | D56: 16 | E56: 680 | F56: 300 | G56: 380
A57: COARTICULADORES | B57: 22 | C57: 1 | D57: 21 | E57: 267 | F57: 12 | G57: 255
A58: ACT.ADAPTADAS AL MEDIO AMBIENT | B58: 57 | C58: 9 | D58: 48 | E58: 606 | F58: 63 | G58: 543
A59: ECONOMÍA | B59: 0 | C59: 0 | D59: 0 | E59: 0 | F59: 0 | G59: 0
A60: HORAS DE APOYO AL FIN AÑO LECT | B60: 52 | C60: 28 | D60: 24 | E60: 751 | F60: 378 | G60: 373
A61: APOYO PROYECTOS | B61: 6 | C61: 6 | D61: 0 | E61: 69 | F61: 69 | G61: 0
A62: APOYO BIBLIOTECA | B62: 5 | C62: 1 | D62: 4 | E62: 60 | F62: 22 | G62: 38
A63: APOYO A LA DIRECCIÓN | B63: 15 | C63: 10 | D63: 5 | E63: 292 | F63: 206 | G63: 86
A64: TALLERISTA | B64: 11 | C64: 1 | D64: 10 | E64: 106 | F64: 10 | G64: 96
A65: APOYO A ADSCRIPCIÓN | B65: 21 | C65: 10 | D65: 11 | E65: 311 | F65: 177 | G65: 134
A66: MÉDICO CERTIFICADOR | B66: 1 | C66: 0 | D66: 1 | E66: 28 | F66: 0 | G66: 28
A67: EDUCADOR PARA LA SEXUALIDAD | B67: 46 | C67: 36 | D67: 10 | E67: 490 | F67: 380 | G67: 110
A68: DOC EFECT C/DÉFICIT ART.15.3 | B68: 3 | C68: 0 | D68: 3 | E68: 48 | F68: 0 | G68: 48
A69: ESPACIO CURRICULAR ABIERTO | B69: 687 | C69: 200 | D69: 487 | E69: 4983 | F69: 1168 | G69: 3815
A70: INTÉRPRETE | B70: 28 | C70: 1 | D70: 27 | E70: 436 | F70: 4 | G70: 432
A71: PSICÓLOGO | B71: 1 | C71: 1 | D71: 0 | E71: 30 | F71: 30 | G71: 0
A72: TALLER DE ARTES PLÁSTICAS | B72: 1 | C72: 1 | D72: 0 | E72: 10 | F72: 10 | G72: 0
A73: LENGUA DE SEÑAS | B73: 15 | C73: 2 | D73: 13 | E73: =SUM(F73:G73) -> 237 | F73: 43 | G73: 194
A74: APOYO AL LABORATORIO | B74: 1 | C74: 0 | D74: 1 | E74: 10 | F74: 0 | G74: 10
A75: ACTIVIDADES ESPECIALES | B75: 0 | C75: 0 | D75: 0 | E75: 0 | F75: 0 | G75: 0
A76: Fuente: Departamento de Estadística — C.E.S.
A77: Nota: Los docentes que dictan más de una asignatura son considerados como personas distintas en cada asignatura.

Sheet II-3.3.2
A1: CONSEJO DE EDUCACIÓN TÉCNICO PROFESIONAL (U.T.U.) | E1: PERSONAL DOCENTE
A3: Cuadro Nº II-3.3.2.
A5: PERSONAL DOCENTE DEL CETP EN EDUCACIÓN MEDIA BÁSICA TECNOLÓGICA POR TIPO DE CURSO. AÑO 2015.
A6: EDUCACIÓN MEDIA BÁSICA | B6: TOTAL
A9: TOTAL | B9: =SUM(B10:B13) -> 7216
A10: Ciclo Básico Tecnológico | B10: 3952
A11: Ciclo Básico Tecnológico Agrario | B11: S/D
A12: Formación Profesional Básica Plan 2007 | B12: 2854
A13: Articulación Educ.Media Básica | B13: 410
A14: Fuente: U.T.U. División Informática.

Sheet II-3.4.1
A1: CONSEJO DE EDUCACIÓN SECUNDARIA | D1: GRUPOS
A3: Cuadro Nº II-3.4.1.
A5: GRUPOS DEL CES EN EDUCACIÓN MEDIA BÁSICA GENERAL COMPARADOS CON EL TOTAL DE GRUPOS EN EDUCACIÓN MEDIA GENERAL SEGÚN GRANDES ÁREAS Y FORMA DE ADMINISTRACIÓN. AÑO 2015.
A6: GRANDES ÁREAS Y FORMA DE ADMINISTRACIÓN | B6: FORMA DE ADMINISTRACIÓN
B8: Grupos en Educación Media Básica General | C8: Total de grupos en Educación Media General | D8: Promedio alumnos por grupo de Media Básica
A10: TOTAL DEL PAÍS | B10: =B15+B20 -> 5624 | C10: =C15+C20 -> 10189 | D10: 26.2
A11: MEDIA BÁSICA PÚBLICA | B11: =B12+B13 -> 4504 | C11: =C12+C13 -> 7837 | D11: 26.8
A12: Diurna | B12: =B17+B22 -> 4074 | C12: =C17+C22 -> 6771 | D12: 26.4
A13: Cuarto Turno | B13: 430 | C13: =C18+C23 -> 1066 | D13: 31.1
A14: MEDIA BÁSICA PRIVADA | B14: 1120 | C14: 2352 | D14: 23.6
A15: TOTAL MONTEVIDEO | B15: =B16+B19 -> 2024 | C15: =C16+C19 -> 3789 | D15: 26.8
A16: MEDIA BÁSICA PÚBLICA | B16: =B17+B18 -> 1336 | C16: =C17+C18 -> 2234 | D16: 28
A17: Diurna | B17: 1188 | C17: 1841 | D17: 27.3
A18: Cuarto Turno | B18: 148 | C18: 393 | D18: 33.1
A19: MEDIA BÁSICA PRIVADA | B19: 688 | C19: 1555 | D19: 24.5
A20: TOTAL RESTO DEL PAÍS | B20: =B21+B24 -> 3600 | C20: =C21+C24 -> 6400 | D20: 25.8
A21: MEDIA BÁSICA PÚBLICA | B21: =B22+B23 -> 3168 | C21: =C22+C23 -> 5603 | D21: 26.3
A22: Diurna | B22: 2886 | C22: 4930 | D22: 26
A23: Cuarto Turno | B23: 282 | C23: 673 | D23: 30
A24: MEDIA BÁSICA PRIVADA | B24: 432 | C24: 797 | D24: 22.2
A26: Fuente: D.E. — C.E.S.

Sheet MEDIA SUPERIOR
A8: Cuadro Nº II-4.1.1 | B8: ESTABLECIMIENTOS DE EDUCACIÓN MEDIA SUPERIOR POR MODALIDAD Y FORMA DE ADMINISTRACIÓN SEGÚN DEPARTAMENTO. AÑO 2015.
A11: Cuadro Nº II-4.2.1 | B11: ALUMNOS MATRICULADOS DEL CES EN EDUCACIÓN MEDIA SUPERIOR GENERAL POR GRADO SEGÚN GRANDES ÁREAS Y FORMA DE ADMINISTRACIÓN. AÑO 2015.
A13: Cuadro Nº II-4.2.2 | B13: ALUMNOS MATRICULADOS EN EL CETP EN EDUCACIÓN MEDIA SUPERIOR TECNOLÓGICA POR TIPO DE CURSO SEGÚN GRANDES ÁREAS, DEPARTAMENTO Y SEXO. AÑO 2015.
A15: Cuadro Nº II-4.2.3 | B15: ALUMNOS MATRICULADOS EN EL CETP EN EDUCACIÓN MEDIA SUPERIOR POR TIPO DE CURSO SEGÚN EDAD. AÑO 2015.
A17: Cuadro Nº II-4.2.4 | B17: ALUMNOS MATRICULADOS EN EL CETP EN EDUCACIÓN MEDIA SUPERIOR TECNOLÓGICA POR TIPO DE CURSO SEGÚN SECTORES DE ESTUDIO. AÑO 2015.
A19: Cuadro Nº II-4.2.5 | B19: ALUMNOS MATRICULADOS EN EL CES EN EDUCACIÓN MEDIA SUPERIOR GENERAL POR GRADO Y FORMA DE ADMINISTRACIÓN SEGÚN DEPARTAMENTO. AÑO 2015.
A21: Cuadro Nº II-4.2.6 | B21: ALUMNOS MATRICULADOS EN EL CES EN QUINTO GRADO DE EDUCACIÓN MEDIA GENERAL PÚBLICA POR PLAN Y ORIENTACIÓN SEGÚN DEPARTAMENTO. AÑO 2015.
A23: Cuadro Nº II-4.2.7 | B23: ALUMNOS MATRICULADOS EN EL CES EN QUINTO GRADO DE EDUCACIÓN MEDIA SUPERIOR DE EDUCACIÓN SECUNDARIA PRIVADA POR ORIENTACIÓN SEGÚN DEPARTAMENTO. AÑO 2015.
A25: Cuadro Nº II-4.2.8 | B25: ALUMNOS MATRICULADOS EN EL CES EN SEXTO GRADO DE EDUCACIÓN MEDIA GENERAL PÚBLICA POR PLAN Y OPCIÓN SEGÚN DEPARTAMENTO. AÑO 2015.
A27: Cuadro Nº II-4.2.9 | B27: ALUMNOS MATRICULADOS EN EL CES EN SEXTO GRADO DE EDUCACIÓN MEDIA GENERAL PRIVADA POR OPCIÓN SEGÚN DEPARTAMENTO. AÑO 2015.
A29: Cuadro Nº II-4.2.10 | B29: ALUMNOS MATRICULADOS DE EDUCACIÓN MEDIA SUPERIOR PRIVADA POR GRADO Y SEXO SEGÚN DEPARTAMENTO. AÑO 2015
A31: Cuadro Nº II-4.2.11 | B31: ALUMNOS MATRICULADOS DE EDUCACIÓN MEDIA SUPERIOR PRIVADA POR GRADO Y SEXO SEGÚN DEPARTAMENTO. AÑO 2015.
A34: Cuadro Nº II-4.3.1 | B34: PERSONAL DOCENTE Y HORAS DOCENTES DEL CES EN EDUCACIÓN MEDIA SUPERIOR GENERAL PÚBLICA POR CONDICIÓN DE TITULACIÓN. AÑO 2015.
A36: Cuadro Nº II-4.3.2 | B36: PERSONAL DOCENTE DEL CETP EN EDUCACIÓN MEDIA SUPERIOR TECNOLÓGICA POR TIPO DE CURSO. AÑO 2015.
A39: Cuadro Nº II-4.4.1 | B39: GRUPOS DE EDUCACIÓN MEDIA SUPERIOR GENERAL COMPARADOS CON EL TOTAL DE AMBOS CICLOS SEGÚN GRANDES ÁREAS Y FORMA DE ADMINISTRACIÓN. AÑO 2015.
A107: =MID(B70,1,20) -> 

Sheet II-4.1.1
A1: CONSEJO DE EDUCACIÓN SECUNDARIA (CES) Y CONSEJO DE EDUCACIÓN TÉCNICO PROFESIONAL (UTU) | H1: ESTABLECIMIENTOS
A3: Cuadro Nº II-4.1.1
A5: ESTABLECIMIENTOS DE EDUCACIÓN MEDIA SUPERIOR POR MODALIDAD Y FORMA DE ADMINISTRACIÓN SEGÚN DEPARTAMENTO. AÑO 2015.
A6: DEPARTAMENTO | C6: MODALIDAD
B7: TOTAL GENERAL | D7: CES | K7: CETP
D8: FORMA DE ADMINISTRACIÓN
C9: TOTAL LICEOS PÚBLICOS | D9: LICEOS PÚBLICOS | H9: TOTAL LICEOS PRIVADOS | I9: Liceos Privados | K9: TOTAL ESCUELAS DE CBT Y TÉCNICA
L10: Escuelas de CBT y Técnica.
D11: Diurnos Oficiales | F11: Extra Edad Oficiales (Nocturno Y Diurno)
D14: Bachillerato | E14: C.Básico y Bachillerato | F14: Bachillerato | G14: C.Básico y Bachillerato | I14: Bachillerato | J14: C.Básico y Bachillerato | L14: Escuelas de CBT y Técnica. | M14: Reparticiones
A15: TOTAL | B15: =C15+H15+K15 -> 604 | C15: =SUM(D15:G15) -> 284 | D15: =D16+D17 -> 42 | E15: =E16+E17 -> 144 | F15: =F16+F17 -> 35 | G15: =G16+G17 -> 63 | H15: =SUM(I15:J15) -> 170 | I15: =I16+I17 -> 9 | J15: =J16+J17 -> 161 | K15: =L15+M15 -> 150 | L15: =L16+L17 -> 123 | M15: =M16+M17 -> 27
A16: MONTEVIDEO | B16: =C16+H16+K16 -> 184 | C16: =SUM(D16:G16) -> 53 | D16: 17 | E16: 5 | F16: 15 | G16: 16 | H16: 99 | I16: 6 | J16: 93 | K16: =L16+M16 -> 32 | L16: 29 | M16: 3
A17: RESTO DEL PAÍS | B17: 420 | C17: =SUM(C18:C35) -> 231 | D17: =SUM(D18:D35) -> 25 | E17: =SUM(E18:E35) -> 139 | F17: =SUM(F18:F35) -> 20 | G17: =SUM(G18:G35) -> 47 | H17: 71 | I17: =SUM(I18:I35) -> 3 | J17: =SUM(J18:J35) -> 68 | K17: 118 | L17: =SUM(L18:L35) -> 94 | M17: =SUM(M18:M35) -> 24
A18: Artigas | B18: 18 | C18: =SUM(D18:G18) -> 11 | D18: 2 | E18: 7 | F18: 1 | G18: 1 | H18: 1 | I18: 0 | J18: 1 | K18: 6 | L18: 4 | M18: 2
A19: Canelones | B19: 103 | C19: 56 | D19: 8 | E19: 29 | F19: 5 | G19: 14 | H19: 23 | I19: 2 | J19: 21 | K19: 24 | L19: 18 | M19: 6
A20: Cerro Largo | B20: 17 | C20: 8 | D20: 0 | E20: 6 | F20: 0 | G20: 2 | H20: 3 | I20: 0 | J20: 3 | K20: 6 | L20: 5 | M20: 1
A21: Colonia | B21: 34 | C21: 20 | D21: 2 | E21: 10 | F21: 3 | G21: 5 | H21: 1 | I21: 0 | J21: 1 | K21: 13 | L21: 10 | M21: 3
A22: Durazno | B22: 15 | C22: 9 | D22: 1 | E22: 5 | F22: 2 | G22: 1 | H22: 2 | I22: 0 | J22: 2 | K22: 4 | L22: 3 | M22: 1
A23: Flores | B23: 9 | C23: 4 | D23: 0 | E23: 2 | F23: 1 | G23: 1 | H23: 2 | I23: 0 | J23: 2 | K23: 3 | L23: 2 | M23: 1
A24: Florida | B24: 18 | C24: 12 | D24: 1 | E24: 9 | F24: 1 | G24: 1 | H24: 2 | I24: 0 | J24: 2 | K24: 4 | L24: 3 | M24: 1
A25: Lavalleja | B25: 12 | C25: 7 | D25: 0 | E25: 6 | F25: 1 | G25: 0 | H25: 1 | I25: 0 | J25: 1 | K25: 4 | L25: 3 | M25: 1
A26: Maldonado | B26: 30 | C26: 11 | D26: 1 | E26: 6 | F26: 0 | G26: 4 | H26: 12 | I26: 1 | J26: 11 | K26: 7 | L26: 7 | M26: 0
A27: Paysandú | B27: 21 | C27: 11 | D27: 2 | E27: 7 | F27: 1 | G27: 1 | H27: 3 | I27: 0 | J27: 3 | K27: 7 | L27: 4 | M27: 3
A28: Río Negro | B28: 14 | C28: 8 | D28: 1 | E28: 4 | F28: 1 | G28: 2 | H28: 2 | I28: 0 | J28: 2 | K28: 4 | L28: 3 | M28: 1
A29: Rivera | B29: 19 | C29: 11 | D29: 2 | E29: 7 | F29: 1 | G29: 1 | H29: 2 | I29: 0 | J29: 2 | K29: 6 | L29: 5 | M29: 1
A30: Rocha | B30: 19 | C30: 12 | D30: 1 | E30: 7 | F30: 1 | G30: 3 | H30: 2 | I30: 0 | J30: 2 | K30: 5 | L30: 5 | M30: 0
A31: Salto | B31: 23 | C31: 12 | D31: 1 | E31: 9 | F31: 1 | G31: 1 | H31: 5 | I31: 0 | J31: 5 | K31: 6 | L31: 4 | M31: 2
A32: San José | B32: 20 | C32: 11 | D32: 1 | E32: 5 | F32: 0 | G32: 5 | H32: 3 | I32: 0 | J32: 3 | K32: 6 | L32: 6 | M32: 0
A33: Soriano | B33: 17 | C33: 10 | D33: 1 | E33: 5 | F33: 1 | G33: 3 | H33: 1 | I33: 0 | J33: 1 | K33: 6 | L33: 6 | M33: 0
A34: Tacuarembó | B34: 19 | C34: 11 | D34: 1 | E34: 9 | F34: 0 | G34: 1 | H34: 4 | I34: 0 | J34: 4 | K34: 4 | L34: 3 | M34: 1
A35: Treinta y Tres | B35: 12 | C35: 7 | D35: 0 | E35: 6 | F35: 0 | G35: 1 | H35: 2 | I35: 0 | J35: 2 | K35: 3 | L35: 3 | M35: 0
A37: Fuente: D.E.- C.E.S .
A38: Nota: 1- Los establecimientos considerados en el Tipo de Educación Escuelas con Ciclo Básico Rural” ya fueron considerados en los totales de establecimientos de Educación Primaria por lo cual, si bien se presentan en la columna correspondiente, no participan en el “Total” del presente cuadro.
A39: 2- En un mismo establecimiento del CETP coexisten cursos de distintos nivel edcuativo. En este cuadro se exponen las escuelas que dictan cursos de EDUCACIÓN MEDIA SUPERIOR. Se incluyeron reparticiones (localizaciones) que no son establecimientos de activos de ANEP.

Sheet II-4.2.1
A1: CONSEJO DE EDUCACIÓN SECUNDARIA | C1: ALUMNOS MATRICULADOS
A3: Cuadro Nº II-4.2.1
A5: ALUMNOS MATRICULADOS DEL CES EN EDUCACIÓN MEDIA SUPERIOR GENERAL POR GRADO SEGÚN GRANDES ÁREAS Y FORMA DE ADMINISTRACIÓN. AÑO 2015.
A6: GRANDES ÁREAS Y FORMA DE ADMINISTRACIÓN | B6: TOTAL | C6: GRADO
C8: CUARTO | D8: QUINTO | E8: SEXTO
A9: TOTAL DEL PAÍS | B9: =C9+D9+E9 -> 116793 | C9: =C10+C13 -> 42553 | D9: =D10+D13 -> 40998 | E9: =E10+E13 -> 33242
A10: MEDIA SUPERIOR PÚBLICA | B10: =C10+D10+E10 -> 99617 | C10: =C11+C12 -> 35719 | D10: =D11+D12 -> 35606 | E10: =E11+E12 -> 28292
A11: Diurna | B11: =C11+D11+E11 -> 67519 | C11: =C16+C21 -> 26724 | D11: 22801 | E11: 17994
A12: Cuarto Turno | B12: 32098 | C12: 8995 | D12: 12805 | E12: 10298
A13: MEDIA SUPERIOR PRIVADA | B13: 17176 | C13: 6834 | D13: 5392 | E13: 4950
A14: TOTAL MONTEVIDEO | B14: 45742 | C14: =C15+C18 -> 15706 | D14: =D15+D18 -> 16341 | E14: =E15+E18 -> 13695
A15: MEDIA SUPERIOR PÚBLICA | B15: 33364 | C15: =C16+C17 -> 11086 | D15: =D16+D17 -> 12330 | E15: =E16+E17 -> 9948
A16: Diurna | B16: 18980 | C16: 7554 | D16: 6449 | E16: 4977
A17: Cuarto Turno | B17: 14384 | C17: 3532 | D17: 5881 | E17: 4971
A18: MEDIA SUPERIOR PRIVADA | B18: 12378 | C18: 4620 | D18: 4011 | E18: 3747
A19: TOTAL RESTO DEL PAÍS | B19: 71051 | C19: =C20+C23 -> 26847 | D19: =D20+D23 -> 24657 | E19: =E20+E23 -> 19547
A20: MEDIA SUPERIOR PÚBLICA | B20: 66253 | C20: =C21+C22 -> 24633 | D20: =D21+D22 -> 23276 | E20: =E21+E22 -> 18344
A21: Diurna | B21: 48539 | C21: 19170 | D21: 16352 | E21: 13017
A22: Cuarto Turno | B22: 17714 | C22: 5463 | D22: 6924 | E22: 5327
A23: MEDIA SUPERIOR PRIVADA | B23: 4798 | C23: 2214 | D23: 1381 | E23: 1203
A24: Fuente: DE — CES
A25: Nota: La referencia "Privada" (incluye los Habilitados "Liceo Naval" y "Liceo Militar"), se corresponde con la de "Liceos Habilitados" presente en ediciones anteriores del Anuario Estadístico del MEC

Sheet II-4.2.2
A1: CONSEJO DE EDUCACIÓN TÉCNICO PROFESIONAL (U.T.U.) | K1: ALUMNOS MATRICULADOS
A3: Cuadro Nº II-4.2.2
A5: ALUMNOS MATRICULADOS EN EL CETP EN EDUCACIÓN MEDIA SUPERIOR TECNOLÓGICA POR TIPO DE CURSO SEGÚN GRANDES ÁREAS, DEPARTAMENTO Y SEXO. AÑO 2015
A6: GRANDES ÁREAS,DEPARTAMENTO Y SEXO | B6: TOTAL | C6: TOTAL | E6: Tipo de curso
E7: EDUACIÓN MEDIA SUPERIOR TECONOLOGICA
E8: TOTAL | F8: Bachillerato Figari | H8: TOTAL | I8: Bachillerato Profesional | K8: TOTAL | L8: Curso Técnico | N8: TOTAL | O8: E. M. P. Especialización | Q8: TOTAL | R8: Educación Media Profesional | T8: TOTAL | U8: Educación Media Tecnológica | W8: TOTAL | X8: Tecnologica Finest | Z8: TOTAL | AA8: Formación Profesional Superior | AC8: TOTAL | AD8: ARTICULACION E. M. S.
F9: Sexo | I9: Sexo | L9: Sexo | O9: Sexo | R9: Sexo | U9: Sexo | X9: Sexo | AA9: Sexo | AD9: Sexo
C10: F | D10: M | F10: F | G10: M | I10: F | J10: M | L10: F | M10: M | O10: F | P10: M | R10: F | S10: M | U10: F | V10: M
I11: Count | J11: Count | L11: Count | M11: Count | R11: Count | S11: Count | U11: Count | V11: Count
A12: TOTAL | B12: =C12+D12 -> 43478 | C12: =C13+C14 -> 18314 | D12: =D13+D14 -> 25164 | E12: =F12+G12 -> 289 | F12: =F13+F14 -> 178 | G12: =G13+G14 -> 111 | H12: =I12+J12 -> 1158 | I12: =I13+I14 -> 247 | J12: =J13+J14 -> 911 | K12: =L12+M12 -> 352 | L12: =L13+L14 -> 332 | M12: =M13+M14 -> 20 | N12: =O12+P12 -> 68 | O12: =O13+O14 -> 12 | P12: =P13+P14 -> 56 | Q12: =R12+S12 -> 14160 | R12: =R13+R14 -> 6397 | S12: =S13+S14 -> 7763 | T12: =U12+V12 -> 27179 | U12: =U13+U14 -> 11041 | V12: =V13+V14 -> 16138 | W12: =X12+Y12 -> 171 | X12: =X13+X14 -> 44 | Y12: =Y13+Y14 -> 127 | Z12: =AA12+AB12 -> 80 | AA12: =AA13+AA14 -> 60 | AB12: =AB13+AB14 -> 20 | AC12: =AD12+AE12 -> 21 | AD12: =AD13+AD14 -> 3 | AE12: =AE13+AE14 -> 18
A13: Montevideo | B13: =C13+D13 -> 18058 | C13: =F13+I13+L13+O13+R13+U13+X13+AA13+AD13 -> 6931 | D13: =G13+J13+M13+P13+S13+V13+Y13+AB13+AE13 -> 11127 | E13: =F13+G13 -> 246 | F13: 147 | G13: 99 | H13: =I13+J13 -> 483 | I13: 90 | J13: 393 | K13: =L13+M13 -> 352 | L13: 332 | M13: 20 | N13: =O13+P13 -> 68 | O13: 12 | P13: 56 | Q13: =R13+S13 -> 5985 | R13: 2617 | S13: 3368 | T13: =U13+V13 -> 10799 | U13: 3667 | V13: 7132 | W13: =X13+Y13 -> 45 | X13: 6 | Y13: 39 | Z13: =AA13+AB13 -> 80 | AA13: 60 | AB13: 20 | AC13: =AD13+AE13 -> 0
A14: RESTO DEL PAÍS | B14: 25420 | C14: =F14+I14+L14+O14+R14+U14+X14+AA14+AD14 -> 11383 | D14: =G14+J14+M14+P14+S14+V14+Y14+AB14+AE14 -> 14037 | E14: =SUM(E15:E32) -> 43 | F14: 31 | G14: 12 | H14: 675 | I14: 157 | J14: 518 | K14: 0 | L14: 0 | M14: 0 | N14: 0 | O14: 0 | P14: 0 | Q14: 8175 | R14: 3780 | S14: 4395 | T14: =SUM(T15:T32) -> 16380 | U14: =SUM(U15:U32) -> 7374 | V14: =SUM(V15:V32) -> 9006 | W14: =SUM(W15:W32) -> 126 | X14: =SUM(X15:X32) -> 38 | Y14: =SUM(Y15:Y32) -> 88 | Z14: =SUM(Z15:Z32) -> 0 | AA14: =SUM(AA15:AA32) -> 0 | AB14: =SUM(AB15:AB32) -> 0 | AC14: =SUM(AC15:AC32) -> 21 | AD14: =SUM(AD15:AD32) -> 3 | AE14: =SUM(AE15:AE32) -> 18
A15: Artigas | B15: =C15+D15 -> 1566 | C15: =F15+I15+L15+O15+R15+U15+X15+AA15+AD15 -> 842 | D15: =G15+J15+M15+P15+S15+V15+Y15+AB15+AE15 -> 724 | E15: 10 | F15: 6 | G15: 4 | H15: 30 | I15: 0 | J15: 30 | K15: 0 | L15: 0 | M15: 0 | N15: 0 | O15: 0 | P15: 0 | Q15: 690 | R15: 381 | S15: 309 | T15: 836 | U15: 455 | V15: 381 | W15: 0 | X15: 0 | Y15: 0 | Z15: 0 | AA15: 0 | AB15: 0 | AC15: 0 | AD15: 0 | AE15: 0
A16: Canelones | B16: =C16+D16 -> 5245 | C16: 2550 | D16: 2695 | E16: 0 | F16: 0 | G16: 0 | H16: 136 | I16: 49 | J16: 87 | K16: 0 | L16: 0 | M16: 0 | N16: 0 | O16: 0 | P16: 0 | Q16: 1815 | R16: 976 | S16: 839 | T16: 3267 | U16: 1518 | V16: 1749 | W16: 27 | X16: 7 | Y16: 20 | Z16: 0 | AA16: 0 | AB16: 0 | AC16: 0 | AD16: 0 | AE16: 0
A17: Cerro Largo | B17: 1182 | C17: 535 | D17: 647 | E17: 0 | F17: 0 | G17: 0 | H17: 13 | I17: 0 | J17: 13 | K17: 0 | L17: 0 | M17: 0 | N17: 0 | O17: 0 | P17: 0 | Q17: 338 | R17: 163 | S17: 175 | T17: 831 | U17: 372 | V17: 459 | W17: 0 | X17: 0 | Y17: 0 | Z17: 0 | AA17: 0 | AB17: 0 | AC17: 0 | AD17: 0 | AE17: 0
A18: Colonia | B18: 1645 | C18: 706 | D18: 939 | E18: 0 | F18: 0 | G18: 0 | H18: 41 | I18: 14 | J18: 27 | K18: 0 | L18: 0 | M18: 0 | N18: 0 | O18: 0 | P18: 0 | Q18: 514 | R18: 240 | S18: 274 | T18: 1069 | U18: 449 | V18: 620 | W18: 0 | X18: 0 | Y18: 0 | Z18: 0 | AA18: 0 | AB18: 0 | AC18: 21 | AD18: 3 | AE18: 18
A19: Durazno | B19: 564 | C19: 247 | D19: 317 | E19: 0 | F19: 0 | G19: 0 | H19: 0 | I19: 0 | J19: 0 | K19: 0 | L19: 0 | M19: 0 | N19: 0 | O19: 0 | P19: 0 | Q19: 69 | R19: 19 | S19: 50 | T19: 495 | U19: 228 | V19: 267 | W19: 0 | X19: 0 | Y19: 0 | Z19: 0 | AA19: 0 | AB19: 0 | AC19: 0 | AD19: 0 | AE19: 0
A20: Flores | B20: 324 | C20: 159 | D20: 165 | E20: 0 | F20: 0 | G20: 0 | H20: 0 | I20: 0 | J20: 0 | K20: 0 | L20: 0 | M20: 0 | N20: 0 | O20: 0 | P20: 0 | Q20: 87 | R20: 28 | S20: 59 | T20: 237 | U20: 131 | V20: 106 | W20: 0 | X20: 0 | Y20: 0 | Z20: 0 | AA20: 0 | AB20: 0 | AC20: 0 | AD20: 0 | AE20: 0
A21: Florida | B21: 756 | C21: 371 | D21: 385 | E21: 0 | F21: 0 | G21: 0 | H21: 0 | I21: 0 | J21: 0 | K21: 0 | L21: 0 | M21: 0 | N21: 0 | O21: 0 | P21: 0 | Q21: 121 | R21: 75 | S21: 46 | T21: 586 | U21: 276 | V21: 310 | W21: 49 | X21: 20 | Y21: 29 | Z21: 0 | AA21: 0 | AB21: 0 | AC21: 0 | AD21: 0 | AE21: 0
A22: Lavalleja | B22: 629 | C22: 317 | D22: 312 | E22: 0 | F22: 0 | G22: 0 | H22: 35 | I22: 14 | J22: 21 | K22: 0 | L22: 0 | M22: 0 | N22: 0 | O22: 0 | P22: 0 | Q22: 338 | R22: 166 | S22: 172 | T22: 256 | U22: 137 | V22: 119 | W22: 0 | X22: 0 | Y22: 0 | Z22: 0 | AA22: 0 | AB22: 0 | AC22: 0 | AD22: 0 | AE22: 0
A23: Maldonado | B23: 2245 | C23: 898 | D23: 1347 | E23: 0 | F23: 0 | G23: 0 | H23: 105 | I23: 19 | J23: 86 | K23: 0 | L23: 0 | M23: 0 | N23: 0 | O23: 0 | P23: 0 | Q23: 977 | R23: 419 | S23: 558 | T23: 1138 | U23: 453 | V23: 685 | W23: 25 | X23: 7 | Y23: 18 | Z23: 0 | AA23: 0 | AB23: 0 | AC23: 0 | AD23: 0 | AE23: 0
A24: Paysandú | B24: 1892 | C24: 715 | D24: 1177 | E24: 0 | F24: 0 | G24: 0 | H24: 72 | I24: 22 | J24: 50 | K24: 0 | L24: 0 | M24: 0 | N24: 0 | O24: 0 | P24: 0 | Q24: 299 | R24: 142 | S24: 157 | T24: 1521 | U24: 551 | V24: 970 | W24: 0 | X24: 0 | Y24: 0 | Z24: 0 | AA24: 0 | AB24: 0 | AC24: 0 | AD24: 0 | AE24: 0
A25: Rio Negro | B25: 825 | C25: 334 | D25: 491 | E25: 0 | F25: 0 | G25: 0 | H25: 15 | I25: 1 | J25: 14 | K25: 0 | L25: 0 | M25: 0 | N25: 0 | O25: 0 | P25: 0 | Q25: 170 | R25: 66 | S25: 104 | T25: 640 | U25: 267 | V25: 373 | W25: 0 | X25: 0 | Y25: 0 | Z25: 0 | AA25: 0 | AB25: 0 | AC25: 0 | AD25: 0 | AE25: 0
A26: Rivera | B26: 1231 | C26: 565 | D26: 666 | E26: 33 | F26: 25 | G26: 8 | H26: 6 | I26: 3 | J26: 3 | K26: 0 | L26: 0 | M26: 0 | N26: 0 | O26: 0 | P26: 0 | Q26: 215 | R26: 121 | S26: 94 | T26: 977 | U26: 416 | V26: 561 | W26: 0 | X26: 0 | Y26: 0 | Z26: 0 | AA26: 0 | AB26: 0 | AC26: 0 | AD26: 0 | AE26: 0
A27: Rocha | B27: 598 | C27: 291 | D27: 307 | E27: 0 | F27: 0 | G27: 0 | H27: 30 | I27: 1 | J27: 29 | K27: 0 | L27: 0 | M27: 0 | N27: 0 | O27: 0 | P27: 0 | Q27: 261 | R27: 105 | S27: 156 | T27: 307 | U27: 185 | V27: 122 | W27: 0 | X27: 0 | Y27: 0 | Z27: 0 | AA27: 0 | AB27: 0 | AC27: 0 | AD27: 0 | AE27: 0
A28: Salto | B28: 2151 | C28: 879 | D28: 1272 | E28: 0 | F28: 0 | G28: 0 | H28: 82 | I28: 8 | J28: 74 | K28: 0 | L28: 0 | M28: 0 | N28: 0 | O28: 0 | P28: 0 | Q28: 738 | R28: 308 | S28: 430 | T28: 1306 | U28: 559 | V28: 747 | W28: 25 | X28: 4 | Y28: 21 | Z28: 0 | AA28: 0 | AB28: 0 | AC28: 0 | AD28: 0 | AE28: 0
A29: San José | B29: 1176 | C29: 538 | D29: 638 | E29: 0 | F29: 0 | G29: 0 | H29: 33 | I29: 13 | J29: 20 | K29: 0 | L29: 0 | M29: 0 | N29: 0 | O29: 0 | P29: 0 | Q29: 528 | R29: 204 | S29: 324 | T29: 615 | U29: 321 | V29: 294 | W29: 0 | X29: 0 | Y29: 0 | Z29: 0 | AA29: 0 | AB29: 0 | AC29: 0 | AD29: 0 | AE29: 0
A30: Soriano | B30: 1412 | C30: 596 | D30: 816 | E30: 0 | F30: 0 | G30: 0 | H30: 0 | I30: 0 | J30: 0 | K30: 0 | L30: 0 | M30: 0 | N30: 0 | O30: 0 | P30: 0 | Q30: 417 | R30: 158 | S30: 259 | T30: 995 | U30: 438 | V30: 557 | W30: 0 | X30: 0 | Y30: 0 | Z30: 0 | AA30: 0 | AB30: 0 | AC30: 0 | AD30: 0 | AE30: 0
A31: Tacuarembó | B31: 1423 | C31: 615 | D31: 808 | E31: 0 | F31: 0 | G31: 0 | H31: 57 | I31: 13 | J31: 44 | K31: 0 | L31: 0 | M31: 0 | N31: 0 | O31: 0 | P31: 0 | Q31: 452 | R31: 150 | S31: 302 | T31: 914 | U31: 452 | V31: 462 | W31: 0 | X31: 0 | Y31: 0 | Z31: 0 | AA31: 0 | AB31: 0 | AC31: 0 | AD31: 0 | AE31: 0
A32: Treinta y Tres | B32: 556 | C32: 225 | D32: 331 | E32: 0 | F32: 0 | G32: 0 | H32: 20 | I32: 0 | J32: 20 | K32: 0 | L32: 0 | M32: 0 | N32: 0 | O32: 0 | P32: 0 | Q32: =R32+S32 -> 146 | R32: 59 | S32: 87 | T32: 390 | U32: 166 | V32: 224 | W32: 0 | X32: 0 | Y32: 0 | Z32: 0 | AA32: 0 | AB32: 0 | AC32: 0 | AD32: 0 | AE32: 0
A33: Fuente : Procesamiento propio en base a datos proporcionados por el D.E. _ CETP (U.T.U. )
A34: Nota: Los matriculados en Formación Profesional Superior, potencialmente son estudiantes de Educación Media Superior, ya que con el curso de Articulación correspondiente adquieren continuidad educativa a nivel tericiario.
A35: En Educación Media Tecnológica se sumaron 4 mujeres y 13 hombres en Florida que corresponden al curso Educación Media Tecnológica Fines.
H38: 6931 | I38: 11127
H39: 11383 | I39: 14037

Sheet II-4.2.3
A1: CONSEJO DE EDUCACIÓN TÉCNICO PROFESIONAL (U.T.U.) | L1: ALUMNOS MATRICULADOS
A3: Cuadro Nº II-4.2.3
A5: ALUMNOS MATRICULADOS EN EL CETP EN EDUCACIÓN MEDIA SUPERIOR POR TIPO DE CURSO SEGÚN EDAD. AÑO 2015.
A6: EDAD | B6: TOTAL | C6: TIPO DE CURSO
C8: EDUCACIÓN MEDIA SUPERIOR TECNOLÓGICA
C9: Articulación EMS | D9: Bachillerato Figari | E9: Bachillerato Profesional | F9: Curso Técnico | G9: E. M. P. Especialización | H9: Educación Media Profesional | I9: Educación Media Tecnológica | J9: Tecnologica Finest | K9: Formación Profesional Superior
A10: TOTAL | B10: =C10+D10+E10++F10+G10+H10+I10+J10+K10 -> 43478 | C10: =SUM(C11:C21) -> 21 | D10: =SUM(D11:D21) -> 289 | E10: 1158 | F10: 352 | G10: 68 | H10: 14160 | I10: 27179 | J10: =SUM(J11:J21) -> 171 | K10: 80
A11: 11 y 12 años | B11: =C11+D11+E11++F11+G11+H11+I11+J11+K11 -> 0 | C11: 0 | D11: 0 | E11: 0 | F11: 0 | G11: 0 | H11: 0 | I11: 0 | J11: 0 | K11: 0
A12: 13 años | B12: 357 | C12: 0 | D12: 1 | E12: 0 | F12: 1 | G12: 1 | H12: 64 | I12: 290 | J12: 0 | K12: 0
A13: 14 años | B13: 0 | C13: 0 | D13: 0 | E13: 0 | F13: 0 | G13: 0 | H13: 0 | I13: 0 | J13: 0 | K13: 0
A14: 15 años | B14: 4168 | C14: 0 | D14: 15 | E14: 0 | F14: 10 | G14: 3 | H14: 858 | I14: 3280 | J14: 0 | K14: 2
A15: 16 años | B15: 6238 | C15: 0 | D15: 27 | E15: 15 | F15: 26 | G15: 5 | H15: 1574 | I15: 4587 | J15: 1 | K15: 3
A16: 17 años | B16: 7175 | C16: 0 | D16: 30 | E16: 169 | F16: 40 | G16: 9 | H16: 1900 | I16: 5016 | J16: 4 | K16: 7
A17: 18años | B17: 5426 | C17: 0 | D17: 20 | E17: 173 | F17: 63 | G17: 10 | H17: 1632 | I17: 3495 | J17: 17 | K17: 16
A18: 19años | B18: 3915 | C18: 0 | D18: 25 | E18: 136 | F18: 39 | G18: 9 | H18: 1289 | I18: 2392 | J18: 13 | K18: 12
A19: 20 a 24 años | B19: 8531 | C19: 0 | D19: 51 | E19: 338 | F19: 107 | G19: 15 | H19: 3242 | I19: 4700 | J19: 52 | K19: 26
A20: 25 a 29 años | B20: 3607 | C20: 0 | D20: 37 | E20: 119 | F20: 34 | G20: 6 | H20: 1516 | I20: 1864 | J20: 23 | K20: 8
A21: 30 años y más | B21: 4061 | C21: 21 | D21: 83 | E21: 208 | F21: 32 | G21: 10 | H21: 2085 | I21: 1555 | J21: 61 | K21: 6
A23: Fuente: Procesamiento propio en base a datos proporcionados por el D.E. - CETP (U.T.U)
A24: Nota: Los cursos de Articulación no corresponden estrictamente a Educación Media Superior. El curso de Articulación brinda la posibilidad de adquirir el nivel educativo para Terciario. De esta manera se entiende que su inclusión en Educación Media Superior parece más apropiada que su inclusión en nivel terciario dentro de la oferta educativa del CEPT.
A25: En Educación Media Tecnológica se sumaron 17 estudiantes que corresponden al curso Educación Media Tecnológica Fines.

Sheet II-4.2.4
A1: CONSEJO DE EDUCACIÓN TÉCNICO PROFESIONAL (U.T.U.) | J1: ALUMNOS MATRICULADOS
A3: Cuadro Nº II-4.2.4.
A5: ALUMNOS MATRICULADOS EN EL CETP EN EDUCACIÓN MEDIA SUPERIOR TECNOLÓGICA POR TIPO DE CURSO SEGÚN SECTORES DE ESTUDIO. AÑO 2015.
A6: SECTORES DE ESTUDIO | B6: TOTAL | C6: EDUCACIÓN MEDIA SUPERIOR TECNOLÓGICA
C7: Articulación EMS | D7: Bachillerato Figari | E7: Bachillerato Profesional | F7: Curso Técnico | G7: E. M. P. Especialización | H7: Educación Media Profesional | I7: Educación Media Tecnológica | J7: Tecnologica Finest | K7: Formación Profesional Superior
A8: TOTAL | B8: =C8+D8+E8+F8+G8+H8+I8+J8+K8 -> 43478 | C8: =SUM(C9:C932) -> 21 | D8: =SUM(D9:D932) -> 289 | E8: 1158 | F8: 352 | G8: 68 | H8: 14160 | I8: 27179 | J8: 171 | K8: 80
A9: Agropecuario | B9: =C9+D9+E9+F9+G9+H9+I9+J9+K9 -> 2447 | C9: 21 | D9: 0 | E9: 40 | F9: 0 | G9: 0 | H9: 253 | I9: 2133 | J9: 0 | K9: 0
A10: Artes y Artesanías | B10: 253 | C10: 0 | D10: 253 | E10: 0 | F10: 0 | G10: 0 | H10: 0 | I10: 0 | J10: 0 | K10: 0
A11: Cerámica | B11: 36 | C11: 0 | D11: 36 | E11: 0 | F11: 0 | G11: 0 | H11: 0 | I11: 0 | J11: 0 | K11: 0
A12: Comercio y Administración | B12: 11571 | C12: 0 | D12: 0 | E12: 0 | F12: 0 | G12: 0 | H12: 3666 | I12: 7905 | J12: 0 | K12: 0
A13: Comunicación | B13: 91 | C13: 0 | D13: 0 | E13: 0 | F13: 0 | G13: 0 | H13: 0 | I13: 91 | J13: 0 | K13: 0
A14: Construcción y Arquitectura | B14: 2489 | C14: 0 | D14: 0 | E14: 107 | F14: 0 | G14: 20 | H14: 586 | I14: 1776 | J14: 0 | K14: 0
A15: Deporte y Afines | B15: 4158 | C15: 0 | D15: 0 | E15: 0 | F15: 0 | G15: 0 | H15: 160 | I15: 3998 | J15: 0 | K15: 0
A16: Electricidad y Electrónica | B16: 5237 | C16: 0 | D16: 0 | E16: 373 | F16: 0 | G16: 0 | H16: 1943 | I16: 2921 | J16: 0 | K16: 0
A17: Forestal | B17: 17 | C17: 0 | D17: 0 | E17: 0 | F17: 0 | G17: 0 | H17: 17 | I17: 0 | J17: 0 | K17: 0
A18: Gastronomía | B18: 2754 | C18: 0 | D18: 0 | E18: 336 | F18: 0 | G18: 0 | H18: 2418 | I18: 0 | J18: 0 | K18: 0
A19: Gráficos | B19: 89 | C19: 0 | D19: 0 | E19: 0 | F19: 0 | G19: 0 | H19: 0 | I19: 70 | J19: 0 | K19: 19
A20: Hortifruticultura y Jardinería | B20: 48 | C20: 0 | D20: 0 | E20: 0 | F20: 0 | G20: 0 | H20: 48 | I20: 0 | J20: 0 | K20: 0
A21: Hotelería | B21: 98 | C21: 0 | D21: 0 | E21: 0 | F21: 0 | G21: 0 | H21: 58 | I21: 0 | J21: 0 | K21: 40
A22: Informática | B22: 5958 | C22: 0 | D22: 0 | E22: 16 | F22: 0 | G22: 0 | H22: 351 | I22: 5591 | J22: 0 | K22: 0
A23: Madera y Muebles | B23: 779 | C23: 0 | D23: 0 | E23: 48 | F23: 0 | G23: 0 | H23: 731 | I23: 0 | J23: 0 | K23: 0
A24: Mant. Rep. y Serv. a la Producción | B24: 157 | C24: 0 | D24: 0 | E24: 14 | F24: 0 | G24: 0 | H24: 143 | I24: 0 | J24: 0 | K24: 0
A25: Mantenimiento y Rep. de Vehículos | B25: 1948 | C25: 0 | D25: 0 | E25: 159 | F25: 0 | G25: 48 | H25: 1381 | I25: 360 | J25: 0 | K25: 0
A26: Metal - Mecánica | B26: 1055 | C26: 0 | D26: 0 | E26: 28 | F26: 0 | G26: 0 | H26: 492 | I26: 535 | J26: 0 | K26: 0
A27: Nautica y Pesca | B27: 118 | C27: 0 | D27: 0 | E27: 30 | F27: 0 | G27: 0 | H27: 88 | I27: 0 | J27: 0 | K27: 0
A28: Protección al Medio Ambiente | B28: 40 | C28: 0 | D28: 0 | E28: 7 | F28: 0 | G28: 0 | H28: 33 | I28: 0 | J28: 0 | K28: 0
A29: Química, Termodinámica y Agroener. | B29: 745 | C29: 0 | D29: 0 | E29: 0 | F29: 0 | G29: 0 | H29: 146 | I29: 428 | J29: 171 | K29: 0
A30: Servicios Personales | B30: 1658 | C30: 0 | D30: 0 | E30: 0 | F30: 162 | G30: 0 | H30: 1496 | I30: 0 | J30: 0 | K30: 0
A31: Textil y Confección de Vestimenta | B31: 340 | C31: 0 | D31: 0 | E31: 0 | F31: 190 | G31: 0 | H31: 150 | I31: 0 | J31: 0 | K31: 0
A32: Turismo | B32: 1392 | C32: 0 | D32: 0 | E32: 0 | F32: 0 | G32: 0 | H32: 0 | I32: 1371 | J32: 0 | K32: 21
A33: Fuente: D.E.- CETP (U.T.U.)
A34: Nota: Los cursos de Articulación no corresponden estrictamente a Educación Media Superior. El curso de Articulación brinda la posibilidad de adquirir el nivel educativo para Terciario. De esta manera se entiende que su inclusión en Educación Media Superior parece más apropiada que su inclusión en nivel terciario dentro de la oferta educativa del CEPT.
A35: En Educación Media Tecnológica se sumaron 17 estudiantes que corresponden al curso Educación Media Tecnológica Fines y sector de estudio Química, Termodinámica y Agroenergía

Sheet II-4.2.5
A1: CONSEJO DE EDUCACIÓN SECUNDARIA | E1: ALUMNOS MATRICULADOS
A3: Cuadro Nº II-4.2.5.
A5: ALUMNOS MATRICULADOS EN EL CES EN EDUCACIÓN MEDIA SUPERIOR GENERAL POR GRADO Y FORMA DE ADMINISTRACIÓN SEGÚN DEPARTAMENTO. AÑO 2015.
A6: DEPARTAMENTO | B6: GRADO
B7: CUARTO | D7: QUINTO | F7: SEXTO
B8: FORMA DE ADMINISTRACIÓN
B9: Públicos | C9: Privados | D9: Públicos | E9: Privados | F9: Públicos | G9: Privados
A10: TOTAL | B10: =SUM(B11:B12) -> 35719 | C10: 6834 | D10: 35606 | E10: 5392 | F10: =SUM(F11:F12) -> 28292 | G10: 4950
A11: MONTEVIDEO | B11: 11086 | C11: 4620 | D11: 12330 | E11: 4011 | F11: 9948 | G11: 3747
A12: RESTO DEL PAÍS | B12: =SUM(B13:B30) -> 24633 | C12: 2214 | D12: 23276 | E12: 1381 | F12: =SUM(F13:F30) -> 18344 | G12: 1203
A13: Artigas | B13: 975 | C13: 12 | D13: 1007 | E13: 0 | F13: 832 | G13: 0
A14: Canelones | B14: 6077 | C14: 712 | D14: 5653 | E14: 614 | F14: 4448 | G14: 602
A15: Cerro Largo | B15: 1258 | C15: 87 | D15: 1152 | E15: 47 | F15: 822 | G15: 38
A16: Colonia | B16: 1383 | C16: 6 | D16: 1290 | E16: 0 | F16: 1131 | G16: 0
A17: Durazno | B17: 698 | C17: 55 | D17: 626 | E17: 17 | F17: 530 | G17: 8
A18: Flores | B18: 308 | C18: 44 | D18: 309 | E18: 0 | F18: 284 | G18: 0
A19: Florida | B19: 784 | C19: 55 | D19: 739 | E19: 19 | F19: 605 | G19: 33
A20: Lavalleja | B20: 728 | C20: 26 | D20: 822 | E20: 12 | F20: 565 | G20: 10
A21: Maldonado | B21: 2108 | C21: 450 | D21: 2089 | E21: 340 | F21: 1558 | G21: 271
A22: Paysandú | B22: 1165 | C22: 181 | D22: 1104 | E22: 102 | F22: 1009 | G22: 82
A23: Río Negro | B23: 635 | C23: 24 | D23: 571 | E23: 0 | F23: 467 | G23: 0
A24: Rivera | B24: 1635 | C24: 46 | D24: 1482 | E24: 25 | F24: 1205 | G24: 17
A25: Rocha | B25: 1127 | C25: 52 | D25: 1002 | E25: 0 | F25: 651 | G25: 0
A26: Salto | B26: 1514 | C26: 167 | D26: 1522 | E26: 78 | F26: 1289 | G26: 50
A27: San José | B27: 1198 | C27: 95 | D27: 1239 | E27: 44 | F27: 897 | G27: 38
A28: Soriano | B28: 996 | C28: 48 | D28: 987 | E28: 0 | F28: 755 | G28: 0
A29: Tacuarembó | B29: 1325 | C29: 100 | D29: 1086 | E29: 83 | F29: 873 | G29: 54
A30: Treinta y Tres | B30: 719 | C30: 54 | D30: 596 | E30: 0 | F30: 423 | G30: 0
A31: Fuente: DE — CES
A32: Nota: La referencia "Privados" (incluye los Habilitados "Liceo Naval" y "Liceo Militar"), se corresponde con la de "Liceos Habilitados" presente en ediciones anteriores del Anuario Estadístico del MEC

Sheet II-4.2.6
A1: CONSEJO DE EDUCACIÓN SECUNDARIA | K1: ALUMNOS MATRICULADOS
A3: Cuadro Nº II-4.2.6
A5: ALUMNOS MATRICULADOS EN EL CES EN QUINTO GRADO DE EDUCACIÓN MEDIA GENERAL PÚBLICA POR PLAN Y ORIENTACIÓN SEGÚN DEPARTAMENTO. AÑO 2015.
A6: DEPARTAMENTO | B6: TOTAL GENERAL
C7: TOTAL PLAN 94 | D7: ORIENTACIÓN PLAN / 94 | J7: TOTAL PLAN 06 | K7: ORIENTACIÓN PLAN / REFORMULACIÓN 2006
D8: 2º H | F8: 2º B | H8: 2º C
D9: ANUAL | E9: 1ºSemestre | F9: ANUAL | G9: 1ºSemestre | H9: ANUAL | I9: 1ºSemestre | K9: Nucleo común | L9: DivHum | M9: DivBiol | N9: DivCient | O9: DivArt
A11: TOTAL | B11: =SUM(C11+J11) -> 35445 | C11: =SUM(D11:I11) -> 12689 | D11: =SUM(D12:D13) -> 3368 | E11: 3949 | F11: 2709 | G11: 1871 | H11: 442 | I11: 350 | J11: =SUM(K11:O11) -> 22756 | K11: =SUM(K12:K13) -> 0 | L11: =SUM(L12:L13) -> 9024 | M11: =SUM(M12:M13) -> 8598 | N11: =SUM(N12:N13) -> 3231 | O11: =SUM(O12:O13) -> 1903
A12: MONTEVIDEO | B12: =SUM(C12+J12) -> 12214 | C12: =SUM(D12:I12) -> 5765 | D12: 1351 | E12: 1985 | F12: 1002 | G12: 893 | H12: 229 | I12: 305 | J12: =SUM(K12:O12) -> 6449 | K12: 0 | L12: 2567 | M12: 2064 | N12: 1067 | O12: 751
A13: RESTO DEL PAÍS | B13: 23231 | C13: =SUM(D13:I13) -> 6924 | D13: =SUM(D14:D31) -> 2017 | E13: 1964 | F13: 1707 | G13: 978 | H13: 213 | I13: 45 | J13: 16307 | K13: =SUM(K14:K31) -> 0 | L13: =SUM(L14:L31) -> 6457 | M13: =SUM(M14:M31) -> 6534 | N13: =SUM(N14:N31) -> 2164 | O13: =SUM(O14:O31) -> 1152
A14: Artigas | B14: 1007 | C14: 249 | D14: 65 | E14: 104 | F14: 0 | G14: 80 | H14: 0 | I14: 0 | J14: 758 | K14: 0 | L14: 335 | M14: 307 | N14: 65 | O14: 51
A15: Canelones | B15: 5653 | C15: 2040 | D15: 549 | E15: 623 | F15: 435 | G15: 295 | H15: 138 | I15: 0 | J15: 3613 | K15: 0 | L15: 1377 | M15: 1267 | N15: 616 | O15: 353
A16: Cerro Largo | B16: 1152 | C16: 353 | D16: 230 | E16: 0 | F16: 123 | G16: 0 | H16: 0 | I16: 0 | J16: 799 | K16: 0 | L16: 338 | M16: 329 | N16: 76 | O16: 56
A17: Colonia | B17: 1290 | C17: 459 | D17: 167 | E17: 90 | F17: 202 | G17: 0 | H17: 0 | I17: 0 | J17: 831 | K17: 0 | L17: 286 | M17: 310 | N17: 163 | O17: 72
A18: Durazno | B18: 626 | C18: 153 | D18: 0 | E18: 107 | F18: 46 | G18: 0 | H18: 0 | I18: 0 | J18: 473 | K18: 0 | L18: 173 | M18: 195 | N18: 70 | O18: 35
A19: Flores | B19: 309 | C19: 92 | D19: 47 | E19: 0 | F19: 45 | G19: 0 | H19: 0 | I19: 0 | J19: 217 | K19: 0 | L19: 56 | M19: 97 | N19: 46 | O19: 18
A20: Florida | B20: 739 | C20: 182 | D20: 113 | E20: 0 | F20: 69 | G20: 0 | H20: 0 | I20: 0 | J20: 557 | K20: 0 | L20: 223 | M20: 225 | N20: 72 | O20: 37
A21: Lavalleja | B21: 822 | C21: 111 | D21: 74 | E21: 0 | F21: 37 | G21: 0 | H21: 0 | I21: 0 | J21: 711 | K21: 0 | L21: 338 | M21: 268 | N21: 65 | O21: 40
A22: Maldonado | B22: 2089 | C22: 614 | D22: 31 | E22: 309 | F22: 22 | G22: 206 | H22: 1 | I22: 45 | J22: 1475 | K22: 0 | L22: 591 | M22: 563 | N22: 199 | O22: 122
A23: Paysandú | B23: 1104 | C23: 247 | D23: 0 | E23: 117 | F23: 0 | G23: 123 | H23: 7 | I23: 0 | J23: 857 | K23: 0 | L23: 278 | M23: 430 | N23: 107 | O23: 42
A24: Río Negro | B24: 571 | C24: 193 | D24: 105 | E24: 12 | F24: 62 | G24: 14 | H24: 0 | I24: 0 | J24: 378 | K24: 0 | L24: 130 | M24: 162 | N24: 45 | O24: 41
A25: Rivera | B25: 1482 | C25: 328 | D25: 49 | E25: 156 | F25: 31 | G25: 75 | H25: 17 | I25: 0 | J25: 1154 | K25: 0 | L25: 598 | M25: 413 | N25: 107 | O25: 36
A26: Rocha | B26: 1002 | C26: 333 | D26: 129 | E26: 64 | F26: 79 | G26: 61 | H26: 0 | I26: 0 | J26: 669 | K26: 0 | L26: 246 | M26: 297 | N26: 76 | O26: 50
A27: Salto | B27: 1522 | C27: 307 | D27: 155 | E27: 0 | F27: 126 | G27: 0 | H27: 26 | I27: 0 | J27: 1215 | K27: 0 | L27: 522 | M27: 543 | N27: 103 | O27: 47
A28: San José | B28: 1239 | C28: 546 | D28: 168 | E28: 86 | F28: 144 | G28: 124 | H28: 24 | I28: 0 | J28: 693 | K28: 0 | L28: 221 | M28: 290 | N28: 131 | O28: 51
A29: Soriano | B29: 987 | C29: 300 | D29: 86 | E29: 100 | F29: 114 | G29: 0 | H29: 0 | I29: 0 | J29: 687 | K29: 0 | L29: 241 | M29: 300 | N29: 98 | O29: 48
A30: Tacuarembó | B30: 1041 | C30: 249 | D30: 49 | E30: 100 | F30: 100 | G30: 0 | H30: 0 | I30: 0 | J30: 792 | K30: 0 | L30: 330 | M30: 344 | N30: 80 | O30: 38
A31: Treinta y Tres | B31: 596 | C31: 168 | D31: 0 | E31: 96 | F31: 72 | G31: 0 | H31: 0 | I31: 0 | J31: 428 | K31: 0 | L31: 174 | M31: 194 | N31: 45 | O31: 15
A32: Fuente: DE — CES

Sheet II-4.2.7
A1: CONSEJO DE EDUCACIÓN SECUNDARIA | F1: ALUMNOS MATRICULADOS
A3: Cuadro Nº II-4.2.7
A7: ALUMNOS MATRICULADOS EN EL CES EN QUINTO GRADO DE EDUCACIÓN MEDIA SUPERIOR DE EDUCACIÓN SECUNDARIA PRIVADA POR ORIENTACIÓN SEGÚN DEPARTAMENTO. AÑO 2015.
A9: DEPARTAMENTO | B9: TOTAL | C9: QUINTO GRADO DE EDUCACIÓN MEDIA GENERAL
C10: ORIENTACIÓN Planes 86+93+2006 | G10: OTROS (*)
C11: Humanística | D11: Biológica | E11: Científica | F11: Artístico | G11: BINT y/o BICUL
A13: TOTAL | B13: =C13+D13+E13+F13+G13 -> 5476 | C13: =C14+C15 -> 1880 | D13: =D14+D15 -> 1442 | E13: =E14+E15 -> 1674 | F13: =F14+F15 -> 325 | G13: =G14+G15 -> 155
A14: MONTEVIDEO | B14: =C14+D14+E14+F14+G14 -> 4086 | C14: 1438 | D14: 903 | E14: 1313 | F14: 277 | G14: 155
A15: RESTO DEL PAÍS | B15: 1390 | C15: =SUM(C16:C33) -> 442 | D15: =SUM(D16:D33) -> 539 | E15: =SUM(E16:E33) -> 361 | F15: =SUM(F16:F33) -> 48 | G15: =SUM(G16:G33) -> 0
A16: Artigas | B16: 0 | C16: 0 | D16: 0 | E16: 0 | F16: 0 | G16: 0
A17: Canelones | B17: 543 | C17: 178 | D17: 220 | E17: 117 | F17: 28 | G17: 0
A18: Cerro Largo | B18: 47 | C18: 7 | D18: 17 | E18: 23 | F18: 0 | G18: 0
A19: Colonia | B19: 0 | C19: 0 | D19: 0 | E19: 0 | F19: 0 | G19: 0
A20: Durazno | B20: 44 | C20: 16 | D20: 9 | E20: 19 | F20: 0 | G20: 0
A21: Flores | B21: 0 | C21: 0 | D21: 0 | E21: 0 | F21: 0 | G21: 0
A22: Florida | B22: 36 | C22: 11 | D22: 12 | E22: 13 | F22: 0 | G22: 0
A23: Lavalleja | B23: 9 | C23: 9 | D23: 0 | E23: 0 | F23: 0 | G23: 0
A24: Maldonado | B24: 345 | C24: 120 | D24: 129 | E24: 76 | F24: 20 | G24: 0
A25: Paysandú | B25: 124 | C25: 40 | D25: 45 | E25: 39 | F25: 0 | G25: 0
A26: Río Negro | B26: 0 | C26: 0 | D26: 0 | E26: 0 | F26: 0 | G26: 0
A27: Rivera | B27: 26 | C27: 4 | D27: 13 | E27: 9 | F27: 0 | G27: 0
A28: Rocha | B28: 0 | C28: 0 | D28: 0 | E28: 0 | F28: 0 | G28: 0
A29: Salto | B29: 73 | C29: 17 | D29: 37 | E29: 19 | F29: 0 | G29: 0
A30: San José | B30: 64 | C30: 16 | D30: 28 | E30: 20 | F30: 0 | G30: 0
A31: Soriano | B31: 0 | C31: 0 | D31: 0 | E31: 0 | F31: 0 | G31: 0
A32: Tacuarembó | B32: 79 | C32: 24 | D32: 29 | E32: 26 | F32: 0 | G32: 0
A33: Treinta y Tres | B33: 0 | C33: 0 | D33: 0 | E33: 0 | F33: 0 | G33: 0
A34: Fuente: DE — CES
A35: Nota: Otros (*) Corresponde a los cursos de Bachillerato Internacional y
A36: Bachillerato Bicultural

Sheet II-4.2.8
A1: CONSEJO DE EDUCACIÓN SECUNDARIA | D1: ALUMNOS MATRICULADOS
A3: Cuadro Nº II-4.2.8 | C3: VOLVER
A5: ALUMNOS MATRICULADOS EN EL CES EN SEXTO GRADO DE EDUCACIÓN MEDIA GENERAL PÚBLICA POR PLAN Y OPCIÓN SEGÚN DEPARTAMENTO. AÑO 2015.
C6: SEXTO GRADO
A7: DEPARTAMENTO | B7: TOTAL GENERAL | C7: TOTAL Plan 94 | D7: O P C I Ó N P L A N / 94 | P7: Total Plan Ref. 06 | Q7: O P C I Ó N P L A N / R E F O R M U L A C I Ó N 2006
D9: 3º DER | F9: 3º ECO | H9: 3º AGR | J9: 3º MED | L9: 3º ARQ | N9: 3º ING | Q9: Nucleo Común | R9: Social Humanístico | S9: Social Economía | T9: Ciencias Agrarias | U9: Ciencias Biológicas | V9: Física Matemática | W9: Matemática Diseño | X9: Arte y Expresión
D10: ANUAL | E10: 1ºSemestre | F10: ANUAL | G10: 1ºSemestre | H10: ANUAL | I10: 1ºSemestre | J10: ANUAL | K10: 1ºSemestre | L10: ANUAL | M10: 1ºSemestre | N10: ANUAL | O10: 1ºSemestre
A12: TOTAL | B12: =SUM(C12+P12) -> 28292 | C12: =SUM(D12:O12) -> 10232 | D12: =D13+D14 -> 2408 | E12: 2549 | F12: 425 | G12: 229 | H12: 58 | I12: 0 | J12: 2513 | K12: 1408 | L12: 97 | M12: 71 | N12: 356 | O12: 118 | P12: =SUM(Q12:X12) -> 18060 | Q12: =Q13+Q14 -> 0 | R12: =R13+R14 -> 5876 | S12: =S13+S14 -> 1984 | T12: 611 | U12: 5964 | V12: 1465 | W12: 741 | X12: 1419
A13: MONTEVIDEO | B13: =SUM(C13+P13) -> 9948 | C13: =SUM(D13:O13) -> 4868 | D13: 829 | E13: 1429 | F13: 223 | G13: 227 | H13: 24 | I13: 0 | J13: 879 | K13: 738 | L13: 83 | M13: 71 | N13: 247 | O13: 118 | P13: =SUM(Q13:X13) -> 5080 | Q13: 0 | R13: 1554 | S13: 700 | T13: 68 | U13: 1397 | V13: 444 | W13: 268 | X13: 649
A14: RESTO DEL PAÍS | B14: =SUM(C14+P14) -> 18344 | C14: =SUM(D14:O14) -> 5364 | D14: =SUM(D15:D32) -> 1579 | E14: 1120 | F14: 202 | G14: 2 | H14: 34 | I14: 0 | J14: 1634 | K14: 670 | L14: 14 | M14: 0 | N14: 109 | O14: =SUM(O15:O32) -> 0 | P14: =SUM(P15:P32) -> 12980 | Q14: =SUM(Q15:Q32) -> 0 | R14: =SUM(R15:R32) -> 4322 | S14: =SUM(S15:S32) -> 1284 | T14: 543 | U14: 4567 | V14: 1021 | W14: 473 | X14: 770
A15: Artigas | B15: 832 | C15: 208 | D15: 51 | E15: 81 | F15: 0 | G15: 0 | H15: 0 | I15: 0 | J15: 0 | K15: 76 | L15: 0 | M15: 0 | N15: 0 | O15: 0 | P15: =SUM(Q15:X15) -> 624 | Q15: 0 | R15: 240 | S15: 50 | T15: 9 | U15: 252 | V15: 57 | W15: 10 | X15: 6
A16: Canelones | B16: 4448 | C16: 1623 | D16: 361 | E16: 447 | F16: 94 | G16: 0 | H16: 13 | I16: 0 | J16: 437 | K16: 214 | L16: 0 | M16: 0 | N16: 57 | O16: 0 | P16: =SUM(Q16:X16) -> 2825 | Q16: 0 | R16: 841 | S16: 346 | T16: 74 | U16: 921 | V16: 267 | W16: 134 | X16: 242
A17: Cerro Largo | B17: 822 | C17: 239 | D17: 127 | E17: 0 | F17: 0 | G17: 0 | H17: 0 | I17: 0 | J17: 112 | K17: 0 | L17: 0 | M17: 0 | N17: 0 | O17: 0 | P17: 583 | Q17: 0 | R17: 251 | S17: 49 | T17: 32 | U17: 167 | V17: 37 | W17: 11 | X17: 36
A18: Colonia | B18: 1131 | C18: 356 | D18: 172 | E18: 0 | F18: 19 | G18: 0 | H18: 0 | I18: 0 | J18: 165 | K18: 0 | L18: 0 | M18: 0 | N18: 0 | O18: 0 | P18: 775 | Q18: 0 | R18: 212 | S18: 101 | T18: 54 | U18: 207 | V18: 81 | W18: 50 | X18: 70
A19: Durazno | B19: 530 | C19: 143 | D19: 0 | E19: 79 | F19: 0 | G19: 0 | H19: 0 | I19: 0 | J19: 64 | K19: 0 | L19: 0 | M19: 0 | N19: 0 | O19: 0 | P19: 387 | Q19: 0 | R19: 134 | S19: 37 | T19: 20 | U19: 141 | V19: 23 | W19: 18 | X19: 14
A20: Flores | B20: 284 | C20: 86 | D20: 42 | E20: 0 | F20: 0 | G20: 0 | H20: 0 | I20: 0 | J20: 44 | K20: 0 | L20: 0 | M20: 0 | N20: 0 | O20: 0 | P20: 198 | Q20: 0 | R20: 60 | S20: 20 | T20: 5 | U20: 74 | V20: 22 | W20: 12 | X20: 5
A21: Florida | B21: 605 | C21: 161 | D21: 86 | E21: 0 | F21: 0 | G21: 0 | H21: 0 | I21: 0 | J21: 75 | K21: 0 | L21: 0 | M21: 0 | N21: 0 | O21: 0 | P21: 444 | Q21: 0 | R21: 172 | S21: 44 | T21: 12 | U21: 148 | V21: 28 | W21: 21 | X21: 19
A22: Lavalleja | B22: 565 | C22: 86 | D22: 53 | E22: 0 | F22: 0 | G22: 0 | H22: 0 | I22: 0 | J22: 33 | K22: 0 | L22: 0 | M22: 0 | N22: 0 | O22: 0 | P22: 479 | Q22: 0 | R22: 174 | S22: 46 | T22: 18 | U22: 195 | V22: 14 | W22: 8 | X22: 24
A23: Maldonado | B23: 1558 | C23: 406 | D23: 161 | E23: 32 | F23: 52 | G23: 0 | H23: 0 | I23: 0 | J23: 121 | K23: 26 | L23: 14 | M23: 0 | N23: 0 | O23: 0 | P23: 1152 | Q23: 0 | R23: 411 | S23: 117 | T23: 32 | U23: 355 | V23: 87 | W23: 54 | X23: 96
A24: Paysandú | B24: 1009 | C24: 254 | D24: 0 | E24: 88 | F24: 8 | G24: 0 | H24: 7 | I24: 0 | J24: 0 | K24: 151 | L24: 0 | M24: 0 | N24: 0 | O24: 0 | P24: 755 | Q24: 0 | R24: 219 | S24: 74 | T24: 57 | U24: 309 | V24: 39 | W24: 21 | X24: 36
A25: Río Negro | B25: 467 | C25: 165 | D25: 80 | E25: 12 | F25: 0 | G25: 2 | H25: 0 | I25: 0 | J25: 71 | K25: 0 | L25: 0 | M25: 0 | N25: 0 | O25: 0 | P25: 302 | Q25: 0 | R25: 95 | S25: 23 | T25: 21 | U25: 107 | V25: 36 | W25: 0 | X25: 20
A26: Rivera | B26: 1205 | C26: 269 | D26: 37 | E26: 113 | F26: 0 | G26: 0 | H26: 0 | I26: 0 | J26: 35 | K26: 68 | L26: 0 | M26: 0 | N26: 16 | O26: 0 | P26: 936 | Q26: 0 | R26: 388 | S26: 77 | T26: 39 | U26: 324 | V26: 51 | W26: 15 | X26: 42
A27: Rocha | B27: 651 | C27: 166 | D27: 30 | E27: 60 | F27: 0 | G27: 0 | H27: 0 | I27: 0 | J27: 21 | K27: 55 | L27: 0 | M27: 0 | N27: 0 | O27: 0 | P27: 485 | Q27: 0 | R27: 148 | S27: 34 | T27: 13 | U27: 208 | V27: 32 | W27: 14 | X27: 36
A28: Salto | B28: 1289 | C28: 284 | D28: 133 | E28: 0 | F28: 7 | G28: 0 | H28: 14 | I28: 0 | J28: 115 | K28: 0 | L28: 0 | M28: 0 | N28: 15 | O28: 0 | P28: 1005 | Q28: 0 | R28: 349 | S28: 49 | T28: 29 | U28: 447 | V28: 63 | W28: 28 | X28: 40
A29: San José | B29: 897 | C29: 409 | D29: 175 | E29: 0 | F29: 14 | G29: 0 | H29: 0 | I29: 0 | J29: 120 | K29: 80 | L29: 0 | M29: 0 | N29: 20 | O29: 0 | P29: 488 | Q29: 0 | R29: 137 | S29: 53 | T29: 23 | U29: 173 | V29: 71 | W29: 19 | X29: 12
A30: Soriano | B30: 755 | C30: 207 | D30: 52 | E30: 81 | F30: 8 | G30: 0 | H30: 0 | I30: 0 | J30: 65 | K30: 0 | L30: 0 | M30: 0 | N30: 1 | O30: 0 | P30: 548 | Q30: 0 | R30: 143 | S30: 59 | T30: 42 | U30: 190 | V30: 46 | W30: 36 | X30: 32
A31: Tacuarembó | B31: 873 | C31: 191 | D31: 19 | E31: 56 | F31: 0 | G31: 0 | H31: 0 | I31: 0 | J31: 116 | K31: 0 | L31: 0 | M31: 0 | N31: 0 | O31: 0 | P31: 682 | Q31: 0 | R31: 235 | S31: 86 | T31: 43 | U31: 241 | V31: 43 | W31: 12 | X31: 22
A32: Treinta y Tres | B32: 423 | C32: 111 | D32: 0 | E32: 71 | F32: 0 | G32: 0 | H32: 0 | I32: 0 | J32: 40 | K32: 0 | L32: 0 | M32: 0 | N32: 0 | O32: 0 | P32: 312 | Q32: 0 | R32: 113 | S32: 19 | T32: 20 | U32: 108 | V32: 24 | W32: 10 | X32: 18
A33: Fuente: DE — CES

Sheet II-4.2.9
A1: CONSEJO DE EDUCACIÓN SECUNDARIA | E1: ALUMNOS MATRICULADOS
A3: Cuadro Nº II-4.2.9
A5: ALUMNOS MATRICULADOS EN EL CES EN SEXTO GRADO DE EDUCACIÓN MEDIA GENERAL PRIVADA POR OPCIÓN SEGÚN DEPARTAMENTO. AÑO 2015.
A6: DEPARTAMENTO | B6: TOTAL | C6: TODOS LOS PLANES OPCIÓN SEXTO GRADO | J6: Otros (*)
C7: Social Humanístico | D7: Social Economía | E7: Ciencias Agrarias | F7: Ciencias Biológicas | G7: Física Matemática | H7: Matemática Diseño | I7: Arte y Expresión | J7: B.INT.y/o BICUL.
A8: TOTAL | B8: =SUM(C8:J8) -> 4950 | C8: =C9+C10 -> 1143 | D8: =D9+D10 -> 1030 | E8: 175 | F8: 1054 | G8: 739 | H8: 340 | I8: 246 | J8: 223
A9: MONTEVIDEO | B9: =SUM(C9:J9) -> 3747 | C9: 816 | D9: 858 | E9: 121 | F9: 675 | G9: 581 | H9: 272 | I9: 215 | J9: 209
A10: RESTO DEL PAÍS | B10: 1203 | C10: =SUM(C11:C28) -> 327 | D10: =SUM(D11:D28) -> 172 | E10: 54 | F10: 379 | G10: 158 | H10: 68 | I10: 31 | J10: 14
A11: Artigas | B11: 0 | C11: 0 | D11: 0 | E11: 0 | F11: 0 | G11: 0 | H11: 0 | I11: 0 | J11: 0
A12: Canelones | B12: 602 | C12: 171 | D12: 87 | E12: 18 | F12: 195 | G12: 82 | H12: 31 | I12: 18 | J12: 0
A13: Cerro Largo | B13: 38 | C13: 8 | D13: 5 | E13: 8 | F13: 17 | G13: 0 | H13: 0 | I13: 0 | J13: 0
A14: Colonia | B14: 0 | C14: 0 | D14: 0 | E14: 0 | F14: 0 | G14: 0 | H14: 0 | I14: 0 | J14: 0
A15: Durazno | B15: 8 | C15: 3 | D15: 2 | E15: 3 | F15: 0 | G15: 0 | H15: 0 | I15: 0 | J15: 0
A16: Flores | B16: 0 | C16: 0 | D16: 0 | E16: 0 | F16: 0 | G16: 0 | H16: 0 | I16: 0 | J16: 0
A17: Florida | B17: 33 | C17: 15 | D17: 0 | E17: 0 | F17: 9 | G17: 5 | H17: 4 | I17: 0 | J17: 0
A18: Lavalleja | B18: 10 | C18: 10 | D18: 0 | E18: 0 | F18: 0 | G18: 0 | H18: 0 | I18: 0 | J18: 0
A19: Maldonado | B19: 271 | C19: 75 | D19: 36 | E19: 12 | F19: 75 | G19: 32 | H19: 14 | I19: 13 | J19: 14
A20: Paysandú | B20: 82 | C20: 11 | D20: 15 | E20: 0 | F20: 34 | G20: 14 | H20: 8 | I20: 0 | J20: 0
A21: Río Negro | B21: 0 | C21: 0 | D21: 0 | E21: 0 | F21: 0 | G21: 0 | H21: 0 | I21: 0 | J21: 0
A22: Rivera | B22: 17 | C22: 4 | D22: 2 | E22: 0 | F22: 7 | G22: 4 | H22: 0 | I22: 0 | J22: 0
A23: Rocha | B23: 0 | C23: 0 | D23: 0 | E23: 0 | F23: 0 | G23: 0 | H23: 0 | I23: 0 | J23: 0
A24: Salto | B24: 50 | C24: 16 | D24: 1 | E24: 3 | F24: 20 | G24: 7 | H24: 3 | I24: 0 | J24: 0
A25: San José | B25: 38 | C25: 6 | D25: 7 | E25: 3 | F25: 16 | G25: 6 | H25: 0 | I25: 0 | J25: 0
A26: Soriano | B26: 0 | C26: 0 | D26: 0 | E26: 0 | F26: 0 | G26: 0 | H26: 0 | I26: 0 | J26: 0
A27: Tacuarembó | B27: 54 | C27: 8 | D27: 17 | E27: 7 | F27: 6 | G27: 8 | H27: 8 | I27: 0 | J27: 0
A28: Treinta y Tres | B28: 0 | C28: 0 | D28: 0 | E28: 0 | F28: 0 | G28: 0 | H28: 0 | I28: 0 | J28: 0
A29: Fuente D.E - CES
A30: Nota: Otros (*) Corresponde a los cursos de Bachillerato Internacional y Bachillerato Bicultural.

Sheet II-4.2.10
A1: CONSEJO DE EDUCACIÓN SECUNDARIA
A3: Cuadro Nº II-4.2.10
A5: ALUMNOS MATRICULADOS DE EDUCACIÓN MEDIA SUPERIOR PRIVADA POR GRADO Y SEXO SEGÚN DEPARTAMENTO. AÑO 2015.
A7: DEPARTAMENTO | B7: GRADO
B8: CUARTO | D8: QUINTO | F8: SEXTO
B9: SEXO
B10: Mujeres | C10: Varones | D10: Mujeres | E10: Varones | F10: Mujeres | G10: Varones
A11: TOTAL | B11: =B12+B13 -> 1149 | C11: 1065 | D11: 732 | E11: 649 | F11: 642 | G11: 561
A12: MONTEVIDEO
A13: RESTO DEL PAÍS | B13: =SUM(B14:B31) -> 1149 | C13: 1065 | D13: 732 | E13: 649 | F13: 642 | G13: 561
A14: Artigas | B14: 4 | C14: 8 | D14: 0 | E14: 0 | F14: 0 | G14: 0
A15: Canelones | B15: 365 | C15: 347 | D15: 331 | E15: 283 | F15: 319 | G15: 283
A16: Cerro Largo | B16: 45 | C16: 42 | D16: 24 | E16: 23 | F16: 19 | G16: 19
A17: Colonia | B17: 2 | C17: 4 | D17: 0 | E17: 0 | F17: 0 | G17: 0
A18: Durazno | B18: 27 | C18: 28 | D18: 10 | E18: 7 | F18: 2 | G18: 6
A19: Flores | B19: 21 | C19: 23 | D19: 0 | E19: 0 | F19: 0 | G19: 0
A20: Florida | B20: 28 | C20: 27 | D20: 8 | E20: 11 | F20: 18 | G20: 15
A21: Lavalleja | B21: 9 | C21: 17 | D21: 6 | E21: 6 | F21: 6 | G21: 4
A22: Maldonado | B22: 235 | C22: 215 | D22: 168 | E22: 172 | F22: 144 | G22: 127
A23: Paysandú | B23: 96 | C23: 85 | D23: 56 | E23: 46 | F23: 50 | G23: 32
A24: Río Negro | B24: 10 | C24: 14 | D24: 0 | E24: 0 | F24: 0 | G24: 0
A25: Rivera | B25: 25 | C25: 21 | D25: 17 | E25: 8 | F25: 9 | G25: 8
A26: Rocha | B26: 24 | C26: 28 | D26: 0 | E26: 0 | F26: 0 | G26: 0
A27: Salto | B27: 90 | C27: 77 | D27: 48 | E27: 30 | F27: 31 | G27: 19
A28: San José | B28: 47 | C28: 48 | D28: 22 | E28: 22 | F28: 17 | G28: 21
A29: Soriano | B29: 29 | C29: 19 | D29: 0 | E29: 0 | F29: 0 | G29: 0
A30: Tacuarembó | B30: 56 | C30: 44 | D30: 42 | E30: 41 | F30: 27 | G30: 27
A31: Treinta y Tres | B31: 36 | C31: 18 | D31: 0 | E31: 0 | F31: 0 | G31: 0
A32: Fuente: DE — CES

Sheet II-4.2.11
A1: CONSEJO DE EDUCACIÓN SECUNDARIA
A3: Cuadro Nº II-4.2.11
A5: ALUMNOS MATRICULADOS DE EDUCACIÓN MEDIA SUPERIOR PÚBLICA POR GRADO Y SEXO SEGÚN DEPARTAMENTO. AÑO 2015.
A7: DEPARTAMENTO | B7: GRADO
B8: CUARTO | D8: QUINTO | F8: SEXTO
B9: SEXO
B10: Mujeres | C10: Varones | D10: Mujeres | E10: Varones | F10: Mujeres | G10: Varones
A11: TOTAL | B11: =B12+B13 -> 15592 | C11: 11056 | D11: 13812 | E11: 8927 | F11: 10980 | G11: 6994
A12: MONTEVIDEO | B12: 4349 | C12: 3193 | D12: 3944 | E12: 2505 | F12: 3039 | G12: 1938
A13: RESTO DEL PAÍS | B13: =SUM(B14:B31) -> 11243 | C13: 7863 | D13: 9868 | E13: 6422 | F13: 7941 | G13: 5056
A14: Artigas | B14: 514 | C14: 321 | D14: 470 | E14: 288 | F14: 383 | G14: 241
A15: Canelones | B15: 2648 | C15: 1898 | D15: 2151 | E15: 1462 | F15: 1722 | G15: 1103
A16: Cerro Largo | B16: 545 | C16: 394 | D16: 487 | E16: 312 | F16: 353 | G16: 230
A17: Colonia | B17: 585 | C17: 421 | D17: 514 | E17: 317 | F17: 467 | G17: 308
A18: Durazno | B18: 318 | C18: 216 | D18: 266 | E18: 207 | F18: 253 | G18: 134
A19: Flores | B19: 110 | C19: 113 | D19: 122 | E19: 95 | F19: 123 | G19: 75
A20: Florida | B20: 369 | C20: 261 | D20: 335 | E20: 222 | F20: 266 | G20: 178
A21: Lavalleja | B21: 383 | C21: 247 | D21: 407 | E21: 304 | F21: 273 | G21: 206
A22: Maldonado | B22: 904 | C22: 686 | D22: 899 | E22: 576 | F22: 678 | G22: 474
A23: Paysandú | B23: 669 | C23: 360 | D23: 583 | E23: 274 | F23: 475 | G23: 280
A24: Río Negro | B24: 295 | C24: 195 | D24: 243 | E24: 135 | F24: 191 | G24: 111
A25: Rivera | B25: 737 | C25: 524 | D25: 699 | E25: 455 | F25: 560 | G25: 376
A26: Rocha | B26: 468 | C26: 406 | D26: 358 | E26: 311 | F26: 308 | G26: 177
A27: Salto | B27: 773 | C27: 558 | D27: 756 | E27: 459 | F27: 638 | G27: 367
A28: San José | B28: 523 | C28: 330 | D28: 409 | E28: 284 | F28: 311 | G28: 177
A29: Soriano | B29: 430 | C29: 269 | D29: 433 | E29: 254 | F29: 329 | G29: 219
A30: Tacuarembó | B30: 649 | C30: 449 | D30: 493 | E30: 299 | F30: 404 | G30: 278
A31: Treinta y Tres | B31: 323 | C31: 215 | D31: 243 | E31: 168 | F31: 207 | G31: 122
A32: Fuente: DE — CES
A33: Nota: No incluye la matrícula correspondiente a los liceos de cuarto turno (nocturnos)

Sheet II-4.3.1
A1: CONSEJO DE EDUCACIÓN SECUNDARIA | F1: PERSONAL DOCENTE
A3: Cuadro Nº II-4.3.1
A5: PERSONAL DOCENTE Y HORAS DOCENTES DEL CES EN EDUCACIÓN MEDIA SUPERIOR GENERAL PÚBLICA POR CONDICIÓN DE TITULACIÓN. AÑO 2015.
A7: ASIGNATURAS | B7: TOTAL DOCENTES | C7: PERSONAL DOCENTE | E7: TOTAL HORAS | F7: HORAS DOCENTES
C8: Titulados | D8: No Titulados | F8: Titulados | G8: No Titulados
A9: TOTAL | B9: =SUM(C9:D9) -> 8329 | C9: =SUM(C10:C75) -> 5756 | D9: =SUM(D10:D75) -> 2573 | E9: =SUM(F9:G9) -> 101601 | F9: =SUM(F10:F75) -> 74216 | G9: =SUM(G10:G75) -> 27385
A10: ASTRONOMÍA | B10: =+C10+D10 -> 18 | C10: 6 | D10: 12 | E10: =+F10+G10 -> 146 | F10: 40 | G10: 106
A11: BIOLOGÍA | B11: =+C11+D11 -> 667 | C11: 553 | D11: 114 | E11: =+F11+G11 -> 8431 | F11: 7220 | G11: 1211
A12: CONTABILIDAD | B12: 166 | C12: 16 | D12: 150 | E12: 1480 | F12: 171 | G12: 1309
A13: DIBUJO | B13: 365 | C13: 234 | D13: 131 | E13: 3464 | F13: 2294 | G13: 1170
A14: EDUCACIÓN FÍSICA | B14: 180 | C14: 159 | D14: 21 | E14: 1538 | F14: 1422 | G14: 116
A15: EDUCACIÓN MUSICAL | B15: 101 | C15: 44 | D15: 57 | E15: 845 | F15: 334 | G15: 511
A16: ED.SOCIAL Y CÍVICA DERECHO | B16: 697 | C16: 581 | D16: 116 | E16: 7711 | F16: 6823 | G16: 888
A17: FILOSOFÍA | B17: 593 | C17: 449 | D17: 144 | E17: 7172 | F17: 5855 | G17: 1317
A18: FÍSICA | B18: 545 | C18: 348 | D18: 197 | E18: 7985 | F18: 5452 | G18: 2533
A19: FRANCÉS | B19: 5 | C19: 4 | D19: 1 | E19: 58 | F19: 38 | G19: 20
A20: GEOGRAFÍA | B20: 210 | C20: 175 | D20: 35 | E20: 1757 | F20: 1454 | G20: 303
A21: HISTORIA | B21: 704 | C21: 618 | D21: 86 | E21: 8508 | F21: 7701 | G21: 807
A22: IDIOMA ESPAÑOL | B22: 20 | C22: 13 | D22: 7 | E22: 355 | F22: 277 | G22: 78
A23: INGLÉS | B23: 550 | C23: 238 | D23: 312 | E23: 7481 | F23: 3571 | G23: 3910
A24: ITALIANO | B24: 83 | C24: 27 | D24: 56 | E24: 1037 | F24: 390 | G24: 647
A25: LITERATURA | B25: 671 | C25: 554 | D25: 117 | E25: 7976 | F25: 6798 | G25: 1178
A26: CIENCIAS FÍSICO - QUÍMICAS | B26: 22 | C26: 6 | D26: 16 | E26: 255 | F26: 76 | G26: 179
A27: MATEMÁTICA | B27: 1018 | C27: 625 | D27: 393 | E27: 17645 | F27: 11942 | G27: 5703
A28: QUÍMICA | B28: 532 | C28: 402 | D28: 130 | E28: 7941 | F28: 6355 | G28: 1586
A29: REC.NATUR.Y PAISAJE AGRARIO | B29: 44 | C29: 29 | D29: 15 | E29: 102 | F29: 64 | G29: 38
A30: GEOLOGÍA | B30: 5 | C30: 1 | D30: 4 | E30: 14 | F30: 2 | G30: 12
A31: DIRECTOR DE COROS | B31: 19 | C31: 12 | D31: 7 | E31: 164 | F31: 106 | G31: 58
A32: PIANISTA ACOMPAÑANTE | B32: 13 | C32: 8 | D32: 5 | E32: 83 | F32: 56 | G32: 27
A33: COORDINADOR PLAN 96 EXTRAEDAD | B33: 1 | C33: 1 | D33: 0 | E33: 6 | F33: 6 | G33: 0
A34: COORDINADOR HIPOACUSICOS | B34: 0 | C34: 0 | D34: 0 | E34: 0 | F34: 0 | G34: 0
A35: AP.AL LABORATORIO (curricular) | B35: 4 | C35: 2 | D35: 2 | E35: 47 | F35: 25 | G35: 22
A36: COORDINADOR INFOART | B36: 1 | C36: 0 | D36: 1 | E36: 2 | F36: 0 | G36: 2
A37: INFORMÁTICA | B37: 56 | C37: 15 | D37: 41 | E37: 732 | F37: 208 | G37: 524
A38: COORDINADOR ECE | B38: 15 | C38: 5 | D38: 10 | E38: 58 | F38: 28 | G38: 30
A39: COORDINADOR INAU | B39: 171 | C39: 102 | D39: 69 | E39: 444 | F39: 259 | G39: 185
A40: COORDINADOR PAC | B40: 0 | C40: 0 | D40: 0 | E40: 0 | F40: 0 | G40: 0
A41: COORDINADOR CECAP | B41: 2 | C41: 2 | D41: 0 | E41: 100 | F41: 100 | G41: 0
A42: LENG.COM.Y MED.AUDIOVISUALES | B42: 44 | C42: 15 | D42: 29 | E42: 219 | F42: 63 | G42: 156
A43: COORDINADOR PEDAGOGICO | B43: 9 | C43: 7 | D43: 2 | E43: 100 | F43: 70 | G43: 30
A44: ESTUDIOS ECONÓMICOS Y SOCIALES | B44: 220 | C44: 194 | D44: 26 | E44: 1499 | F44: 1334 | G44: 165
A45: LABORATORIO DE INFORMÁTICA | B45: 23 | C45: 6 | D45: 17 | E45: 324 | F45: 96 | G45: 228
A46: TUTORES | B46: 4 | C46: 2 | D46: 2 | E46: 27 | F46: 14 | G46: 13
A47: ALEMÁN | B47: 0 | C47: 0 | D47: 0 | E47: 0 | F47: 0 | G47: 0
A48: A.P.T.E. | B48: 0 | C48: 0 | D48: 0 | E48: 0 | F48: 0 | G48: 0
A49: REFERENTE TUTOR | B49: 1 | C49: 0 | D49: 1 | E49: 15 | F49: 0 | G49: 15
A50: JUNTA MÉDICA | B50: 33 | C50: 25 | D50: 8 | E50: 673 | F50: 528 | G50: 145
A51: TEATRO | B51: 49 | C51: 9 | D51: 40 | E51: 307 | F51: 64 | G51: 243
A52: PORTUGUÉS | B52: 0 | C52: 0 | D52: 0 | E52: 0 | F52: 0 | G52: 0
A53: EXPRESIÓN CORPORAL Y TEATRO | B53: 50 | C53: 11 | D53: 39 | E53: 312 | F53: 98 | G53: 214
A54: EXPRESIÓN CORPORAL Y DANZA | B54: 43 | C54: 5 | D54: 38 | E54: 320 | F54: 20 | G54: 300
A55: ACTIVIDAD DOCENTE RURAL | B55: 10 | C55: 5 | D55: 5 | E55: 177 | F55: 85 | G55: 92
A56: REFERENTE PAC | B56: 0 | C56: 0 | D56: 0 | E56: 0 | F56: 0 | G56: 0
A57: COARTICULADORES | B57: 2 | C57: 1 | D57: 1 | E57: 40 | F57: 30 | G57: 10
A58: ACT.ADAPTADAS AL MEDIO AMBIENT | B58: 0 | C58: 0 | D58: 0 | E58: 0 | F58: 0 | G58: 0
A59: ECONOMÍA | B59: 148 | C59: 84 | D59: 64 | E59: 1015 | F59: 477 | G59: 538
A60: HORAS DE APOYO AL FIN AÑO LECT | B60: 16 | C60: 6 | D60: 10 | E60: 279 | F60: 106 | G60: 173
A61: APOYO PROYECTOS | B61: 0 | C61: 0 | D61: 0 | E61: 0 | F61: 0 | G61: 0
A62: APOYO BIBLIOTECA | B62: 1 | C62: 1 | D62: 0 | E62: 20 | F62: 20 | G62: 0
A63: APOYO A LA DIRECCIÓN | B63: 3 | C63: 2 | D63: 1 | E63: 68 | F63: 28 | G63: 40
A64: TALLERISTA | B64: 0 | C64: 0 | D64: 0 | E64: 0 | F64: 0 | G64: 0
A65: APOYO A ADSCRIPCIÓN | B65: 9 | C65: 5 | D65: 4 | E65: 185 | F65: 107 | G65: 78
A66: MÉDICO CERTIFICADOR | B66: 1 | C66: 0 | D66: 1 | E66: 2 | F66: 0 | G66: 2
A67: EDUCADOR PARA LA SEXUALIDAD | B67: 165 | C67: 144 | D67: 21 | E67: 2190 | F67: 1903 | G67: 287
A68: DOC EFECT C/DÉFICIT ART.15.3 | B68: 2 | C68: 0 | D68: 2 | E68: 40 | F68: 0 | G68: 40
A69: ESPACIO CURRICULAR ABIERTO | B69: 2 | C69: 1 | D69: 1 | E69: 8 | F69: 2 | G69: 6
A70: INTÉRPRETE | B70: 13 | C70: 3 | D70: 10 | E70: 166 | F70: 64 | G70: 102
A71: PSICÓLOGO | B71: 0 | C71: 0 | D71: 0 | E71: 0 | F71: 0 | G71: 0
A72: TALLER DE ARTES PLÁSTICAS | B72: 0 | C72: 0 | D72: 0 | E72: 0 | F72: 0 | G72: 0
A73: LENGUA DE SEÑAS | B73: 0 | C73: 0 | D73: 0 | E73: 0 | F73: 0 | G73: 0
A74: APOYO AL LABORATORIO | B74: =+C74+D74 -> 1 | C74: 0 | D74: 1 | E74: =+F74+G74 -> 12 | F74: 0 | G74: 12
A75: ACTIVIDADES ESPECIALES | B75: 2 | C75: 1 | D75: 1 | E75: 66 | F75: 40 | G75: 26
A76: Fuente: Departamento de Estadística — CES
A77: Nota: Los docentes que dictan más de una asignatura son considerados como personas distintas en cada asignatura

Sheet II-4.3.2
A1: CONSEJO DE EDUCACIÓN TÉCNICO PROFESIONAL (U.T.U.) | E1: PERSONAL DOCENTE
A3: Cuadro Nº II-4.3.2
A5: PERSONAL DOCENTE DEL CETP EN EDUCACIÓN MEDIA SUPERIOR TECNOLÓGICA POR TIPO DE CURSO. AÑO 2015.
A6: EDUCACIÓN MEDIA SUPERIOR TECNOLÓGICA | B6: TOTAL
A8: TOTAL | B8: =SUM(B9:B18) -> 14851
A9: Bachillerato Figari | B9: 150
A10: Bachillerato Profesional | B10: 777
A11: Educación Media Profesional | B11: 2948
A12: Educación Media Prof. De Especialización | B12: 4
A13: Educación Media Tecnológica | B13: 4802
A14: EMS | B14: 6012
A15: Articulación a Nivel Terciario | B15: 2
A16: Curso Técnico | B16: 93
A17: Tutorias | B17: 6
A18: Educación Media Tecnológica Fin. | B18: 57
A19: Fuente: U.T.U. División Informática.
A20: Los cursos EMP Especialización, fueron reubicados en el Nivel Superior de Formación Profesional.

Sheet II-4.4.1
A1: CONSEJO DE EDUCACIÓN SECUNDARIA | C1: GRUPOS
A3: Cuadro Nº II-4.4.1
A5: GRUPOS DE EDUCACIÓN MEDIA SUPERIOR GENERAL COMPARADOS CON EL TOTAL DE AMBOS CICLOS SEGÚN GRANDES ÁREAS Y FORMA DE ADMINISTRACIÓN. AÑO 2015.
B6: FORMA DE ADMINISTRACIÓN
B7: Grupos en Educación Media Superior General | C7: Total de Grupos en Educación Media General | D7: Promedio de alumnos por grupo de Media Superior
A8: TOTAL DEL PAÍS | B8: =B9+B12 -> 4565 | C8: =C9+C12 -> 10189 | D8: 25.6
A9: EDUCACIÓN MEDIA SUPERIOR PÚBLICA | B9: =B10+B11 -> 3333 | C9: =C10+C11 -> 7837 | D9: 29.9
A10: Diurna | B10: =B15+B20 -> 2697 | C10: 6771 | D10: 25
A11: Nocturna | B11: 636 | C11: 1066 | D11: 50.5
A12: EDUCACIÓN MEDIA SUPERIOR PRIVADA | B12: 1232 | C12: 2352 | D12: 13.9
A13: TOTAL MONTEVIDEO | B13: =B14+B17 -> 1765 | C13: =C14+C17 -> 3789 | D13: 17.2
A14: EDUCACIÓN MEDIA SUPERIOR PÚBLICA | B14: =B15+B16 -> 898 | C14: =C15+C16 -> 2234 | D14: 37.2
A15: Diurna | B15: 653 | C15: 1841 | D15: 29.1
A16: Nocturna | B16: 245 | C16: 393 | D16: 58.7
A17: EDUCACIÓN MEDIA SUPERIOR PRIVADA | B17: 867 | C17: 1555 | D17: 14.3
A18: TOTAL RESTO DEL PAÍS | B18: =B19+B22 -> 2800 | C18: =C19+C22 -> 6400 | D18: 13.6
A19: EDUCACIÓN MEDIA SUPERIOR PÚBLICA | B19: =B20+B21 -> 2435 | C19: =C20+C21 -> 5603 | D19: 27.2
A20: Diurna | B20: 2044 | C20: 4930 | D20: 23.7
A21: Nocturna | B21: 391 | C21: 673 | D21: 45.3
A22: EDUCACIÓN MEDIA SUPERIOR PRIVADA | B22: 365 | C22: 797 | D22: 13.1
A23: Fuente: DE — CES
A24: Nota: El “Total de ambos Ciclos” presenta de manera agregada la cantidad total de grupos con que cuente Educación Secundaria y es el resultado de adicionar al total de Grupos del presente cuadro (Ciclo Superior de Educación Secundaria), el total de los grupos presentados en el Cuadro II-3.4.1 (Ciclo Básico de Educación Secundaria)

Sheet TERCIARIA NO UNIVERSITARIA
A8: Cuadro II-5.1.1 | B8: MATRÍCULA Y PERSONAL DOCENTE POR SEXO SEGÚN GRANDES ÁREAS, DEPARTAMENTOS E INSTITUCIONES. AÑO 2015.
A11: Cuadro II-5.2.1 | B11: ALUMNOS INGRESADOS, MATRICULADOS Y EGRESADOS EN NIVEL TERCIARIO NO UNIVERSITARIO DEL ÁREA SEGURIDAD Y DEFENSA POR SEXO SEGÚN INSTITUCIÓN Y CARRERA. AÑO 2015.
A13: Cuadro II-5.2.2 | B13: ALUMNOS INGRESADOS, MATRICULADOS Y EGRESADOS EN OTRAS OFERTAS DE NIVEL TERCIARIO NO UNIVERSITARIO POR SEXO SEGÚN INSTITUCIÓN Y CARRERA. AÑO 2015.
A16: Cuadro II-5.3.1 | B16: PERSONAL ACADÉMICO DE NIVEL TERCIARIO NO UNIVERSITARIO DEL ÁREA SEGURIDAD Y DEFENSA POR CARGA HORARIA, SEXO, SEGÚN INSTITUCIÓN Y FORMACIÓN. AÑO 2015.
A18: Cuadro II-5.3.2 | B18: PERSONAL ACADÉMICO DE NIVEL TERCIARIO NO UNIVERSITARIO POR CARGA HORARIA SEMANAL, SEXO, SEGÚN INSTITUCIÓN Y FORMACIÓN . AÑO 2015.
A31: =MID(B19,1,20) -> 
A85: =MID(B73,1,20) -> 

Sheet II-5.1.1
A1: OFERTAS TERCIARIAS NO UNIVERSITARIAS | D1: INSTITUCIONES
A3: Cuadro Nº II-5.1.1
A5: MATRÍCULA Y PERSONAL DOCENTE POR SEXO SEGÚN GRANDES ÁREAS, DEPARTAMENTOS E INSTITUCIONES. AÑO 2015.
A6: GRANDES ÁREAS / DEPARTAMENTO / INSTITUCIÓN | B6: TOTAL | C6: MATRICULA | E6: DOCENTES
C7: SEXO
C9: M | D9: F
A11: TOTAL | B11: =+B13+B22 -> 11470 | C11: =+C13+C22 -> 6854 | D11: =+D13+D22 -> 4616 | E11: =+E13+E22 -> 2168
A13: MONTEVIDEO | B13: =+C13+D13 -> 7414 | C13: =SUM(C15:C20) -> 4568 | D13: =SUM(D15:D20) -> 2846 | E13: =SUM(E15:E20) -> 1395
A15: ESCUELA NAVAL | B15: =C15+D15 -> 120 | C15: 96 | D15: 24 | E15: 119 | G15: =F13:I18 -> 0
A16: ESCUELA NACIONAL DE POLICÍA* | B16: =C16+D16 -> 323 | C16: 250 | D16: 73 | E16: 67
A17: ESCUELA MILITAR | B17: 184 | C17: 164 | D17: 20 | E17: 87
A18: ESCUELA MILITAR DE AERONÁUTICA | B18: 139 | C18: 117 | D18: 22 | E18: 80
A19: EMAD | B19: 149 | C19: 34 | D19: 115 | E19: 60
A20: UTU | B20: =+C20+D20 -> 6499 | C20: 3907 | D20: 2592 | E20: 982
A22: RESTO DEL PAÍS | B22: =SUM(B24:B41) -> 4056 | C22: =SUM(C24:C41) -> 2286 | D22: =SUM(D24:D41) -> 1770 | E22: =SUM(E24:E41) -> 773
A24: Artigas | B24: =C24+D24 -> 82 | C24: 31 | D24: 51 | E24: 38
A25: Canelones | B25: =C25+D25 -> 373 | C25: 163 | D25: 210 | E25: 93
A26: Cerro Largo | B26: 183 | C26: 88 | D26: 95 | E26: 30
A27: Colonia | B27: 160 | C27: 76 | D27: 84 | E27: 64
A28: Durazno | B28: 56 | C28: 26 | D28: 30 | E28: 4
A29: Flores | B29: 191 | C29: 116 | D29: 75 | E29: 13
A30: Florida | B30: 159 | C30: 82 | D30: 77 | E30: 31
A31: Maldonado | B31: 440 | C31: 234 | D31: 206 | E31: 5
A32: Paysandú | B32: 839 | C32: 568 | D32: 271 | E32: 57
A33: Río Negro | B33: 73 | C33: 32 | D33: 41 | E33: 135
A34: Rivera | B34: 503 | C34: 279 | D34: 224 | E34: 31
A35: Rocha | B35: 24 | C35: 12 | D35: 12 | E35: 49
A36: Salto | B36: 337 | C36: 251 | D36: 86 | E36: 11
A37: San José | B37: 137 | C37: 72 | D37: 65 | E37: 101
A38: Soriano | B38: 202 | C38: 113 | D38: 89 | E38: 24
A39: Tacuarembó | B39: 239 | C39: 106 | D39: 133 | E39: 51
A40: Treinta y Tres | B40: 58 | C40: 37 | D40: 21 | E40: 27
E41: 9
A42: Fuente:
A43: D.E - UTU-
A44: Secretaría General EMAD
A45: Gestión Educativa - Escuela Naval
A46: Jefatura de Estudios - Escuela Nacional de Policía
A47: Escuela Militar
A48: Departamento de Bedelía - Escuela Militar de Aeronáutica
A49: Instituto Militar de Estudios Superiores
A51: * Los datos corresponden al curso de Cadetes de 1°,2° y3°

Sheet II-5.2.1
A1: OFERTAS TERCIARIAS NO UNIVERSITARIAS DEL ÁREA SEGURIDAD Y DEFENSA | G1: ALUMNOS MATRICULADOS
A3: Cuadro Nº II-5.2.1
A5: ALUMNOS INGRESADOS, MATRICULADOS Y EGRESADOS EN NIVEL TERCIARIO NO UNIVERSITARIO DEL ÁREA SEGURIDAD Y DEFENSA POR SEXO SEGÚN INSTITUCIÓN Y CARRERA. AÑO 2015.
A7: INSTITUCION / CARRERA | B7: TOTAL | C7: INGRESADOS | E7: TOTAL | F7: MATRICULADOS | H7: TOTAL | I7: EGRESADOS
C8: SEXO | F8: SEXO | I8: SEXO
C9: M | D9: F | F9: M | G9: F | I9: M | J9: F
A10: TOTAL | B10: =D10+C10 -> 393 | C10: =+C12+C31+C34+C37 -> 307 | D10: =+D12+D31+D34+D37 -> 86 | E10: =G10+F10 -> 766 | F10: =+F12+F31+F34+F37 -> 627 | G10: =+G12+G31+G34+G37 -> 139 | H10: =J10+I10 -> 256 | I10: =+I12+I31+I34+I37 -> 218 | J10: =+J12+J31+J34+J37 -> 38
A12: ESCUELA NAVAL | B12: =SUM(B13:B29) -> 120 | C12: 96 | D12: 24 | E12: 120 | F12: 96 | G12: 24 | H12: 113 | I12: 93 | J12: 20
A13: 1º CUERPO COMUN MILITAR | B13: =SUM(C13:D13) -> 27 | C13: 21 | D13: 6 | E13: =SUM(F13:G13) -> 27 | F13: 21 | G13: 6 | H13: =SUM(I13:J13) -> 24 | I13: 20 | J13: 4
A14: 1º CUERPO COMUN MERCANTE | B14: =SUM(C14:D14) -> 14 | C14: 13 | D14: 1 | E14: =SUM(F14:G14) -> 14 | F14: 13 | G14: 1 | H14: =SUM(I14:J14) -> 14 | I14: 13 | J14: 1
A15: 2º CUERPO GENERAL | B15: 11 | C15: 9 | D15: 2 | E15: 11 | F15: 9 | G15: 2 | H15: 10 | I15: 9 | J15: 1
A16: 2º CUERPO ING. MAQ. | B16: 1 | C16: 1 | D16: 0 | E16: 1 | F16: 1 | G16: 0 | H16: 1 | I16: 1 | J16: 0
A17: 2º CUERPO PREFECTURA | B17: 3 | C17: 2 | D17: 1 | E17: 3 | F17: 2 | G17: 1 | H17: 3 | I17: 2 | J17: 1
A18: 2º PILOTO MERCANTE | B18: 8 | C18: 8 | D18: 0 | E18: 8 | F18: 8 | G18: 0 | H18: 7 | I18: 7 | J18: 0
A19: 2º INGENIERO MERCANTE | B19: 1 | C19: 1 | D19: 0 | E19: 1 | F19: 1 | G19: 0 | H19: 1 | I19: 1 | J19: 0
A20: 3º CUERPO GENERAL | B20: 6 | C20: 3 | D20: 3 | E20: 6 | F20: 3 | G20: 3 | H20: 6 | I20: 3 | J20: 3
A21: 3º CUERPO ING. MAQ. | B21: 3 | C21: 1 | D21: 2 | E21: 3 | F21: 1 | G21: 2 | H21: 2 | I21: 1 | J21: 1
A22: 3º CUERPO PREFECTURA | B22: 4 | C22: 3 | D22: 1 | E22: 4 | F22: 3 | G22: 1 | H22: 3 | I22: 2 | J22: 1
A23: 3º PILOTO MERCANTE | B23: 9 | C23: 8 | D23: 1 | E23: 9 | F23: 8 | G23: 1 | H23: 9 | I23: 8 | J23: 1
A24: 3º INGENIERO MERCANTE | B24: 4 | C24: 4 | D24: 0 | E24: 4 | F24: 4 | G24: 0 | H24: 4 | I24: 4 | J24: 0
A25: 4º CUERPO GENERAL | B25: 7 | C25: 5 | D25: 2 | E25: 7 | F25: 5 | G25: 2 | H25: 7 | I25: 5 | J25: 2
A26: 4º CUERPO ING. MAQ. | B26: 6 | C26: 5 | D26: 1 | E26: 6 | F26: 5 | G26: 1 | H26: 6 | I26: 5 | J26: 1
A27: 4º CUERPO PREFECTURA | B27: 5 | C27: 3 | D27: 2 | E27: 5 | F27: 3 | G27: 2 | H27: 5 | I27: 3 | J27: 2
A28: 4º PILOTO MERCANTE | B28: 8 | C28: 6 | D28: 2 | E28: 8 | F28: 6 | G28: 2 | H28: 8 | I28: 6 | J28: 2
A29: 4º INGENIERO MERCANTE | B29: 3 | C29: 3 | D29: 0 | E29: 3 | F29: 3 | G29: 0 | H29: 3 | I29: 3 | J29: 0
A31: ESCUELA NACIONAL DE POLICÍA | B31: =+C31+D31 -> 119 | C31: =+C32 -> 90 | D31: =+D32 -> 29 | E31: =+F31+G31 -> 323 | F31: =+F32 -> 250 | G31: =+G32 -> 73 | H31: =+I31+J31 -> 82 | I31: =+I32 -> 73 | J31: =+J32 -> 9
A32: Curso de Cadetes (1º,2º y 3er.año) | B32: =SUM(C32:D32) -> 119 | C32: 90 | D32: 29 | E32: =SUM(F32:G32) -> 323 | F32: 250 | G32: 73 | H32: =SUM(I32:J32) -> 82 | I32: 73 | J32: 9
A34: ESCUELA MILITAR | B34: =SUM(C34:D34) -> 73 | C34: =SUM(C35:C35) -> 54 | D34: =SUM(D35:D35) -> 19 | E34: =SUM(F34:G34) -> 184 | F34: =SUM(F35:F35) -> 164 | G34: =SUM(G35:G35) -> 20 | H34: =SUM(I34:J34) -> 45 | I34: =SUM(I35:I35) -> 40 | J34: =SUM(J35:J35) -> 5
A35: Alférez del Ejército Nacional del Cuerpo Comando | B35: =+C35+D35 -> 73 | C35: 54 | D35: 19 | E35: =+F35+G35 -> 184 | F35: 164 | G35: 20 | H35: =SUM(I35:J35) -> 45 | I35: 40 | J35: 5
A37: ESCUELA MILITAR DE AERONÁUTICA | B37: =SUM(C37:D37) -> 81 | C37: =SUM(C38:C43) -> 67 | D37: =SUM(D38:D43) -> 14 | E37: =SUM(F37:G37) -> 139 | F37: =SUM(F38:F43) -> 117 | G37: =SUM(G38:G43) -> 22 | H37: =SUM(I37:J37) -> 16 | I37: =SUM(I38:I43) -> 12 | J37: =SUM(J38:J43) -> 4
A38: Aspirantes | B38: =+C38+D38 -> 81 | C38: 67 | D38: 14 | E38: =+F38+G38 -> 81 | F38: 67 | G38: 14 | H38: =SUM(I38:J38) -> 0 | I38: 0 | J38: 0
A39: Cadetes 1º | B39: =+C39+D39 -> 0 | C39: 0 | D39: 0 | E39: =+F39+G39 -> 17 | F39: 16 | G39: 1 | H39: 0 | I39: 0 | J39: 0
A40: Cadetes 2º (Aviadores) | B40: 0 | C40: 0 | D40: 0 | E40: 19 | F40: 18 | G40: 1 | H40: 0 | I40: 0 | J40: 0
A41: Cadetes 2º (Navegantes) | B41: 0 | C41: 0 | D41: 0 | E41: 4 | F41: 3 | G41: 1 | H41: 0 | I41: 0 | J41: 0
A42: Cadetes 3º (Aviadores) | B42: 0 | C42: 0 | D42: 0 | E42: 11 | F42: 11 | G42: 0 | H42: 10 | I42: 10 | J42: 0
A43: Cadetes 3º (Navegantes) | B43: 0 | C43: 0 | D43: 0 | E43: 7 | F43: 2 | G43: 5 | H43: 6 | I43: 2 | J43: 4
A46: Fuentes: Escuela Nacional de Policía
A47: Dirección de Formación. Ministerio de Defensa Nacional

Sheet II-5.2.2
A1: OTRAS OFERTAS TERCIARIAS NO UNIVERSITARIAS | G1: ALUMNOS MATRICULADOS
A3: Cuadro Nº II-5.2.2
A5: ALUMNOS INGRESADOS, MATRICULADOS Y EGRESADOS EN OTRAS OFERTAS DE NIVEL TERCIARIO NO UNIVERSITARIO POR SEXO SEGÚN INSTITUCIÓN Y CARRERA. AÑO 2015.
A6: INSTITUCION / CARRERA | B6: TOTAL | C6: INGRESADOS | E6: TOTAL | F6: MATRICULADOS | H6: TOTAL | I6: EGRESADOS
C7: SEXO | F7: SEXO | I7: SEXO
C8: M | D8: F | F8: M | G8: F | I8: M | J8: F
A10: EMAD Margarita Xirgu | B10: =C10+D10 -> 45 | C10: =C11+C12 -> 12 | D10: =D11+D12 -> 33 | E10: =F10+G10 -> 149 | F10: =F11+F12 -> 34 | G10: =G11+G12 -> 115 | H10: =I10+J10 -> 29 | I10: =I11+I12 -> 11 | J10: =J11+J12 -> 18
A11: Carrera de actuación | B11: =C11+D11 -> 22 | C11: 6 | D11: 16 | E11: =F11+G11 -> 80 | F11: 23 | G11: 57 | H11: =I11+J11 -> 19 | I11: 3 | J11: 16
A12: Carrera de diseño teatral | B12: =C12+D12 -> 23 | C12: 6 | D12: 17 | E12: =F12+G12 -> 69 | F12: 11 | G12: 58 | H12: =I12+J12 -> 10 | I12: 8 | J12: 2
A14: CETP (UTU) | B14: - | C14: - | D14: - | E14: =+F14+G14 -> 10555 | F14: =SUM(F15:F96) -> 6193 | G14: =SUM(G15:G96) -> 4362 | H14: - | I14: - | J14: -
A15: ADMINISTRACION | B15: - | C15: - | D15: - | E15: =+F15+G15 -> 248 | F15: 52 | G15: 196 | H15: - | I15: - | J15: -
A16: ADMINISTRACION DE PERSONAL | B16: - | C16: - | D16: - | E16: 160 | F16: 34 | G16: 126 | H16: - | I16: - | J16: -
A17: ADMINISTRACION HOTELERA | B17: - | C17: - | D17: - | E17: 15 | F17: 5 | G17: 10 | H17: - | I17: - | J17: -
A18: ADMINISTRACION PUBLICA | B18: - | C18: - | D18: - | E18: 82 | F18: 15 | G18: 67 | H18: - | I18: - | J18: -
A19: AERONAUTICA | B19: - | C19: - | D19: - | E19: 21 | F19: 20 | G19: 1 | H19: - | I19: - | J19: -
A20: AGRONICA ENFASIS AGRICOLA | B20: - | C20: - | D20: - | E20: 16 | F20: 16 | G20: 0 | H20: - | I20: - | J20: -
A21: ANALISTA EN MARKETING | B21: - | C21: - | D21: - | E21: 170 | F21: 75 | G21: 95 | H21: - | I21: - | J21: -
A22: AREA ELECTROTECNIA ELECTRONICA | B22: - | C22: - | D22: - | E22: 223 | F22: 209 | G22: 14 | H22: - | I22: - | J22: -
A23: AREA OPTATIVA D. GRAFICO COM.VISUAL | B23: - | C23: - | D23: - | E23: 186 | F23: 71 | G23: 115 | H23: - | I23: - | J23: -
A24: ARTICULACION TECNOLOGO QUIMICO | B24: - | C24: - | D24: - | E24: 86 | F24: 30 | G24: 56 | H24: - | I24: - | J24: -
A25: AUDIOVISUALES | B25: - | C25: - | D25: - | E25: 105 | F25: 66 | G25: 39 | H25: - | I25: - | J25: -
A26: AUTOTRONICA LAB. S. DE CONTROL | B26: - | C26: - | D26: - | E26: 49 | F26: 48 | G26: 1 | H26: - | I26: - | J26: -
A27: COM. SOCIAL OP. PRENSA | B27: - | C27: - | D27: - | E27: 49 | F27: 23 | G27: 26 | H27: - | I27: - | J27: -
A28: COM. SOCIAL OP. RADIODIFUSIO | B28: - | C28: - | D28: - | E28: 75 | F28: 40 | G28: 35 | H28: - | I28: - | J28: -
A29: COM. SOCIAL OP. RR.PP. | B29: - | C29: - | D29: - | E29: 68 | F29: 28 | G29: 40 | H29: - | I29: - | J29: -
A30: COM. SOCIAL OP.TELEVISION | B30: - | C30: - | D30: - | E30: 38 | F30: 20 | G30: 18 | H30: - | I30: - | J30: -
A31: COM.SOCIAL OP. PUBLICIDAD | B31: - | C31: - | D31: - | E31: 75 | F31: 32 | G31: 43 | H31: - | I31: - | J31: -
A32: COMPONENTE OPCIONAL CTT LOGISTICA | B32: - | C32: - | D32: - | E32: 318 | F32: 149 | G32: 169 | H32: - | I32: - | J32: -
A33: CONSERV. GESTION AREAS NATUR | B33: - | C33: - | D33: - | E33: 44 | F33: 24 | G33: 20 | H33: - | I33: - | J33: -
A34: CONSTRUCCION | B34: - | C34: - | D34: - | E34: 155 | F34: 113 | G34: 42 | H34: - | I34: - | J34: -
A35: CONTROL AMBIENTAL | B35: - | C35: - | D35: - | E35: 206 | F35: 67 | G35: 139 | H35: - | I35: - | J35: -
A36: CORREDOR DE SEGUROS | B36: - | C36: - | D36: - | E36: 30 | F36: 18 | G36: 12 | H36: - | I36: - | J36: -
A37: D. ITINERARIO TURISTICO SOSTENIBLE | B37: - | C37: - | D37: - | E37: 58 | F37: 13 | G37: 45 | H37: - | I37: - | J37: -
A38: DEPORTES NAUTICOS | B38: - | C38: - | D38: - | E38: 35 | F38: 27 | G38: 8 | H38: - | I38: - | J38: -
A39: DISEÑO GRAFICO EN COM. VISUAL | B39: - | C39: - | D39: - | E39: 332 | F39: 126 | G39: 206 | H39: - | I39: - | J39: -
A40: ELECTRONICA | B40: - | C40: - | D40: - | E40: 303 | F40: 296 | G40: 7 | H40: - | I40: - | J40: -
A41: ELECTROTECNIA | B41: - | C41: - | D41: - | E41: 671 | F41: 648 | G41: 23 | H41: - | I41: - | J41: -
A42: ENERGIA EOLICA | B42: - | C42: - | D42: - | E42: 25 | F42: 19 | G42: 6 | H42: - | I42: - | J42: -
A43: ENERGIA HIDROELECTRICA | B43: - | C43: - | D43: - | E43: 8 | F43: 8 | G43: 0 | H43: - | I43: - | J43: -
A44: ENERGIA SOLAR FOTOVOLTAICA | B44: - | C44: - | D44: - | E44: 18 | F44: 15 | G44: 3 | H44: - | I44: - | J44: -
A45: ENOLOGIA MODULO ENOLOGICO II | B45: - | C45: - | D45: - | E45: 10 | F45: 5 | G45: 5 | H45: - | I45: - | J45: -
A46: ENOLOGIA MODULO VITIVINICOLA | B46: - | C46: - | D46: - | E46: 13 | F46: 8 | G46: 5 | H46: - | I46: - | J46: -
A47: ENOLOGIA PASANTIA PROYECTO FINAL | B47: - | C47: - | D47: - | E47: 7 | F47: 4 | G47: 3 | H47: - | I47: - | J47: -
A48: FORESTAL | B48: - | C48: - | D48: - | E48: 32 | F48: 19 | G48: 13 | H48: - | I48: - | J48: -
A49: GASTRONOMIA - BINACIONAL | B49: - | C49: - | D49: - | E49: 32 | F49: 8 | G49: 24 | H49: - | I49: - | J49: -
A50: GESTION DE ALOJAMIENTO | B50: - | C50: - | D50: - | E50: 22 | F50: 6 | G50: 16 | H50: - | I50: - | J50: -
A51: GESTION EMPRESAS TURISTICAS | B51: - | C51: - | D51: - | E51: 51 | F51: 19 | G51: 32 | H51: - | I51: - | J51: -
A52: GUIA TEC. CIRC. TUR. SOST.SEMIPRESE | B52: - | C52: - | D52: - | E52: 8 | F52: 1 | G52: 7 | H52: - | I52: - | J52: -
A53: GUIA Y DISEÑO CIR.TUR.SOSTENIBLES | B53: - | C53: - | D53: - | E53: 7 | F53: 0 | G53: 7 | H53: - | I53: - | J53: -
A54: INDUSTRIAS LACTEAS | B54: - | C54: - | D54: - | E54: 52 | F54: 31 | G54: 21 | H54: - | I54: - | J54: -
A55: INFOGRAFIA DE ARQUITECTURA | B55: - | C55: - | D55: - | E55: 71 | F55: 23 | G55: 48 | H55: - | I55: - | J55: -
A56: INFORMATICA PARA INTERNET | B56: - | C56: - | D56: - | E56: 106 | F56: 68 | G56: 38 | H56: - | I56: - | J56: -
A57: INMOBILIARIO (OPERADOR) | B57: - | C57: - | D57: - | E57: 134 | F57: 72 | G57: 62 | H57: - | I57: - | J57: -
A58: INSTALACIONES ELECTRICAS | B58: - | C58: - | D58: - | E58: 73 | F58: 73 | G58: 0 | H58: - | I58: - | J58: -
A59: INSTALACIONES SANITARIAS | B59: - | C59: - | D59: - | E59: 39 | F59: 34 | G59: 5 | H59: - | I59: - | J59: -
A60: INSTRUMENTACION Y CONTROL | B60: - | C60: - | D60: - | E60: 60 | F60: 53 | G60: 7 | H60: - | I60: - | J60: -
A61: LOGISTICA | B61: - | C61: - | D61: - | E61: 523 | F61: 258 | G61: 265 | H61: - | I61: - | J61: -
A62: LOGISTICA - BINACIONAL | B62: - | C62: - | D62: - | E62: 42 | F62: 11 | G62: 31 | H62: - | I62: - | J62: -
A63: MANTENIMIENTO MECANICO INDUSTRIAL | B63: - | C63: - | D63: - | E63: 40 | F63: 40 | G63: 0 | H63: - | I63: - | J63: -
A64: MAQUINISTA NAVAL | B64: - | C64: - | D64: - | E64: 133 | F64: 132 | G64: 1 | H64: - | I64: - | J64: -
A65: MECATRONICA - AUTOM. Y CONTROL | B65: - | C65: - | D65: - | E65: 3 | F65: 3 | G65: 0 | H65: - | I65: - | J65: -
A66: MECATRONICA - MANT. ELECTROMECANICO | B66: - | C66: - | D66: - | E66: 13 | F66: 13 | G66: 0 | H66: - | I66: - | J66: -
A67: MOTORES DE COMBUSTION INTERNA | B67: - | C67: - | D67: - | E67: 6 | F67: 6 | G67: 0 | H67: - | I67: - | J67: -
A68: NAUTICA Y PESCA | B68: - | C68: - | D68: - | E68: 10 | F68: 10 | G68: 0 | H68: - | I68: - | J68: -
A69: OPTICO | B69: - | C69: - | D69: - | E69: 134 | F69: 57 | G69: 77 | H69: - | I69: - | J69: -
A70: ORGANIZACION DE EVENTOS | B70: - | C70: - | D70: - | E70: 97 | F70: 22 | G70: 75 | H70: - | I70: - | J70: -
A71: PEQUEÑA Y MEDIANA EMPRESA | B71: - | C71: - | D71: - | E71: 26 | F71: 12 | G71: 14 | H71: - | I71: - | J71: -
A72: PRE - CTT INSTALACIONES SANITARIAS | B72: - | C72: - | D72: - | E72: 6 | F72: 5 | G72: 1 | H72: - | I72: - | J72: -
A73: PREVENCIONISTA | B73: - | C73: - | D73: - | E73: 658 | F73: 344 | G73: 314 | H73: - | I73: - | J73: -
A74: PREVENCIONISTA SEMIPRESENCIAL | B74: - | C74: - | D74: - | E74: 142 | F74: 57 | G74: 85 | H74: - | I74: - | J74: -
A75: PREVENCIONISTA EN SEG.INDUSTRIAL | B75: - | C75: - | D75: - | E75: 1178 | F75: 631 | G75: 547 | H75: - | I75: - | J75: -
A76: PROCESOS DE SOLDADURA Y ENSAYOS | B76: - | C76: - | D76: - | E76: 18 | F76: 18 | G76: 0 | H76: - | I76: - | J76: -
A77: PRODUCCION AGRICOLA GANADERA | B77: - | C77: - | D77: - | E77: 230 | F77: 162 | G77: 68 | H77: - | I77: - | J77: -
A78: PRODUCCION AGROPECUARIA FAMILIAR | B78: - | C78: - | D78: - | E78: 23 | F78: 9 | G78: 14 | H78: - | I78: - | J78: -
A79: PRODUCCION LECHERA | B79: - | C79: - | D79: - | E79: =+F79+G79 -> 6 | F79: 2 | G79: 4 | H79: - | I79: - | J79: -
A80: PRODUCTOS EN GEMAS | B80: - | C80: - | D80: - | E80: 28 | F80: 9 | G80: 19 | H80: - | I80: - | J80: -
A81: RECREACION | B81: - | C81: - | D81: - | E81: 220 | F81: 80 | G81: 140 | H81: - | I81: - | J81: -
A82: REDES | B82: - | C82: - | D82: - | E82: 168 | F82: 150 | G82: 18 | H82: - | I82: - | J82: -
A83: REDES Y COMUNICACIONES OPTICAS | B83: - | C83: - | D83: - | E83: 74 | F83: 72 | G83: 2 | H83: - | I83: - | J83: -
A84: REMATADOR | B84: - | C84: - | D84: - | E84: 74 | F84: 45 | G84: 29 | H84: - | I84: - | J84: -
A85: REMATADOR - OP. INMOBILIARIO | B85: - | C85: - | D85: - | E85: 161 | F85: 98 | G85: 63 | H85: - | I85: - | J85: -
A86: S. P. ARROZ PASTURAS - BINACIONAL | B86: - | C86: - | D86: - | E86: 29 | F86: 19 | G86: 10 | H86: - | I86: - | J86: -
A87: SECRETARIADO BILINGÜE - INGLES | B87: - | C87: - | D87: - | E87: 86 | F87: 11 | G87: 75 | H87: - | I87: - | J87: -
A88: SISTEMAS DE PROD. ARROZ-PASTURAS | B88: - | C88: - | D88: - | E88: 17 | F88: 10 | G88: 7 | H88: - | I88: - | J88: -
A89: SISTEMAS ENERGIAS RENOVABLES | B89: - | C89: - | D89: - | E89: 77 | F89: 47 | G89: 30 | H89: - | I89: - | J89: -
A90: TECNICO EN COMUNICACION SOCIAL | B90: - | C90: - | D90: - | E90: 346 | F90: 135 | G90: 211 | H90: - | I90: - | J90: -
A91: TECNOLOGO CARNICO | B91: - | C91: - | D91: - | E91: 31 | F91: 17 | G91: 14 | H91: - | I91: - | J91: -
A92: TECNOLOGO EN INFORMATICA | B92: - | C92: - | D92: - | E92: 526 | F92: 460 | G92: 66 | H92: - | I92: - | J92: -
A93: TECNOLOGO MADERA | B93: - | C93: - | D93: - | E93: 20 | F93: 16 | G93: 4 | H93: - | I93: - | J93: -
A94: TECNOLOGO MECANICO | B94: - | C94: - | D94: - | E94: 357 | F94: 335 | G94: 22 | H94: - | I94: - | J94: -
A95: TECNOLOGO QUIMICO | B95: - | C95: - | D95: - | E95: 427 | F95: 128 | G95: 299 | H95: - | I95: - | J95: -
A96: TELECOMUNICACIONES | B96: - | C96: - | D96: - | E96: 40 | F96: 38 | G96: 2 | H96: - | I96: - | J96: -

Sheet II-5.3.1
A1: OFERTAS TERCIARIAS NO UNIVERSITARIAS DEL ÁREA SEGURIDAD Y DEFENSA | E1: PERSONAL ACADÉMICO
A3: Cuadro Nº II-5.3.1
A5: PERSONAL ACADÉMICO DE NIVEL TERCIARIO NO UNIVERSITARIO DEL ÁREA SEGURIDAD Y DEFENSA POR CARGA HORARIA, SEXO, SEGÚN INSTITUCIÓN Y FORMACIÓN. AÑO 2015.
A6: INSTITUCIONES / FORMACIÓN | B6: TOTAL | C6: HORAS SEMANALES
C7: Total | D7: 20 horas o menos | F7: Total | G7: Entre 21 y 30 horas | I7: Total | J7: 31 horas y más
D8: SEXO | G8: SEXO | J8: SEXO
D9: M | E9: F | G9: M | H9: F | J9: M | K9: F
A10: TOTAL | B10: =C10+F10+I10 -> 353 | C10: =D10+E10 -> 304 | D10: =D12+D18+D24+D30 -> 228 | E10: =E12+E18+E24+E30 -> 76 | F10: =G10+H10 -> 4 | G10: =G12+G18+G24+G30 -> 2 | H10: =H12+H18+H24+H30 -> 2 | I10: =J10+K10 -> 45 | J10: =J12+J18+J24+J30 -> 43 | K10: =K12+K18+K24+K30 -> 2
A12: ESCUELA NAVAL | B12: =C12+F12+I12 -> 119 | C12: =D12+E12 -> 116 | D12: =SUM(D13:D16) -> 100 | E12: =SUM(E13:E16) -> 16 | F12: =G12+H12 -> 3 | G12: =SUM(G13:G16) -> 1 | H12: =SUM(H13:H16) -> 2 | I12: =J12+K12 -> 0 | J12: =SUM(J13:J16) -> 0 | K12: =SUM(K13:K16) -> 0
A13: Sin formación de grado completa | B13: =C13+F13+I13 -> 0 | C13: =D13+E13 -> 0 | D13: 0 | E13: 0 | F13: =G13+H13 -> 0 | G13: 0 | H13: 0 | I13: =J13+K13 -> 0 | J13: 0 | K13: 0
A14: Con formación de grado | B14: 119 | C14: =D14+E14 -> 116 | D14: 100 | E14: 16 | F14: =G14+H14 -> 3 | G14: 1 | H14: 2 | I14: =J14+K14 -> 0 | J14: 0 | K14: 0
A15: Con postgrado de especialización o maestría | B15: 0 | C15: =D15+E15 -> 0 | D15: 0 | E15: 0 | F15: 0 | G15: 0 | H15: 0 | I15: =J15+K15 -> 0 | J15: 0 | K15: 0
A16: Con doctorado | B16: 0 | C16: =D16+E16 -> 0 | D16: 0 | E16: 0 | F16: =G16+H16 -> 0 | G16: 0 | H16: 0 | I16: =J16+K16 -> 0 | J16: 0 | K16: 0
A18: ESCUELA NACIONAL DE POLICÍA | B18: =C18+F18+I18 -> 67 | C18: =D18+E18 -> 67 | D18: =SUM(D19:D22) -> 54 | E18: =SUM(E19:E22) -> 13 | F18: =G18+H18 -> 0 | G18: =SUM(G19:G22) -> 0 | H18: =SUM(H19:H22) -> 0 | I18: =J18+K18 -> 0 | J18: =SUM(J19:J22) -> 0 | K18: =SUM(K19:K22) -> 0
A19: Sin formación de grado completa | B19: =C19+F19+I19 -> 0 | C19: =D19+E19 -> 0 | D19: 0 | E19: 0 | F19: =G19+H19 -> 0 | G19: 0 | H19: 0 | I19: =J19+K19 -> 0 | J19: 0 | K19: 0
A20: Con formación de grado | B20: =C20+F20+I20 -> 67 | C20: =D20+E20 -> 67 | D20: 54 | E20: 13 | F20: =G20+H20 -> 0 | G20: 0 | H20: 0 | I20: =J20+K20 -> 0 | J20: 0 | K20: 0
A21: Con postgrado de especialización o maestría | B21: =C21+F21+I21 -> 0 | C21: =D21+E21 -> 0 | D21: 0 | E21: 0 | F21: =G21+H21 -> 0 | G21: 0 | H21: 0 | I21: =J21+K21 -> 0 | J21: 0 | K21: 0
A22: Con doctorado | B22: =C22+F22+I22 -> 0 | C22: =D22+E22 -> 0 | D22: 0 | E22: 0 | F22: =G22+H22 -> 0 | G22: 0 | H22: 0 | I22: =J22+K22 -> 0 | J22: 0 | K22: 0
A24: ESCUELA MILITAR | B24: =C24+F24+I24 -> 87 | C24: =D24+E24 -> 41 | D24: =SUM(D25:D28) -> 16 | E24: =SUM(E25:E28) -> 25 | F24: =G24+H24 -> 1 | G24: =SUM(G25:G28) -> 1 | H24: =SUM(H25:H28) -> 0 | I24: =J24+K24 -> 45 | J24: =SUM(J25:J28) -> 43 | K24: =SUM(K25:K28) -> 2
A25: Sin formación de grado completa | B25: =C25+F25+I25 -> 13 | C25: =D25+E25 -> 13 | D25: 3 | E25: 10 | F25: =G25+H25 -> 0 | G25: 0 | H25: 0 | I25: =J25+K25 -> 0 | J25: 0 | K25: 0
A26: Con formación de grado | B26: =C26+F26+I26 -> 69 | C26: =D26+E26 -> 24 | D26: 11 | E26: 13 | F26: =G26+H26 -> 0 | G26: 0 | H26: 0 | I26: =J26+K26 -> 45 | J26: 43 | K26: 2
A27: Con postgrado de especialización o maestría | B27: 5 | C27: 4 | D27: 2 | E27: 2 | F27: =G27+H27 -> 1 | G27: 1 | H27: 0 | I27: =J27+K27 -> 0 | J27: 0 | K27: 0
A28: Con doctorado | B28: 0 | C28: 0 | D28: 0 | E28: 0 | F28: =G28+H28 -> 0 | G28: 0 | H28: 0 | I28: =J28+K28 -> 0 | J28: 0 | K28: 0
A30: ESCUELA MILITAR DE AERONÁUTICA | B30: =C30+F30+I30 -> 80 | C30: =D30+E30 -> 80 | D30: =SUM(D31:D34) -> 58 | E30: =SUM(E31:E34) -> 22 | F30: =G30+H30 -> 0 | G30: =SUM(G31:G34) -> 0 | H30: =SUM(H31:H34) -> 0 | I30: =J30+K30 -> 0 | J30: =SUM(J31:J34) -> 0 | K30: =SUM(K31:K34) -> 0
A31: Sin formación de grado completa | B31: =C31+F31+I31 -> 43 | C31: =D31+E31 -> 43 | D31: 37 | E31: 6 | F31: =G31+H31 -> 0 | G31: 0 | H31: 0 | I31: =J31+K31 -> 0 | J31: 0 | K31: 0
A32: Con formación de grado | B32: 37 | C32: 37 | D32: 21 | E32: 16 | F32: 0 | G32: 0 | H32: 0 | I32: 0 | J32: 0 | K32: 0
A33: Con postgrado de especialización o maestría | B33: 0 | C33: 0 | D33: 0 | E33: 0 | F33: 0 | G33: 0 | H33: 0 | I33: 0 | J33: 0 | K33: 0
A34: Con doctorado | B34: 0 | C34: 0 | D34: 0 | E34: 0 | F34: 0 | G34: 0 | H34: 0 | I34: 0 | J34: 0 | K34: 0
A37: Fuentes: Escuela Nacional de Policía
A38: Dirección de Formación. Ministerio de Defensa Nacional
A39: Nota: La oferta de la Escuela de Policía: Lic. Seguridad Pública fue incluida en el capítulo de Terciaria Universitaria.

Sheet II-5.3.2
A1: OTRAS OFERTAS TERCIARIAS NO UNIVERSITARIAS | C1: PERSONAL ACADÉMICO
A3: Cuadro Nº II-5.3.2
A5: PERSONAL ACADÉMICO DE NIVEL TERCIARIO NO UNIVERSITARIO POR CARGA HORARIA SEMANAL, SEXO, SEGÚN INSTITUCIÓN Y FORMACIÓN. AÑO 2015.
A6: INSTITUCIONES / FORMACIÓN | B6: TOTAL | C6: HORAS SEMANALES
C7: Total | D7: 20 horas o menos | F7: Total | G7: Entre 21 y 30 horas | I7: Total | J7: 31 horas y más
D8: SEXO | G8: SEXO | J8: SEXO
D9: M | E9: F | G9: M | H9: F | J9: M | K9: F
A10: EMAD Margarita Xirgu | B10: =C10+F10+I10 -> 60 | C10: =D10+E10 -> 60 | D10: =SUM(D11:D14) -> 33 | E10: =SUM(E11:E14) -> 27 | F10: =G10+H10 -> 0 | G10: =SUM(G11:G14) -> 0 | H10: =SUM(H11:H14) -> 0 | I10: =J10+K10 -> 0 | J10: =SUM(J11:J14) -> 0 | K10: =SUM(K11:K14) -> 0
A11: Sin formación de grado completa | B11: =C11+F11+I11 -> 38 | C11: =D11+E11 -> 38 | D11: 22 | E11: 16 | F11: =G11+H11 -> 0 | G11: 0 | H11: 0 | I11: =J11+K11 -> 0 | J11: 0 | K11: 0
A12: Con formación de grado | B12: =C12+F12+I12 -> 22 | C12: =D12+E12 -> 22 | D12: 11 | E12: 11 | F12: =G12+H12 -> 0 | G12: 0 | H12: 0 | I12: =J12+K12 -> 0 | J12: 0 | K12: 0
A13: Con postgrado de especialización o maestría | B13: =C13+F13+I13 -> 0 | C13: 0 | D13: 0 | E13: 0 | F13: =G13+H13 -> 0 | G13: 0 | H13: 0 | I13: =J13+K13 -> 0 | J13: 0 | K13: 0
A14: Con doctorado | B14: 0 | C14: 0 | D14: 0 | E14: 0 | F14: =G14+H14 -> 0 | G14: 0 | H14: 0 | I14: =J14+K14 -> 0 | J14: 0 | K14: 0
A15: Fuente:
A16: Secretaría General - EMAD

Sheet FORMACIÓN EN EDUCACIÓN
A9: Cuadro II-6.1.1 | B9: MATRÍCULA Y PERSONAL DOCENTE SEGÚN GRANDES ÁREAS, DEPARTAMENTOS E INSTITUCIONES. CFE. AÑO 2015.
A12: Cuadro II-6.2.1 | B12: ALUMNOS INGRESADOS, MATRICULADOS Y EGRESADOS EN FORMACIÓN EN EDUCACIÓN POR CARRERA SEGÚN DEPARTAMENTO Y ESTABLECIMIENTO. CFE. AÑO 2015.
A13: Cuadro II-6.2.2 | B13: ALUMNOS INGRESADOS, MATRICULADOS Y EGRESADOS EN FORMACIÓN EN EDUCACIÓN POR SEXO SEGÚN INSTITUCIÓN Y CARRERA. TERCIARIAS NO UNIVERSITARIAS. AÑO 2015.
A17: Cuadro II-6.3.1 | B17: PERSONAL DOCENTE DE LOS INSTITUTOS DE FORMACIÓN EN EDUCACIÓN Y CANTIDAD DE HORAS POR INSTITUCIÓN Y DEPARTAMENTO. AÑO 2015.
A18: Cuadro II-6.3.2 | B18: PERSONAL DOCENTE DE FORMACIÓN EN EDUCACIÓN POR CARGA HORARIA SEMANAL, SEXO, SEGÚN INSTITUCIÓN Y FORMACIÓN. TERCIARIAS NO UNIVERSITARIAS. AÑO 2015.
A19: Cuadro II-6.3.3 | B19: ESTUDIANTES INGRESADOS Y MATRICULADOS EN FORMACIÓN EN EDUCACIÓN SEGÚN ORIGEN GEOGRÁFICO. AÑO 2015.
A33: =MID(B22,1,20) -> 

Sheet II-6.1.1
A1: ANEP - CONSEJO DE FORMACIÓN EN EDUCACIÓN | C1: INSTITUCIONES
A3: Cuadro Nº II-6.1.1
A5: MATRÍCULA Y PERSONAL DOCENTE SEGÚN GRANDES ÁREAS, DEPARTAMENTOS E INSTITUCIONES. AÑO 2015.
A6: GRANDES ÁREAS / DEPARTAMENTO / INSTITUCIÓN | B6: TOTAL | C6: DOCENTES
A11: TOTAL | B11: =+B13+B19 -> 19716 | C11: =+C13+C19 -> 2665
A13: MONTEVIDEO | B13: =SUM(B15:B17) -> 7936 | C13: =SUM(C15:C17) -> 800
A15: IINN | B15: 1288 | C15: 499
A16: IPA | B16: 5573 | C16: 171
A17: INET | B17: 1075 | C17: 130
A19: RESTO DEL PAÍS | B19: =SUM(B21:B38) -> 11780 | C19: =SUM(C21:C38)+76 -> 1865
A21: Artigas | B21: 512 | C21: 73
A22: Canelones | B22: 2330 | C22: 307
A23: Cerro Largo | B23: 660 | C23: 72
A24: Colonia | B24: 686 | C24: 163
A25: Durazno | B25: 271 | C25: 55
A26: Flores | B26: 145 | C26: 27
A27: Florida | B27: 562 | C27: 148
A28: Lavalleja | B28: 311 | C28: 42
A29: Maldonado | B29: 877 | C29: 143
A30: Paysandú | B30: 982 | C30: 102
A31: Río Negro | B31: 214 | C31: 31
A32: Rivera | B32: 1116 | C32: 148
A33: Rocha | B33: 300 | C33: 42
A34: Salto | B34: 1203 | C34: 193
A35: San José | B35: 292 | C35: 49
A36: Soriano | B36: 381 | C36: 52
A37: Tacuarembó | B37: 549 | C37: 71
A38: Treinta y Tres | B38: 389 | C38: 71
A39: Fuente: Informática - D.F.P.D.
A40: Nota: Para los docentes el último dato disponible es del año 2014. En matrícula docente del Resto del País se incluyen 76 estudiantes que cursan la modalidad semi-presencial y no tienen asignado un Departamento

Sheet II-6.2.1
A1: ANEP - CONSEJO DE FORMACIÓN EN EDUCACIÓN | I1: ALUMNOS MATRICULADOS
A3: Cuadro Nº II-6.2.1
A5: ALUMNOS INGRESADOS, MATRICULADOS Y EGRESADOS EN FORMACIÓN EN EDUCACIÓN POR CARRERA SEGÚN DEPARTAMENTO Y ESTABLECIMIENTO. AÑO 2015.
A6: DEPARTAMENTO / ESTABLECIMIENTO | C6: TOTAL | F6: CARRERA
F7: Magisterio | I7: Profesorado | L7: Educador Social | O7: Asistente técnico en Primera Infancia
C9: Ingr. | D9: Matr. | E9: Egr. | F9: Ingr. | G9: Matr. | H9: Egr. | I9: Ingr. | J9: Matr. | K9: Egr. | L9: Ingr. | M9: Matr. | N9: Egr. | O9: Ingr. | P9: Matr. | Q9: Egr.
A11: TOTAL | C11: S/D | D11: =G11+J11+M11+P11 -> 19716 | E11: =E13+E18 -> 1582 | F11: =+F13+F18 -> 0 | G11: =+G13+G18 -> 5084 | H11: =H13+H18 -> 712 | I11: =+I13+I18 -> 0 | J11: =+J13+J18 -> 12968 | K11: =K13+K18 -> 726 | L11: =+L13+L18 -> 0 | M11: =+M13+M18 -> 1090 | N11: =N13+N18 -> 0 | O11: =+O13+O18 -> 0 | P11: =+P13+P18 -> 574 | Q11: =Q13+Q18 -> 144
A13: MONTEVIDEO | C13: S/D | D13: =G13+J13+M13+P13 -> 7936 | E13: =SUM(E14:E17) -> 467 | F13: =SUM(F14:F17) -> 0 | G13: =SUM(G14:G17) -> 1032 | H13: =SUM(H14:H17) -> 108 | I13: =SUM(I14:I17) -> 0 | J13: 6042 | K13: 304 | L13: 0 | M13: 677 | N13: 0 | O13: 0 | P13: 185 | Q13: 55
A14: IINN | C14: =F14+I14+L14 -> 0 | D14: =G14+J14+M14+P14 -> 1288 | E14: =H14+K14+N14+Q13 -> 171 | F14: S/D | G14: 1032 | H14: 99 | I14: S/D | J14: 71 | K14: 17 | L14: N/C | M14: N/C | N14: N/C | O14: N/C | P14: 185 | Q14: 55
A15: IPA | C15: =F15+I15+L15 -> 0 | D15: =G15+J15+M15+P15 -> 5573 | E15: =H15+K15+N15+Q15 -> 253 | F15: N/C | G15: N/C | H15: N/C | I15: S/D | J15: 4896 | K15: 253 | L15: S/D | M15: 677 | N15: S/D | O15: S/D | P15: N/C | Q15: S/D
A16: UM | C16: =F16+I16+L16 -> 0 | D16: 0 | E16: 15 | F16: N/C | G16: N/C | H16: 9 | I16: S/D | J16: S/D | K16: 6 | L16: N/C | M16: N/C | N16: N/C | O16: N/C | P16: N/C | Q16: N/C
A17: INET | C17: =F17+I17+L17 -> 0 | D17: 1075 | E17: 28 | F17: N/C | G17: N/C | H17: N/C | I17: S/D | J17: 1075 | K17: 28 | L17: N/C | M17: N/C | N17: N/C | O17: N/C | P17: N/C | Q17: N/C
A18: RESTO DEL PAÍS | C18: =SUM(C19:C53) -> 0 | D18: =G18+J18+M18+P18 -> 11780 | E18: 1115 | F18: =F19+F20+F27+F28+F33+F32+F34+F37+F38+F41+F42+F44+F46+F48+F50+F51+F52+F53 -> 0 | G18: =G19+G20+G27+G28+G32+G33+G34+G37+G38+G41+G42+G43+G46+G47+G50+G51+G52+G53 -> 4052 | H18: =H19+H20+H27+H28+H32+H33+H34+H37+H38+H41+H42+H43+H46+H47+H50+H51+H52+H53 -> 604 | I18: =I19+I20+I27+I28+I32+I33+I34+I37+I38+I41+I42+I43+I46+I47+I50+I51+I52+I53 -> 0 | J18: 6926 | K18: 422 | L18: 0 | M18: 413 | N18: 0 | O18: 0 | P18: 389 | Q18: 89
A19: Artigas Artigas | C19: S/D | D19: 512 | E19: 54 | F19: S/D | G19: 299 | H19: 34 | I19: S/D | J19: 177 | K19: 20 | L19: S/D | M19: 36 | N19: S/D | O19: S/D | P19: 0 | Q19: S/D
A20: Canelones | C20: S/D | D20: =G20+J20+M20+P20 -> 2330 | E20: =H20+K20+N20+Q20 -> 230 | F20: S/D | G20: =SUM(G21:G26) -> 753 | H20: =SUM(H21:H26) -> 119 | I20: S/D | J20: =SUM(J21:J26) -> 1211 | K20: =K21+K22+K23+K24+K25+K26 -> 62 | L20: S/D | M20: =SUM(M21:M26) -> 136 | N20: S/D | O20: S/D | P20: =P21+P22+P23 -> 230 | Q20: =Q22+Q23 -> 49
A21: Canelones | C21: =F21+I21+L21 -> 0 | D21: 595 | E21: =H21+K21+N21+Q21 -> 41 | F21: S/D | G21: 248 | H21: 32 | I21: S/D | J21: 211 | K21: 9 | L21: S/D | M21: 136 | N21: S/D | O21: S/D | P21: 0 | Q21: S/D
A22: De la Costa | C22: =F22+I22+L22 -> 0 | D22: 590 | E22: =H22+K22+N22+Q22 -> 49 | F22: S/D | G22: 183 | H22: 26 | I22: S/D | J22: 269 | K22: 6 | L22: S/D | M22: 0 | N22: S/D | O22: S/D | P22: 138 | Q22: 17
A23: Pando | C23: 0 | D23: 490 | E23: =H23+K23+N23+Q23 -> 72 | F23: S/D | G23: 204 | H23: 34 | I23: S/D | J23: 194 | K23: 6 | L23: S/D | M23: 0 | N23: S/D | O23: S/D | P23: 92 | Q23: 32
A24: San Ramón | C24: 0 | D24: 194 | E24: =H24+K24+N24+Q24 -> 22 | F24: S/D | G24: 118 | H24: 21 | I24: S/D | J24: 76 | K24: 1 | L24: S/D | M24: 0 | N24: S/D | O24: S/D | P24: 0 | Q24: S/D
A25: María Auxiliadora | E25: 6 | H25: 6 | K25: 0
A26: Cerp Sur- Atlántida | C26: 0 | D26: 461 | E26: 40 | F26: S/D | G26: 0 | H26: 0 | I26: S/D | J26: 461 | K26: 40 | L26: S/D | M26: 0 | N26: S/D | O26: S/D | P26: 0 | Q26: S/D
A27: Cerro Largo Melo | C27: S/D | D27: 660 | E27: 50 | F27: S/D | G27: 258 | H27: 40 | I27: S/D | J27: 402 | K27: 10 | L27: S/D | M27: 0 | N27: S/D | O27: S/D | P27: 0 | Q27: S/D
A28: Colonia | C28: S/D | D28: 686 | E28: 82 | F28: S/D | G28: =G29+G30+G31 -> 177 | H28: =H29+H30+H31 -> 40 | I28: S/D | J28: =SUM(J29:J31) -> 509 | K28: =K29+K30+K31 -> 42 | L28: S/D | M28: 0 | N28: S/D | O28: S/D | P28: 0 | Q28: S/D
A29: Colonia | C29: =F29+I29+L29 -> 0 | D29: 300 | E29: =H29+K29+M29+N29+Q29 -> 32 | F29: S/D | G29: 0 | H29: 0 | I29: S/D | J29: 300 | K29: 32 | L29: S/D | M29: 0 | N29: S/D | O29: S/D | P29: 0 | Q29: S/D
A30: Carmelo | C30: =F30+I30+L30 -> 0 | D30: 175 | E30: =H30+K30+N30+Q30 -> 19 | F30: S/D | G30: 74 | H30: 14 | I30: S/D | J30: 101 | K30: 5 | L30: S/D | M30: 0 | N30: S/D | O30: S/D | P30: 0 | Q30: S/D
A31: Rosario | C31: 0 | D31: 211 | E31: =H31+K31+N31+Q31 -> 31 | F31: S/D | G31: 103 | H31: 26 | I31: S/D | J31: 108 | K31: 5 | L31: S/D | M31: 0 | N31: S/D | O31: S/D | P31: 0 | Q31: S/D
A32: Durazno Durazno | C32: S/D | D32: 271 | E32: =H32+K32+N32+Q32 -> 39 | F32: S/D | G32: 151 | H32: 38 | I32: S/D | J32: 120 | K32: 1 | L32: S/D | M32: 0 | N32: S/D | O32: S/D | P32: 0 | Q32: S/D
A33: Flores Trinidad | C33: S/D | D33: 145 | E33: 5 | F33: S/D | G33: 58 | H33: 5 | I33: S/D | J33: 87 | K33: 0 | L33: S/D | M33: 0 | N33: S/D | O33: S/D | P33: 0 | Q33: S/D
A34: Florida | C34: S/D | D34: 562 | E34: 80 | F34: S/D | G34: =G35+G36 -> 174 | H34: =H35+H36 -> 30 | I34: S/D | J34: =J35+J36 -> 335 | K34: =K35+K36 -> 33 | L34: S/D | M34: 0 | N34: S/D | O34: S/D | P34: =P35+P36 -> 53 | Q34: =Q35+Q36 -> 17
A35: Florida | C35: S/D | D35: 231 | E35: 59 | F35: S/D | G35: 174 | H35: 30 | I35: S/D | J35: 4 | K35: 12 | L35: S/D | M35: 0 | N35: S/D | O35: S/D | P35: 53 | Q35: 17
A36: Cerp Centro - Florida | C36: S/D | D36: 331 | E36: 21 | F36: S/D | G36: 0 | H36: 0 | I36: S/D | J36: 331 | K36: 21 | L36: S/D | M36: 0 | N36: S/D | O36: S/D | P36: 0 | Q36: S/D
A37: Lavalleja Minas | C37: S/D | D37: 311 | E37: 33 | F37: S/D | G37: 152 | H37: 27 | I37: S/D | J37: 159 | K37: 6 | L37: S/D | M37: 0 | N37: S/D | O37: S/D | P37: 0 | Q37: S/D
A38: Maldonado | C38: S/D | D38: 877 | E38: 87 | F38: S/D | G38: =G39+G40 -> 282 | H38: =H39+H40 -> 38 | I38: S/D | J38: =J39+J40 -> 491 | K38: =K39+K40 -> 49 | L38: S/D | M38: =M39+M40 -> 104 | N38: S/D | O38: S/D | P38: 0 | Q38: S/D
A39: Maldonado | D39: =G39+J39+M39+P39 -> 298 | E39: =H39+K39+M39+Q39 -> 42 | G39: 282 | H39: 38 | I39: S/D | J39: 16 | K39: 4 | L39: S/D | M39: 0 | N39: S/D | O39: S/D | P39: 0
A40: Cerp Este | D40: 579 | E40: =H40+K40+N40+Q40 -> 45 | G40: 0 | H40: 0 | I40: S/D | J40: 475 | K40: 45 | L40: S/D | M40: 104 | N40: S/D | O40: S/D | P40: 0
A41: Paysandú Paysandú | C41: S/D | D41: 982 | E41: 87 | F41: S/D | G41: 287 | H41: 45 | I41: S/D | J41: 475 | K41: 19 | L41: S/D | M41: 114 | N41: S/D | O41: S/D | P41: 106 | Q41: 23
A42: Río Negro Fray Bentos | C42: S/D | D42: 214 | E42: 17 | F42: S/D | G42: 81 | H42: 12 | I42: S/D | J42: 133 | K42: 5 | L42: S/D | M42: 0 | N42: S/D | O42: S/D | P42: 0 | Q42: S/D
A43: Rivera | D43: 1116 | E43: 117 | G43: =G44+G45 -> 322 | H43: =H44+H45 -> 33 | I43: S/D | J43: =J44+J45 -> 794 | K43: =K44+K45 -> 84 | L43: S/D | M43: 0 | N43: S/D | O43: S/D | P43: 0
A44: Rivera | C44: S/D | D44: 432 | E44: 38 | F44: S/D | G44: 322 | H44: 33 | I44: S/D | J44: 110 | K44: 5 | L44: S/D | M44: 0 | N44: S/D | O44: S/D | P44: 0 | Q44: S/D
A45: Cerp Norte | D45: 684 | E45: 79 | G45: 0 | H45: 0 | I45: S/D | J45: 684 | K45: 79 | L45: S/D | M45: 0 | N45: S/D | O45: S/D | P45: 0
A46: Rocha Rocha | C46: S/D | D46: 300 | E46: 24 | F46: S/D | G46: 108 | H46: 17 | I46: S/D | J46: 192 | K46: 7 | L46: S/D | M46: 0 | N46: S/D | O46: S/D | P46: 0 | Q46: S/D
A47: Salto | D47: 1203 | E47: 89 | G47: =G48+G49 -> 383 | H47: =H48+H49 -> 37 | I47: S/D | J47: =J48+J49 -> 820 | K47: =K48+K49 -> 52 | L47: S/D | M47: 0 | N47: S/D | O47: S/D | P47: 0
A48: Salto | C48: S/D | D48: 9 | E48: 39 | F48: S/D | G48: 0 | H48: 37 | I48: S/D | J48: 9 | K48: 2 | L48: S/D | M48: 0 | N48: S/D | O48: S/D | P48: 0 | Q48: S/D
A49: Cerp Salto | C49: S/D | D49: 1194 | E49: 50 | F49: S/D | G49: 383 | H49: 0 | I49: S/D | J49: 811 | K49: 50 | L49: S/D | M49: 0 | N49: S/D | O49: S/D | P49: 0 | Q49: S/D
A50: San José San José | C50: S/D | D50: 292 | E50: 31 | F50: S/D | G50: 134 | H50: 26 | I50: S/D | J50: 158 | K50: 5 | L50: S/D | M50: 0 | N50: S/D | O50: S/D | P50: 0 | Q50: S/D
A51: Soriano Mercedes | C51: S/D | D51: 381 | E51: =H51+K51+N51+Q51 -> 31 | F51: S/D | G51: 141 | H51: 23 | I51: S/D | J51: 240 | K51: 8 | L51: S/D | M51: 0 | N51: S/D | O51: S/D | P51: 0 | Q51: S/D
A52: Tacuarembó Tacuarembó | C52: S/D | D52: 549 | E52: 37 | F52: S/D | G52: 189 | H52: 25 | I52: S/D | J52: 360 | K52: 12 | L52: S/D | M52: 0 | N52: S/D | O52: S/D | P52: 0 | Q52: S/D
A53: Treinta y Tres Treinta y Tres | C53: S/D | D53: 389 | E53: =H53+K53+N53+Q53 -> 22 | F53: S/D | G53: 103 | H53: 15 | I53: S/D | J53: 263 | K53: 7 | L53: S/D | M53: 23 | N53: S/D | O53: S/D | P53: 0 | Q53: S/D
A54: Fuente: Informática - DFPD
A55: Nota: No se dispone de datos de ingreso.
A56: Los matriculados en Profesorado del INET corresponden tanto al profesorado de Informática como a Maestros Técnicos.
A57: La categoria profesora incluye a los maestros y profesores técnicos y a las certificaciones en lenguas extranejeras

Sheet II-6.2.2
A1: OTRAS TERCIARIAS NO UNIVERSITARIAS | G1: ALUMNOS MATRICULADOS
A3: Cuadro Nº II-6.2.2
A5: ALUMNOS INGRESADOS, MATRICULADOS Y EGRESADOS EN FORMACIÓN EN EDUCACIÓN POR SEXO SEGÚN INSTITUCIÓN Y CARRERA. AÑO 2015.
A6: INSTITUCION / CARRERA | B6: TOTAL | C6: INGRESADOS | E6: TOTAL | F6: MATRICULADOS | H6: TOTAL | I6: EGRESADOS
C7: SEXO | F7: SEXO | I7: SEXO
C8: M | D8: F | F8: M | G8: F | I8: M | J8: F
A10: C.I.E.P | B10: =SUM(C10:D10) -> 28 | C10: =SUM(C11:C11) -> 0 | D10: =SUM(D11:D11) -> 28 | E10: =SUM(F10:G10) -> 72 | F10: =SUM(F11:F11) -> 1 | G10: =SUM(G11:G11) -> 71 | H10: =SUM(I10:J10) -> 28 | I10: =SUM(I11:I11) -> 1 | J10: =SUM(J11:J11) -> 27
A11: Educador Inicial | B11: =SUM(C11:D11) -> 28 | C11: 0 | D11: 28 | E11: =SUM(F11:G11) -> 72 | F11: 1 | G11: 71 | H11: 28 | I11: 1 | J11: 27
A12: INAU – CENFORES | B12: =SUM(C12:D12) -> 100 | C12: =+C13 -> 2 | D12: =+D13 -> 98 | E12: 168 | F12: 4 | G12: 164 | H12: 12 | I12: 1 | J12: 11
A13: Educación en Primera Infancia | B13: =SUM(C13:D13) -> 100 | C13: 2 | D13: 98 | E13: =SUM(F13:G13) -> 168 | F13: 4 | G13: 164 | H13: 12 | I13: 1 | J13: 11
A14: Fuente:
A15: CEN.FOR.ES - I.N.A.U.
A16: C.I.E.P

Sheet II-6.3.1
A1: ANEP - CONSEJO DE FORMACIÓN EN EDUCACIÓN | D1: FUNCIONARIOS
A3: Cuadro Nº II-6.3.1
A5: PERSONAL DOCENTE DE LOS INSTITUTOS DE FORMACIÓN EN EDUCACIÓN Y CANTIDAD DE HORAS POR INSTITUCIÓN Y DEPARTAMENTO. AÑO 2014.
A6: DEPARTAMENTO / ESTABLECIMIENTO
B8: Cantidad de Docentes | C8: Cantidad de Horas
A9: TOTAL | B9: =B11+B15 -> 2665 | C9: =C11+C15 -> 49932
A11: MONTEVIDEO | B11: =B12+B13+B14 -> 800 | C11: =C12+C13+C14 -> 15938
A12: IINN | B12: 499 | C12: 10382
A13: IPA | B13: 171 | C13: 2948
A14: INET | B14: 130 | C14: 2608
A15: RESTO DEL PAÍS | B15: =B16+B17+B23+B24+B28+B29+B30+B33+B34+B37+B38+B39+B42+B43+B46+B47+B48+B49+76 -> 1865 | C15: =C16+C17+C23+C24+C28+C29+C30+C33+C34+C37+C38+C39+C42+C43+C46+C47+C48+C49+2012 -> 33994
A16: Artigas | B16: 73 | C16: 1025
A17: Canelones | B17: 307 | C17: 5320
A18: IFD Canelones | B18: 69 | C18: 1039
A19: IFD de la Costa | B19: 48 | C19: 691
A20: IFD Pando | B20: 71 | C20: 1113
A21: IFD San Ramón | B21: 33 | C21: 535
A22: CERP del Sur | B22: 86 | C22: 1942
A23: Cerro Largo | B23: 72 | C23: 1181
A24: Colonia | B24: 163 | C24: 2957
A25: IFD Carmelo | B25: 33 | C25: 466
A26: IFD Rosario | B26: 41 | C26: 565
A27: CERP del Suroeste | B27: 89 | C27: 1926
A28: Durazno | B28: 55 | C28: 754
A29: Flores | B29: 27 | C29: 484
A30: Florida | B30: 148 | C30: 2699
A31: IFD Florida | B31: 62 | C31: 925
A32: CERP del Centro | B32: 86 | C32: 1774
A33: Lavalleja | B33: 42 | C33: 691
A34: Maldonado | B34: 143 | C34: 2805
A35: IFD Maldonado | B35: 57 | C35: 812
A36: CERP del Centro | B36: 86 | C36: 1993
A37: Paysandú | B37: 102 | C37: 1769
A38: Río Negro | B38: 31 | C38: 415
A39: Rivera | B39: 148 | C39: 3325
A40: IFD Rivera | B40: 66 | C40: 1017
A41: CERP del Norte | B41: 82 | C41: 2308
A42: Rocha | B42: 42 | C42: 678
A43: Salto | B43: 193 | C43: 4116
A44: IFD Salto | B44: 67 | C44: 954
A45: CERP del Litoral | B45: 126 | C45: 3162
A46: San José | B46: 49 | C46: 707
A47: Soriano | B47: 52 | C47: 654
A48: Tacuarembó | B48: 71 | C48: 1051
A49: Treinta y Tres | B49: 71 | C49: 1351
A50: Fuente: Contralor Docente - CFE
A51: Nota: Dato 2014 ultimo dato disponible
A52: Nota: En octubre del 2007 el CODICEN aprobó un Sistema Único Nacional de Formación Docente (SUNFD) y el nuevo Plan Integrado 2008, creándose además una estructura departamentalizada con el objetivo de fortalecer la labor de los IFD y promover las actividades de investigación y extensión en el espacio de formación en educación. Las horas de departamento representan horas de docencia indirecta destinadas a promover la producción académica de los docentes. Los Departamentos poseen alcance nacional. Su conducción está a cargo de un Coordinacionador/a Académico/a.

Sheet II-6.3.2
A1: OTRAS TERCIARIAS NO UNIVERSITARIAS | C1: PERSONAL ACADÉMICO
A3: Cuadro Nº II-6.3.2
A5: PERSONAL DOCENTE DE FORMACIÓN EN EDUCACIÓN POR CARGA HORARIA SEMANAL, SEXO, SEGÚN INSTITUCIÓN Y FORMACIÓN. AÑO 2015.
A6: INSTITUCIONES / FORMACIÓN | B6: TOTAL | C6: HORAS SEMANALES
C7: Total | D7: 20 horas o menos | F7: Total | G7: Entre 21 y 30 horas | I7: Total | J7: 31 horas y más
D8: SEXO | G8: SEXO | J8: SEXO
D9: M | E9: F | G9: M | H9: F | J9: M | K9: F
A10: CIEP | B10: =C10+F10+I10 -> 23 | C10: =D10+E10 -> 23 | D10: =SUM(D11:D14) -> 4 | E10: =SUM(E11:E14) -> 19 | F10: =G10+H10 -> 0 | G10: =SUM(G11:G14) -> 0 | H10: =SUM(H11:H14) -> 0 | I10: =J10+K10 -> 0 | J10: =SUM(J11:J14) -> 0 | K10: =SUM(K11:K14) -> 0
A11: Sin formación de grado completa | B11: =C11+F11+I11 -> 0 | C11: =D11+E11 -> 0 | D11: 0 | E11: 0 | F11: =G11+H11 -> 0 | G11: 0 | H11: 0 | I11: =J11+K11 -> 0 | J11: 0 | K11: 0
A12: Con formación de grado (incluye formación docente) | B12: =C12+F12+I12 -> 19 | C12: =D12+E12 -> 19 | D12: 2 | E12: 17 | F12: =G12+H12 -> 0 | G12: 0 | H12: 0 | I12: =J12+K12 -> 0 | J12: 0 | K12: 0
A13: Con posgrado de especialización o maestría | B13: =C13+F13+I13 -> 3 | C13: =D13+E13 -> 3 | D13: 2 | E13: 1 | F13: =G13+H13 -> 0 | G13: 0 | H13: 0 | I13: =J13+K13 -> 0 | J13: 0 | K13: 0
A14: Con doctorado | B14: =C14+F14+I14 -> 1 | C14: =D14+E14 -> 1 | D14: 0 | E14: 1 | F14: =G14+H14 -> 0 | G14: 0 | H14: 0 | I14: =J14+K14 -> 0 | J14: 0 | K14: 0
A16: CENFORES -INAU | B16: =C16+F16+I16 -> 31 | C16: =D16+E16 -> 26 | D16: =SUM(D17:D20) -> 4 | E16: =SUM(E17:E20) -> 22 | F16: =G16+H16 -> 5 | G16: =SUM(G17:G20) -> 1 | H16: =SUM(H17:H20) -> 4 | I16: =J16+K16 -> 0 | J16: =SUM(J17:J20) -> 0 | K16: =SUM(K17:K20) -> 0
A17: Sin formación de grado completa | B17: =C17+F17+I17 -> 0 | C17: =D17+E17 -> 0 | D17: 0 | E17: 0 | F17: =G17+H17 -> 0 | G17: 0 | H17: 0 | I17: =J17+K17 -> 0 | J17: 0 | K17: 0
A18: Con formación de grado (incluye formación docente) | B18: 23 | C18: =D18+E18 -> 20 | D18: 3 | E18: 17 | F18: =G18+H18 -> 3 | G18: 0 | H18: 3 | I18: =J18+K18 -> 0 | J18: 0 | K18: 0
A19: Con posgrado de especialización o maestría | B19: 7 | C19: =D19+E19 -> 5 | D19: 1 | E19: 4 | F19: =G19+H19 -> 2 | G19: 1 | H19: 1 | I19: =J19+K19 -> 0 | J19: 0 | K19: 0
A20: Con doctorado | B20: 1 | C20: =D20+E20 -> 1 | D20: 0 | E20: 1 | F20: =G20+H20 -> 0 | G20: 0 | H20: 0 | I20: =J20+K20 -> 0 | J20: 0 | K20: 0
A21: Fuente: CENFORES - INAU
A22: CIEP

Sheet II-6.3.3
A1: ANEP - CONSEJO DE FORMACIÓN EN EDUCACIÓN | D1: ALUMNOS MATRICULADOS
A3: Cuadro Nº II-6.3.3
A5: ESTUDIANTES INGRESADOS Y MATRICULADOS EN FORMACIÓN EN EDUCACIÓN SEGÚN ORIGEN GEOGRÁFICO. AÑO 2015.
A6: DEPARTAMENTO DONDE CURSÓ EL ÚLTIMO AÑO LICEAL | B6: ESTUDIANTES INGRESADOS | C6: ESTUDIANTES MATRICULADOS
A8: TOTAL | B8: s/d | C8: =SUM(C9:C27) -> 19716
A9: Montevideo | B9: s/d | C9: 7936
A10: Artigas | B10: s/d | C10: 512
A11: Canelones | B11: s/d | C11: 2330
A12: Cerro Largo | B12: s/d | C12: 660
A13: Colonia | B13: s/d | C13: 686
A14: Durazno | B14: s/d | C14: 271
A15: Flores | B15: s/d | C15: 145
A16: Florida | B16: s/d | C16: 562
A17: Lavalleja | B17: s/d | C17: 311
A18: Maldonado | B18: s/d | C18: 877
A19: Paysandú | B19: s/d | C19: 982
A20: Río Negro | B20: s/d | C20: 214
A21: Rivera | B21: s/d | C21: 1116
A22: Rocha | B22: s/d | C22: 300
A23: Salto | B23: s/d | C23: 1203
A24: San José | B24: s/d | C24: 292
A25: Soriano | B25: s/d | C25: 381
A26: Tacuarembó | B26: s/d | C26: 549
A27: Treinta y Tres | B27: s/d | C27: 389
A28: Fuente: Institutos de Formación Docente

Sheet EDUCACIÓN UNIVERSITARIA
A7: Cuadro II-7.1.1 | B7: ALUMNOS INGRESADOS, MATRICULADOS Y EGRESADOS EN PROGRAMAS DE GRADO POR SEXO SEGÚN GRANDES ÁREAS, DEPARTAMENTO E INSTITUCIÓN. AÑO 2015.
A8: Cuadro II-7.2.2 | B8: ALUMNOS INGRESADOS A CARRERAS 2015 Y EGRESADOS PRELIMINARES 2015 EN PROGRAMAS DE GRADO POR SEXO SEGÚN SERVICIO UNIVERSITARIO Y CARRERA. AÑO 2015.
A9: Cuadro II-7.2.3 | B9: ALUMNOS INGRESADOS, MATRICULADOS Y EGRESADOS EN PROGRAMAS DE GRADO EN UNIVERSIDADES PRIVADAS POR SEXO SEGÚN UNIVERSIDAD Y CARRERA. AÑO 2015.
A10: Cuadro II-7.2.4 | B10: ALUMNOS INGRESADOS, MATRICULADOS Y EGRESADOS EN PROGRAMAS DE GRADO DE INSTITUTOS UNIVERSITARIOS Y OFERTAS UNIVERSITAREAS DEL ÁREA SEGURIDAD Y DEFENSA POR SEXO SEGÚN INSTITUCIÓN Y CARRERA. AÑO 2015.
A11: Cuadro II-7.2.5 | B11: ALUMNOS INGRESADOS, MATRICULADOS Y EGRESADOS EN PROGRAMAS DE POSTGRADO POR SEXO SEGÚN INSTITUCIÓN. AÑO 2015.
A12: Cuadro II-7.2.6 | B12: ALUMNOS INGRESADOS 2015 Y EGRESADOS PRELIMINARES 2015 EN PROGRAMAS DE POSTGRADO DE LA UNIVERSIDAD DE LA REPÚBLICA POR SEXO SEGÚN SERVICIO UNIVERSITARIO Y ACREDITACIÓN. AÑO 2015.
A13: Cuadro II-7.2.7 | B13: ALUMNOS INGRESADOS, MATRICULADOS Y EGRESADOS EN PROGRAMAS DE POSTGRADO DE UNIVERSIDADES PRIVADAS POR SEXO SEGÚN UNIVERSIDAD Y ACREDITACIÓN. AÑO 2015.
A14: Cuadro II-7.2.8 | B14: ALUMNOS INGRESADOS, MATRICULADOS Y EGRESADOS EN PROGRAMAS DE POSTGRADO DE INSTITUTOS UNIVERSITARIOS POR SEXO SEGÚN INSTITUTO UNIVERSITARIO Y ACREDITACIÓN. AÑO 2015.
A15: Cuadro II-7.2.9 | B15: EVOLUCIÓN DE LA MATRÍCULA DE LAS INSTITUCIONES UNIVERSITARIAS (2000 – 2015)
A17: Cuadro II-7.2.10 | B17: PERSONAL DOCENTE Y NO DOCENTE DE INSTITUCIONES UNIVERSITARIAS PUBLICAS Y PRIVADAS EXPRESADAS EN POSICIONES FUNCIONALES POR CARGA HORARIA SEMANAL SEGÚN INSTITUCIÓN, ACTIVIDAD Y SEXO. AÑO 2015.
A18: Cuadro II-7.2.11 | B18: ALUMNOS INGRESADOS Y MATRICULADOS DE GRADO EN UNIVERSIDADES E INSTITUTOS UNIVERSITARIOS, SEGÚN INSTITUCIÓN Y LUGAR DE ORIGEN. AÑO 2015.
A58: =MID(B46,1,20) -> 

Sheet II-7.1.1
A1: OFERTA UNIVERSITARIA DE GRADO | D1: INSTITUCIONES
A3: Cuadro Nº II-7.1.1
A5: ALUMNOS INGRESADOS, MATRICULADOS Y EGRESADOS EN PROGRAMAS DE GRADO POR SEXO SEGÚN GRANDES ÁREAS, DEPARTAMENTO E INSTITUCIÓN. AÑO 2015.
A6: GRANDES ÁREAS / DEPARTAMENTO / INSTITUCIÓN | B6: TOTAL | C6: INGRESO | E6: TOTAL | F6: MATRÍCULA | H6: TOTAL | I6: EGRESADOS
C7: SEXO | F7: SEXO | I7: SEXO
C8: M | D8: F | F8: M | G8: F | I8: M | J8: F
A9: TOTAL PAÍS | B9: =+C9+D9 -> 29808 | C9: =+C13+C27 -> 11367 | D9: =+D13+D27 -> 18441 | E9: =+F9+G9 -> 152610 | F9: =+F13+F27 -> 56967 | G9: =+G13+G27 -> 95643 | H9: =+I9+J9 -> 7804 | I9: =+I13+I27 -> 2713 | J9: =+J13+J27 -> 5091
A10: PÚBLICO | B10: =+C10+D10 -> 26101 | C10: =C14+C28 -> 9607 | D10: =D14+D28 -> 16494 | E10: =+F10+G10 -> 131102 | F10: =F14+F28 -> 46124 | G10: =G14+G28 -> 84978 | H10: =+I10+J10 -> 6040 | I10: =I14+I28 -> 1953 | J10: =J14+J28 -> 4087
A11: PRIVADO | B11: 3707 | C11: =C15+C29 -> 1760 | D11: =D15+D29 -> 1947 | E11: 21508 | F11: =F15+F29 -> 10843 | G11: =G15+G29 -> 10665 | H11: 1764 | I11: =I15+I29 -> 760 | J11: =J15+J29 -> 1004
A13: MONTEVIDEO | B13: =SUM(C13:D13) -> 25869 | C13: =C14+C15 -> 9915 | D13: =D14+D15 -> 15954 | E13: =SUM(F13:G13) -> 143760 | F13: =SUM(F16:F26) -> 53801 | G13: =SUM(G16:G26) -> 89959 | H13: =SUM(I13:J13) -> 7306 | I13: =I14+I15 -> 2525 | J13: =J14+J15 -> 4781
A14: PÚBLICO | B14: 22498 | C14: =C16+C26 -> 8291 | D14: =D16+D26 -> 14207 | E14: 124200 | F14: =F16+F26 -> 43748 | G14: =G16+G26 -> 80452 | H14: 5666 | I14: =I16+I26 -> 1817 | J14: =J16+J26 -> 3849
A15: PRIVADO | B15: 3371 | C15: =SUM(C17:C25) -> 1624 | D15: =SUM(D17:D25) -> 1747 | E15: 19560 | F15: =SUM(F17:F25) -> 10053 | G15: 9507 | H15: 1640 | I15: =SUM(I17:I25) -> 708 | J15: 932
A16: UdelaR * | B16: =SUM(C16:D16) -> 22498 | C16: 8291 | D16: 14207 | E16: 124200 | F16: 43748 | G16: 80452 | H16: 5666 | I16: 1817 | J16: 3849
A17: UCUDAL | B17: 1151 | C17: 480 | D17: 671 | E17: =SUM(F17:G17) -> 6400 | F17: 2655 | G17: 3745 | H17: 544 | I17: 184 | J17: 360
A18: Universidad ORT Uruguay | B18: 1041 | C18: 534 | D18: 507 | E18: 7485 | F18: 4369 | G18: 3116 | H18: 545 | I18: 262 | J18: 283
A19: Universidad de Montevideo | B19: 452 | C19: 197 | D19: 255 | E19: 1922 | F19: 913 | G19: 1009 | H19: 265 | I19: 115 | J19: 150
A20: Universidad de la Empresa | B20: 453 | C20: 279 | D20: 174 | E20: 3004 | F20: 1692 | G20: 1312 | H20: 152 | I20: 90 | J20: 62
A21: Inst Univ Asociación Cristiana de Jóvenes | B21: 180 | C21: 110 | D21: 70 | E21: 520 | F21: 347 | G21: 173 | H21: 101 | I21: 51 | J21: 50
A22: Inst Metodista Univ Crandon | B22: 29 | C22: 1 | D22: 28 | E22: 30 | F22: 1 | G22: 29 | H22: 0 | I22: 0 | J22: 0
A23: Inst Univ Monseñor Mariano Soler | B23: 14 | C23: 14 | D23: 0 | E23: 70 | F23: 66 | G23: 4 | H23: 3 | I23: 3 | J23: 0
A24: Inst Univ CEDIIAP | B24: 37 | C24: 2 | D24: 35 | E24: 86 | F24: 1 | G24: 85 | H24: 22 | I24: 1 | J24: 21
A25: Inst Univ CLAEH | B25: 14 | C25: 7 | D25: 7 | E25: 43 | F25: 9 | G25: 34 | H25: 8 | I25: 2 | J25: 6
A26: Escuela Nacional de Policía *** | B26: - | C26: - | D26: - | E26: - | F26: - | G26: - | H26: - | I26: - | J26: -
A27: RESTO DEL PAÍS | B27: =+C27+D27 -> 3939 | C27: =C28+C29 -> 1452 | D27: =D28+D29 -> 2487 | E27: =+F27+G27 -> 8850 | F27: =F28+F29 -> 3166 | G27: =G28+G29 -> 5684 | H27: =+I27+J27 -> 498 | I27: =I28+I29 -> 188 | J27: =J28+J29 -> 310
A28: PÚBLICO | B28: =C28+D28 -> 3603 | C28: =C31+C34+C36+C38+C44+C46+C48+C50+C52+C55+C57+C59 -> 1316 | D28: =D31+D34+D36+D38+D44+D46+D48+D50+D52+D55+D57+D59 -> 2287 | E28: =F28+G28 -> 6902 | F28: =F31+F34+F36+F38+F44+F46+F48+F50+F52+F55+F57+F59 -> 2376 | G28: =G31+G34+G36+G38+G44+G46+G48+G50+G52+G55+G57+G59 -> 4526 | H28: =I28+J28 -> 374 | I28: =I31+I34+I36+I38+I44+I46+I48+I50+I52+I55+I57+I59 -> 136 | J28: =J31+J34+J36+J38+J44+J46+J48+J50+J52+J55+J57+J59 -> 238
A29: PRIVADO | B29: =C29+D29 -> 336 | C29: =C33+C39+C40+C41+C42+C53 -> 136 | D29: =D33+D39+D40+D41+D42+D53 -> 200 | E29: =F29+G29 -> 1948 | F29: =F33+F39+F40+F41+F42+F53 -> 790 | G29: =G33+G39+G40+G41+G42+G53 -> 1158 | H29: =I29+J29 -> 124 | I29: =I33+I39+I40+I41+I42+I53 -> 52 | J29: =J33+J39+J40+J41+J42+J53 -> 72
A30: Artigas
A31: UdelaR | B31: =SUM(C31:D31) -> 0 | C31: 0 | D31: 0 | E31: =F31+G31 -> 24 | F31: 18 | G31: 6 | H31: =SUM(I31:J31) -> 0 | I31: 0 | J31: 0
A32: Colonia | B32: 114 | C32: =C33+C34 -> 36 | D32: =D33+D34 -> 78 | E32: =SUM(F32:G32) -> 244 | F32: =F33+F34 -> 74 | G32: =G33+G34 -> 170 | H32: 0 | I32: =I33+I34 -> 0 | J32: =J33+J34 -> 0
A33: Universidad de la Empresa | B33: 71 | C33: 16 | D33: 55 | E33: 162 | F33: 38 | G33: 124 | H33: 0 | I33: 0 | J33: 0
A34: UTEC ** | B34: 43 | C34: 20 | D34: 23 | E34: 82 | F34: 36 | G34: 46 | H34: 0 | I34: 0 | J34: 0
A35: Durazno
A36: UTEC ** | B36: 63 | C36: 46 | D36: 17 | E36: 63 | F36: 46 | G36: 17 | H36: 0 | I36: 0 | J36: 0
A37: Maldonado | B37: =SUM(C37:D37) -> 1027 | C37: =SUM(C38:C42) -> 455 | D37: =SUM(D38:D42) -> 572 | E37: 2362 | F37: =SUM(F38:F42) -> 1023 | G37: =SUM(G38:G42) -> 1339 | H37: 125 | I37: =SUM(I38:I42) -> 56 | J37: =SUM(J38:J42) -> 69
A38: UdelaR | B38: 858 | C38: 377 | D38: 481 | E38: 1113 | F38: 523 | G38: 590 | H38: 36 | I38: 16 | J38: 20
A39: UCUDAL | B39: 53 | C39: 33 | D39: 20 | E39: 276 | F39: 139 | G39: 137 | H39: 25 | I39: 13 | J39: 12
A40: Inst Univ CLAEH | B40: 64 | C40: 24 | D40: 40 | E40: 495 | F40: 182 | G40: 313 | H40: 43 | I40: 20 | J40: 23
A41: Fundación Politécnico de Punta del Este | B41: 11 | C41: 6 | D41: 5 | E41: 41 | F41: 17 | G41: 24 | H41: 0 | I41: 0 | J41: 0
A42: Inst Univ Francisco de Asís | B42: 41 | C42: 15 | D42: 26 | E42: 437 | F42: 162 | G42: 275 | H42: 21 | I42: 7 | J42: 14
A43: Paysandú
A44: UdelaR | B44: =SUM(C44:D44) -> 792 | C44: 239 | D44: 553 | E44: 1648 | F44: 591 | G44: 1057 | H44: 164 | I44: 78 | J44: 86
A45: Río Negro
A46: UTEC ** | B46: 24 | C46: 23 | D46: 1 | E46: 24 | F46: 23 | G46: 1 | H46: 0 | I46: 0 | J46: 0
A47: Rivera
A48: UdelaR | B48: 70 | C48: 32 | D48: 38 | E48: 406 | F48: 105 | G48: 301 | H48: 40 | I48: 7 | J48: 33
A49: Rocha
A50: UdelaR | B50: 189 | C50: 56 | D50: 133 | E50: 170 | F50: 64 | G50: 106 | H50: 5 | I50: 3 | J50: 2
A51: Salto | B51: 1211 | C51: =C52+C53 -> 407 | D51: =D52+D53 -> 804 | E51: 3678 | F51: =F52+F53 -> 1161 | G51: =G52+G53 -> 2517 | H51: 143 | I51: 38 | J51: 105
A52: UdelaR | B52: 1115 | C52: 365 | D52: 750 | E52: 3141 | F52: 909 | G52: 2232 | H52: 108 | I52: 26 | J52: 82
A53: UCUDAL | B53: 96 | C53: 42 | D53: 54 | E53: 537 | F53: 252 | G53: 285 | H53: 35 | I53: 12 | J53: 23
A54: San José
A55: UdelaR | B55: 23 | C55: 18 | D55: 5 | E55: 0 | F55: 0 | G55: 0 | H55: 1 | I55: 1 | J55: 0
A56: Tacuarembó
A57: UdelaR | B57: 259 | C57: 87 | D57: 172 | E57: 231 | F57: 61 | G57: 170 | H57: 20 | I57: 5 | J57: 15
A58: Treinta y Tres
A59: UdelaR | B59: 167 | C59: 53 | D59: 114 | E59: 0 | F59: 0 | G59: 0 | H59: 0 | I59: 0 | J59: 0
A61: Fuente: Oficinas Productoras de cada una de las Instituciones.
A62: Nota:
A63: La expresión “Estudiantes” hace referencia a relaciones entre personas e instituciones y no al conteo de personas físicas. De manera que una persona puede ser estudiante de más de una institución o región, ostentando en cualquiera de ambas categorías inserciones múltiples y en cada caso será contada como personas diferentes.
A64: Para UdelaR:
A65: Según Res. N°15 del CDC de fecha 23/10/12, se entiende por Generación de Ingreso a Carrera a todos los estudiantes que ingresan por primera vez a una carrera terciaria y/o de grado, en un año dado. No se consideran los estudiantes que ingresan a la carrera a través de un CIO o de un ciclo básico común en años anteriores. No se incluyen los estudiantes provisorios por previas, ni los de intercambio. Se incluyen los estudiantes de cortesía diplomática.
A66: * La matrícula de UdelaR corresponde al dato del VII Censo de estudiantes de grado 2012.
A67: El dato de egreso 2015 es PRELIMINAR
A68: ** La UTEC comenzó a dictar los cursos en el año 2014
A69: *** En 2015 la Licenciatura en Seguridad Pública no fue dictada.

Sheet II-7.2.2
A1: UNIVERSIDADES PÚBLICAS: OFERTA DE GRADO | E1: ALUMNOS
A3: Cuadro Nº II-7.2.2
A5: UNIVERSIDADES PÚBLICAS: ALUMNOS INGRESADOS A CARRERAS 2015 Y EGRESADOS PRELIMINARES 2015 EN PROGRAMAS DE GRADO POR SEXO, SEGÚN SERVICIO UNIVERSITARIO Y CARRERA.
B6: TOTAL | C6: INGRESADOS (3) | E6: TOTAL | F6: EGRESADOS (datos preliminares) (4)
A7: SERVICIO UNIVERSITARIO / CARRERA | C7: SEXO | F7: SEXO
C8: M | D8: F | F8: M | G8: F
A10: TOTAL UNIVERSIDADES PÚBLICAS | B10: =C10+D10 -> 26101 | C10: =C12+C22 -> 9607 | D10: =D12+D22 -> 16494 | E10: =F10+G10 -> 6040 | F10: =F12+F22 -> 1953 | G10: =G12+G22 -> 4087
A12: UNIVERSIDAD TECNOLÓGICA -UTEC * | B12: =C12+D12 -> 130 | C12: =C13+C18+C20 -> 89 | D12: =D13+D18+D20 -> 41 | E12: =F12+G12 -> 0 | F12: =F13+F18+F20 -> 0 | G12: =G13+G18+G20 -> 0
A13: Colonia | B13: =C13+D13 -> 43 | C13: =C14+C15+C16 -> 20 | D13: =D14+D15+D16 -> 23 | E13: =F13+G13 -> 0 | F13: =F14+F15+F16 -> 0 | G13: =G14+G15+G16 -> 0
A14: Licenciatura en Leche y Productos Lácteos | B14: 21 | C14: 7 | D14: 14 | E14: 0 | F14: 0 | G14: 0
A15: Tecnólogo en Manejo de Sistemas de Producción Lechera | B15: 9 | C15: 6 | D15: 3 | E15: 0 | F15: 0 | G15: 0
A16: Licenciatura en Leche y Productos Lácteos | B16: 13 | C16: 7 | D16: 6 | E16: 0 | F16: 0 | G16: 0
A17: Río Negro
A18: Tecnólogo en Mecatrónica | B18: 24 | C18: 23 | D18: 1 | E18: 0 | F18: 0 | G18: 0
A19: Durazno
A20: Tecnicatura en Tecnologías de la Información | B20: 63 | C20: 46 | D20: 17 | E20: 0 | F20: 0 | G20: 0
A22: TOTAL UDELAR | B22: =SUM(C22:D22) -> 25971 | C22: =C24+C49+C57+C63+C86+C102+C128+C136+C148+C162+C171+C177+C194+C208+C215+C224+C230+C242+C274+C290+C304+C319+C323+C327+C335+C345+C349+C355+C358+C364+C376+C382+C386+C390+C394+C397+C400+C404 -> 9518 | D22: =D24+D49+D57+D63+D86+D102+D128+D136+D148+D162+D171+D177+D194+D208+D215+D224+D230+D242+D274+D290+D304+D319+D323+D327+D335+D345+D349+D355+D358+D364+D376+D382+D386+D390+D394+D397+D400+D404 -> 16453 | E22: =SUM(F22:G22) -> 6040 | F22: =F24+F49+F57+F63+F86+F102+F128+F136+F148+F162+F171+F177+F194+F208+F215+F224+F230+F242+F274+F290+F304+F319+F323+F327+F335+F345+F349+F355+F358+F364+F376+F382+F386+F390+F394+F397+F400+F404 -> 1953 | G22: =G24+G49+G57+G63+G86+G102+G128+G136+G148+G162+G171+G177+G194+G208+G215+G224+G230+G242+G274+G290+G304+G319+G323+G327+G335+G345+G349+G355+G358+G364+G376+G382+G386+G390+G394+G397+G400+G404 -> 4087
A24: FACULTAD DE HUMANIDADES Y CIENCIAS DE LA EDUCACIÓN | B24: =SUM(C24:D24) -> 1308 | C24: =C25+C36+C38+C40+C44+C46 -> 453 | D24: =D25+D36+D38+D40+D44+D46 -> 855 | E24: =SUM(F24:G24) -> 117 | F24: =F25+F36+F38+F40+F44+F46 -> 34 | G24: =G25+G36+G38+G40+G44+G46 -> 83
A25: Montevideo | B25: 1239 | C25: =SUM(C26:C35) -> 427 | D25: =SUM(D26:D35) -> 812 | E25: 97 | F25: =SUM(F26:F35) -> 31 | G25: =SUM(G26:G35) -> 66
A26: Licenciado en Ciencias Antropológicas | B26: 208 | C26: 65 | D26: 143 | E26: 16 | F26: 8 | G26: 8
A27: Licenciado en Ciencias de la Educación | B27: 200 | C27: 49 | D27: 151 | E27: 16 | F27: 3 | G27: 13
A28: Licenciado en Historia | B28: 136 | C28: 79 | D28: 57 | E28: 0 | F28: 0 | G28: 0
A29: Licenciado en Filosofía | B29: 160 | C29: 94 | D29: 66 | E29: 9 | F29: 5 | G29: 4
A30: Licenciado en Letras | B30: 190 | C30: 68 | D30: 122 | E30: 8 | F30: 4 | G30: 4
A31: Licenciado en Lingüística | B31: 101 | C31: 25 | D31: 76 | E31: 4 | F31: 2 | G31: 2
A32: Técnico Universitario en Corrección de Estilo (Lengua Española) | B32: 244 | C32: 47 | D32: 197 | E32: 11 | F32: 0 | G32: 11
A33: Técnico Universitario en Interpretación LSU-ESP-LSU | B33: 0 | C33: 0 | D33: 0 | E33: 2 | F33: 0 | G33: 2
A34: Técnico Universitario en Museología | B34: 0 | C34: 0 | D34: 0 | E34: 29 | F34: 8 | G34: 21
A35: Licenciado en Ciencias Históricas | B35: 0 | C35: 0 | D35: 0 | E35: 2 | F35: 1 | G35: 1
A36: Maldonado | B36: 1 | C36: =C37 -> 1 | D36: =D37 -> 0 | F36: =F37 -> 2 | G36: =G37 -> 10
A37: Licenciado en Turismo | B37: 1 | C37: 1 | D37: 0 | E37: =SUM(F37:G37) -> 12 | F37: 2 | G37: 10
A38: Paysandú | B38: 16 | C38: =C39 -> 6 | D38: =D39 -> 10 | E38: 0 | F38: =F39 -> 0 | G38: =G39 -> 0
A39: Técnico Universitario en Prom. Bienes Culturales | B39: =SUM(C39:D39) -> 16 | C39: 6 | D39: 10 | E39: 0 | F39: 0 | G39: 0
A40: Salto | B40: 35 | C40: =C41+C42+C43 -> 11 | D40: =D41+D42+D43 -> 24 | E40: 8 | F40: =F41+F42+F43 -> 1 | G40: =G41+G42+G43 -> 7
A41: Licenciado en Turismo | B41: 35 | C41: 11 | D41: 24 | E41: 3 | F41: 1 | G41: 2
A42: Técnico Universitario en Interpretación LSU-ESP-LSU | B42: 0 | C42: 0 | D42: 0 | E42: 3 | F42: 0 | G42: 3
A43: Técnico Binacional en Turismo | B43: 0 | C43: 0 | D43: 0 | E43: 2 | F43: 0 | G43: 2
A44: Tacuarembó | B44: 16 | C44: =C45 -> 8 | D44: =D45 -> 8 | E44: 0 | F44: =F45 -> 0 | G44: =G45 -> 0
A45: Técnico Universitario en Prom. Bienes Culturales | B45: =SUM(C45:D45) -> 16 | C45: 8 | D45: 8 | E45: 0 | F45: 0 | G45: 0
A46: Tacuarembó-Paysandú | B46: =SUM(C46:D46) -> 1 | C46: =C47 -> 0 | D46: =D47 -> 1 | E46: 0 | F46: =F47 -> 0 | G46: =G47 -> 0
A47: Técnico Universitario en Prom. Bienes Culturales | B47: 1 | C47: 0 | D47: 1 | E47: 0 | F47: 0 | G47: 0
A49: FACULTAD DE AGRONOMÍA | B49: =SUM(C49:D49) -> 407 | C49: =C50+C52+C54 -> 248 | D49: =D50+D52+D54 -> 159 | E49: =SUM(F49:G49) -> 180 | F49: =F50+F52+F54 -> 131 | G49: =G50+G52+G54 -> 49
A50: Montevideo | B50: =SUM(C50:D50) -> 320 | C50: =C51 -> 193 | D50: =D51 -> 127 | E50: =SUM(F50:G50) -> 178 | F50: =F51 -> 131 | G50: =G51 -> 47
A51: Ingeniero Agrónomo | B51: =SUM(C51:D51) -> 320 | C51: 193 | D51: 127 | E51: =SUM(F51:G51) -> 178 | F51: 131 | G51: 47
A52: Salto | B52: 86 | C52: =C53 -> 54 | D52: =D53 -> 32 | E52: 2 | F52: =F53 -> 0 | G52: =G53 -> 2
A53: Ingeniero Agrónomo | B53: 86 | C53: 54 | D53: 32 | E53: 2 | F53: 0 | G53: 2
A54: Montevideo-Salto | B54: 1 | C54: =C55 -> 1 | D54: =D55 -> 0 | E54: 0 | F54: =F55 -> 0 | G54: =G55 -> 0
A55: Ingeniero Agrónomo | B55: 1 | C55: 1 | D55: 0 | E55: 0 | F55: 0 | G55: 0
A57: FACULTAD DE ARQUITECTURA | B57: =SUM(C57:D57) -> 677 | C57: =C58+C60 -> 290 | D57: =D58+D60 -> 387 | E57: =SUM(F57:G57) -> 310 | F57: =F58+F60 -> 124 | G57: =G58+G60 -> 186
A58: Montevideo | B58: =SUM(C58:D58) -> 644 | C58: =C59 -> 275 | D58: =D59 -> 369 | E58: =SUM(F58:G58) -> 310 | F58: =F59 -> 124 | G58: =G59 -> 186
A59: Arquitecto | B59: 644 | C59: 275 | D59: 369 | E59: 310 | F59: 124 | G59: 186
A60: Salto | B60: 33 | C60: =C61 -> 15 | D60: =D61 -> 18 | E60: 0 | F60: =F61 -> 0 | G60: =G61 -> 0
A61: Licenciatura en Diseño Integrado | B61: 33 | C61: 15 | D61: 18 | E61: 0 | F61: 0 | G61: 0
A63: FACULTAD DE CIENCIAS ECONÓMICAS Y ADMINISTRACIÓN | B63: =SUM(C63:D63) -> 4295 | C63: =C64+C76+C78+C80+C82+C84 -> 1780 | D63: =D64+D76+D78+D80+D82+D84 -> 2515 | E63: =SUM(F63:G63) -> 1157 | F63: =F64+F76+F78+F80+F82+F84 -> 429 | G63: =G64+G76+G78+G80+G82+G84 -> 728
A64: Montevideo | B64: =C64+D64 -> 3966 | C64: =SUM(C65:C74) -> 1666 | D64: =SUM(D65:D74) -> 2300 | E64: =F64+G64 -> 1150 | F64: =SUM(F65:F74) -> 428 | G64: =SUM(G65:G74) -> 722
A65: Contador Público (Plan 2012) | B65: =C65+D65 -> 1944 | C65: 822 | D65: 1122 | E65: =F65+G65 -> 785 | F65: 299 | G65: 486
A66: Licenciado en Economía (Plan 2012) | B66: 448 | C66: 267 | D66: 181 | E66: =SUM(F66:G66) -> 108 | F66: 52 | G66: 56
A67: Licenciado en Administración (Plan 2012) | B67: 479 | C67: 207 | D67: 272 | E67: =SUM(F67:G67) -> 58 | F67: 21 | G67: 37
A68: Técnico Universitario en Administración | B68: 1095 | C68: 370 | D68: 725 | E68: 180 | F68: 52 | G68: 128
A69: Contador Público (Plan 1980) | B69: 0 | C69: 0 | D69: 0 | E69: 3 | F69: 0 | G69: 3
A70: Contador Público (Plan 1990) | B70: 0 | C70: 0 | D70: 0 | E70: 6 | F70: 2 | G70: 4
A71: Licenciado en Economía (Plan 1990) | B71: 0 | C71: 0 | D71: 0 | E71: 0 | F71: 0 | G71: 0
A72: Licenciado en Administración - Contador (Plan 1990) | B72: 0 | C72: 0 | D72: 0 | E72: 4 | F72: 1 | G72: 3
A73: Técnico en Administración Pública | B73: 0 | C73: 0 | D73: 0 | E73: 1 | F73: 0 | G73: 1
A74: Licenciado en Estadística | B74: 0 | C74: 0 | D74: 0 | E74: 5 | F74: 1 | G74: 4
A75: Maldonado
A76: Tecnólogo en Administración y Contabilidad (Plan 2012) | B76: 136 | C76: 56 | D76: 80 | E76: 3 | F76: 1 | G76: 2
A77: Rocha
A78: Tecnólogo en Administración y Contabilidad (Plan 2012) | B78: 19 | C78: 3 | D78: 16 | E78: 0 | F78: 0 | G78: 0
A79: Tacuarembó
A80: Tecnólogo en Administración y Contabilidad (Plan 2012) | B80: 108 | C80: 31 | D80: 77 | E80: 4 | F80: 0 | G80: 4
A81: Treinta y Tres
A82: Tecnólogo en Administración y Contabilidad (Plan 2012) | B82: 65 | C82: 24 | D82: 41 | E82: 0 | F82: 0 | G82: 0
A83: Treinta y Tres-Tacuarembó
A84: Tecnólogo en Administración y Contabilidad (Plan 2012) | B84: 1 | C84: 0 | D84: 1 | E84: 0 | F84: 0 | G84: 0
A86: FACULTAD DE DERECHO | B86: 2895 | C86: =+C87+C95+C100 -> 916 | D86: =+D87+D95+D100 -> 1979 | E86: 921 | F86: 224 | G86: 697
A87: Montevideo | B87: 2754 | C87: =SUM(C88:C94) -> 877 | D87: =SUM(D88:D94) -> 1877 | E87: 898 | F87: =SUM(F88:F94) -> 217 | G87: =SUM(G88:G94) -> 681
A88: Doctor en Derecho | B88: 2 | C88: 1 | D88: 1 | E88: 394 | F88: 103 | G88: 291
A89: Escribano Público | B89: 1 | C89: 0 | D89: 1 | E89: 288 | F89: 56 | G89: 232
A90: Doctor en Derecho-Escribano Público (*) | B90: 1260 | C90: 409 | D90: 851 | E90: 0 | F90: 0 | G90: 0
A91: Licenciado en Relaciones Internacionales | B91: 685 | C91: 260 | D91: 425 | E91: 126 | F91: 39 | G91: 87
A92: Traductor Público | B92: 60 | C92: 13 | D92: 47 | E92: 27 | F92: 5 | G92: 22
A93: Licenciado en Relaciones Laborales | B93: 746 | C93: 194 | D93: 552 | E93: 38 | F93: 8 | G93: 30
A94: Técnico en Relaciones Laborales | B94: 0 | C94: 0 | D94: 0 | E94: 25 | F94: 6 | G94: 19
A95: Salto | B95: 140 | C95: =SUM(C96:C98) -> 39 | D95: =SUM(D96:D98) -> 101 | E95: 23 | F95: =SUM(F96:F98) -> 7 | G95: =SUM(G96:G98) -> 16
A96: Escribano Público | B96: 0 | C96: 0 | D96: 0 | E96: 15 | F96: 4 | G96: 11
A97: Doctor en Derecho | B97: 0 | C97: 0 | D97: 0 | E97: 8 | F97: 3 | G97: 5
A98: Doctor en Derecho-Escribano Público (*) | B98: 140 | C98: 39 | D98: 101 | E98: 0 | F98: 0 | G98: 0
A99: Montevideo-Salto
A100: Doctor en Derecho-Escribano Público (*) | B100: 1 | C100: 0 | D100: 1 | E100: 0 | F100: 0 | G100: 0
A102: FACULTAD DE INGENIERÍA | B102: =+B103+B116+B117+B121+B122+B126+B127 -> 1829 | C102: =+C103+C116+C117+C121+C122+C126 -> 1455 | D102: =+D103+D116+D117+D121+D122+D126 -> 374 | E102: =+E103+E116+E117+E121+E122+E126+E127 -> 325 | F102: =+F103+F116+F117+F121+F122+F126 -> 267 | G102: =+G103+G116+G117+G121+G122+G126 -> 58
A103: Montevideo | B103: =SUM(C103:D103) -> 1663 | C103: =SUM(C104:C114) -> 1320 | D103: =SUM(D104:D114) -> 343 | E103: =SUM(F103:G103) -> 304 | F103: =SUM(F104:F114) -> 250 | G103: =SUM(G104:G114) -> 54
A104: Ingeniero Agrimensor | B104: 42 | C104: 24 | D104: 18 | E104: 3 | F104: 2 | G104: 1
A105: Ingeniero Civil | B105: 246 | C105: 150 | D105: 96 | E105: 34 | F105: 23 | G105: 11
A106: Ingeniero de Producción | B106: 101 | C106: 59 | D106: 42 | E106: =SUM(F106:G106) -> 0 | F106: 0 | G106: 0
A107: Ingeniero Electricista | B107: 232 | C107: 195 | D107: 37 | E107: 55 | F107: 46 | G107: 9
A108: Ingeniero en Computación | B108: 621 | C108: 524 | D108: 97 | E108: 109 | F108: 91 | G108: 18
A109: Ingeniero Industrial Mecánico | B109: 197 | C109: 165 | D109: 32 | E109: 63 | F109: 57 | G109: 6
A110: Ingeniero Naval | B110: 29 | C110: 23 | D110: 6 | E110: 0 | F110: 0 | G110: 0
A111: Licenciado en Computación | B111: 8 | C111: 7 | D111: 1 | E111: 0 | F111: 0 | G111: 0
A112: Tecnólogo en Informática (1) | B112: 90 | C112: 81 | D112: 9 | E112: 22 | F112: 15 | G112: 7
A113: Tecnólogo Mecánico (1) | B113: 97 | C113: 92 | D113: 5 | E113: 17 | F113: 15 | G113: 2
A114: Perito en Ingeniería Electrónica | B114: 0 | C114: 0 | D114: 0 | E114: 1 | F114: 1 | G114: 0
A115: Maldonado
A116: Tecnólogo en Informática (1) | B116: =SUM(C116:D116) -> 36 | C116: 28 | D116: 8 | E116: =SUM(F116:G116) -> 3 | F116: 2 | G116: 1
A117: Paysandú | B117: 56 | C117: =C118+C119 -> 54 | D117: =D118+D119 -> 2 | E117: =SUM(F117:G117) -> 16 | F117: =F118+F119 -> 13 | G117: =G118+G119 -> 3
A118: Tecnólogo en Informática (1) | B118: 33 | C118: 32 | D118: 1 | E118: 7 | F118: 5 | G118: 2
A119: Tecnólogo Mecánico (1) | B119: 23 | C119: 22 | D119: 1 | E119: 9 | F119: 8 | G119: 1
A120: Rocha
A121: Tecnólogo en Telecomunicaciones | B121: 20 | C121: 14 | D121: 6 | E121: 1 | F121: 1 | G121: 0
A122: Salto | B122: 31 | C122: =C123+C124 -> 21 | D122: =D123+D124 -> 10 | E122: 0 | F122: =F123+F124 -> 0 | G122: =G123+G124 -> 0
A123: Licenciado en Ciencias Hídricas Aplicadas | B123: 24 | C123: 17 | D123: 7 | E123: 0 | F123: 0 | G123: 0
A124: Licenciado en Ingeniería Biológica | B124: 7 | C124: 4 | D124: 3 | E124: 0 | F124: 0 | G124: 0
A125: San José
A126: Tecnólogo en Informática (1) | B126: 23 | C126: 18 | D126: 5 | E126: 1 | F126: 1 | G126: 0
A128: FACULTAD DE MEDICINA | B128: =SUM(C128:D128) -> 1571 | C128: =SUM(C130+C132+C134) -> 471 | D128: =SUM(D130+D132+D134) -> 1100 | E128: =SUM(F128:G128) -> 314 | F128: =SUM(F130+F132+F134) -> 98 | G128: =SUM(G130+G132+G134) -> 216
A129: Montevideo
A130: Doctor en Medicina | B130: =SUM(C130:D130) -> 1571 | C130: 471 | D130: 1100 | E130: =SUM(F130:G130) -> 309 | F130: 97 | G130: 212
A131: Paysandú
A132: Doctor en Medicina | B132: =SUM(C132:D132) -> 0 | C132: 0 | D132: 0 | E132: 3 | F132: 1 | G132: 2
A133: Salto
A134: Doctor en Medicina | B134: =SUM(C134:D134) -> 0 | C134: 0 | D134: 0 | E134: 2 | F134: 0 | G134: 2
A136: FACULTAD DE ODONTOLOGÍA | B136: =SUM(C136:D136) -> 562 | C136: =C137+C143+C144 -> 85 | D136: =D137+D143+D144 -> 477 | E136: =SUM(F136:G136) -> 248 | F136: =F137+F143+F144 -> 35 | G136: =G137+G143+G144 -> 213
A137: Montevideo | B137: 538 | C137: =SUM(C138:C141) -> 82 | D137: =SUM(D138:D141) -> 456 | E137: =SUM(F137:G137) -> 243 | F137: =SUM(F138:F141) -> 35 | G137: =SUM(G138:G141) -> 208
A138: Doctor en Odontología | B138: 266 | C138: 45 | D138: 221 | E138: 122 | F138: 25 | G138: 97
A139: Laboratorista en Odontología | B139: 104 | C139: 25 | D139: 79 | E139: 44 | F139: 8 | G139: 36
A140: Asistente en Odontología | B140: 93 | C140: 5 | D140: 88 | E140: 45 | F140: 0 | G140: 45
A141: Higienista en Odontología | B141: 75 | C141: 7 | D141: 68 | E141: 32 | F141: 2 | G141: 30
A142: Rivera
A143: Asistente en Odontología | B143: 0 | C143: 0 | D143: 0 | E143: 5 | F143: 0 | G143: 5
A144: Salto | B144: 24 | C144: =C145+C146 -> 3 | D144: =D145+D146 -> 21 | E144: 0 | F144: =F145+F146 -> 0 | G144: =G145+G146 -> 0
A145: Asistente en Odontología | B145: 11 | C145: 1 | D145: 10 | E145: 0 | F145: 0 | G145: 0
A146: Higienista en Odontología | B146: 13 | C146: 2 | D146: 11 | E146: 0 | F146: 0 | G146: 0
A148: FACULTAD DE QUÍMICA | B148: =SUM(C148:D148) -> 413 | C148: =+C149+C156+C157 -> 117 | D148: =+D149+D156+D157 -> 296 | E148: =SUM(F148:G148) -> 115 | F148: =+F149+F156+F157 -> 28 | G148: =+G149+G156+G157 -> 87
A149: Montevideo | B149: =SUM(C149:D149) -> 357 | C149: =SUM(C150:C154) -> 105 | D149: =SUM(D150:D154) -> 252 | E149: 115 | F149: =SUM(F150:F154) -> 28 | G149: =SUM(G150:G154) -> 87
A150: Bioquímico Clínico | B150: =SUM(C150:D150) -> 85 | C150: 23 | D150: 62 | E150: 14 | F150: 2 | G150: 12
A151: Químico | B151: 50 | C151: 19 | D151: 31 | E151: 7 | F151: 0 | G151: 7
A152: Químico Farmacéutico | B152: 149 | C152: 43 | D152: 106 | E152: 55 | F152: 11 | G152: 44
A153: Tecnólogo Químico (1) | B153: 73 | C153: 20 | D153: 53 | E153: 29 | F153: 10 | G153: 19
A154: Licenciado en Química | B154: 0 | C154: 0 | D154: 0 | E154: 10 | F154: 5 | G154: 5
A155: Paysandú
A156: Tecnólogo Químico (1) | B156: 40 | C156: 11 | D156: 29 | E156: 0 | F156: 0 | G156: 0
A157: Salto | B157: 16 | C157: =C158+C159+C160 -> 1 | D157: =D158+D159+D160 -> 15 | E157: 0 | F157: =F158+F159+F160 -> 0 | G157: =G158+G159+G160 -> 0
A158: Bioquímico Clínico | B158: 7 | C158: 0 | D158: 7 | E158: 0 | F158: 0 | G158: 0
A159: Químico | B159: 5 | C159: 0 | D159: 5 | E159: 0 | F159: 0 | G159: 0
A160: Químico Farmacéutico | B160: 3 | C160: 1 | D160: 3 | E160: 0 | F160: 0 | G160: 0
A162: FACULTAD DE VETERINARIA | B162: =SUM(C162:D162) -> 637 | C162: =C164+C166+C168+C170 -> 223 | D162: =D164+D166+D168+D170 -> 414 | E162: =SUM(F162:G162) -> 134 | F162: =F164+F166+F168+F170 -> 65 | G162: =G164+G166+G168+G170 -> 69
A163: Montevideo
A164: Doctor en Ciencias Veterinarias | B164: =SUM(C164:D164) -> 536 | C164: 174 | D164: 362 | E164: =SUM(F164:G164) -> 114 | F164: 52 | G164: 62
A165: Paysandú
A166: Doctor en Ciencias Veterinarias | B166: =SUM(C166:D166) -> 0 | C166: 0 | D166: 0 | E166: =SUM(F166:G166) -> 13 | F166: 9 | G166: 4
A167: Salto
A168: Doctor en Ciencias Veterinarias | B168: 100 | C168: 49 | D168: 51 | E168: 7 | F168: 4 | G168: 3
A169: Montevideo-Salto
A170: Doctor en Ciencias Veterinarias | B170: =SUM(C170:D170) -> 1 | C170: 0 | D170: 1 | E170: =SUM(F170:G170) -> 0 | F170: 0 | G170: 0
A171: FACULTAD DE INFORMACIÓN Y COMUNICACIÓN (F.I.C.) | B171: =SUM(C171:D171) -> 832 | C171: =SUM(C172:C175) -> 315 | D171: =SUM(D172:D175) -> 517 | E171: =SUM(F171:G171) -> 225 | F171: =SUM(F172:F175) -> 64 | G171: =SUM(G172:G175) -> 161
A172: Licenciado en Bibliotecología | B172: 78 | C172: 19 | D172: 59 | E172: 30 | F172: 4 | G172: 26
A173: Licenciado en Archivología | B173: 47 | C173: 9 | D173: 38 | E173: 0 | F173: 0 | G173: 0
A174: Licenciado en Ciencias de la Comunicación | B174: 707 | C174: 287 | D174: 420 | E174: 187 | F174: 57 | G174: 130
A175: Archivólogo | B175: 0 | C175: 0 | D175: 0 | E175: 8 | F175: 3 | G175: 5
A177: INSTITUTO ESCUELA NACIONAL DE BELLAS ARTES | B177: =+C177+D177 -> 752 | C177: =C178+C188+C190+C192 -> 233 | D177: =D178+D188+D190+D192 -> 519 | E177: =+F177+G177 -> 31 | F177: =F178+F188+F190+F192 -> 8 | G177: =G178+G188+G190+G192 -> 23
A178: Montevideo | B178: =+C178+D178 -> 621 | C178: =SUM(C179:C186) -> 188 | D178: =SUM(D179:D186) -> 433 | E178: =+F178+G178 -> 27 | F178: =SUM(F179:F186) -> 8 | G178: =SUM(G179:G186) -> 19
A179: Licenciado en Artes | B179: 583 | C179: 170 | D179: 413 | E179: 0 | F179: 0 | G179: 0
A180: Creador Plástico | B180: 0 | C180: 0 | D180: 0 | E180: 16 | F180: 5 | G180: 11
A181: Licenciado en Artes - Artes Plásticas y Visuales | B181: 0 | C181: 0 | D181: 0 | E181: 8 | F181: 3 | G181: 5
A182: Licenciado en Artes - Dibujo y Pintura | B182: 0 | C182: 0 | D182: 0 | E182: 0 | F182: 0 | G182: 0
A183: Licenciado en Artes - Cerámica | B183: 0 | C183: 0 | D183: 0 | E183: 0 | F183: 0 | G183: 0
A184: Licenciado en Artes - Diseño Gráfico | B184: 0 | C184: 0 | D184: 0 | E184: 3 | F184: 0 | G184: 3
A185: Licenciado en Artes - Fotografía | B185: 0 | C185: 0 | D185: 0 | E185: 0 | F185: 0 | G185: 0
A186: Licenciado en Arte Digital y Electrónico | B186: 38 | C186: 18 | D186: 20 | E186: 0 | F186: 0 | G186: 0
A187: Maldonado
A188: Licenciado en Lenguaje y Medios Audiovisuales | B188: 79 | C188: 31 | D188: 48 | E188: 0 | F188: 0 | G188: 0
A189: Paysandú
A190: Técnico en Imagen Fotográfica | B190: 26 | C190: 4 | D190: 22 | E190: 4 | F190: 0 | G190: 4
A191: Rocha
A192: Técnico en Artes Plásticas y Visuales | B192: 26 | C192: 10 | D192: 16 | E192: 0 | F192: 0 | G192: 0
A194: ESCUELA DE ENFERMERÍA | B194: =SUM(C194:D194) -> 581 | C194: =C196+C198+C200+C202+C204+C206 -> 117 | D194: =D196+D198+D200+D202+D204+D206 -> 464 | E194: =SUM(F194:G194) -> 255 | F194: =F196+F198+F200+F202+F204+F206 -> 42 | G194: =G196+G198+G200+G202+G204+G206 -> 213
A195: Montevideo
A196: Licenciado en Enfermería | B196: =SUM(C196:D196) -> 446 | C196: 95 | D196: 351 | E196: 193 | F196: 29 | G196: 164
A197: Rivera
A198: Licenciado en Enfermería | B198: =SUM(C198:D198) -> 2 | C198: 0 | D198: 2 | E198: =SUM(F198:G198) -> 27 | F198: 2 | G198: 25
A199: Rocha
A200: Licenciado en Enfermería | B200: 47 | C200: 8 | D200: 39 | E200: =SUM(F200:G200) -> 4 | F200: 2 | G200: 2
A201: Salto
A202: Licenciado en Enfermería | B202: 82 | C202: 14 | D202: 68 | E202: 31 | F202: 9 | G202: 22
A203: Montevideo-Rivera
A204: Licenciado en Enfermería | B204: =SUM(C204:D204) -> 1 | C204: 0 | D204: 1 | E204: =SUM(F204:G204) -> 0 | F204: 0 | G204: 0
A205: Montevideo-Rocha
A206: Licenciado en Enfermería | B206: 3 | C206: 0 | D206: 3 | E206: =SUM(F206:G206) -> 0 | F206: 0 | G206: 0
A208: ESCUELA DE NUTRICIÓN | B208: 445 | C208: =+C210+C212 -> 98 | D208: =+D210+D212 -> 347 | E208: =+F208+G208 -> 127 | F208: =+F210+F212 -> 8 | G208: =+G210+G212 -> 119
A209: Montevideo
A210: Licenciado en Nutrición | B210: 423 | C210: 95 | D210: 328 | E210: =+F210+G210 -> 113 | F210: 5 | G210: 108
A211: Tacuarembó
A212: Técnico Operador de Alimentos | B212: =SUM(C212:D212) -> 22 | C212: 3 | D212: 19 | E212: =SUM(F212:G212) -> 14 | F212: 3 | G212: 11
A215: ESCUELA UNIVERSITARIA DE MÚSICA | B215: =SUM(C215:D215) -> 65 | C215: =C216+C219 -> 45 | D215: =D216+D219 -> 20 | E215: =SUM(F215:G215) -> 13 | F215: =F216+F219 -> 9 | G215: =G216+G219 -> 4
A216: Montevideo | B216: 60 | C216: =SUM(C217:C218) -> 43 | D216: =SUM(D217:D218) -> 17 | E216: =SUM(F216:G216) -> 8 | F216: =SUM(F217:F218) -> 6 | G216: =SUM(G217:G218) -> 2
A217: Licenciado en Música | B217: 30 | C217: 21 | D217: 9 | E217: 2 | F217: 1 | G217: 1
A218: Licenciado en Interpretación Musical | B218: 30 | C218: 22 | D218: 8 | E218: 6 | F218: 5 | G218: 1
A219: Salto | B219: 5 | C219: =SUM(C220:C222) -> 2 | D219: =SUM(D220:D222) -> 3 | E219: 5 | F219: =SUM(F220:F223) -> 3 | G219: =SUM(G220:G223) -> 2
A220: Técnico en Interpretación opción Canto | B220: 1 | C220: 0 | D220: 1 | E220: 2 | F220: 1 | G220: 1
... 172 more rows

Sheet II-7.2.3
A1: UNIVERSIDADES PRIVADAS: OFERTA DE GRADO
A3: Cuadro Nº II-7.2.3
A5: ALUMNOS INGRESADOS, MATRICULADOS Y EGRESADOS EN PROGRAMAS DE GRADO EN UNIVERSIDADES PRIVADAS POR SEXO SEGÚN UNIVERSIDAD Y CARRERA. AÑO 2015.
A6: UNIVERSIDAD / CARRERA | B6: TOTAL | C6: INGRESADOS | E6: TOTAL | F6: MATRICULADOS | H6: TOTAL | I6: EGRESADOS
C7: SEXO | F7: SEXO | I7: SEXO
C8: M | D8: F | F8: M | G8: F | I8: M | J8: F
A9: TOTAL | B9: =SUM(C9:D9) -> 3317 | C9: =C11+C90+C120+C150 -> 1581 | D9: =+D11+D90+D120+D150 -> 1736 | E9: =SUM(F9:G9) -> 19786 | F9: =+F11+F90+F120+F150 -> 10058 | G9: =+G11+G90+G120+G150 -> 9728 | H9: =SUM(I9:J9) -> 1566 | I9: =+I11+I90+I120+I150 -> 676 | J9: =+J11+J90+J120+J150 -> 890 | AB9: =+AE9+AF9 -> 3 | AE9: 1 | AF9: 2
AB10: =+AE10+AF10 -> 24 | AE10: 10 | AF10: 14
A11: UCUDAL | B11: =SUM(C11:D11) -> 1300 | C11: =+C13+C28+C51+C65+C72+C79+C86 -> 555 | D11: =D13+D28+D51+D65+D72+D79+D86 -> 745 | E11: =SUM(F11:G11) -> 7213 | F11: =+F13+F28+F51+F65+F72+F79+F86 -> 3046 | G11: =+G13+G28+G51+G65+G72+G79+G86 -> 4167 | H11: =SUM(I11:J11) -> 604 | I11: =+I13+I28+I51+I65+I72+I79+I86 -> 209 | J11: =+J13+J28+J51+J65+J72+J79+J86 -> 395
A13: FACULTAD DE CIENCIAS HUMANAS | B13: =SUM(C13:D13) -> 195 | C13: =SUM(C14:C26) -> 74 | D13: =SUM(D14:D26) -> 121 | E13: =SUM(F13:G13) -> 1096 | F13: =SUM(F14:F26) -> 357 | G13: =SUM(G14:G26) -> 739 | H13: =SUM(I13:J13) -> 127 | I13: =SUM(I14:I26) -> 31 | J13: =SUM(J14:J26) -> 96
A14: Técnico en Educación, Tiempo Libre y Recreación | B14: 0 | C14: 0 | D14: 0 | E14: 12 | F14: 8 | G14: 4 | H14: 2 | I14: 1 | J14: 1
A15: Técnico en Recreación Educativa | B15: 0 | C15: 0 | D15: 0 | E15: 17 | F15: 11 | G15: 6 | H15: 1 | I15: 0 | J15: 1
A16: Técnico en Educación Social | B16: 0 | C16: 0 | D16: 0 | E16: 5 | F16: 2 | G16: 3 | H16: 1 | I16: 0 | J16: 1
A17: Licenciatura en Comunicación Social | B17: 105 | C17: 46 | D17: 59 | E17: 694 | F17: 251 | G17: 443 | H17: 98 | I17: 29 | J17: 69
A18: Licenciatura en Ciencias Sociales | B18: 0 | C18: 0 | D18: 0 | E18: 72 | F18: 17 | G18: 55 | H18: 0 | I18: 0 | J18: 0
A19: Licenciatura en Ciencia Política | B19: 3 | C19: 1 | D19: 2 | E19: 6 | F19: 3 | G19: 3 | H19: 2 | I19: 0 | J19: 2
A20: Licenciatura en Trabajo Social | B20: 10 | C20: 0 | D20: 10 | E20: 11 | F20: 1 | G20: 10 | H20: 7 | I20: 0 | J20: 7
A21: Licenciatura en Sociología | B21: 6 | C21: 1 | D21: 5 | E21: 11 | F21: 4 | G21: 7 | H21: 4 | I21: 0 | J21: 4
A22: Licenciatura en Educación Inicial | B22: 22 | C22: 0 | D22: 22 | E22: 149 | F22: 2 | G22: 147 | H22: 11 | I22: 0 | J22: 11
A23: Licenciatura en Educación énfasis en Tiempo Libre y Recreación | B23: 0 | C23: 0 | D23: 0 | E23: 55 | F23: 24 | G23: 31 | H23: 1 | I23: 1 | J23: 0
A24: Licenciatura en Recreación Educativa | B24: 25 | C24: 15 | D24: 10 | E24: 41 | F24: 23 | G24: 18 | H24: 0 | I24: 0 | J24: 0
A25: Licenciatura en Educación Social | B25: 0 | C25: 0 | D25: 0 | E25: 2 | F25: 0 | G25: 2 | H25: 0 | I25: 0 | J25: 0
A26: Licenciatura en Artes Visuales | B26: 24 | C26: 11 | D26: 13 | E26: 21 | F26: 11 | G26: 10 | H26: 0 | I26: 0 | J26: 0
A28: FACULTAD DE CIENCIAS EMPRESARIALES | B28: =B29+B36+B43 -> 487 | C28: =+C29+C36+C43 -> 266 | D28: =+D29+D36+D43 -> 221 | E28: =E29+E36+E43 -> 2937 | F28: =+F29+F36+F43 -> 1454 | G28: =+G29+G36+G43 -> 1483 | H28: =H29+H36+H43 -> 246 | I28: =+I29+I36+I43 -> 101 | J28: =+J29+J36+J43 -> 145
A29: Montevideo | B29: =SUM(B30:B35) -> 344 | C29: =SUM(C30:C35) -> 195 | D29: =SUM(D30:D35) -> 149 | E29: 2150 | F29: 1086 | G29: 1064 | H29: 186 | I29: 76 | J29: 110
A30: Licenciatura en Dirección de Empresas | B30: =SUM(C30:D30) -> 61 | C30: 42 | D30: 19 | E30: =SUM(F30:G30) -> 438 | F30: 261 | G30: 177 | H30: =SUM(I30:J30) -> 40 | I30: 18 | J30: 22
A31: Licenciatura en Dirección de Empresas Turísticas | B31: 11 | C31: 3 | D31: 8 | E31: 133 | F31: 48 | G31: 85 | H31: 16 | I31: 3 | J31: 13
A32: Licenciatura en Negocios Internacionales | B32: 79 | C32: 48 | D32: 31 | E32: 490 | F32: 276 | G32: 214 | H32: 48 | I32: 22 | J32: 26
A33: Contador Público | B33: 132 | C33: 74 | D33: 58 | E33: 790 | F33: 371 | G33: 419 | H33: 56 | I33: 25 | J33: 31
A34: Licenciatura en Economía | B34: 31 | C34: 14 | D34: 17 | E34: 140 | F34: 86 | G34: 54 | H34: 9 | I34: 6 | J34: 3
A35: Licenciatura en Gestión Humana | B35: 30 | C35: 14 | D35: 16 | E35: 159 | F35: 44 | G35: 115 | H35: 17 | I35: 2 | J35: 15
A36: Maldonado | B36: =SUM(B37:B42) -> 53 | C36: 33 | D36: 20 | E36: 276 | F36: 139 | G36: 137 | H36: 25 | I36: 13 | J36: 12
A37: Licenciatura en Dirección de Empresas | B37: 13 | C37: 10 | D37: 3 | E37: 90 | F37: 46 | G37: 44 | H37: 11 | I37: 4 | J37: 7
A38: Contador Público | B38: 29 | C38: 16 | D38: 13 | E38: 167 | F38: 81 | G38: 86 | H38: 14 | I38: 9 | J38: 5
A39: Licenciatura en Negocios Internacionales | B39: 8 | C39: 4 | D39: 4 | E39: 14 | F39: 8 | G39: 6 | H39: 0 | I39: 0 | J39: 0
A40: Licenciatura en Dirección de Empresas Turísticas | B40: 0 | C40: 0 | D40: 0 | E40: 0 | F40: 0 | G40: 0 | H40: 0 | I40: 0 | J40: 0
A41: Licenciatura en Economía | B41: 3 | C41: 3 | D41: 0 | E41: 4 | F41: 4 | G41: 0 | H41: 0 | I41: 0 | J41: 0
A42: Licenciatura en Gestión Humana | B42: 0 | C42: 0 | D42: 0 | E42: 1 | F42: 0 | G42: 1 | H42: 0 | I42: 0 | J42: 0
A43: Salto | B43: =SUM(B44:B49) -> 90 | C43: 38 | D43: 52 | E43: 511 | F43: 229 | G43: 282 | H43: 35 | I43: 12 | J43: 23
A44: Licenciatura en Dirección de Empresas | B44: 11 | C44: 5 | D44: 6 | E44: 89 | F44: 39 | G44: 50 | H44: 6 | I44: 2 | J44: 4
A45: Contador Público | B45: 72 | C45: 31 | D45: 41 | E45: 399 | F45: 179 | G45: 220 | H45: 27 | I45: 8 | J45: 19
A46: Licenciatura en Negocios Internacionales | B46: 3 | C46: 0 | D46: 3 | E46: 5 | F46: 0 | G46: 5 | H46: 0 | I46: 0 | J46: 0
A47: Licenciatura en Gestión Humana | B47: 0 | C47: 0 | D47: 0 | E47: 0 | F47: 0 | G47: 0 | H47: 0 | I47: 0 | J47: 0
A48: Licenciatura en Economía | B48: 0 | C48: 0 | D48: 0 | E48: 0 | F48: 0 | G48: 0 | H48: 0 | I48: 0 | J48: 0
A49: Licenciatura en Producción y Gestión Agrícola | B49: 4 | C49: 2 | D49: 2 | E49: 18 | F49: 11 | G49: 7 | H49: 2 | I49: 2 | J49: 0
A51: FACULTAD DE INGENIERÍA Y TECNOLOGÍAS | B51: =B52+B61 -> 167 | C51: =C52+C61 -> 122 | D51: =D52+D61 -> 45 | E51: 991 | F51: 770 | G51: 221 | H51: 71 | I51: 52 | J51: 19
A52: Montevideo | B52: =SUM(B53:B60) -> 161 | C52: =SUM(C53:C60) -> 118 | D52: =SUM(D53:D60) -> 43 | E52: 965 | F52: 747 | G52: 218 | H52: 71 | I52: 52 | J52: 19
